Workbook

Sheet Introduction
A13: The User Friendly Budget Database is a summary database of data entered in the User Friendly Budgets prepared by New Jersey municipalities for their adopted budgets since 2015. Data on land area, population and aggregate property valuation were added from Census Bureau Population Estimates (2015-2019, 2021-2024), the 2020 Decennial Census (Redistricting Data), and DLGS Abstract of Ratables (2015-2024) data releases to put some of the data in context. The database contains data for each municipality that submitted a User Friendly Budget to the Division of Local Government Services. It does not include all data entered in User Friendly Budgets, but includes those major data points that cannot be found in other DLGS data releases. It is intended to make budget, staffing, personnel cost, debt, and financial information for New Jersey municipalities accessible in a flexible, easy-to-use format.
A19: All data are self-reported by municipalities and have not been independently audited or verified. Municipalities that did not submit budgets in a given year or that submitted budget documents that could not be opened or analyzed will have no data for that year. Areas where municipalities entered no data or made obvious errors are marked with a dash (--) or a "no data" tag. The Department of Community Affairs is not responsible for the accuracy of this data. Questions about specific data points should be directed to the Chief Financial Officer of the municipality or municipalities concerned.

Sheet Interactive Table Instructions
A2: Interactive Table
A4: The Interactive Table summaries User Friendly Budget data received since 2015 for a selected municipality into a table format
A5: The Table is designed to easily pull and visualize multiple years of data for a selected municipality
A6: The user can select up to ten different metrics that will populate in the Table
A8: Using the Table
A10: To begin, select a municipality from the "Select Municipality" drop down menu in cell B4
A11: Next, in the first table row (row 10) select a metric category from Column B, then click the "Update Data" button in cell B7
A12: Select a metric from the "Select Item" column (column C). The Glossary contains descriptions for each of the metrics.
A13: Click the "Update Data" button again
A14: The data will then populate in the selected row. If dashes or "no data" appear in the table, then there is no data available for that particular selection.
A15: Click the "Number Format" button to adjust the data to a number format, "Decimal Format" to adjust to a decimal format, or "% Format" to adjust to a percentage format, if desired
A16: Complete the process for the remaining rows, as desired
A18: Using the Graph
A20: The graph depicts the metric selected in the first row of the table (row 10)
A21: When a new selection is made, click the "Update Data" button to update the graph
A22: The user can adjust the format of the axis using the buttons in Column J:
B23: Axis Num. Format will adjust the axis to a number format
B24: Axis % Format will adjust the axis to a decimal format
B25: Axis Zero Min. will adjust the axis minimum to Zero
B26: Axis Auto Min. will adjust the axis minimum to the automatic Excel setting

Sheet Glossary
A2: Glossary
A3: Category | B3: Term | C3: Description
A4: Status | B4: No UFB Available | C4: The Division of Local Government Services does not have a User Friendly Budget on file for this municipality
B5: Sig. Data Missing | C5: Municipality submitted a User Friendly Budget, however at least one entire section was left blank
A6: Population and Density | B6: Population Estimate (Census) | C6: Population estimate from the US Census Bureau's Population Estimates Program.
B7: Land Area (sq. mi) | C7: Land areas as of the Decennial Census
B8: Population Density | C8: Persons per square mile, population divided by land area
A9: Tax Collections | B9: % of Tax Collections used to Calculate RUT | C9: The percentage of tax collections used to calculate the reserve for uncollected taxes in the current budget year. The reserve for uncollected taxes is designed to ensure sufficient cash receipts to support municipal operations and property taxes due to school, county, local, and special districts.
B10: Total Tax Revenue, Collections CY | C10: Total tax revenues collected in the previous calendar year
B11: Total Tax Levy, CY | C11: Total tax levy for the previous calendar year
B12: % of Taxes Collected, CY | C12: The percentage of the previous calendar year's tax levy that was actually collected
B13: Delinquent Taxes | C13: Delinquent taxes at the end of the prior calendar year
A14: Revenues | B14: Surplus | C14: Surplus used as revenue in the budget
B15: Local Revenue | C15: Local, own-source revenue (i.e. license fees, interest, fines, utility operating surplus, etc.)
B16: State Aid (without offsetting appropriation) | C16: State aid (i.e. Energy Tax Receipts, CMPTRA, Transitional Aid)
B17: Uniform Construction Code Fees | C17: Unform construction code fees (i.e. permit fees)
B18: Shared Services Agreements | C18: Revenues received pursuant to a shared services agreement with another local government unit
B19: Additional Revenue Offset by Appropriations | C19: Additional revenues with offsetting appropriations
B20: Public and Private Revenue | C20: Public and private revenues (i.e. grant revenues)
B21: Other Special Items | C21: Miscellaneous items including hotel taxes, cable TV franchising fees, sale of municipal assets, payments-in-lieu-of taxes, and debt payment reserves
B22: Receipts from Delinquent Taxes | C22: Receipts from the collection of delinquent taxes corresponding to prior years
B23: Local Tax for Municipal Purposes | C23: Local municipal purpose property tax levy
B24: Minimum Library Tax | C24: Municipal library property tax levy
B25: Open Space Levy Tax | C25: Open space preservation property tax levy
B26: Addition to Local District School Tax | C26: Additional municipal levy to support local school district
B27: Deficit General Budget | C27: Carry-over of a previous year's general budget deficit
A28: Appropriations | B28: Total Appropriations | C28: All budget appropriations including utility and enterprise funds
B29: General Budget | C29: Budget appropriations for government operational purposes only. Excludes utility and enterprise funds
B30: General Government | C30: Includes Elected Officials, Clerk, Business Administrator, Financial Administration, Technology, Legal, Economic Development and municipal office employees not included in other listed budget categories.
B31: Land-Use Administration | C31: Includes the Planning Board, Zoning Board of Adjustment, and Affordable Housing.
B32: Uniform Construction Code | C32: Includes the budget for all building sub-code officials who enforce the Uniform Construction Code, as well as other code enforcement functions outside the scope of the UCC.
B33: Insurance | C33: Includes Employee Health Benefits (medical, dental, prescription health coverage and other health-related benefits), Liability, Property Casualty, Workers Compensation and any other insurance costs.
B34: Public Safety | C34: includes 911 Communications, Police, Fire, Ambulance/Rescue, Emergency Management and any other public safety costs.
B35: Public Works | C35: Includes Street and Road Maintenance, Sanitary Sewer Services, Stormwater Management, Solid Waste, Recycling, Vehicle Maintenance and other miscellaneous public works functions.
B36: Health and Human Services | C36: Includes Animal Control, Board of Health and various health, human services and social services programs provided by your municipality for veterans, senior citizens, teens or other groups.
B37: Parks and Recreation | C37: Includes park maintenance, administration of recreation programs and community centers, as well as special community events/celebrations and other similar functions
B38: Education (including Library) | C38: Includes Library and other similar educational functions.
B39: Unclassified | C39: All other unclassified expenditures
B40: Utilities and Bulk Purchases | C40: Includes all utility costs paid through the municipal budget - gas, electric, water, sewer, etc.
B41: Landfill / Solid Waste Disposal | C41: Includes all costs relating to landfill and solid waste disposal.
B42: Contingency | C42: Contingency expenses for which no other appropriation was made
B43: Statutory Expenditures | C43: Includes Pension, Social Security, Unemployment, and other related payroll taxes.
B44: Judgements | C44: Expenditures related to payment of court judgements
B45: Shared Services | C45: Expenditures made pursuant to a shared services agreement with another local government unit
B46: Court and Public Defender | C46: Municipal court and public defender costs
B47: Capital | C47: Capital expenditures
B48: Debt | C48: Debt service payments
B49: Deferred Charges | C49: Current year funding of deferred charges from a previous year corresponding to overexpenditures and emergency appropriations
B50: Debt - Type 1 School District | C50: Debt service of payments on behalf of a Type 1 School District
B51: Reserve for Uncollected Taxes | C51: Budget appropriation reserve for uncollected property taxes
B52: Surplus General Budget | C52: Carry-over of a previous year's general budget surplus
A53: Total Personnel Costs | B53: Total Personnel Costs | C53: Sum of base pay, overtime, pension, health benefits, employment taxes, and other benefit and compensation costs
B54: Base Pay | C54: The annualized rate of pay to which overtime (if eligible) and/or pension is calculated
B55: Overtime and other Compensation | C55: Any other item that is charged as a salary and wage expense but not included in base pay
B56: Pension (Estimate) | C56: Estimated pension costs as listed on the Division of Pension and Benefits website
B57: Health Benefits Net of Cost Share | C57: Health benefit costs net of employee contribution
B58: Employment Taxes and Other Benefits | C58: Employment taxes and other benefits.
A59: Health Plan Information | B59: Employees Civil Service? | C59: Whether the municipality's employees are subject to Title 11A (Civil Service).
B60: Use State Health Benefits Plan? | C60: Whether the municipality participates in the State Health Benefits Plan.
B61: Does State Plan Cover Rx? | C61: Whether the municipality's State Health Benefits Plan contains a prescription benefit
B62: Single Coverage | C62: Single member health care coverage
B63: Parent & Child | C63: Parent and child health care coverage
B64: Employee & Spouse (or Partner) | C64: Employee and spouse or partner health care coverage
B65: Family | C65: Family health care coverage (i.e. spouse/partner and children)
B66: Total Employee Cost Sharing Contribution (entered as negative - ) | C66: Employee health care contribution
B67: Avg. Employee Cost Sharing Contribution % | C67: Employee health care contribution as a percentage of total cost
B68: Total Employer Cost | C68: Total employer health care cost net of employee contribution
A69: Gross Debt | B69: Local School Debt | C69: Debt issued by local school districts
B70: Regional School Debt | C70: Debt issued by regional school districts
B71: Utility Fund Debt | C71: Debt issued by or on behalf of municipal utility funds (i.e. water, sewer, etc.)
B72: Debt Authorized | C72: Total of all authorized municipal debt
B73: Notes Outstanding | C73: Total of all outstanding municipal note debt (short-term borrowing)
B74: Bonds Outstanding | C74: Total of all outstanding municipal bond debt (long-term borrowing)
B75: Loans and Other Debt | C75: Total of all outstanding loans and all other kinds of debt
B76: Gross Debt | C76: All bonds and notes issued and authorized but not issued or guaranteed by the local unit, except tax anticipation notes, emergency notes, special emergency notes and utility revenue notes.
B77: Per Capita Gross Debt | C77: Gross debt divided by the population of the municipality (Census)
A78: Deductions | B78: Deductions | C78: Deductions from gross debt including but not limited to school purposes by a regional school district, self-liquidating purposes, debt issued by another public entity and backed by the municipality, bond anticipation notes in anticipation of authorized or issued bonds, and funds on hand or sinking funds applicable only to the payment of debt.
A79: Net Debt | B79: Net Debt | C79: Gross debt less deductions
B80: Per Capita Net Debt | C80: Net debt divided by the population of the municipality (Census)
B81: 3 Yr. Average Property Valuation | C81: Three-year average of total property valuation in the municipality
B82: Net Debt as % of 3 Year Avg Property Valuation | C82: Net debt divided by three-year average of total property valuation in the municipality. A measure of debt burden.
A83: Debt Service | B83: Utility Fund - Principal | C83: Total principal payments for utility fund debt
B84: Utility Fund - Interest | C84: Total interest payments for utility fund debt
B85: Bond Anticipation Notes - Principal | C85: Total principal payments for bond anticipation notes
B86: Bond Anticipation Notes - Interest | C86: Total interest payments for bond anticipation notes
B87: Bonds - Principal | C87: Total principal payments for bonds
B88: Bonds - Interest | C88: Total interest payments for bonds
B89: Loans & Other Debt - Principal | C89: Total principal payments for loans and other debt
B90: Loans & Other Debt - Interest | C90: Total interest payments for loans and other debt
B91: Total Principal | C91: Total principal payments for bonds, notes, loans, and other kinds of debt
B92: Total Interest | C92: Total interest payments for bonds, notes, loans, and other kinds of debt
B93: CY Budget Debt Pmt | C93: Current year budgeted debt payment for existing debt
B94: (Year 2) Budget Debt Pmt | C94: Second year estimated budgeted debt payment for existing debt
B95: (Year 3) Budget Debt Pmt | C95: Third year estimated budgeted debt payment for existing debt
B96: Future Year Budget Debt Pmt | C96: Estimated budgeted debt payments for all future years beyond the third year for existing debt
B97: Total Guarantees - Governmental | C97: Total debt service guaranteed by the municipality relating to governmental purposes
B98: Total Guarantees - Other | C98: Total debt service guaranteed by the municipality relating to all other purposes
B99: Total Capital/Equipment Leases | C99: Total capital and equipment lease payments
B100: Total Other | C100: All other debt payments not captured in previous categories
A101: Credit Ratings | B101: Moody Rating | C101: Latest Moody's credit rating identified by the municipality
B102: Moody Rating Year | C102: Year of the latest Moody's credit rating identified by the municipality
B103: S&P Rating | C103: Latest Standard and Poor's credit rating identified by the municipality
B104: S&P Rating Year | C104: Year of the latest Standard and Poor's credit rating identified by the municipality
B105: Fitch Rating | C105: Latest Fitch credit rating identified by the municipality
B106: Fitch Rating Year | C106: Year of the latest Fitch credit rating identified by the municipality
A107: Tax Exemptions/PILOTS | B107: PY PILOT Billing | C107: Previous year's Payment-In-Lieu-of-Taxes (PILOT) billing
B108: PY Exempt AV | C108: Previous year's exempt aggregate property valuation
B109: PY Taxes if Billed at Full Rate | C109: Previous year's taxes if the exempt property was billed at the full property tax rate
B110: PY PILOT Billing % of Taxes if Billed | C110: Previous year's PILOT billing divided by previous year's taxes if billed at the full rate. A measure of how much of the full tax liability is captured by PILOTs.
B111: PY Total AV | C111: Previous year's total aggregate valuation, calculated as the sum of taxable and exempt property valuation (from Abstract of Ratables)
B112: PY exempt % of AV | C112: Previous year's exempt aggregate property valuation divided by total aggregate valuation. A measure of how much of the property tax base is exempted by PILOTs
B113: Commercial/Industrial | C113: Exempted parcels with a commercial or industrial property class classification
B114: Dwelling | C114: Exempted parcels with a residential dwelling property class classification
B115: New Dwelling/Conversion | C115: Exempted parcels with a new dwelling or residential property conversion property class classification
B116: Multiple Dwelling | C116: Exempted parcels with a multiple dwelling (i.e. apartment or condominium) property class classification
B117: Exemption | C117: Exemption from payment of property taxes
B118: Abatement | C118: Reductions or exemptions from payment of property taxes
A119: Accumulated Absences | B119: Gross Days of Accumulated Absence | C119: Gross number of days of accumulated employee absence eligible for compensation
B120: Dollar Value of Compensated Absences | C120: The dollar value of the gross number of days of accumulated employee absences
B121: Total Funds Reserved as of end of PY | C121: Total funds available to fund the accumulative absence liability as of the end of the previous budget year
B122: Total Funds Appropriated in CY | C122: Total funds available to fund the accumulative absence liability appropriated in the current budget year
A123: Structural Imbalances | B123: Revenues at Risk | C123: Anticipated revenues that will not recur in the next budget year, or that are known to be declining over time (i.e. revenues from one time land sales; concession fees or deposits associated with agreements, including redevelopment agreements or utility agreements; short term or expiring grants that support operating costs; transfers of funds from authorities that are not expected to continue; awards of Transitional Aid from the State; and other revenues that are known to be temporary in nature).
B124: Non-recurring Appropriation Reductions | C124: Proposed reductions in line items that will not recur in the next budget year, or that are known to be declining over time (i.e. non-recurring cost reductions, short term savings in debt service payments attributable to refunding issues that allow for a skipped debt service payment or reductions in short term maturities; and savings in expenses made possible through contractual short term concessions that result in later increased payments)
B125: Future Year Appropriation Increases | C125: Reasonable projections of appropriation increases for the next budget year (i.e. : increases in debt service payments due to new or restructured debt; increases in lease payments due to new or restructured leases; increased salary or compensation payments attributable to contractual obligations; and other increases in items of expenditure for which policy changes or decisions will necessitate increased appropriations)
B126: Structural Imbalance Offsets | C126: Budget changes that are expected to occur in the next budget year that offset the impact of the three above-referenced categories (i.e. new or one-time current year appropriations or non-recurring increases in current year appropriations that will not appear in the next budget year and out-year budgets)
B127: Total Imbalances | C127: Total of all identified structural imbalances including offsets.

Sheet Interactive Table
A2: Interactive Table
B3: Select Municipality | C3: DCA Municode
B4: 1 | C4: =VLOOKUP(B4,$EB$5:$ED$569,3,FALSE) -> 0101 | BK4: Position | DZ4: 1330 | EA4: =VALUE(DZ4) -> 1330 | EB4: =EB3+1 -> 1 | EC4: Aberdeen Township, Monmouth County | ED4: 1330 | EE4: Aberdeen township | EF4: Monmouth
B5: =D8 -> Absecon City, Atlantic County | BG5: 6 | BH5: Status | BI5: No UFB Available | BJ5: =BH5&"_"&BI5 -> Status_No UFB Available | BK5: 6 | BN5: Item | BO5: Named Range | DZ5: 0101 | EA5: 101 | EB5: 1 | EC5: Absecon City, Atlantic County | ED5: 0101 | EE5: Absecon city | EF5: Atlantic
D6: =IF(B10=1,"No Selection",VLOOKUP(B10,$BM$6:$BN$49,2,FALSE)&"- "&VLOOKUP(C10,$BR$7:$BT$30,2,FALSE)) -> No Selection | BG6: =BG5+1 -> 7 | BH6: Status | BI6: Sig. Data Missing | BJ6: =BH6&"_"&BI6 -> Status_Sig. Data Missing | BK6: =BK5+1 -> 7 | BM6: 1 | BN6: Select Category | BR6: Menus - Row 1 | BX6: Menus - Row 2 | CD6: Menus - Row 3 | CJ6: Menus - Row 4 | CP6: Menus - Row 5 | CV6: Menus - Row 6 | DB6: Menus - Row 7 | DH6: Menus - Row 8 | DN6: Menus - Row 9 | DT6: Menus - Row 10 | DZ6: 1001 | EA6: 1001 | EB6: =EB5+1 -> 2 | EC6: Alexandria Township, Hunterdon County | ED6: 1001 | EE6: Alexandria township | EF6: Hunterdon
BG7: =BG6+1 -> 8 | BJ7: _ | BK7: =BK6+1 -> 8 | BM7: =BM6+1 -> 2 | BN7: Status | BO7: Status | BR7: 1 | BS7: =IFERROR(IF(B10=2,Status,IF(B10=3,Population_and_Density,IF(B10=4,Tax_Collections,IF(B10=5,PriorYrRevenues,IF(B10=6,CurrentYrRevenues,IF(B10=7,CurrentYrBudgRevenues,IF(B10=8,PriorYrAppropriations,IF(B10=9,CurrentYrAppropriations,IF(B10=10,CurrentYrGenBudgetAppropriations,IF(B10=11,FTEmployees,IF(B10=12,PTEmployees,IF(B10=13,PersonnelCosts,IF(B10=14,GoverningBodyPersonnelCosts,IF(B10=15,SupervisoryPersonnelCosts,IF(B10=16,PoliceOfficerPersonnelCosts,IF(B10=17,FirefighterPersonnelCosts,IF(B10=18,OtherUnionPersonnelCosts,IF(B10=19,NonunionPersonnelCosts,IF(B10=20,HealthPlanInformation,IF(B10=21,ActiveEmpNumMem,IF(B10=22,ActiveEmpHealthCareCost,IF(B10=23,ActiveEmpTotalHealthCareCost,IF(B10=24,ElectedOffNumCovMem,IF(B10=25,ElectedOffHealthCareCost,IF(B10=26,ElectedOffTotalHealthCareCost,IF(B10=27,RetireeHealthCovMem,IF(B10=28,RetireeHealthCareCost,IF(B10=29,TotalRetireeHealthCost,IF(B10=30,TotCovMem,IF(B10=31,HealthCareCostCovMem,IF(B10=32,TotalHealthCareCosts,IF(B10=33,GrossDebt,IF(B10=34,Deductions,IF(B10=35,Net_Debt,IF(B10=36,Debt_Service,IF(B10=37,Credit_Ratings,IF(B10=38,LTTaxExemptions,IF(B10=39,FiveYrTaxExParcels,IF(B10=40,FiveYrTaxExPILOT,IF(B10=41,FiveYrTaxExAV,IF(B10=42,TaxesifBilled,IF(B10=43,AccumAbsences,IF(B10=44,StrucImbalances,""))))))))))))))))))))))))))))))))))))))))))),"") ->  | BT7: =VLOOKUP($B$10,$BM$6:$BN$49,2,FALSE) -> Select Category | BU7: =BT7&"_"&BS7 -> Select Category_ | BV7: =VLOOKUP(BU7,$BJ$5:$BK$406,2,FALSE) ->  | BX7: 1 | BY7: =IF(B11=2,Status,IF(B11=3,Population_and_Density,IF(B11=4,Tax_Collections,IF(B11=5,PriorYrRevenues,IF(B11=6,CurrentYrRevenues,IF(B11=7,CurrentYrBudgRevenues,IF(B11=8,PriorYrAppropriations,IF(B11=9,CurrentYrAppropriations,IF(B11=10,CurrentYrGenBudgetAppropriations,IF(B11=11,FTEmployees,IF(B11=12,PTEmployees,IF(B11=13,PersonnelCosts,IF(B11=14,GoverningBodyPersonnelCosts,IF(B11=15,SupervisoryPersonnelCosts,IF(B11=16,PoliceOfficerPersonnelCosts,IF(B11=17,FirefighterPersonnelCosts,IF(B11=18,OtherUnionPersonnelCosts,IF(B11=19,NonunionPersonnelCosts,IF(B11=20,HealthPlanInformation,IF(B11=21,ActiveEmpNumMem,IF(B11=22,ActiveEmpHealthCareCost,IF(B11=23,ActiveEmpTotalHealthCareCost,IF(B11=24,ElectedOffNumCovMem,IF(B11=25,ElectedOffHealthCareCost,IF(B11=26,ElectedOffTotalHealthCareCost,IF(B11=27,RetireeHealthCovMem,IF(B11=28,RetireeHealthCareCost,IF(B11=29,TotalRetireeHealthCost,IF(B11=30,TotCovMem,IF(B11=31,HealthCareCostCovMem,IF(B11=32,TotalHealthCareCosts,IF(B11=33,GrossDebt,IF(B11=34,Deductions,IF(B11=35,Net_Debt,IF(B11=36,Debt_Service,IF(B11=37,Credit_Ratings,IF(B11=38,LTTaxExemptions,IF(B11=39,FiveYrTaxExParcels,IF(B11=40,FiveYrTaxExPILOT,IF(B11=41,FiveYrTaxExAV,IF(B11=42,TaxesifBilled,IF(B11=43,AccumAbsences,IF(B11=44,StrucImbalances,""))))))))))))))))))))))))))))))))))))))))))) ->  | BZ7: =VLOOKUP($B$11,$BM$6:$BN$49,2,FALSE) -> Select Category | CA7: =BZ7&"_"&BY7 -> Select Category_ | CB7: =VLOOKUP(CA7,$BJ$5:$BK$406,2,FALSE) ->  | CD7: 1 | CE7: =IF(B12=2,Status,IF(B12=3,Population_and_Density,IF(B12=4,Tax_Collections,IF(B12=5,PriorYrRevenues,IF(B12=6,CurrentYrRevenues,IF(B12=7,CurrentYrBudgRevenues,IF(B12=8,PriorYrAppropriations,IF(B12=9,CurrentYrAppropriations,IF(B12=10,CurrentYrGenBudgetAppropriations,IF(B12=11,FTEmployees,IF(B12=12,PTEmployees,IF(B12=13,PersonnelCosts,IF(B12=14,GoverningBodyPersonnelCosts,IF(B12=15,SupervisoryPersonnelCosts,IF(B12=16,PoliceOfficerPersonnelCosts,IF(B12=17,FirefighterPersonnelCosts,IF(B12=18,OtherUnionPersonnelCosts,IF(B12=19,NonunionPersonnelCosts,IF(B12=20,HealthPlanInformation,IF(B12=21,ActiveEmpNumMem,IF(B12=22,ActiveEmpHealthCareCost,IF(B12=23,ActiveEmpTotalHealthCareCost,IF(B12=24,ElectedOffNumCovMem,IF(B12=25,ElectedOffHealthCareCost,IF(B12=26,ElectedOffTotalHealthCareCost,IF(B12=27,RetireeHealthCovMem,IF(B12=28,RetireeHealthCareCost,IF(B12=29,TotalRetireeHealthCost,IF(B12=30,TotCovMem,IF(B12=31,HealthCareCostCovMem,IF(B12=32,TotalHealthCareCosts,IF(B12=33,GrossDebt,IF(B12=34,Deductions,IF(B12=35,Net_Debt,IF(B12=36,Debt_Service,IF(B12=37,Credit_Ratings,IF(B12=38,LTTaxExemptions,IF(B12=39,FiveYrTaxExParcels,IF(B12=40,FiveYrTaxExPILOT,IF(B12=41,FiveYrTaxExAV,IF(B12=42,TaxesifBilled,IF(B12=43,AccumAbsences,IF(B12=44,StrucImbalances,""))))))))))))))))))))))))))))))))))))))))))) ->  | CF7: =VLOOKUP($B$12,$BM$6:$BN$49,2,FALSE) -> Select Category | CG7: =CF7&"_"&CE7 -> Select Category_ | CH7: =VLOOKUP(CG7,$BJ$5:$BK$406,2,FALSE) ->  | CJ7: 1 | CK7: =IF(B13=2,Status,IF(B13=3,Population_and_Density,IF(B13=4,Tax_Collections,IF(B13=5,PriorYrRevenues,IF(B13=6,CurrentYrRevenues,IF(B13=7,CurrentYrBudgRevenues,IF(B13=8,PriorYrAppropriations,IF(B13=9,CurrentYrAppropriations,IF(B13=10,CurrentYrGenBudgetAppropriations,IF(B13=11,FTEmployees,IF(B13=12,PTEmployees,IF(B13=13,PersonnelCosts,IF(B13=14,GoverningBodyPersonnelCosts,IF(B13=15,SupervisoryPersonnelCosts,IF(B13=16,PoliceOfficerPersonnelCosts,IF(B13=17,FirefighterPersonnelCosts,IF(B13=18,OtherUnionPersonnelCosts,IF(B13=19,NonunionPersonnelCosts,IF(B13=20,HealthPlanInformation,IF(B13=21,ActiveEmpNumMem,IF(B13=22,ActiveEmpHealthCareCost,IF(B13=23,ActiveEmpTotalHealthCareCost,IF(B13=24,ElectedOffNumCovMem,IF(B13=25,ElectedOffHealthCareCost,IF(B13=26,ElectedOffTotalHealthCareCost,IF(B13=27,RetireeHealthCovMem,IF(B13=28,RetireeHealthCareCost,IF(B13=29,TotalRetireeHealthCost,IF(B13=30,TotCovMem,IF(B13=31,HealthCareCostCovMem,IF(B13=32,TotalHealthCareCosts,IF(B13=33,GrossDebt,IF(B13=34,Deductions,IF(B13=35,Net_Debt,IF(B13=36,Debt_Service,IF(B13=37,Credit_Ratings,IF(B13=38,LTTaxExemptions,IF(B13=39,FiveYrTaxExParcels,IF(B13=40,FiveYrTaxExPILOT,IF(B13=41,FiveYrTaxExAV,IF(B13=42,TaxesifBilled,IF(B13=43,AccumAbsences,IF(B13=44,StrucImbalances,""))))))))))))))))))))))))))))))))))))))))))) ->  | CL7: =VLOOKUP($B$13,$BM$6:$BN$49,2,FALSE) -> Select Category | CM7: =CL7&"_"&CK7 -> Select Category_ | CN7: =VLOOKUP(CM7,$BJ$5:$BK$406,2,FALSE) ->  | CP7: 1 | CQ7: =IF(B14=2,Status,IF(B14=3,Population_and_Density,IF(B14=4,Tax_Collections,IF(B14=5,PriorYrRevenues,IF(B14=6,CurrentYrRevenues,IF(B14=7,CurrentYrBudgRevenues,IF(B14=8,PriorYrAppropriations,IF(B14=9,CurrentYrAppropriations,IF(B14=10,CurrentYrGenBudgetAppropriations,IF(B14=11,FTEmployees,IF(B14=12,PTEmployees,IF(B14=13,PersonnelCosts,IF(B14=14,GoverningBodyPersonnelCosts,IF(B14=15,SupervisoryPersonnelCosts,IF(B14=16,PoliceOfficerPersonnelCosts,IF(B14=17,FirefighterPersonnelCosts,IF(B14=18,OtherUnionPersonnelCosts,IF(B14=19,NonunionPersonnelCosts,IF(B14=20,HealthPlanInformation,IF(B14=21,ActiveEmpNumMem,IF(B14=22,ActiveEmpHealthCareCost,IF(B14=23,ActiveEmpTotalHealthCareCost,IF(B14=24,ElectedOffNumCovMem,IF(B14=25,ElectedOffHealthCareCost,IF(B14=26,ElectedOffTotalHealthCareCost,IF(B14=27,RetireeHealthCovMem,IF(B14=28,RetireeHealthCareCost,IF(B14=29,TotalRetireeHealthCost,IF(B14=30,TotCovMem,IF(B14=31,HealthCareCostCovMem,IF(B14=32,TotalHealthCareCosts,IF(B14=33,GrossDebt,IF(B14=34,Deductions,IF(B14=35,Net_Debt,IF(B14=36,Debt_Service,IF(B14=37,Credit_Ratings,IF(B14=38,LTTaxExemptions,IF(B14=39,FiveYrTaxExParcels,IF(B14=40,FiveYrTaxExPILOT,IF(B14=41,FiveYrTaxExAV,IF(B14=42,TaxesifBilled,IF(B14=43,AccumAbsences,IF(B14=44,StrucImbalances,""))))))))))))))))))))))))))))))))))))))))))) ->  | CR7: =VLOOKUP($B$14,$BM$6:$BN$49,2,FALSE) -> Select Category | CS7: =CR7&"_"&CQ7 -> Select Category_ | CT7: =VLOOKUP(CS7,$BJ$5:$BK$406,2,FALSE) ->  | CV7: 1 | CW7: =IF(B15=2,Status,IF(B15=3,Population_and_Density,IF(B15=4,Tax_Collections,IF(B15=5,PriorYrRevenues,IF(B15=6,CurrentYrRevenues,IF(B15=7,CurrentYrBudgRevenues,IF(B15=8,PriorYrAppropriations,IF(B15=9,CurrentYrAppropriations,IF(B15=10,CurrentYrGenBudgetAppropriations,IF(B15=11,FTEmployees,IF(B15=12,PTEmployees,IF(B15=13,PersonnelCosts,IF(B15=14,GoverningBodyPersonnelCosts,IF(B15=15,SupervisoryPersonnelCosts,IF(B15=16,PoliceOfficerPersonnelCosts,IF(B15=17,FirefighterPersonnelCosts,IF(B15=18,OtherUnionPersonnelCosts,IF(B15=19,NonunionPersonnelCosts,IF(B15=20,HealthPlanInformation,IF(B15=21,ActiveEmpNumMem,IF(B15=22,ActiveEmpHealthCareCost,IF(B15=23,ActiveEmpTotalHealthCareCost,IF(B15=24,ElectedOffNumCovMem,IF(B15=25,ElectedOffHealthCareCost,IF(B15=26,ElectedOffTotalHealthCareCost,IF(B15=27,RetireeHealthCovMem,IF(B15=28,RetireeHealthCareCost,IF(B15=29,TotalRetireeHealthCost,IF(B15=30,TotCovMem,IF(B15=31,HealthCareCostCovMem,IF(B15=32,TotalHealthCareCosts,IF(B15=33,GrossDebt,IF(B15=34,Deductions,IF(B15=35,Net_Debt,IF(B15=36,Debt_Service,IF(B15=37,Credit_Ratings,IF(B15=38,LTTaxExemptions,IF(B15=39,FiveYrTaxExParcels,IF(B15=40,FiveYrTaxExPILOT,IF(B15=41,FiveYrTaxExAV,IF(B15=42,TaxesifBilled,IF(B15=43,AccumAbsences,IF(B15=44,StrucImbalances,""))))))))))))))))))))))))))))))))))))))))))) ->  | CX7: =VLOOKUP($B$15,$BM$6:$BN$49,2,FALSE) -> Select Category | CY7: =CX7&"_"&CW7 -> Select Category_ | CZ7: =VLOOKUP(CY7,$BJ$5:$BK$406,2,FALSE) ->  | DB7: 1 | DC7: =IF(B16=2,Status,IF(B16=3,Population_and_Density,IF(B16=4,Tax_Collections,IF(B16=5,PriorYrRevenues,IF(B16=6,CurrentYrRevenues,IF(B16=7,CurrentYrBudgRevenues,IF(B16=8,PriorYrAppropriations,IF(B16=9,CurrentYrAppropriations,IF(B16=10,CurrentYrGenBudgetAppropriations,IF(B16=11,FTEmployees,IF(B16=12,PTEmployees,IF(B16=13,PersonnelCosts,IF(B16=14,GoverningBodyPersonnelCosts,IF(B16=15,SupervisoryPersonnelCosts,IF(B16=16,PoliceOfficerPersonnelCosts,IF(B16=17,FirefighterPersonnelCosts,IF(B16=18,OtherUnionPersonnelCosts,IF(B16=19,NonunionPersonnelCosts,IF(B16=20,HealthPlanInformation,IF(B16=21,ActiveEmpNumMem,IF(B16=22,ActiveEmpHealthCareCost,IF(B16=23,ActiveEmpTotalHealthCareCost,IF(B16=24,ElectedOffNumCovMem,IF(B16=25,ElectedOffHealthCareCost,IF(B16=26,ElectedOffTotalHealthCareCost,IF(B16=27,RetireeHealthCovMem,IF(B16=28,RetireeHealthCareCost,IF(B16=29,TotalRetireeHealthCost,IF(B16=30,TotCovMem,IF(B16=31,HealthCareCostCovMem,IF(B16=32,TotalHealthCareCosts,IF(B16=33,GrossDebt,IF(B16=34,Deductions,IF(B16=35,Net_Debt,IF(B16=36,Debt_Service,IF(B16=37,Credit_Ratings,IF(B16=38,LTTaxExemptions,IF(B16=39,FiveYrTaxExParcels,IF(B16=40,FiveYrTaxExPILOT,IF(B16=41,FiveYrTaxExAV,IF(B16=42,TaxesifBilled,IF(B16=43,AccumAbsences,IF(B16=44,StrucImbalances,""))))))))))))))))))))))))))))))))))))))))))) ->  | DD7: =VLOOKUP($B$16,$BM$6:$BN$49,2,FALSE) -> Select Category | DE7: =DD7&"_"&DC7 -> Select Category_ | DF7: =VLOOKUP(DE7,$BJ$5:$BK$406,2,FALSE) ->  | DH7: 1 | DI7: =IF(B17=2,Status,IF(B17=3,Population_and_Density,IF(B17=4,Tax_Collections,IF(B17=5,PriorYrRevenues,IF(B17=6,CurrentYrRevenues,IF(B17=7,CurrentYrBudgRevenues,IF(B17=8,PriorYrAppropriations,IF(B17=9,CurrentYrAppropriations,IF(B17=10,CurrentYrGenBudgetAppropriations,IF(B17=11,FTEmployees,IF(B17=12,PTEmployees,IF(B17=13,PersonnelCosts,IF(B17=14,GoverningBodyPersonnelCosts,IF(B17=15,SupervisoryPersonnelCosts,IF(B17=16,PoliceOfficerPersonnelCosts,IF(B17=17,FirefighterPersonnelCosts,IF(B17=18,OtherUnionPersonnelCosts,IF(B17=19,NonunionPersonnelCosts,IF(B17=20,HealthPlanInformation,IF(B17=21,ActiveEmpNumMem,IF(B17=22,ActiveEmpHealthCareCost,IF(B17=23,ActiveEmpTotalHealthCareCost,IF(B17=24,ElectedOffNumCovMem,IF(B17=25,ElectedOffHealthCareCost,IF(B17=26,ElectedOffTotalHealthCareCost,IF(B17=27,RetireeHealthCovMem,IF(B17=28,RetireeHealthCareCost,IF(B17=29,TotalRetireeHealthCost,IF(B17=30,TotCovMem,IF(B17=31,HealthCareCostCovMem,IF(B17=32,TotalHealthCareCosts,IF(B17=33,GrossDebt,IF(B17=34,Deductions,IF(B17=35,Net_Debt,IF(B17=36,Debt_Service,IF(B17=37,Credit_Ratings,IF(B17=38,LTTaxExemptions,IF(B17=39,FiveYrTaxExParcels,IF(B17=40,FiveYrTaxExPILOT,IF(B17=41,FiveYrTaxExAV,IF(B17=42,TaxesifBilled,IF(B17=43,AccumAbsences,IF(B17=44,StrucImbalances,""))))))))))))))))))))))))))))))))))))))))))) ->  | DJ7: =VLOOKUP($B$17,$BM$6:$BN$49,2,FALSE) -> Select Category | DK7: =DJ7&"_"&DI7 -> Select Category_ | DL7: =VLOOKUP(DK7,$BJ$5:$BK$406,2,FALSE) ->  | DN7: 1 | DO7: =IF(B18=2,Status,IF(B18=3,Population_and_Density,IF(B18=4,Tax_Collections,IF(B18=5,PriorYrRevenues,IF(B18=6,CurrentYrRevenues,IF(B18=7,CurrentYrBudgRevenues,IF(B18=8,PriorYrAppropriations,IF(B18=9,CurrentYrAppropriations,IF(B18=10,CurrentYrGenBudgetAppropriations,IF(B18=11,FTEmployees,IF(B18=12,PTEmployees,IF(B18=13,PersonnelCosts,IF(B18=14,GoverningBodyPersonnelCosts,IF(B18=15,SupervisoryPersonnelCosts,IF(B18=16,PoliceOfficerPersonnelCosts,IF(B18=17,FirefighterPersonnelCosts,IF(B18=18,OtherUnionPersonnelCosts,IF(B18=19,NonunionPersonnelCosts,IF(B18=20,HealthPlanInformation,IF(B18=21,ActiveEmpNumMem,IF(B18=22,ActiveEmpHealthCareCost,IF(B18=23,ActiveEmpTotalHealthCareCost,IF(B18=24,ElectedOffNumCovMem,IF(B18=25,ElectedOffHealthCareCost,IF(B18=26,ElectedOffTotalHealthCareCost,IF(B18=27,RetireeHealthCovMem,IF(B18=28,RetireeHealthCareCost,IF(B18=29,TotalRetireeHealthCost,IF(B18=30,TotCovMem,IF(B18=31,HealthCareCostCovMem,IF(B18=32,TotalHealthCareCosts,IF(B18=33,GrossDebt,IF(B18=34,Deductions,IF(B18=35,Net_Debt,IF(B18=36,Debt_Service,IF(B18=37,Credit_Ratings,IF(B18=38,LTTaxExemptions,IF(B18=39,FiveYrTaxExParcels,IF(B18=40,FiveYrTaxExPILOT,IF(B18=41,FiveYrTaxExAV,IF(B18=42,TaxesifBilled,IF(B18=43,AccumAbsences,IF(B18=44,StrucImbalances,""))))))))))))))))))))))))))))))))))))))))))) ->  | DP7: =VLOOKUP($B$18,$BM$6:$BN$49,2,FALSE) -> Select Category | DQ7: =DP7&"_"&DO7 -> Select Category_ | DR7: =VLOOKUP(DQ7,$BJ$5:$BK$406,2,FALSE) ->  | DT7: 1 | DU7: =IF(B19=2,Status,IF(B19=3,Population_and_Density,IF(B19=4,Tax_Collections,IF(B19=5,PriorYrRevenues,IF(B19=6,CurrentYrRevenues,IF(B19=7,CurrentYrBudgRevenues,IF(B19=8,PriorYrAppropriations,IF(B19=9,CurrentYrAppropriations,IF(B19=10,CurrentYrGenBudgetAppropriations,IF(B19=11,FTEmployees,IF(B19=12,PTEmployees,IF(B19=13,PersonnelCosts,IF(B19=14,GoverningBodyPersonnelCosts,IF(B19=15,SupervisoryPersonnelCosts,IF(B19=16,PoliceOfficerPersonnelCosts,IF(B19=17,FirefighterPersonnelCosts,IF(B19=18,OtherUnionPersonnelCosts,IF(B19=19,NonunionPersonnelCosts,IF(B19=20,HealthPlanInformation,IF(B19=21,ActiveEmpNumMem,IF(B19=22,ActiveEmpHealthCareCost,IF(B19=23,ActiveEmpTotalHealthCareCost,IF(B19=24,ElectedOffNumCovMem,IF(B19=25,ElectedOffHealthCareCost,IF(B19=26,ElectedOffTotalHealthCareCost,IF(B19=27,RetireeHealthCovMem,IF(B19=28,RetireeHealthCareCost,IF(B19=29,TotalRetireeHealthCost,IF(B19=30,TotCovMem,IF(B19=31,HealthCareCostCovMem,IF(B19=32,TotalHealthCareCosts,IF(B19=33,GrossDebt,IF(B19=34,Deductions,IF(B19=35,Net_Debt,IF(B19=36,Debt_Service,IF(B19=37,Credit_Ratings,IF(B19=38,LTTaxExemptions,IF(B19=39,FiveYrTaxExParcels,IF(B19=40,FiveYrTaxExPILOT,IF(B19=41,FiveYrTaxExAV,IF(B19=42,TaxesifBilled,IF(B19=43,AccumAbsences,IF(B19=44,StrucImbalances,""))))))))))))))))))))))))))))))))))))))))))) ->  | DV7: =VLOOKUP($B$19,$BM$6:$BN$49,2,FALSE) -> Select Category | DW7: =DV7&"_"&DU7 -> Select Category_ | DX7: =VLOOKUP(DW7,$BJ$5:$BK$406,2,FALSE) ->  | DZ7: 2101 | EA7: 2101 | EB7: 3 | EC7: Allamuchy Township, Warren County | ED7: 2101 | EE7: Allamuchy township | EF7: Warren
D8: =VLOOKUP(C4,$DZ$5:$EC$569,4,FALSE) -> Absecon City, Atlantic County | BG8: 9 | BH8: Population and Density | BI8: Population Estimate (Census) | BJ8: Population and Density_Population Estimate (Census) | BK8: 9 | BM8: =BM7+1 -> 3 | BN8: Population and Density | BO8: Population_and_Density | BR8: =BR7+1 -> 2 | BT8: Select Category | BU8: =BT8&"_"&BS8 -> Select Category_ | BX8: =BX7+1 -> 2 | BZ8: Select Category | CA8: =BZ8&"_"&BY8 -> Select Category_ | CD8: =CD7+1 -> 2 | CF8: Select Category | CG8: Select Category_ | CJ8: =CJ7+1 -> 2 | CL8: Select Category | CM8: Select Category_ | CP8: =CP7+1 -> 2 | CR8: Select Category | CS8: =CR8&"_"&CQ8 -> Select Category_ | CV8: =CV7+1 -> 2 | CX8: =VLOOKUP($B$15,$BM$6:$BN$49,2,FALSE) -> Select Category | CY8: =CX8&"_"&CW8 -> Select Category_ | DB8: =DB7+1 -> 2 | DD8: =VLOOKUP($B$16,$BM$6:$BN$49,2,FALSE) -> Select Category | DE8: Select Category_ | DH8: =DH7+1 -> 2 | DJ8: =VLOOKUP($B$17,$BM$6:$BN$49,2,FALSE) -> Select Category | DK8: Select Category_ | DN8: =DN7+1 -> 2 | DP8: =VLOOKUP($B$18,$BM$6:$BN$49,2,FALSE) -> Select Category | DQ8: Select Category_ | DT8: =DT7+1 -> 2 | DV8: =VLOOKUP($B$19,$BM$6:$BN$49,2,FALSE) -> Select Category | DW8: Select Category_ | DZ8: 0201 | EA8: 201 | EB8: 4 | EC8: Allendale Borough, Bergen County | ED8: 0201 | EE8: Allendale borough | EF8: Bergen
B9: Select Category | C9: Select Item | D9: 2015 | E9: 2016 | F9: 2017 | G9: =F9+1 -> 2018 | H9: =G9+1 -> 2019 | I9: =H9+1 -> 2020 | J9: =I9+1 -> 2021 | K9: =J9+1 -> 2022 | L9: 2023 | M9: 2024 | N9: 2025 | O9: 2015-25 Growth | P9: 2015-25 Compound Ann. Growth | Q9: Data Format | BG9: 10 | BH9: Population and Density | BI9: 2010 Land Area (sq. mi) | BJ9: Population and Density_2010 Land Area (sq. mi) | BK9: 10 | BM9: =BM8+1 -> 4 | BN9: Tax Collections and Delinquent Taxes | BO9: Tax_Collections | BR9: =BR8+1 -> 3 | BT9: Select Category | BU9: Select Category_ | BX9: =BX8+1 -> 3 | BZ9: Select Category | CA9: Select Category_ | CD9: =CD8+1 -> 3 | CF9: Select Category | CG9: Select Category_ | CJ9: =CJ8+1 -> 3 | CL9: Select Category | CM9: Select Category_ | CP9: =CP8+1 -> 3 | CR9: Select Category | CS9: Select Category_ | CV9: =CV8+1 -> 3 | CX9: Select Category | CY9: Select Category_ | DB9: =DB8+1 -> 3 | DD9: Select Category | DE9: Select Category_ | DH9: =DH8+1 -> 3 | DJ9: Select Category | DK9: Select Category_ | DN9: =DN8+1 -> 3 | DP9: Select Category | DQ9: Select Category_ | DT9: =DT8+1 -> 3 | DV9: Select Category | DW9: Select Category_ | DZ9: 1301 | EA9: 1301 | EB9: 5 | EC9: Allenhurst Borough, Monmouth County | ED9: 1301 | EE9: Allenhurst borough | EF9: Monmouth
B10: 1 | C10: 4 | D10: =IFERROR(VLOOKUP($C$4,'2015 Summary'!$A$6:$OQ$570,VLOOKUP($C10,$BR$7:$BV$30,5,FALSE),FALSE),"--") -> -- | E10: =IFERROR(VLOOKUP($C$4,'2016 Summary'!$A$6:$OQ$570,VLOOKUP($C10,$BR$7:$BV$30,5,FALSE),FALSE),"--") -> -- | F10: =IFERROR(VLOOKUP($C$4,'2017 Summary'!$A$6:$OQ$570,VLOOKUP($C10,$BR$7:$BV$30,5,FALSE),FALSE),"--") -> -- | G10: =IFERROR(VLOOKUP($C$4,'2018 Summary'!$A$6:$OQ$570,VLOOKUP($C10,$BR$7:$BV$30,5,FALSE),FALSE),"--") -> -- | H10: =IFERROR(VLOOKUP($C$4,'2019 Summary'!$A$6:$OQ$570,VLOOKUP($C10,$BR$7:$BV$30,5,FALSE),FALSE),"--") -> -- | I10: =IFERROR(VLOOKUP($C$4,'2020 Summary'!$A$6:$OQ$570,VLOOKUP($C10,$BR$7:$BV$30,5,FALSE),FALSE),"--") -> -- | J10: =IFERROR(VLOOKUP($C$4,'2021 Summary'!$A$6:$OQ$570,VLOOKUP($C10,$BR$7:$BV$30,5,FALSE),FALSE),"--") -> -- | K10: =IFERROR(VLOOKUP($C$4,'2022 Summary'!$A$6:$OQ$570,VLOOKUP($C10,$BR$7:$BV$30,5,FALSE),FALSE),"--") -> -- | L10: =IFERROR(VLOOKUP($C$4,'2023 Summary'!$A$6:$OQ$570,VLOOKUP($C10,$BR$7:$BV$30,5,FALSE),FALSE),"--") -> -- | M10: =IFERROR(VLOOKUP($C$4,'2024 Summary'!$A$6:$OQ$570,VLOOKUP($C10,$BR$7:$BV$30,5,FALSE),FALSE),"--") -> -- | N10: =IFERROR(VLOOKUP($C$4,'2025 Summary'!$A$6:$OP$570,VLOOKUP($C10,$BR$7:$BV$30,5,FALSE),FALSE),"--") -> -- | O10: =IFERROR(N10/D10-1,"--") -> -- | P10: =IFERROR(((N10/D10)^(1/10))-1,"--") -> -- | BG10: 11 | BH10: Population and Density | BI10: Population Density | BJ10: Population and Density_Population Density | BK10: 11 | BM10: 5 | BN10: Prior Year Realized Revenues (Actual) | BO10: PriorYrRevenues | BR10: 4 | BT10: Select Category | BU10: Select Category_ | BX10: 4 | BZ10: Select Category | CA10: Select Category_ | CD10: 4 | CF10: Select Category | CG10: Select Category_ | CJ10: 4 | CL10: Select Category | CM10: Select Category_ | CP10: 4 | CR10: Select Category | CS10: Select Category_ | CV10: 4 | CX10: Select Category | CY10: Select Category_ | DB10: 4 | DD10: Select Category | DE10: Select Category_ | DH10: 4 | DJ10: Select Category | DK10: Select Category_ | DN10: 4 | DP10: Select Category | DQ10: Select Category_ | DT10: 4 | DV10: Select Category | DW10: Select Category_ | DZ10: 1302 | EA10: 1302 | EB10: 6 | EC10: Allentown Borough, Monmouth County | ED10: 1302 | EE10: Allentown borough | EF10: Monmouth
B11: 1 | C11: 4 | D11: =IFERROR(VLOOKUP($C$4,'2015 Summary'!$A$6:$OQ$570,VLOOKUP($C11,$BX$7:$CB$30,5,FALSE),FALSE),"--") -> -- | E11: =IFERROR(VLOOKUP($C$4,'2016 Summary'!$A$6:$OQ$570,VLOOKUP($C11,$BX$7:$CB$30,5,FALSE),FALSE),"--") -> -- | F11: =IFERROR(VLOOKUP($C$4,'2017 Summary'!$A$6:$OQ$570,VLOOKUP($C11,$BX$7:$CB$30,5,FALSE),FALSE),"--") -> -- | G11: =IFERROR(VLOOKUP($C$4,'2018 Summary'!$A$6:$OQ$570,VLOOKUP($C11,$BX$7:$CB$30,5,FALSE),FALSE),"--") -> -- | H11: =IFERROR(VLOOKUP($C$4,'2019 Summary'!$A$6:$OQ$570,VLOOKUP($C11,$BX$7:$CB$30,5,FALSE),FALSE),"--") -> -- | I11: =IFERROR(VLOOKUP($C$4,'2020 Summary'!$A$6:$OQ$570,VLOOKUP($C11,$BX$7:$CB$30,5,FALSE),FALSE),"--") -> -- | J11: =IFERROR(VLOOKUP($C$4,'2021 Summary'!$A$6:$OQ$570,VLOOKUP($C11,$BX$7:$CB$30,5,FALSE),FALSE),"--") -> -- | K11: =IFERROR(VLOOKUP($C$4,'2022 Summary'!$A$6:$OQ$570,VLOOKUP($C11,$BX$7:$CB$30,5,FALSE),FALSE),"--") -> -- | L11: =IFERROR(VLOOKUP($C$4,'2023 Summary'!$A$6:$OQ$570,VLOOKUP($C11,$BX$7:$CB$30,5,FALSE),FALSE),"--") -> -- | M11: =IFERROR(VLOOKUP($C$4,'2024 Summary'!$A$6:$OQ$570,VLOOKUP($C11,$BX$7:$CB$30,5,FALSE),FALSE),"--") -> -- | N11: =IFERROR(VLOOKUP($C$4,'2025 Summary'!$A$6:$OP$570,VLOOKUP($C11,$BX$7:$CB$30,5,FALSE),FALSE),"--") -> -- | O11: =IFERROR(N11/D11-1,"--") -> -- | P11: =IFERROR(((N11/D11)^(1/10))-1,"--") -> -- | BG11: 12 | BJ11: _ | BK11: 12 | BM11: 6 | BN11: Current Year Anticipated Revenues (Budgeted) | BO11: CurrentYrRevenues | BR11: 5 | BT11: Select Category | BU11: Select Category_ | BX11: 5 | BZ11: Select Category | CA11: Select Category_ | CD11: 5 | CF11: Select Category | CG11: Select Category_ | CJ11: 5 | CL11: Select Category | CM11: Select Category_ | CP11: 5 | CR11: Select Category | CS11: Select Category_ | CV11: 5 | CX11: Select Category | CY11: Select Category_ | DB11: 5 | DD11: Select Category | DE11: Select Category_ | DH11: 5 | DJ11: Select Category | DK11: Select Category_ | DN11: 5 | DP11: Select Category | DQ11: Select Category_ | DT11: 5 | DV11: Select Category | DW11: Select Category_ | DZ11: 1701 | EA11: 1701 | EB11: 7 | EC11: Alloway Township, Salem County | ED11: 1701 | EE11: Alloway township | EF11: Salem
B12: 1 | C12: 1 | D12: =IFERROR(VLOOKUP($C$4,'2015 Summary'!$A$6:$OQ$570,VLOOKUP($C12,$CD$7:$CH$30,5,FALSE),FALSE),"--") -> -- | E12: =IFERROR(VLOOKUP($C$4,'2016 Summary'!$A$6:$OQ$570,VLOOKUP($C12,$CD$7:$CH$30,5,FALSE),FALSE),"--") -> -- | F12: =IFERROR(VLOOKUP($C$4,'2017 Summary'!$A$6:$OQ$570,VLOOKUP($C12,$CD$7:$CH$30,5,FALSE),FALSE),"--") -> -- | G12: =IFERROR(VLOOKUP($C$4,'2018 Summary'!$A$6:$OQ$570,VLOOKUP($C12,$CD$7:$CH$30,5,FALSE),FALSE),"--") -> -- | H12: =IFERROR(VLOOKUP($C$4,'2019 Summary'!$A$6:$OQ$570,VLOOKUP($C12,$CD$7:$CH$30,5,FALSE),FALSE),"--") -> -- | I12: =IFERROR(VLOOKUP($C$4,'2020 Summary'!$A$6:$OQ$570,VLOOKUP($C12,$CD$7:$CH$30,5,FALSE),FALSE),"--") -> -- | J12: =IFERROR(VLOOKUP($C$4,'2021 Summary'!$A$6:$OQ$570,VLOOKUP($C12,$CD$7:$CH$30,5,FALSE),FALSE),"--") -> -- | K12: =IFERROR(VLOOKUP($C$4,'2022 Summary'!$A$6:$OQ$570,VLOOKUP($C12,$CD$7:$CH$30,5,FALSE),FALSE),"--") -> -- | L12: =IFERROR(VLOOKUP($C$4,'2023 Summary'!$A$6:$OQ$570,VLOOKUP($C12,$CD$7:$CH$30,5,FALSE),FALSE),"--") -> -- | M12: =IFERROR(VLOOKUP($C$4,'2024 Summary'!$A$6:$OQ$570,VLOOKUP($C12,$CD$7:$CH$30,5,FALSE),FALSE),"--") -> -- | N12: =IFERROR(VLOOKUP($C$4,'2025 Summary'!$A$6:$OP$570,VLOOKUP($C12,$CD$7:$CH$30,5,FALSE),FALSE),"--") -> -- | O12: -- | P12: -- | BG12: 13 | BH12: Tax Collections and Delinquent Taxes | BI12: % of Tax Collections used to Calculate RUT | BJ12: Tax Collections and Delinquent Taxes_% of Tax Collections used to Calculate RUT | BK12: 13 | BM12: =BM11+1 -> 7 | BN12: Current Year General Budget Revenues | BO12: CurrentYrBudgRevenues | BR12: 6 | BT12: Select Category | BU12: Select Category_ | BX12: 6 | BZ12: Select Category | CA12: Select Category_ | CD12: 6 | CF12: Select Category | CG12: Select Category_ | CJ12: 6 | CL12: Select Category | CM12: Select Category_ | CP12: 6 | CR12: Select Category | CS12: Select Category_ | CV12: 6 | CX12: Select Category | CY12: Select Category_ | DB12: 6 | DD12: Select Category | DE12: Select Category_ | DH12: 6 | DJ12: Select Category | DK12: Select Category_ | DN12: 6 | DP12: Select Category | DQ12: Select Category_ | DT12: 6 | DV12: Select Category | DW12: Select Category_ | DZ12: 2102 | EA12: 2102 | EB12: 8 | EC12: Alpha Borough, Warren County | ED12: 2102 | EE12: Alpha borough | EF12: Warren
B13: 1 | C13: 1 | D13: =IFERROR(VLOOKUP($C$4,'2015 Summary'!$A$6:$OQ$570,VLOOKUP($C13,$CJ$7:$CN$30,5,FALSE),FALSE),"--") -> -- | E13: =IFERROR(VLOOKUP($C$4,'2016 Summary'!$A$6:$OQ$570,VLOOKUP($C13,$CJ$7:$CN$30,5,FALSE),FALSE),"--") -> -- | F13: =IFERROR(VLOOKUP($C$4,'2017 Summary'!$A$6:$OQ$570,VLOOKUP($C13,$CJ$7:$CN$30,5,FALSE),FALSE),"--") -> -- | G13: =IFERROR(VLOOKUP($C$4,'2018 Summary'!$A$6:$OQ$570,VLOOKUP($C13,$CJ$7:$CN$30,5,FALSE),FALSE),"--") -> -- | H13: =IFERROR(VLOOKUP($C$4,'2019 Summary'!$A$6:$OQ$570,VLOOKUP($C13,$CJ$7:$CN$30,5,FALSE),FALSE),"--") -> -- | I13: =IFERROR(VLOOKUP($C$4,'2020 Summary'!$A$6:$OQ$570,VLOOKUP($C13,$CJ$7:$CN$30,5,FALSE),FALSE),"--") -> -- | J13: =IFERROR(VLOOKUP($C$4,'2021 Summary'!$A$6:$OQ$570,VLOOKUP($C13,$CJ$7:$CN$30,5,FALSE),FALSE),"--") -> -- | K13: =IFERROR(VLOOKUP($C$4,'2022 Summary'!$A$6:$OQ$570,VLOOKUP($C13,$CJ$7:$CN$30,5,FALSE),FALSE),"--") -> -- | L13: =IFERROR(VLOOKUP($C$4,'2023 Summary'!$A$6:$OQ$570,VLOOKUP($C13,$CJ$7:$CN$30,5,FALSE),FALSE),"--") -> -- | M13: =IFERROR(VLOOKUP($C$4,'2024 Summary'!$A$6:$OQ$570,VLOOKUP($C13,$CJ$7:$CN$30,5,FALSE),FALSE),"--") -> -- | N13: =IFERROR(VLOOKUP($C$4,'2025 Summary'!$A$6:$OP$570,VLOOKUP($C13,$CJ$7:$CN$30,5,FALSE),FALSE),"--") -> -- | O13: -- | P13: -- | BG13: 14 | BH13: Tax Collections and Delinquent Taxes | BI13: Total Tax Revenue, Collections Prior Year | BJ13: Tax Collections and Delinquent Taxes_Total Tax Revenue, Collections Prior Year | BK13: 14 | BM13: =BM12+1 -> 8 | BN13: Prior Year Modified Appropriations | BO13: PriorYrAppropriations | BR13: 7 | BT13: Select Category | BU13: Select Category_ | BX13: 7 | BZ13: Select Category | CA13: Select Category_ | CD13: 7 | CF13: Select Category | CG13: Select Category_ | CJ13: 7 | CL13: Select Category | CM13: Select Category_ | CP13: 7 | CR13: Select Category | CS13: Select Category_ | CV13: 7 | CX13: Select Category | CY13: Select Category_ | DB13: 7 | DD13: Select Category | DE13: Select Category_ | DH13: 7 | DJ13: Select Category | DK13: Select Category_ | DN13: 7 | DP13: Select Category | DQ13: Select Category_ | DT13: 7 | DV13: Select Category | DW13: Select Category_ | DZ13: 0202 | EA13: 202 | EB13: 9 | EC13: Alpine Borough, Bergen County | ED13: 0202 | EE13: Alpine borough | EF13: Bergen
B14: 1 | C14: 1 | D14: =IFERROR(VLOOKUP($C$4,'2015 Summary'!$A$6:$OQ$570,VLOOKUP($C14,$CP$7:$CT$30,5,FALSE),FALSE),"--") -> -- | E14: =IFERROR(VLOOKUP($C$4,'2016 Summary'!$A$6:$OQ$570,VLOOKUP($C14,$CP$7:$CT$30,5,FALSE),FALSE),"--") -> -- | F14: =IFERROR(VLOOKUP($C$4,'2017 Summary'!$A$6:$OQ$570,VLOOKUP($C14,$CP$7:$CT$30,5,FALSE),FALSE),"--") -> -- | G14: =IFERROR(VLOOKUP($C$4,'2018 Summary'!$A$6:$OQ$570,VLOOKUP($C14,$CP$7:$CT$30,5,FALSE),FALSE),"--") -> -- | H14: =IFERROR(VLOOKUP($C$4,'2019 Summary'!$A$6:$OQ$570,VLOOKUP($C14,$CP$7:$CT$30,5,FALSE),FALSE),"--") -> -- | I14: =IFERROR(VLOOKUP($C$4,'2020 Summary'!$A$6:$OQ$570,VLOOKUP($C14,$CP$7:$CT$30,5,FALSE),FALSE),"--") -> -- | J14: =IFERROR(VLOOKUP($C$4,'2021 Summary'!$A$6:$OQ$570,VLOOKUP($C14,$CP$7:$CT$30,5,FALSE),FALSE),"--") -> -- | K14: =IFERROR(VLOOKUP($C$4,'2022 Summary'!$A$6:$OQ$570,VLOOKUP($C14,$CP$7:$CT$30,5,FALSE),FALSE),"--") -> -- | L14: =IFERROR(VLOOKUP($C$4,'2023 Summary'!$A$6:$OQ$570,VLOOKUP($C14,$CP$7:$CT$30,5,FALSE),FALSE),"--") -> -- | M14: =IFERROR(VLOOKUP($C$4,'2024 Summary'!$A$6:$OQ$570,VLOOKUP($C14,$CP$7:$CT$30,5,FALSE),FALSE),"--") -> -- | N14: =IFERROR(VLOOKUP($C$4,'2025 Summary'!$A$6:$OP$570,VLOOKUP($C14,$CP$7:$CT$30,5,FALSE),FALSE),"--") -> -- | O14: -- | P14: -- | BG14: 15 | BH14: Tax Collections and Delinquent Taxes | BI14: Total Tax Levy, Prior Year | BJ14: Tax Collections and Delinquent Taxes_Total Tax Levy, Prior Year | BK14: 15 | BM14: 9 | BN14: Current Year Total Appropriations (Budgeted) | BO14: CurrentYrAppropriations | BR14: 8 | BT14: Select Category | BU14: Select Category_ | BX14: 8 | BZ14: Select Category | CA14: Select Category_ | CD14: 8 | CF14: Select Category | CG14: Select Category_ | CJ14: 8 | CL14: Select Category | CM14: =CL14&"_"&CK14 -> Select Category_ | CP14: 8 | CR14: Select Category | CS14: Select Category_ | CV14: 8 | CX14: Select Category | CY14: Select Category_ | DB14: 8 | DD14: Select Category | DE14: Select Category_ | DH14: 8 | DJ14: Select Category | DK14: Select Category_ | DN14: 8 | DP14: Select Category | DQ14: Select Category_ | DT14: 8 | DV14: Select Category | DW14: Select Category_ | DZ14: 1901 | EA14: 1901 | EB14: 10 | EC14: Andover Borough, Sussex County | ED14: 1901 | EE14: Andover borough | EF14: Sussex
B15: 1 | C15: 7 | D15: =IFERROR(VLOOKUP($C$4,'2015 Summary'!$A$6:$OQ$570,VLOOKUP($C15,$CV$7:$CZ$30,5,FALSE),FALSE),"--") -> -- | E15: =IFERROR(VLOOKUP($C$4,'2016 Summary'!$A$6:$OQ$570,VLOOKUP($C15,$CV$7:$CZ$30,5,FALSE),FALSE),"--") -> -- | F15: =IFERROR(VLOOKUP($C$4,'2017 Summary'!$A$6:$OQ$570,VLOOKUP($C15,$CV$7:$CZ$30,5,FALSE),FALSE),"--") -> -- | G15: =IFERROR(VLOOKUP($C$4,'2018 Summary'!$A$6:$OQ$570,VLOOKUP($C15,$CV$7:$CZ$30,5,FALSE),FALSE),"--") -> -- | H15: =IFERROR(VLOOKUP($C$4,'2019 Summary'!$A$6:$OQ$570,VLOOKUP($C15,$CV$7:$CZ$30,5,FALSE),FALSE),"--") -> -- | I15: =IFERROR(VLOOKUP($C$4,'2020 Summary'!$A$6:$OQ$570,VLOOKUP($C15,$CV$7:$CZ$30,5,FALSE),FALSE),"--") -> -- | J15: =IFERROR(VLOOKUP($C$4,'2021 Summary'!$A$6:$OQ$570,VLOOKUP($C15,$CV$7:$CZ$30,5,FALSE),FALSE),"--") -> -- | K15: =IFERROR(VLOOKUP($C$4,'2022 Summary'!$A$6:$OQ$570,VLOOKUP($C15,$CV$7:$CZ$30,5,FALSE),FALSE),"--") -> -- | L15: =IFERROR(VLOOKUP($C$4,'2023 Summary'!$A$6:$OQ$570,VLOOKUP($C15,$CV$7:$CZ$30,5,FALSE),FALSE),"--") -> -- | M15: =IFERROR(VLOOKUP($C$4,'2024 Summary'!$A$6:$OQ$570,VLOOKUP($C15,$CV$7:$CZ$30,5,FALSE),FALSE),"--") -> -- | N15: =IFERROR(VLOOKUP($C$4,'2025 Summary'!$A$6:$OP$570,VLOOKUP($C15,$CV$7:$CZ$30,5,FALSE),FALSE),"--") -> -- | O15: -- | P15: -- | BG15: 16 | BH15: Tax Collections and Delinquent Taxes | BI15: % of Taxes Collected, Prior Year | BJ15: Tax Collections and Delinquent Taxes_% of Taxes Collected, Prior Year | BK15: 16 | BM15: 10 | BN15: Current Year General Budget Appropriations | BO15: CurrentYrGenBudgetAppropriations | BR15: 9 | BT15: =VLOOKUP($B$10,$BM$6:$BN$49,2,FALSE) -> Select Category | BU15: Select Category_ | BX15: 9 | BZ15: Select Category | CA15: Select Category_ | CD15: 9 | CF15: Select Category | CG15: Select Category_ | CJ15: 9 | CL15: Select Category | CM15: =CL15&"_"&CK15 -> Select Category_ | CP15: 9 | CR15: Select Category | CS15: Select Category_ | CV15: 9 | CX15: Select Category | CY15: Select Category_ | DB15: 9 | DD15: Select Category | DE15: Select Category_ | DH15: 9 | DJ15: Select Category | DK15: Select Category_ | DN15: 9 | DP15: Select Category | DQ15: Select Category_ | DT15: 9 | DV15: Select Category | DW15: Select Category_ | DZ15: 1902 | EA15: 1902 | EB15: 11 | EC15: Andover Township, Sussex County | ED15: 1902 | EE15: Andover township | EF15: Sussex
B16: 1 | C16: 1 | D16: =IFERROR(VLOOKUP($C$4,'2015 Summary'!$A$6:$OQ$570,VLOOKUP($C16,$DB$7:$DF$30,5,FALSE),FALSE),"--") -> -- | E16: =IFERROR(VLOOKUP($C$4,'2016 Summary'!$A$6:$OQ$570,VLOOKUP($C16,$DB$7:$DF$30,5,FALSE),FALSE),"--") -> -- | F16: =IFERROR(VLOOKUP($C$4,'2017 Summary'!$A$6:$OQ$570,VLOOKUP($C16,$DB$7:$DF$30,5,FALSE),FALSE),"--") -> -- | G16: =IFERROR(VLOOKUP($C$4,'2018 Summary'!$A$6:$OQ$570,VLOOKUP($C16,$DB$7:$DF$30,5,FALSE),FALSE),"--") -> -- | H16: =IFERROR(VLOOKUP($C$4,'2019 Summary'!$A$6:$OQ$570,VLOOKUP($C16,$DB$7:$DF$30,5,FALSE),FALSE),"--") -> -- | I16: =IFERROR(VLOOKUP($C$4,'2020 Summary'!$A$6:$OQ$570,VLOOKUP($C16,$DB$7:$DF$30,5,FALSE),FALSE),"--") -> -- | J16: =IFERROR(VLOOKUP($C$4,'2021 Summary'!$A$6:$OQ$570,VLOOKUP($C16,$DB$7:$DF$30,5,FALSE),FALSE),"--") -> -- | K16: =IFERROR(VLOOKUP($C$4,'2022 Summary'!$A$6:$OQ$570,VLOOKUP($C16,$DB$7:$DF$30,5,FALSE),FALSE),"--") -> -- | L16: =IFERROR(VLOOKUP($C$4,'2023 Summary'!$A$6:$OQ$570,VLOOKUP($C16,$DB$7:$DF$30,5,FALSE),FALSE),"--") -> -- | M16: =IFERROR(VLOOKUP($C$4,'2024 Summary'!$A$6:$OQ$570,VLOOKUP($C16,$DB$7:$DF$30,5,FALSE),FALSE),"--") -> -- | N16: =IFERROR(VLOOKUP($C$4,'2025 Summary'!$A$6:$OP$570,VLOOKUP($C16,$DB$7:$DF$30,5,FALSE),FALSE),"--") -> -- | O16: -- | P16: -- | BG16: 17 | BH16: Tax Collections and Delinquent Taxes | BI16: Delinquent Taxes - December 31 of Prior Year | BJ16: Tax Collections and Delinquent Taxes_Delinquent Taxes - December 31 of Prior Year | BK16: 17 | BM16: 11 | BN16: Number of Full Time Employees | BO16: FTEmployees | BR16: 10 | BT16: Select Category | BU16: Select Category_ | BX16: 10 | BZ16: Select Category | CA16: Select Category_ | CD16: 10 | CF16: Select Category | CG16: =CF17&"_"&CE16 -> Select Category_ | CJ16: 10 | CL16: Select Category | CM16: Select Category_ | CP16: 10 | CR16: Select Category | CS16: Select Category_ | CV16: 10 | CX16: Select Category | CY16: Select Category_ | DB16: 10 | DD16: Select Category | DE16: Select Category_ | DH16: 10 | DJ16: Select Category | DK16: Select Category_ | DN16: 10 | DP16: Select Category | DQ16: Select Category_ | DT16: 10 | DV16: Select Category | DW16: Select Category_ | DZ16: 1303 | EA16: 1303 | EB16: 12 | EC16: Asbury Park City, Monmouth County | ED16: 1303 | EE16: Asbury Park city | EF16: Monmouth
B17: 1 | C17: 1 | D17: =IFERROR(VLOOKUP($C$4,'2015 Summary'!$A$6:$OQ$570,VLOOKUP($C17,$DH$7:$DL$30,5,FALSE),FALSE),"--") -> -- | E17: =IFERROR(VLOOKUP($C$4,'2016 Summary'!$A$6:$OQ$570,VLOOKUP($C17,$DH$7:$DL$30,5,FALSE),FALSE),"--") -> -- | F17: =IFERROR(VLOOKUP($C$4,'2017 Summary'!$A$6:$OQ$570,VLOOKUP($C17,$DH$7:$DL$30,5,FALSE),FALSE),"--") -> -- | G17: =IFERROR(VLOOKUP($C$4,'2018 Summary'!$A$6:$OQ$570,VLOOKUP($C17,$DH$7:$DL$30,5,FALSE),FALSE),"--") -> -- | H17: =IFERROR(VLOOKUP($C$4,'2019 Summary'!$A$6:$OQ$570,VLOOKUP($C17,$DH$7:$DL$30,5,FALSE),FALSE),"--") -> -- | I17: =IFERROR(VLOOKUP($C$4,'2020 Summary'!$A$6:$OQ$570,VLOOKUP($C17,$DH$7:$DL$30,5,FALSE),FALSE),"--") -> -- | J17: =IFERROR(VLOOKUP($C$4,'2021 Summary'!$A$6:$OQ$570,VLOOKUP($C17,$DH$7:$DL$30,5,FALSE),FALSE),"--") -> -- | K17: =IFERROR(VLOOKUP($C$4,'2022 Summary'!$A$6:$OQ$570,VLOOKUP($C17,$DH$7:$DL$30,5,FALSE),FALSE),"--") -> -- | L17: =IFERROR(VLOOKUP($C$4,'2023 Summary'!$A$6:$OQ$570,VLOOKUP($C17,$DH$7:$DL$30,5,FALSE),FALSE),"--") -> -- | M17: =IFERROR(VLOOKUP($C$4,'2024 Summary'!$A$6:$OQ$570,VLOOKUP($C17,$DH$7:$DL$30,5,FALSE),FALSE),"--") -> -- | N17: =IFERROR(VLOOKUP($C$4,'2025 Summary'!$A$6:$OP$570,VLOOKUP($C17,$DH$7:$DL$30,5,FALSE),FALSE),"--") -> -- | O17: -- | P17: -- | BG17: 18 | BJ17: _ | BK17: 18 | BM17: 12 | BN17: Number of Part-Time Employees | BO17: PTEmployees | BR17: 11 | BT17: Select Category | BU17: Select Category_ | BX17: 11 | BZ17: Select Category | CA17: Select Category_ | CD17: 11 | CF17: Select Category | CG17: Select Category_ | CJ17: 11 | CL17: Select Category | CM17: Select Category_ | CP17: 11 | CR17: Select Category | CS17: Select Category_ | CV17: 11 | CX17: Select Category | CY17: Select Category_ | DB17: 11 | DD17: Select Category | DE17: Select Category_ | DH17: 11 | DJ17: Select Category | DK17: Select Category_ | DN17: 11 | DP17: Select Category | DQ17: Select Category_ | DT17: 11 | DV17: Select Category | DW17: Select Category_ | DZ17: 0102 | EA17: 102 | EB17: 13 | EC17: Atlantic City, Atlantic County | ED17: 0102 | EE17: Atlantic City | EF17: Atlantic
B18: 1 | C18: 1 | D18: =IFERROR(VLOOKUP($C$4,'2015 Summary'!$A$6:$OQ$570,VLOOKUP($C18,$DN$7:$DR$30,5,FALSE),FALSE),"--") -> -- | E18: =IFERROR(VLOOKUP($C$4,'2016 Summary'!$A$6:$OQ$570,VLOOKUP($C18,$DN$7:$DR$30,5,FALSE),FALSE),"--") -> -- | F18: =IFERROR(VLOOKUP($C$4,'2017 Summary'!$A$6:$OQ$570,VLOOKUP($C18,$DN$7:$DR$30,5,FALSE),FALSE),"--") -> -- | G18: =IFERROR(VLOOKUP($C$4,'2018 Summary'!$A$6:$OQ$570,VLOOKUP($C18,$DN$7:$DR$30,5,FALSE),FALSE),"--") -> -- | H18: =IFERROR(VLOOKUP($C$4,'2019 Summary'!$A$6:$OQ$570,VLOOKUP($C18,$DN$7:$DR$30,5,FALSE),FALSE),"--") -> -- | I18: =IFERROR(VLOOKUP($C$4,'2020 Summary'!$A$6:$OQ$570,VLOOKUP($C18,$DN$7:$DR$30,5,FALSE),FALSE),"--") -> -- | J18: =IFERROR(VLOOKUP($C$4,'2021 Summary'!$A$6:$OQ$570,VLOOKUP($C18,$DN$7:$DR$30,5,FALSE),FALSE),"--") -> -- | K18: =IFERROR(VLOOKUP($C$4,'2022 Summary'!$A$6:$OQ$570,VLOOKUP($C18,$DN$7:$DR$30,5,FALSE),FALSE),"--") -> -- | L18: =IFERROR(VLOOKUP($C$4,'2023 Summary'!$A$6:$OQ$570,VLOOKUP($C18,$DN$7:$DR$30,5,FALSE),FALSE),"--") -> -- | M18: =IFERROR(VLOOKUP($C$4,'2024 Summary'!$A$6:$OQ$570,VLOOKUP($C18,$DN$7:$DR$30,5,FALSE),FALSE),"--") -> -- | N18: =IFERROR(VLOOKUP($C$4,'2025 Summary'!$A$6:$OP$570,VLOOKUP($C18,$DN$7:$DR$30,5,FALSE),FALSE),"--") -> -- | O18: -- | P18: -- | BG18: 19 | BH18: Prior Year Realized Revenues (Actual) | BI18: Surplus | BJ18: Prior Year Realized Revenues (Actual)_Surplus | BK18: 19 | BM18: 13 | BN18: Total Personnel Costs | BO18: PersonnelCosts | BR18: 12 | BT18: Select Category | BU18: Select Category_ | BX18: 12 | BZ18: Select Category | CA18: Select Category_ | CD18: 12 | CF18: Select Category | CG18: =CF10&"_"&CE18 -> Select Category_ | CJ18: 12 | CL18: Select Category | CM18: Select Category_ | CP18: 12 | CR18: Select Category | CS18: Select Category_ | CV18: 12 | CX18: Select Category | CY18: Select Category_ | DB18: 12 | DD18: Select Category | DE18: Select Category_ | DH18: 12 | DJ18: Select Category | DK18: Select Category_ | DN18: 12 | DP18: Select Category | DQ18: Select Category_ | DT18: 12 | DV18: Select Category | DW18: Select Category_ | DZ18: 1304 | EA18: 1304 | EB18: 14 | EC18: Atlantic Highlands Borough, Monmouth County | ED18: 1304 | EE18: Atlantic Highlands borough | EF18: Monmouth
B19: 1 | C19: 11 | D19: =IFERROR(VLOOKUP($C$4,'2015 Summary'!$A$6:$OQ$570,VLOOKUP($C19,$DT$7:$DX$30,5,FALSE),FALSE),"--") -> -- | E19: =IFERROR(VLOOKUP($C$4,'2016 Summary'!$A$6:$OQ$570,VLOOKUP($C19,$DT$7:$DX$30,5,FALSE),FALSE),"--") -> -- | F19: =IFERROR(VLOOKUP($C$4,'2017 Summary'!$A$6:$OQ$570,VLOOKUP($C19,$DT$7:$DX$30,5,FALSE),FALSE),"--") -> -- | G19: =IFERROR(VLOOKUP($C$4,'2018 Summary'!$A$6:$OQ$570,VLOOKUP($C19,$DT$7:$DX$30,5,FALSE),FALSE),"--") -> -- | H19: =IFERROR(VLOOKUP($C$4,'2019 Summary'!$A$6:$OQ$570,VLOOKUP($C19,$DT$7:$DX$30,5,FALSE),FALSE),"--") -> -- | I19: =IFERROR(VLOOKUP($C$4,'2020 Summary'!$A$6:$OQ$570,VLOOKUP($C19,$DT$7:$DX$30,5,FALSE),FALSE),"--") -> -- | J19: =IFERROR(VLOOKUP($C$4,'2021 Summary'!$A$6:$OQ$570,VLOOKUP($C19,$DT$7:$DX$30,5,FALSE),FALSE),"--") -> -- | K19: =IFERROR(VLOOKUP($C$4,'2022 Summary'!$A$6:$OQ$570,VLOOKUP($C19,$DT$7:$DX$30,5,FALSE),FALSE),"--") -> -- | L19: =IFERROR(VLOOKUP($C$4,'2023 Summary'!$A$6:$OQ$570,VLOOKUP($C19,$DT$7:$DX$30,5,FALSE),FALSE),"--") -> -- | M19: =IFERROR(VLOOKUP($C$4,'2024 Summary'!$A$6:$OQ$570,VLOOKUP($C19,$DT$7:$DX$30,5,FALSE),FALSE),"--") -> -- | N19: =IFERROR(VLOOKUP($C$4,'2025 Summary'!$A$6:$OP$570,VLOOKUP($C19,$DT$7:$DX$30,5,FALSE),FALSE),"--") -> -- | O19: -- | P19: -- | BG19: 20 | BH19: Prior Year Realized Revenues (Actual) | BI19: Local Revenue | BJ19: Prior Year Realized Revenues (Actual)_Local Revenue | BK19: 20 | BM19: 14 | BN19: Governing Body Personnel Costs | BO19: GoverningBodyPersonnelCosts | BR19: 13 | BT19: Select Category | BU19: Select Category_ | BX19: 13 | BZ19: Select Category | CA19: Select Category_ | CD19: 13 | CF19: Select Category | CG19: Select Category_ | CJ19: 13 | CL19: Select Category | CM19: Select Category_ | CP19: 13 | CR19: Select Category | CS19: Select Category_ | CV19: 13 | CX19: Select Category | CY19: Select Category_ | DB19: 13 | DD19: Select Category | DE19: Select Category_ | DH19: 13 | DJ19: Select Category | DK19: Select Category_ | DN19: 13 | DP19: Select Category | DQ19: Select Category_ | DT19: 13 | DV19: Select Category | DW19: Select Category_ | DZ19: 0401 | EA19: 401 | EB19: 15 | EC19: Audubon Borough, Camden County | ED19: 0401 | EE19: Audubon borough | EF19: Camden
BG20: 21 | BH20: Prior Year Realized Revenues (Actual) | BI20: State Aid (without offsetting appropriation) | BJ20: Prior Year Realized Revenues (Actual)_State Aid (without offsetting appropriation) | BK20: 21 | BM20: 15 | BN20: Supervisory Staff Personnel Costs | BO20: SupervisoryPersonnelCosts | BR20: 14 | BT20: Select Category | BU20: Select Category_ | BX20: 14 | BZ20: Select Category | CA20: Select Category_ | CD20: 14 | CF20: Select Category | CG20: Select Category_ | CJ20: 14 | CL20: Select Category | CM20: Select Category_ | CP20: 14 | CR20: Select Category | CS20: Select Category_ | CV20: 14 | CX20: Select Category | CY20: Select Category_ | DB20: 14 | DD20: Select Category | DE20: Select Category_ | DH20: 14 | DJ20: Select Category | DK20: Select Category_ | DN20: 14 | DP20: Select Category | DQ20: Select Category_ | DT20: 14 | DV20: Select Category | DW20: Select Category_ | DZ20: 0402 | EA20: 402 | EB20: 16 | EC20: Audubon Park Borough, Camden County | ED20: 0402 | EE20: Audubon Park borough | EF20: Camden
BG21: 22 | BH21: Prior Year Realized Revenues (Actual) | BI21: Uniform Construction Code Fees | BJ21: Prior Year Realized Revenues (Actual)_Uniform Construction Code Fees | BK21: 22 | BM21: 16 | BN21: Police Officer Personnel Costs | BO21: PoliceOfficerPersonnelCosts | BR21: 15 | BT21: Select Category | BU21: Select Category_ | BX21: 15 | BZ21: Select Category | CA21: Select Category_ | CD21: 15 | CF21: Select Category | CG21: Select Category_ | CJ21: 15 | CL21: Select Category | CM21: Select Category_ | CP21: 15 | CR21: Select Category | CS21: Select Category_ | CV21: 15 | CX21: Select Category | CY21: Select Category_ | DB21: 15 | DD21: Select Category | DE21: Select Category_ | DH21: 15 | DJ21: Select Category | DK21: Select Category_ | DN21: 15 | DP21: Select Category | DQ21: Select Category_ | DT21: 15 | DV21: Select Category | DW21: Select Category_ | DZ21: 0501 | EA21: 501 | EB21: 17 | EC21: Avalon Borough, Cape May County | ED21: 0501 | EE21: Avalon borough | EF21: Cape May
BG22: 23 | BH22: Prior Year Realized Revenues (Actual) | BI22: Shared Services Agreements | BJ22: Prior Year Realized Revenues (Actual)_Shared Services Agreements | BK22: 23 | BM22: 17 | BN22: Firefighter (Non-Volunteer) Personnel Costs | BO22: FirefighterPersonnelCosts | BR22: 16 | BT22: Select Category | BU22: Select Category_ | BX22: 16 | BZ22: Select Category | CA22: Select Category_ | CD22: 16 | CF22: Select Category | CG22: Select Category_ | CJ22: 16 | CL22: Select Category | CM22: Select Category_ | CP22: 16 | CR22: Select Category | CS22: Select Category_ | CV22: 16 | CX22: Select Category | CY22: Select Category_ | DB22: 16 | DD22: Select Category | DE22: Select Category_ | DH22: 16 | DJ22: Select Category | DK22: Select Category_ | DN22: 16 | DP22: Select Category | DQ22: Select Category_ | DT22: 16 | DV22: Select Category | DW22: Select Category_ | DZ22: 1305 | EA22: 1305 | EB22: 18 | EC22: Avon-by-the-Sea Borough, Monmouth County | ED22: 1305 | EE22: Avon-by-the-Sea borough | EF22: Monmouth
BG23: 24 | BH23: Prior Year Realized Revenues (Actual) | BI23: Additional Revenue Offset by Appropriations | BJ23: Prior Year Realized Revenues (Actual)_Additional Revenue Offset by Appropriations | BK23: 24 | BM23: 18 | BN23: Other Union Personnel Costs | BO23: OtherUnionPersonnelCosts | BR23: 17 | BT23: Select Category | BU23: Select Category_ | BX23: 17 | BZ23: Select Category | CA23: Select Category_ | CD23: 17 | CF23: Select Category | CG23: Select Category_ | CJ23: 17 | CL23: Select Category | CM23: Select Category_ | CP23: 17 | CR23: Select Category | CS23: Select Category_ | CV23: 17 | CX23: Select Category | CY23: Select Category_ | DB23: 17 | DD23: Select Category | DE23: Select Category_ | DH23: 17 | DJ23: Select Category | DK23: Select Category_ | DN23: 17 | DP23: Select Category | DQ23: Select Category_ | DT23: 17 | DV23: Select Category | DW23: Select Category_ | DZ23: 1501 | EA23: 1501 | EB23: 19 | EC23: Barnegat Light Borough, Ocean County | ED23: 1501 | EE23: Barnegat Light borough | EF23: Ocean
BG24: 25 | BH24: Prior Year Realized Revenues (Actual) | BI24: Public and Private Revenue | BJ24: Prior Year Realized Revenues (Actual)_Public and Private Revenue | BK24: 25 | BM24: 19 | BN24: Non-Union Personnel Costs | BO24: NonunionPersonnelCosts | BR24: 18 | BT24: Select Category | BU24: Select Category_ | BX24: 18 | BZ24: Select Category | CA24: Select Category_ | CD24: 18 | CF24: Select Category | CG24: Select Category_ | CJ24: 18 | CL24: Select Category | CM24: Select Category_ | CP24: 18 | CR24: Select Category | CS24: Select Category_ | CV24: 18 | CX24: Select Category | CY24: Select Category_ | DB24: 18 | DD24: Select Category | DE24: Select Category_ | DH24: 18 | DJ24: Select Category | DK24: Select Category_ | DN24: 18 | DP24: Select Category | DQ24: Select Category_ | DT24: 18 | DV24: Select Category | DW24: Select Category_ | DZ24: 1533 | EA24: 1533 | EB24: 20 | EC24: Barnegat Township, Ocean County | ED24: 1533 | EE24: Barnegat township | EF24: Ocean
BG25: 26 | BH25: Prior Year Realized Revenues (Actual) | BI25: Other Special Items | BJ25: Prior Year Realized Revenues (Actual)_Other Special Items | BK25: 26 | BM25: 20 | BN25: Health Plan Information | BO25: HealthPlanInformation | BR25: 19 | BT25: Select Category | BU25: Select Category_ | BX25: 19 | BZ25: Select Category | CA25: Select Category_ | CD25: 19 | CF25: Select Category | CG25: Select Category_ | CJ25: 19 | CL25: Select Category | CM25: Select Category_ | CP25: 19 | CR25: Select Category | CS25: Select Category_ | CV25: 19 | CX25: Select Category | CY25: Select Category_ | DB25: 19 | DD25: Select Category | DE25: Select Category_ | DH25: 19 | DJ25: Select Category | DK25: Select Category_ | DN25: 19 | DP25: Select Category | DQ25: Select Category_ | DT25: 19 | DV25: Select Category | DW25: Select Category_ | DZ25: 0403 | EA25: 403 | EB25: 21 | EC25: Barrington Borough, Camden County | ED25: 0403 | EE25: Barrington borough | EF25: Camden
BG26: 27 | BH26: Prior Year Realized Revenues (Actual) | BI26: Receipts from Delinquent Taxes | BJ26: Prior Year Realized Revenues (Actual)_Receipts from Delinquent Taxes | BK26: 27 | BM26: 21 | BN26: Active Employees - Number of Covered Members | BO26: ActiveEmpNumMem | BR26: 20 | BT26: Select Category | BU26: Select Category_ | BX26: 20 | BZ26: Select Category | CA26: Select Category_ | CD26: 20 | CF26: Select Category | CG26: Select Category_ | CJ26: 20 | CL26: Select Category | CM26: Select Category_ | CP26: 20 | CR26: Select Category | CS26: Select Category_ | CV26: 20 | CX26: Select Category | CY26: Select Category_ | DB26: 20 | DD26: Select Category | DE26: Select Category_ | DH26: 20 | DJ26: Select Category | DK26: Select Category_ | DN26: 20 | DP26: Select Category | DQ26: Select Category_ | DT26: 20 | DV26: Select Category | DW26: Select Category_ | DZ26: 0301 | EA26: 301 | EB26: 22 | EC26: Bass River Township, Burlington County | ED26: 0301 | EE26: Bass River township | EF26: Burlington
BG27: 28 | BH27: Prior Year Realized Revenues (Actual) | BI27: Local Tax for Municipal Purposes | BJ27: Prior Year Realized Revenues (Actual)_Local Tax for Municipal Purposes | BK27: 28 | BM27: 22 | BN27: Active Employees - Health Care Cost Per Employee | BO27: ActiveEmpHealthCareCost | BR27: 21 | BT27: Select Category | BU27: Select Category_ | BX27: 21 | BZ27: Select Category | CA27: Select Category_ | CD27: 21 | CF27: Select Category | CG27: Select Category_ | CJ27: 21 | CL27: Select Category | CM27: Select Category_ | CP27: 21 | CR27: Select Category | CS27: Select Category_ | CV27: 21 | CX27: Select Category | CY27: Select Category_ | DB27: 21 | DD27: Select Category | DE27: Select Category_ | DH27: 21 | DJ27: Select Category | DK27: Select Category_ | DN27: 21 | DP27: Select Category | DQ27: Select Category_ | DT27: 21 | DV27: Select Category | DW27: Select Category_ | DZ27: 1502 | EA27: 1502 | EB27: 23 | EC27: Bay Head Borough, Ocean County | ED27: 1502 | EE27: Bay Head borough | EF27: Ocean
BG28: 29 | BH28: Prior Year Realized Revenues (Actual) | BI28: Minimum Library Tax | BJ28: Prior Year Realized Revenues (Actual)_Minimum Library Tax | BK28: 29 | BM28: 23 | BN28: Active Employees - Total Health Care Cost | BO28: ActiveEmpTotalHealthCareCost | BR28: 22 | BT28: Select Category | BU28: Select Category_ | BX28: 22 | BZ28: Select Category | CA28: Select Category_ | CD28: 22 | CF28: Select Category | CG28: Select Category_ | CJ28: 22 | CL28: Select Category | CM28: Select Category_ | CP28: 22 | CR28: Select Category | CS28: Select Category_ | CV28: 22 | CX28: Select Category | CY28: Select Category_ | DB28: 22 | DD28: Select Category | DE28: Select Category_ | DH28: 22 | DJ28: Select Category | DK28: Select Category_ | DN28: 22 | DP28: Select Category | DQ28: Select Category_ | DT28: 22 | DV28: Select Category | DW28: Select Category_ | DZ28: 0901 | EA28: 901 | EB28: 24 | EC28: Bayonne City, Hudson County | ED28: 0901 | EE28: Bayonne city | EF28: Hudson
BG29: 30 | BH29: Prior Year Realized Revenues (Actual) | BI29: Open Space Levy Tax | BJ29: Prior Year Realized Revenues (Actual)_Open Space Levy Tax | BK29: 30 | BM29: 24 | BN29: Elected Officials - Number of Covered Members | BO29: ElectedOffNumCovMem | BR29: 23 | BT29: Select Category | BU29: Select Category_ | BX29: 23 | BZ29: Select Category | CA29: Select Category_ | CD29: 23 | CF29: Select Category | CG29: Select Category_ | CJ29: 23 | CL29: Select Category | CM29: Select Category_ | CP29: 23 | CR29: Select Category | CS29: Select Category_ | CV29: 23 | CX29: Select Category | CY29: Select Category_ | DB29: 23 | DD29: Select Category | DE29: Select Category_ | DH29: 23 | DJ29: Select Category | DK29: Select Category_ | DN29: 23 | DP29: Select Category | DQ29: Select Category_ | DT29: 23 | DV29: Select Category | DW29: Select Category_ | DZ29: 1503 | EA29: 1503 | EB29: 25 | EC29: Beach Haven Borough, Ocean County | ED29: 1503 | EE29: Beach Haven borough | EF29: Ocean
BG30: 31 | BH30: Prior Year Realized Revenues (Actual) | BI30: Arts and Cultural Levy Tax | BJ30: Prior Year Realized Revenues (Actual)_Arts and Cultural Levy Tax | BK30: 31 | BM30: 25 | BN30: Elected Officials - Health Care Cost Per Employee | BO30: ElectedOffHeathCareCost | BR30: 24 | BT30: Select Category | BU30: Select Category_ | BX30: 24 | BZ30: Select Category | CA30: Select Category_ | CD30: 24 | CF30: Select Category | CG30: Select Category_ | CJ30: 24 | CL30: Select Category | CM30: Select Category_ | CP30: 24 | CR30: Select Category | CS30: Select Category_ | CV30: 24 | CX30: Select Category | CY30: Select Category_ | DB30: 24 | DD30: Select Category | DE30: Select Category_ | DH30: 24 | DJ30: Select Category | DK30: Select Category_ | DN30: 24 | DP30: Select Category | DQ30: Select Category_ | DT30: 24 | DV30: Select Category | DW30: Select Category_ | DZ30: 1504 | EA30: 1504 | EB30: 26 | EC30: Beachwood Borough, Ocean County | ED30: 1504 | EE30: Beachwood borough | EF30: Ocean
BG31: 32 | BH31: Prior Year Realized Revenues (Actual) | BI31: Addition to Local District School Tax | BJ31: Prior Year Realized Revenues (Actual)_Addition to Local District School Tax | BK31: 32 | BM31: 26 | BN31: Elected Officials - Total Health Care Cost | BO31: ElectedOffTotalHealthCareCost | DZ31: 1801 | EA31: 1801 | EB31: 27 | EC31: Bedminster Township, Somerset County | ED31: 1801 | EE31: Bedminster township | EF31: Somerset
BG32: 33 | BH32: Prior Year Realized Revenues (Actual) | BI32: Deficit General Budget | BJ32: Prior Year Realized Revenues (Actual)_Deficit General Budget | BK32: 33 | BM32: 27 | BN32: Retiree Number of Health Plan Covered Members | BO32: RetireeHealthCovMem | DZ32: 0701 | EA32: 701 | EB32: 28 | EC32: Belleville Township, Essex County | ED32: 0701 | EE32: Belleville township | EF32: Essex
BG33: 34 | BH33: Prior Year Realized Revenues (Actual) | BI33: Total | BJ33: Prior Year Realized Revenues (Actual)_Total | BK33: 34 | BM33: 28 | BN33: Retiree Health Care Cost Per Employee | BO33: RetireeHealthCareCost | DZ33: 0404 | EA33: 404 | EB33: 29 | EC33: Bellmawr Borough, Camden County | ED33: 0404 | EE33: Bellmawr borough | EF33: Camden
BG34: 35 | BH34: Current Year Anticipated Revenues (Budgeted) | BI34: Surplus | BJ34: Current Year Anticipated Revenues (Budgeted)_Surplus | BK34: 35 | BM34: 29 | BN34: Total Retiree Health Care Cost | BO34: TotalRetireeHealthCost | DZ34: 1306 | EA34: 1306 | EB34: 30 | EC34: Belmar Borough, Monmouth County | ED34: 1306 | EE34: Belmar borough | EF34: Monmouth
BG35: 36 | BH35: Current Year Anticipated Revenues (Budgeted) | BI35: Local Revenue | BJ35: Current Year Anticipated Revenues (Budgeted)_Local Revenue | BK35: 36 | BM35: 30 | BN35: Number of Total Covered Members | BO35: TotCovMem | DZ35: 2103 | EA35: 2103 | EB35: 31 | EC35: Belvidere Town, Warren County | ED35: 2103 | EE35: Belvidere town | EF35: Warren
BG36: 37 | BH36: Current Year Anticipated Revenues (Budgeted) | BI36: State Aid (without offsetting appropriation) | BJ36: Current Year Anticipated Revenues (Budgeted)_State Aid (without offsetting appropriation) | BK36: 37 | BM36: 31 | BN36: Health Care Cost Per Covered Member | BO36: HealthCareCostCovMem | DZ36: 0203 | EA36: 203 | EB36: 32 | EC36: Bergenfield Borough, Bergen County | ED36: 0203 | EE36: Bergenfield borough | EF36: Bergen
BG37: 38 | BH37: Current Year Anticipated Revenues (Budgeted) | BI37: Uniform Construction Code Fees | BJ37: Current Year Anticipated Revenues (Budgeted)_Uniform Construction Code Fees | BK37: 38 | BM37: 32 | BN37: Total Health Care Cost | BO37: TotalHealthCareCosts | DZ37: 2001 | EA37: 2001 | EB37: 33 | EC37: Berkeley Heights Township, Union County | ED37: 2001 | EE37: Berkeley Heights township | EF37: Union
BG38: 39 | BH38: Current Year Anticipated Revenues (Budgeted) | BI38: Shared Services Agreements | BJ38: Current Year Anticipated Revenues (Budgeted)_Shared Services Agreements | BK38: 39 | BM38: 33 | BN38: Gross Debt | BO38: GrossDebt | DZ38: 1505 | EA38: 1505 | EB38: 34 | EC38: Berkeley Township, Ocean County | ED38: 1505 | EE38: Berkeley township | EF38: Ocean
BG39: 40 | BH39: Current Year Anticipated Revenues (Budgeted) | BI39: Additional Revenue Offset by Appropriations | BJ39: Current Year Anticipated Revenues (Budgeted)_Additional Revenue Offset by Appropriations | BK39: 40 | BM39: 34 | BN39: Deductions | BO39: Deductions | DZ39: 0405 | EA39: 405 | EB39: 35 | EC39: Berlin Borough, Camden County | ED39: 0405 | EE39: Berlin borough | EF39: Camden
BG40: 41 | BH40: Current Year Anticipated Revenues (Budgeted) | BI40: Public and Private Revenue | BJ40: Current Year Anticipated Revenues (Budgeted)_Public and Private Revenue | BK40: 41 | BM40: 35 | BN40: Net Debt | BO40: Net_Debt | DZ40: 0406 | EA40: 406 | EB40: 36 | EC40: Berlin Township, Camden County | ED40: 0406 | EE40: Berlin township | EF40: Camden
BG41: 42 | BH41: Current Year Anticipated Revenues (Budgeted) | BI41: Other Special Items | BJ41: Current Year Anticipated Revenues (Budgeted)_Other Special Items | BK41: 42 | BM41: 36 | BN41: Debt Service | BO41: Debt_Service | DZ41: 1802 | EA41: 1802 | EB41: 37 | EC41: Bernards Township, Somerset County | ED41: 1802 | EE41: Bernards township | EF41: Somerset
BG42: 43 | BH42: Current Year Anticipated Revenues (Budgeted) | BI42: Receipts from Delinquent Taxes | BJ42: Current Year Anticipated Revenues (Budgeted)_Receipts from Delinquent Taxes | BK42: 43 | BM42: 37 | BN42: Credit Ratings | BO42: Credit_Ratings | DZ42: 1803 | EA42: 1803 | EB42: 38 | EC42: Bernardsville Borough, Somerset County | ED42: 1803 | EE42: Bernardsville borough | EF42: Somerset
BG43: 44 | BH43: Current Year Anticipated Revenues (Budgeted) | BI43: Local Tax for Municipal Purposes | BJ43: Current Year Anticipated Revenues (Budgeted)_Local Tax for Municipal Purposes | BK43: 44 | BM43: 38 | BN43: Long-term Tax Exemptions/PILOTS | BO43: LTTaxExemptions | DZ43: 1002 | EA43: 1002 | EB43: 39 | EC43: Bethlehem Township, Hunterdon County | ED43: 1002 | EE43: Bethlehem township | EF43: Hunterdon
BG44: 45 | BH44: Current Year Anticipated Revenues (Budgeted) | BI44: Minimum Library Tax | BJ44: Current Year Anticipated Revenues (Budgeted)_Minimum Library Tax | BK44: 45 | BM44: 39 | BN44: 5-Year Tax Exemption - Number of Parcels | BO44: FiveYrTaxExParcels | DZ44: 0302 | EA44: 302 | EB44: 40 | EC44: Beverly City, Burlington County | ED44: 0302 | EE44: Beverly city | EF44: Burlington
BG45: 46 | BH45: Current Year Anticipated Revenues (Budgeted) | BI45: Open Space Levy Tax | BJ45: Current Year Anticipated Revenues (Budgeted)_Open Space Levy Tax | BK45: 46 | BM45: 40 | BN45: 5-Year Tax Exemption - PILOT Billing/Revenue | BO45: FiveYrTaxExPILOT | DZ45: 2104 | EA45: 2104 | EB45: 41 | EC45: Blairstown Township, Warren County | ED45: 2104 | EE45: Blairstown township | EF45: Warren
BG46: 47 | BH46: Current Year Anticipated Revenues (Budgeted) | BI46: Arts and Cultural Levy Tax | BJ46: Current Year Anticipated Revenues (Budgeted)_Arts and Cultural Levy Tax | BK46: 47 | BM46: 41 | BN46: 5-Year Tax Exemption - Assessed Value | BO46: FiveYrTaxExAV | DZ46: 0702 | EA46: 702 | EB46: 42 | EC46: Bloomfield Township, Essex County | ED46: 0702 | EE46: Bloomfield township | EF46: Essex
BG47: 48 | BH47: Current Year Anticipated Revenues (Budgeted) | BI47: Addition to Local District School Tax | BJ47: Current Year Anticipated Revenues (Budgeted)_Addition to Local District School Tax | BK47: 48 | BM47: 42 | BN47: Taxes if Billing in Full at Prior Year Tax Rate | BO47: TaxesifBilled | DZ47: 1601 | EA47: 1601 | EB47: 43 | EC47: Bloomingdale Borough, Passaic County | ED47: 1601 | EE47: Bloomingdale borough | EF47: Passaic
BG48: 49 | BH48: Current Year Anticipated Revenues (Budgeted) | BI48: Deficit General Budget | BJ48: Current Year Anticipated Revenues (Budgeted)_Deficit General Budget | BK48: 49 | BM48: 43 | BN48: Accumulated Absences | BO48: AccumAbsences | DZ48: 1003 | EA48: 1003 | EB48: 44 | EC48: Bloomsbury Borough, Hunterdon County | ED48: 1003 | EE48: Bloomsbury borough | EF48: Hunterdon
BG49: 50 | BH49: Current Year Anticipated Revenues (Budgeted) | BI49: Total | BJ49: Current Year Anticipated Revenues (Budgeted)_Total | BK49: 50 | BM49: 44 | BN49: Structural Imbalances | BO49: StrucImbalances | DZ49: 0204 | EA49: 204 | EB49: 45 | EC49: Bogota Borough, Bergen County | ED49: 0204 | EE49: Bogota borough | EF49: Bergen
BG50: 51 | BH50: Current Year General Budget Revenues | BI50: Surplus | BJ50: Current Year General Budget Revenues_Surplus | BK50: 51 | DZ50: 1401 | EA50: 1401 | EB50: 46 | EC50: Boonton Town, Morris County | ED50: 1401 | EE50: Boonton town | EF50: Morris
BG51: 52 | BH51: Current Year General Budget Revenues | BI51: Local Revenue | BJ51: Current Year General Budget Revenues_Local Revenue | BK51: 52 | DZ51: 1402 | EA51: 1402 | EB51: 47 | EC51: Boonton Township, Morris County | ED51: 1402 | EE51: Boonton township | EF51: Morris
BG52: 53 | BH52: Current Year General Budget Revenues | BI52: State Aid (without offsetting appropriation) | BJ52: Current Year General Budget Revenues_State Aid (without offsetting appropriation) | BK52: 53 | DZ52: 0303 | EA52: 303 | EB52: 48 | EC52: Bordentown City, Burlington County | ED52: 0303 | EE52: Bordentown city | EF52: Burlington
BG53: 54 | BH53: Current Year General Budget Revenues | BI53: Uniform Construction Code Fees | BJ53: Current Year General Budget Revenues_Uniform Construction Code Fees | BK53: 54 | DZ53: 0304 | EA53: 304 | EB53: 49 | EC53: Bordentown Township, Burlington County | ED53: 0304 | EE53: Bordentown township | EF53: Burlington
BG54: 55 | BH54: Current Year General Budget Revenues | BI54: Shared Services Agreements | BJ54: Current Year General Budget Revenues_Shared Services Agreements | BK54: 55 | DZ54: 1804 | EA54: 1804 | EB54: 50 | EC54: Bound Brook Borough, Somerset County | ED54: 1804 | EE54: Bound Brook borough | EF54: Somerset
BG55: 56 | BH55: Current Year General Budget Revenues | BI55: Additional Revenue Offset by Appropriations | BJ55: Current Year General Budget Revenues_Additional Revenue Offset by Appropriations | BK55: 56 | DZ55: 1307 | EA55: 1307 | EB55: 51 | EC55: Bradley Beach Borough, Monmouth County | ED55: 1307 | EE55: Bradley Beach borough | EF55: Monmouth
BG56: 57 | BH56: Current Year General Budget Revenues | BI56: Public and Private Revenue | BJ56: Current Year General Budget Revenues_Public and Private Revenue | BK56: 57 | DZ56: 1805 | EA56: 1805 | EB56: 52 | EC56: Branchburg Township, Somerset County | ED56: 1805 | EE56: Branchburg township | EF56: Somerset
BG57: 58 | BH57: Current Year General Budget Revenues | BI57: Other Special Items | BJ57: Current Year General Budget Revenues_Other Special Items | BK57: 58 | DZ57: 1903 | EA57: 1903 | EB57: 53 | EC57: Branchville Borough, Sussex County | ED57: 1903 | EE57: Branchville borough | EF57: Sussex
BG58: 59 | BH58: Current Year General Budget Revenues | BI58: Receipts from Delinquent Taxes | BJ58: Current Year General Budget Revenues_Receipts from Delinquent Taxes | BK58: 59 | DZ58: 1506 | EA58: 1506 | EB58: 54 | EC58: Brick Township, Ocean County | ED58: 1506 | EE58: Brick township | EF58: Ocean
BG59: 60 | BH59: Current Year General Budget Revenues | BI59: Local Tax for Municipal Purposes | BJ59: Current Year General Budget Revenues_Local Tax for Municipal Purposes | BK59: 60 | DZ59: 0601 | EA59: 601 | EB59: 55 | EC59: Bridgeton City, Cumberland County | ED59: 0601 | EE59: Bridgeton city | EF59: Cumberland
BG60: 61 | BH60: Current Year General Budget Revenues | BI60: Minimum Library Tax | BJ60: Current Year General Budget Revenues_Minimum Library Tax | BK60: 61 | DZ60: 1806 | EA60: 1806 | EB60: 56 | EC60: Bridgewater Township, Somerset County | ED60: 1806 | EE60: Bridgewater township | EF60: Somerset
BG61: 62 | BH61: Current Year General Budget Revenues | BI61: Open Space Levy Tax | BJ61: Current Year General Budget Revenues_Open Space Levy Tax | BK61: 62 | DZ61: 1308 | EA61: 1308 | EB61: 57 | EC61: Brielle Borough, Monmouth County | ED61: 1308 | EE61: Brielle borough | EF61: Monmouth
BG62: 63 | BH62: Current Year Anticipated Revenues (Budgeted) | BI62: Arts and Cultural Levy Tax | BJ62: Current Year Anticipated Revenues (Budgeted)_Arts and Cultural Levy Tax | BK62: 63 | DZ62: 0103 | EA62: 103 | EB62: 58 | EC62: Brigantine City, Atlantic County | ED62: 0103 | EE62: Brigantine city | EF62: Atlantic
BG63: 64 | BH63: Current Year General Budget Revenues | BI63: Addition to Local District School Tax | BJ63: Current Year General Budget Revenues_Addition to Local District School Tax | BK63: 64 | DZ63: 0407 | EA63: 407 | EB63: 59 | EC63: Brooklawn Borough, Camden County | ED63: 0407 | EE63: Brooklawn borough | EF63: Camden
BG64: 65 | BH64: Current Year General Budget Revenues | BI64: Deficit General Budget | BJ64: Current Year General Budget Revenues_Deficit General Budget | BK64: 65 | DZ64: 0104 | EA64: 104 | EB64: 60 | EC64: Buena Borough, Atlantic County | ED64: 0104 | EE64: Buena borough | EF64: Atlantic
BG65: 66 | BH65: Current Year General Budget Revenues | BI65: Total | BJ65: Current Year General Budget Revenues_Total | BK65: 66 | DZ65: 0105 | EA65: 105 | EB65: 61 | EC65: Buena Vista Township, Atlantic County | ED65: 0105 | EE65: Buena Vista township | EF65: Atlantic
BG66: 67 | BH66: Current Year General Budget Revenues | BJ66: Current Year General Budget Revenues_ | BK66: 67 | DZ66: 0305 | EA66: 305 | EB66: 62 | EC66: Burlington City, Burlington County | ED66: 0305 | EE66: Burlington city | EF66: Burlington
BG67: 68 | BH67: Prior Year Modified Appropriations | BI67: General Government | BJ67: Prior Year Modified Appropriations_General Government | BK67: 68 | DZ67: 0306 | EA67: 306 | EB67: 63 | EC67: Burlington Township, Burlington County | ED67: 0306 | EE67: Burlington township | EF67: Burlington
BG68: 69 | BH68: Prior Year Modified Appropriations | BI68: Land-Use Administration | BJ68: Prior Year Modified Appropriations_Land-Use Administration | BK68: 69 | DZ68: 1403 | EA68: =VALUE(DZ68) -> 1403 | EB68: 64 | EC68: Butler Borough, Morris County | ED68: 1403 | EE68: Butler borough | EF68: Morris
BG69: 70 | BH69: Prior Year Modified Appropriations | BI69: Uniform Construction Code | BJ69: Prior Year Modified Appropriations_Uniform Construction Code | BK69: 70 | DZ69: 1904 | EA69: 1904 | EB69: 65 | EC69: Byram Township, Sussex County | ED69: 1904 | EE69: Byram township | EF69: Sussex
BG70: 71 | BH70: Prior Year Modified Appropriations | BI70: Insurance | BJ70: Prior Year Modified Appropriations_Insurance | BK70: 71 | DZ70: 0703 | EA70: 703 | EB70: =EB69+1 -> 66 | EC70: Caldwell Borough, Essex County | ED70: 0703 | EE70: Caldwell borough | EF70: Essex
BG71: =BG70+1 -> 72 | BH71: Prior Year Modified Appropriations | BI71: Public Safety | BJ71: Prior Year Modified Appropriations_Public Safety | BK71: =BK70+1 -> 72 | DZ71: 1004 | EA71: 1004 | EB71: 67 | EC71: Califon Borough, Hunterdon County | ED71: 1004 | EE71: Califon borough | EF71: Hunterdon
BG72: 73 | BH72: Prior Year Modified Appropriations | BI72: Public Works | BJ72: Prior Year Modified Appropriations_Public Works | BK72: 73 | DZ72: 0408 | EA72: 408 | EB72: 68 | EC72: Camden City, Camden County | ED72: 0408 | EE72: Camden city | EF72: Camden
BG73: 74 | BH73: Prior Year Modified Appropriations | BI73: Health and Human Services | BJ73: Prior Year Modified Appropriations_Health and Human Services | BK73: 74 | DZ73: 0502 | EA73: 502 | EB73: 69 | EC73: Cape May City, Cape May County | ED73: 0502 | EE73: Cape May city | EF73: Cape May
BG74: 75 | BH74: Prior Year Modified Appropriations | BI74: Parks and Recreation | BJ74: Prior Year Modified Appropriations_Parks and Recreation | BK74: 75 | DZ74: 0503 | EA74: 503 | EB74: 70 | EC74: Cape May Point Borough, Cape May County | ED74: 0503 | EE74: Cape May Point borough | EF74: Cape May
BG75: 76 | BH75: Prior Year Modified Appropriations | BI75: Education (including Library) | BJ75: Prior Year Modified Appropriations_Education (including Library) | BK75: 76 | DZ75: 0205 | EA75: 205 | EB75: 71 | EC75: Carlstadt Borough, Bergen County | ED75: 0205 | EE75: Carlstadt borough | EF75: Bergen
BG76: 77 | BH76: Prior Year Modified Appropriations | BI76: Unclassified | BJ76: Prior Year Modified Appropriations_Unclassified | BK76: 77 | DZ76: 1713 | EA76: 1713 | EB76: 72 | EC76: Carneys Point Township, Salem County | ED76: 1713 | EE76: Carneys Point township | EF76: Salem
BG77: 78 | BH77: Prior Year Modified Appropriations | BI77: Utilities and Bulk Purchases | BJ77: Prior Year Modified Appropriations_Utilities and Bulk Purchases | BK77: 78 | DZ77: 1201 | EA77: 1201 | EB77: 73 | EC77: Carteret Borough, Middlesex County | ED77: 1201 | EE77: Carteret borough | EF77: Middlesex
BG78: 79 | BH78: Prior Year Modified Appropriations | BI78: Landfill / Solid Waste Disposal | BJ78: Prior Year Modified Appropriations_Landfill / Solid Waste Disposal | BK78: 79 | DZ78: 0704 | EA78: 704 | EB78: 74 | EC78: Cedar Grove Township, Essex County | ED78: 0704 | EE78: Cedar Grove township | EF78: Essex
BG79: 80 | BH79: Prior Year Modified Appropriations | BI79: Contingency | BJ79: Prior Year Modified Appropriations_Contingency | BK79: 80 | DZ79: 1404 | EA79: 1404 | EB79: 75 | EC79: Chatham Borough, Morris County | ED79: 1404 | EE79: Chatham borough | EF79: Morris
BG80: 81 | BH80: Prior Year Modified Appropriations | BI80: Statutory Expenditures | BJ80: Prior Year Modified Appropriations_Statutory Expenditures | BK80: 81 | DZ80: 1405 | EA80: 1405 | EB80: 76 | EC80: Chatham Township, Morris County | ED80: 1405 | EE80: Chatham township | EF80: Morris
BG81: 82 | BH81: Prior Year Modified Appropriations | BI81: Judgements | BJ81: Prior Year Modified Appropriations_Judgements | BK81: 82 | DZ81: 0409 | EA81: 409 | EB81: 77 | EC81: Cherry Hill Township, Camden County | ED81: 0409 | EE81: Cherry Hill township | EF81: Camden
BG82: 83 | BH82: Prior Year Modified Appropriations | BI82: Shared Services | BJ82: Prior Year Modified Appropriations_Shared Services | BK82: 83 | DZ82: 0410 | EA82: 410 | EB82: 78 | EC82: Chesilhurst Borough, Camden County | ED82: 0410 | EE82: Chesilhurst borough | EF82: Camden
BG83: 84 | BH83: Prior Year Modified Appropriations | BI83: Court and Public Defender | BJ83: Prior Year Modified Appropriations_Court and Public Defender | BK83: 84 | DZ83: 1406 | EA83: 1406 | EB83: 79 | EC83: Chester Borough, Morris County | ED83: 1406 | EE83: Chester borough | EF83: Morris
BG84: 85 | BH84: Prior Year Modified Appropriations | BI84: Capital | BJ84: Prior Year Modified Appropriations_Capital | BK84: 85 | DZ84: 1407 | EA84: 1407 | EB84: 80 | EC84: Chester Township, Morris County | ED84: 1407 | EE84: Chester township | EF84: Morris
BG85: 86 | BH85: Prior Year Modified Appropriations | BI85: Debt | BJ85: Prior Year Modified Appropriations_Debt | BK85: 86 | DZ85: 0307 | EA85: 307 | EB85: 81 | EC85: Chesterfield Township, Burlington County | ED85: 0307 | EE85: Chesterfield township | EF85: Burlington
BG86: 87 | BH86: Prior Year Modified Appropriations | BI86: Deferred Charges | BJ86: Prior Year Modified Appropriations_Deferred Charges | BK86: 87 | DZ86: 0308 | EA86: 308 | EB86: 82 | EC86: Cinnaminson Township, Burlington County | ED86: 0308 | EE86: Cinnaminson township | EF86: Burlington
BG87: 88 | BH87: Prior Year Modified Appropriations | BI87: Debt - Type 1 School District | BJ87: Prior Year Modified Appropriations_Debt - Type 1 School District | BK87: 88 | DZ87: 0717 | EA87: 717 | EB87: 83 | EC87: City of Orange Township, Essex County | ED87: 0717 | EE87: City of Orange township | EF87: Essex
BG88: 89 | BH88: Prior Year Modified Appropriations | BI88: Reserve for Uncollected Taxes | BJ88: =BH88&"_"&BI88 -> Prior Year Modified Appropriations_Reserve for Uncollected Taxes | BK88: 89 | DZ88: 2002 | EA88: 2002 | EB88: 84 | EC88: Clark Township, Union County | ED88: 2002 | EE88: Clark township | EF88: Union
BG89: 90 | BH89: Prior Year Modified Appropriations | BI89: Surplus General Budget | BJ89: Prior Year Modified Appropriations_Surplus General Budget | BK89: 90 | DZ89: 0801 | EA89: 801 | EB89: 85 | EC89: Clayton Borough, Gloucester County | ED89: 0801 | EE89: Clayton borough | EF89: Gloucester
BG90: 91 | BH90: Prior Year Modified Appropriations | BI90: Total Appropriation | BJ90: Prior Year Modified Appropriations_Total Appropriation | BK90: 91 | DZ90: 0411 | EA90: 411 | EB90: 86 | EC90: Clementon Borough, Camden County | ED90: 0411 | EE90: Clementon borough | EF90: Camden
BG91: 92 | BH91: Current Year Total Appropriations (Budgeted) | BI91: General Government | BJ91: Current Year Total Appropriations (Budgeted)_General Government | BK91: 92 | DZ91: 0206 | EA91: 206 | EB91: 87 | EC91: Cliffside Park Borough, Bergen County | ED91: 0206 | EE91: Cliffside Park borough | EF91: Bergen
BG92: 93 | BH92: Current Year Total Appropriations (Budgeted) | BI92: Land-Use Administration | BJ92: Current Year Total Appropriations (Budgeted)_Land-Use Administration | BK92: 93 | DZ92: 1602 | EA92: 1602 | EB92: 88 | EC92: Clifton City, Passaic County | ED92: 1602 | EE92: Clifton city | EF92: Passaic
BG93: 94 | BH93: Current Year Total Appropriations (Budgeted) | BI93: Uniform Construction Code | BJ93: Current Year Total Appropriations (Budgeted)_Uniform Construction Code | BK93: 94 | DZ93: 1005 | EA93: 1005 | EB93: 89 | EC93: Clinton Town, Hunterdon County | ED93: 1005 | EE93: Clinton town | EF93: Hunterdon
BG94: 95 | BH94: Current Year Total Appropriations (Budgeted) | BI94: Insurance | BJ94: Current Year Total Appropriations (Budgeted)_Insurance | BK94: 95 | DZ94: 1006 | EA94: 1006 | EB94: 90 | EC94: Clinton Township, Hunterdon County | ED94: 1006 | EE94: Clinton township | EF94: Hunterdon
BG95: 96 | BH95: Current Year Total Appropriations (Budgeted) | BI95: Public Safety | BJ95: Current Year Total Appropriations (Budgeted)_Public Safety | BK95: 96 | DZ95: 0207 | EA95: 207 | EB95: 91 | EC95: Closter Borough, Bergen County | ED95: 0207 | EE95: Closter borough | EF95: Bergen
BG96: 97 | BH96: Current Year Total Appropriations (Budgeted) | BI96: Public Works | BJ96: Current Year Total Appropriations (Budgeted)_Public Works | BK96: 97 | DZ96: 0412 | EA96: 412 | EB96: 92 | EC96: Collingswood Borough, Camden County | ED96: 0412 | EE96: Collingswood borough | EF96: Camden
BG97: 98 | BH97: Current Year Total Appropriations (Budgeted) | BI97: Health and Human Services | BJ97: Current Year Total Appropriations (Budgeted)_Health and Human Services | BK97: 98 | DZ97: 1309 | EA97: 1309 | EB97: 93 | EC97: Colts Neck Township, Monmouth County | ED97: 1309 | EE97: Colts Neck township | EF97: Monmouth
BG98: 99 | BH98: Current Year Total Appropriations (Budgeted) | BI98: Parks and Recreation | BJ98: Current Year Total Appropriations (Budgeted)_Parks and Recreation | BK98: 99 | DZ98: 0602 | EA98: 602 | EB98: 94 | EC98: Commercial Township, Cumberland County | ED98: 0602 | EE98: Commercial township | EF98: Cumberland
BG99: 100 | BH99: Current Year Total Appropriations (Budgeted) | BI99: Education (including Library) | BJ99: Current Year Total Appropriations (Budgeted)_Education (including Library) | BK99: 100 | DZ99: 0106 | EA99: 106 | EB99: 95 | EC99: Corbin City City, Atlantic County | ED99: 0106 | EE99: Corbin City city | EF99: Atlantic
BG100: 101 | BH100: Current Year Total Appropriations (Budgeted) | BI100: Unclassified | BJ100: Current Year Total Appropriations (Budgeted)_Unclassified | BK100: 101 | DZ100: 1202 | EA100: 1202 | EB100: 96 | EC100: Cranbury Township, Middlesex County | ED100: 1202 | EE100: Cranbury township | EF100: Middlesex
BG101: 102 | BH101: Current Year Total Appropriations (Budgeted) | BI101: Utilities and Bulk Purchases | BJ101: Current Year Total Appropriations (Budgeted)_Utilities and Bulk Purchases | BK101: 102 | DZ101: 2003 | EA101: 2003 | EB101: 97 | EC101: Cranford Township, Union County | ED101: 2003 | EE101: Cranford township | EF101: Union
BG102: 103 | BH102: Current Year Total Appropriations (Budgeted) | BI102: Landfill / Solid Waste Disposal | BJ102: Current Year Total Appropriations (Budgeted)_Landfill / Solid Waste Disposal | BK102: 103 | DZ102: 0208 | EA102: 208 | EB102: 98 | EC102: Cresskill Borough, Bergen County | ED102: 0208 | EE102: Cresskill borough | EF102: Bergen
BG103: 104 | BH103: Current Year Total Appropriations (Budgeted) | BI103: Contingency | BJ103: Current Year Total Appropriations (Budgeted)_Contingency | BK103: 104 | DZ103: 1310 | EA103: 1310 | EB103: 99 | EC103: Deal Borough, Monmouth County | ED103: 1310 | EE103: Deal borough | EF103: Monmouth
BG104: 105 | BH104: Current Year Total Appropriations (Budgeted) | BI104: Statutory Expenditures | BJ104: Current Year Total Appropriations (Budgeted)_Statutory Expenditures | BK104: 105 | DZ104: 0603 | EA104: 603 | EB104: 100 | EC104: Deerfield Township, Cumberland County | ED104: 0603 | EE104: Deerfield township | EF104: Cumberland
BG105: 106 | BH105: Current Year Total Appropriations (Budgeted) | BI105: Judgements | BJ105: Current Year Total Appropriations (Budgeted)_Judgements | BK105: 106 | DZ105: 0309 | EA105: 309 | EB105: 101 | EC105: Delanco Township, Burlington County | ED105: 0309 | EE105: Delanco township | EF105: Burlington
BG106: 107 | BH106: Current Year Total Appropriations (Budgeted) | BI106: Shared Services | BJ106: Current Year Total Appropriations (Budgeted)_Shared Services | BK106: 107 | DZ106: 1007 | EA106: 1007 | EB106: 102 | EC106: Delaware Township, Hunterdon County | ED106: 1007 | EE106: Delaware township | EF106: Hunterdon
BG107: 108 | BH107: Current Year Total Appropriations (Budgeted) | BI107: Court and Public Defender | BJ107: Current Year Total Appropriations (Budgeted)_Court and Public Defender | BK107: 108 | DZ107: 0310 | EA107: 310 | EB107: 103 | EC107: Delran Township, Burlington County | ED107: 0310 | EE107: Delran township | EF107: Burlington
BG108: 109 | BH108: Current Year Total Appropriations (Budgeted) | BI108: Capital | BJ108: Current Year Total Appropriations (Budgeted)_Capital | BK108: 109 | DZ108: 0209 | EA108: 209 | EB108: 104 | EC108: Demarest Borough, Bergen County | ED108: 0209 | EE108: Demarest borough | EF108: Bergen
BG109: 110 | BH109: Current Year Total Appropriations (Budgeted) | BI109: Debt | BJ109: Current Year Total Appropriations (Budgeted)_Debt | BK109: 110 | DZ109: 0504 | EA109: 504 | EB109: 105 | EC109: Dennis Township, Cape May County | ED109: 0504 | EE109: Dennis township | EF109: Cape May
BG110: 111 | BH110: Current Year Total Appropriations (Budgeted) | BI110: Deferred Charges | BJ110: Current Year Total Appropriations (Budgeted)_Deferred Charges | BK110: 111 | DZ110: 1408 | EA110: 1408 | EB110: 106 | EC110: Denville Township, Morris County | ED110: 1408 | EE110: Denville township | EF110: Morris
BG111: 112 | BH111: Current Year Total Appropriations (Budgeted) | BI111: Debt - Type 1 School District | BJ111: Current Year Total Appropriations (Budgeted)_Debt - Type 1 School District | BK111: 112 | DZ111: 0802 | EA111: 802 | EB111: 107 | EC111: Deptford Township, Gloucester County | ED111: 0802 | EE111: Deptford township | EF111: Gloucester
BG112: 113 | BH112: Current Year Total Appropriations (Budgeted) | BI112: Reserve for Uncollected Taxes | BJ112: Current Year Total Appropriations (Budgeted)_Reserve for Uncollected Taxes | BK112: 113 | DZ112: 1409 | EA112: 1409 | EB112: 108 | EC112: Dover Town, Morris County | ED112: 1409 | EE112: Dover town | EF112: Morris
BG113: 114 | BH113: Current Year Total Appropriations (Budgeted) | BI113: Surplus General Budget | BJ113: Current Year Total Appropriations (Budgeted)_Surplus General Budget | BK113: 114 | DZ113: 0604 | EA113: 604 | EB113: 109 | EC113: Downe Township, Cumberland County | ED113: 0604 | EE113: Downe township | EF113: Cumberland
BG114: 115 | BH114: Current Year Total Appropriations (Budgeted) | BI114: Total Appropriation | BJ114: Current Year Total Appropriations (Budgeted)_Total Appropriation | BK114: 115 | DZ114: 0210 | EA114: 210 | EB114: 110 | EC114: Dumont Borough, Bergen County | ED114: 0210 | EE114: Dumont borough | EF114: Bergen
BG115: 116 | BH115: Current Year General Budget Appropriations | BI115: General Government | BJ115: Current Year General Budget Appropriations_General Government | BK115: 116 | DZ115: 1203 | EA115: 1203 | EB115: 111 | EC115: Dunellen Borough, Middlesex County | ED115: 1203 | EE115: Dunellen borough | EF115: Middlesex
BG116: 117 | BH116: Current Year General Budget Appropriations | BI116: Land-Use Administration | BJ116: Current Year General Budget Appropriations_Land-Use Administration | BK116: 117 | DZ116: 1508 | EA116: 1508 | EB116: 112 | EC116: Eagleswood Township, Ocean County | ED116: 1508 | EE116: Eagleswood township | EF116: Ocean
BG117: 118 | BH117: Current Year General Budget Appropriations | BI117: Uniform Construction Code | BJ117: Current Year General Budget Appropriations_Uniform Construction Code | BK117: 118 | DZ117: 1008 | EA117: 1008 | EB117: 113 | EC117: East Amwell Township, Hunterdon County | ED117: 1008 | EE117: East Amwell township | EF117: Hunterdon
BG118: 119 | BH118: Current Year General Budget Appropriations | BI118: Insurance | BJ118: Current Year General Budget Appropriations_Insurance | BK118: 119 | DZ118: 1204 | EA118: 1204 | EB118: 114 | EC118: East Brunswick Township, Middlesex County | ED118: 1204 | EE118: East Brunswick township | EF118: Middlesex
BG119: 120 | BH119: Current Year General Budget Appropriations | BI119: Public Safety | BJ119: Current Year General Budget Appropriations_Public Safety | BK119: 120 | DZ119: 0803 | EA119: 803 | EB119: 115 | EC119: East Greenwich Township, Gloucester County | ED119: 0803 | EE119: East Greenwich township | EF119: Gloucester
BG120: 121 | BH120: Current Year General Budget Appropriations | BI120: Public Works | BJ120: Current Year General Budget Appropriations_Public Works | BK120: 121 | DZ120: 1410 | EA120: 1410 | EB120: 116 | EC120: East Hanover Township, Morris County | ED120: 1410 | EE120: East Hanover township | EF120: Morris
BG121: 122 | BH121: Current Year General Budget Appropriations | BI121: Health and Human Services | BJ121: Current Year General Budget Appropriations_Health and Human Services | BK121: 122 | DZ121: 0902 | EA121: 902 | EB121: 117 | EC121: East Newark Borough, Hudson County | ED121: 0902 | EE121: East Newark borough | EF121: Hudson
BG122: 123 | BH122: Current Year General Budget Appropriations | BI122: Parks and Recreation | BJ122: Current Year General Budget Appropriations_Parks and Recreation | BK122: 123 | DZ122: 0705 | EA122: 705 | EB122: 118 | EC122: East Orange City, Essex County | ED122: 0705 | EE122: East Orange city | EF122: Essex
BG123: 124 | BH123: Current Year General Budget Appropriations | BI123: Education (including Library) | BJ123: Current Year General Budget Appropriations_Education (including Library) | BK123: 124 | DZ123: 0212 | EA123: 212 | EB123: 119 | EC123: East Rutherford Borough, Bergen County | ED123: 0212 | EE123: East Rutherford borough | EF123: Bergen
BG124: 125 | BH124: Current Year General Budget Appropriations | BI124: Unclassified | BJ124: Current Year General Budget Appropriations_Unclassified | BK124: 125 | DZ124: 1101 | EA124: 1101 | EB124: 120 | EC124: East Windsor Township, Mercer County | ED124: 1101 | EE124: East Windsor township | EF124: Mercer
BG125: 126 | BH125: Current Year General Budget Appropriations | BI125: Utilities and Bulk Purchases | BJ125: Current Year General Budget Appropriations_Utilities and Bulk Purchases | BK125: 126 | DZ125: 0311 | EA125: 311 | EB125: 121 | EC125: Eastampton Township, Burlington County | ED125: 0311 | EE125: Eastampton township | EF125: Burlington
BG126: 127 | BH126: Current Year General Budget Appropriations | BI126: Landfill / Solid Waste Disposal | BJ126: Current Year General Budget Appropriations_Landfill / Solid Waste Disposal | BK126: 127 | DZ126: 1311 | EA126: 1311 | EB126: 122 | EC126: Eatontown Borough, Monmouth County | ED126: 1311 | EE126: Eatontown borough | EF126: Monmouth
BG127: 128 | BH127: Current Year General Budget Appropriations | BI127: Contingency | BJ127: Current Year General Budget Appropriations_Contingency | BK127: 128 | DZ127: 0213 | EA127: 213 | EB127: 123 | EC127: Edgewater Borough, Bergen County | ED127: 0213 | EE127: Edgewater borough | EF127: Bergen
BG128: 129 | BH128: Current Year General Budget Appropriations | BI128: Statutory Expenditures | BJ128: Current Year General Budget Appropriations_Statutory Expenditures | BK128: 129 | DZ128: 0312 | EA128: 312 | EB128: 124 | EC128: Edgewater Park Township, Burlington County | ED128: 0312 | EE128: Edgewater Park township | EF128: Burlington
BG129: 130 | BH129: Current Year General Budget Appropriations | BI129: Judgements | BJ129: Current Year General Budget Appropriations_Judgements | BK129: 130 | DZ129: 1205 | EA129: 1205 | EB129: 125 | EC129: Edison Township, Middlesex County | ED129: 1205 | EE129: Edison township | EF129: Middlesex
BG130: 131 | BH130: Current Year General Budget Appropriations | BI130: Shared Services | BJ130: Current Year General Budget Appropriations_Shared Services | BK130: 131 | DZ130: 0107 | EA130: 107 | EB130: 126 | EC130: Egg Harbor City City, Atlantic County | ED130: 0107 | EE130: Egg Harbor City city | EF130: Atlantic
BG131: 132 | BH131: Current Year General Budget Appropriations | BI131: Court and Public Defender | BJ131: Current Year General Budget Appropriations_Court and Public Defender | BK131: 132 | DZ131: 0108 | EA131: 108 | EB131: 127 | EC131: Egg Harbor Township, Atlantic County | ED131: 0108 | EE131: Egg Harbor township | EF131: Atlantic
BG132: 133 | BH132: Current Year General Budget Appropriations | BI132: Capital | BJ132: Current Year General Budget Appropriations_Capital | BK132: 133 | DZ132: 2004 | EA132: =VALUE(DZ132) -> 2004 | EB132: 128 | EC132: Elizabeth City, Union County | ED132: 2004 | EE132: Elizabeth city | EF132: Union
BG133: 134 | BH133: Current Year General Budget Appropriations | BI133: Debt | BJ133: Current Year General Budget Appropriations_Debt | BK133: 134 | DZ133: 0804 | EA133: 804 | EB133: 129 | EC133: Elk Township, Gloucester County | ED133: 0804 | EE133: Elk township | EF133: Gloucester
BG134: 135 | BH134: Current Year General Budget Appropriations | BI134: Deferred Charges | BJ134: Current Year General Budget Appropriations_Deferred Charges | BK134: 135 | DZ134: 1702 | EA134: 1702 | EB134: =EB133+1 -> 130 | EC134: Elmer Borough, Salem County | ED134: 1702 | EE134: Elmer borough | EF134: Salem
BG135: =BG134+1 -> 136 | BH135: Current Year General Budget Appropriations | BI135: Debt - Type 1 School District | BJ135: Current Year General Budget Appropriations_Debt - Type 1 School District | BK135: =BK134+1 -> 136 | DZ135: 0211 | EA135: 211 | EB135: 131 | EC135: Elmwood Park Borough, Bergen County | ED135: 0211 | EE135: Elmwood Park borough | EF135: Bergen
BG136: 137 | BH136: Current Year General Budget Appropriations | BI136: Reserve for Uncollected Taxes | BJ136: Current Year General Budget Appropriations_Reserve for Uncollected Taxes | BK136: 137 | DZ136: 1703 | EA136: 1703 | EB136: 132 | EC136: Elsinboro Township, Salem County | ED136: 1703 | EE136: Elsinboro township | EF136: Salem
BG137: 138 | BH137: Current Year General Budget Appropriations | BI137: Surplus General Budget | BJ137: Current Year General Budget Appropriations_Surplus General Budget | BK137: 138 | DZ137: 0214 | EA137: 214 | EB137: 133 | EC137: Emerson Borough, Bergen County | ED137: 0214 | EE137: Emerson borough | EF137: Bergen
BG138: 139 | BH138: Current Year General Budget Appropriations | BI138: Total General Budget | BJ138: Current Year General Budget Appropriations_Total General Budget | BK138: 139 | DZ138: 0215 | EA138: 215 | EB138: 134 | EC138: Englewood City, Bergen County | ED138: 0215 | EE138: Englewood city | EF138: Bergen
BG139: 140 | BJ139: _ | BK139: 140 | DZ139: 0216 | EA139: 216 | EB139: 135 | EC139: Englewood Cliffs Borough, Bergen County | ED139: 0216 | EE139: Englewood Cliffs borough | EF139: Bergen
BG140: 141 | BH140: Number of Full Time Employees | BI140: General Government | BJ140: Number of Full Time Employees_General Government | BK140: 141 | DZ140: 1312 | EA140: 1312 | EB140: 136 | EC140: Englishtown Borough, Monmouth County | ED140: 1312 | EE140: Englishtown borough | EF140: Monmouth
BG141: 142 | BH141: Number of Full Time Employees | BI141: Land-Use Administration | BJ141: Number of Full Time Employees_Land-Use Administration | BK141: 142 | DZ141: 0706 | EA141: 706 | EB141: 137 | EC141: Essex Fells Borough, Essex County | ED141: 0706 | EE141: Essex Fells borough | EF141: Essex
BG142: 143 | BH142: Number of Full Time Employees | BI142: Uniform Construction Code | BJ142: Number of Full Time Employees_Uniform Construction Code | BK142: 143 | DZ142: 0109 | EA142: 109 | EB142: 138 | EC142: Estell Manor City, Atlantic County | ED142: 0109 | EE142: Estell Manor city | EF142: Atlantic
BG143: 144 | BH143: Number of Full Time Employees | BI143: Insurance | BJ143: Number of Full Time Employees_Insurance | BK143: 144 | DZ143: 0313 | EA143: 313 | EB143: 139 | EC143: Evesham Township, Burlington County | ED143: 0313 | EE143: Evesham township | EF143: Burlington
BG144: 145 | BH144: Number of Full Time Employees | BI144: Public Safety | BJ144: Number of Full Time Employees_Public Safety | BK144: 145 | DZ144: 1102 | EA144: 1102 | EB144: 140 | EC144: Ewing Township, Mercer County | ED144: 1102 | EE144: Ewing township | EF144: Mercer
BG145: 146 | BH145: Number of Full Time Employees | BI145: Public Works | BJ145: Number of Full Time Employees_Public Works | BK145: 146 | DZ145: 1313 | EA145: 1313 | EB145: 141 | EC145: Fair Haven Borough, Monmouth County | ED145: 1313 | EE145: Fair Haven borough | EF145: Monmouth
BG146: 147 | BH146: Number of Full Time Employees | BI146: Health and Human Services | BJ146: Number of Full Time Employees_Health and Human Services | BK146: 147 | DZ146: 0217 | EA146: 217 | EB146: 142 | EC146: Fair Lawn Borough, Bergen County | ED146: 0217 | EE146: Fair Lawn borough | EF146: Bergen
BG147: 148 | BH147: Number of Full Time Employees | BI147: Parks and Recreation | BJ147: Number of Full Time Employees_Parks and Recreation | BK147: 148 | DZ147: 0605 | EA147: 605 | EB147: 143 | EC147: Fairfield Township, Cumberland County | ED147: 0605 | EE147: Fairfield township | EF147: Cumberland
BG148: 149 | BH148: Number of Full Time Employees | BI148: Education (including Library) | BJ148: Number of Full Time Employees_Education (including Library) | BK148: 149 | DZ148: 0707 | EA148: 707 | EB148: 144 | EC148: Fairfield Township, Essex County | ED148: 0707 | EE148: Fairfield township | EF148: Essex
BG149: 150 | BH149: Number of Full Time Employees | BI149: Unclassified | BJ149: Number of Full Time Employees_Unclassified | BK149: 150 | DZ149: 0218 | EA149: 218 | EB149: 145 | EC149: Fairview Borough, Bergen County | ED149: 0218 | EE149: Fairview borough | EF149: Bergen
BG150: 151 | BH150: Number of Full Time Employees | BI150: Utilities and Bulk Purchases | BJ150: Number of Full Time Employees_Utilities and Bulk Purchases | BK150: 151 | DZ150: 2005 | EA150: 2005 | EB150: 146 | EC150: Fanwood Borough, Union County | ED150: 2005 | EE150: Fanwood borough | EF150: Union
BG151: 152 | BH151: Number of Full Time Employees | BI151: Landfill / Solid Waste Disposal | BJ151: Number of Full Time Employees_Landfill / Solid Waste Disposal | BK151: 152 | DZ151: 1807 | EA151: 1807 | EB151: 147 | EC151: Far Hills Borough, Somerset County | ED151: 1807 | EE151: Far Hills borough | EF151: Somerset
BG152: 153 | BH152: Number of Full Time Employees | BI152: Contingency | BJ152: =BH152&"_"&BI152 -> Number of Full Time Employees_Contingency | BK152: 153 | DZ152: 1314 | EA152: 1314 | EB152: 148 | EC152: Farmingdale Borough, Monmouth County | ED152: 1314 | EE152: Farmingdale borough | EF152: Monmouth
BG153: 154 | BH153: Number of Full Time Employees | BI153: Statutory Expenditures | BJ153: Number of Full Time Employees_Statutory Expenditures | BK153: 154 | DZ153: 0314 | EA153: 314 | EB153: 149 | EC153: Fieldsboro Borough, Burlington County | ED153: 0314 | EE153: Fieldsboro borough | EF153: Burlington
BG154: 155 | BH154: Number of Full Time Employees | BI154: Judgements | BJ154: Number of Full Time Employees_Judgements | BK154: 155 | DZ154: 1009 | EA154: 1009 | EB154: 150 | EC154: Flemington Borough, Hunterdon County | ED154: 1009 | EE154: Flemington borough | EF154: Hunterdon
BG155: 156 | BH155: Number of Full Time Employees | BI155: Shared Services | BJ155: Number of Full Time Employees_Shared Services | BK155: 156 | DZ155: 0315 | EA155: 315 | EB155: 151 | EC155: Florence Township, Burlington County | ED155: 0315 | EE155: Florence township | EF155: Burlington
BG156: 157 | BH156: Number of Full Time Employees | BI156: Court and Public Defender | BJ156: Number of Full Time Employees_Court and Public Defender | BK156: 157 | DZ156: 1411 | EA156: 1411 | EB156: 152 | EC156: Florham Park Borough, Morris County | ED156: 1411 | EE156: Florham Park borough | EF156: Morris
BG157: 158 | BH157: Number of Full Time Employees | BI157: Capital | BJ157: Number of Full Time Employees_Capital | BK157: 158 | DZ157: 0110 | EA157: 110 | EB157: 153 | EC157: Folsom Borough, Atlantic County | ED157: 0110 | EE157: Folsom borough | EF157: Atlantic
BG158: 159 | BH158: Number of Full Time Employees | BI158: Debt | BJ158: Number of Full Time Employees_Debt | BK158: 159 | DZ158: 0219 | EA158: 219 | EB158: 154 | EC158: Fort Lee Borough, Bergen County | ED158: 0219 | EE158: Fort Lee borough | EF158: Bergen
BG159: 160 | BH159: Number of Full Time Employees | BI159: Deferred Charges | BJ159: Number of Full Time Employees_Deferred Charges | BK159: 160 | DZ159: 1905 | EA159: 1905 | EB159: 155 | EC159: Frankford Township, Sussex County | ED159: 1905 | EE159: Frankford township | EF159: Sussex
BG160: 161 | BH160: Number of Full Time Employees | BI160: Debt - Type 1 School District | BJ160: Number of Full Time Employees_Debt - Type 1 School District | BK160: 161 | DZ160: 1906 | EA160: 1906 | EB160: 156 | EC160: Franklin Borough, Sussex County | ED160: 1906 | EE160: Franklin borough | EF160: Sussex
BG161: 162 | BH161: Number of Full Time Employees | BI161: Reserve for Uncollected Taxes | BJ161: Number of Full Time Employees_Reserve for Uncollected Taxes | BK161: 162 | DZ161: 0220 | EA161: 220 | EB161: 157 | EC161: Franklin Lakes Borough, Bergen County | ED161: 0220 | EE161: Franklin Lakes borough | EF161: Bergen
BG162: 163 | BH162: Number of Full Time Employees | BI162: Surplus General Budget | BJ162: Number of Full Time Employees_Surplus General Budget | BK162: 163 | DZ162: 0805 | EA162: 805 | EB162: 158 | EC162: Franklin Township, Gloucester County | ED162: 0805 | EE162: Franklin township | EF162: Gloucester
BG163: 164 | BH163: Number of Full Time Employees | BI163: Total Full Time Employees | BJ163: Number of Full Time Employees_Total Full Time Employees | BK163: 164 | DZ163: 1010 | EA163: 1010 | EB163: 159 | EC163: Franklin Township, Hunterdon County | ED163: 1010 | EE163: Franklin township | EF163: Hunterdon
BG164: 165 | BH164: Number of Part-Time Employees | BI164: General Government | BJ164: Number of Part-Time Employees_General Government | BK164: 165 | DZ164: 1808 | EA164: 1808 | EB164: 160 | EC164: Franklin Township, Somerset County | ED164: 1808 | EE164: Franklin township | EF164: Somerset
BG165: 166 | BH165: Number of Part-Time Employees | BI165: Land-Use Administration | BJ165: Number of Part-Time Employees_Land-Use Administration | BK165: 166 | DZ165: 2105 | EA165: 2105 | EB165: 161 | EC165: Franklin Township, Warren County | ED165: 2105 | EE165: Franklin township | EF165: Warren
BG166: 167 | BH166: Number of Part-Time Employees | BI166: Uniform Construction Code | BJ166: Number of Part-Time Employees_Uniform Construction Code | BK166: 167 | DZ166: 1907 | EA166: 1907 | EB166: 162 | EC166: Fredon Township, Sussex County | ED166: 1907 | EE166: Fredon township | EF166: Sussex
BG167: 168 | BH167: Number of Part-Time Employees | BI167: Insurance | BJ167: Number of Part-Time Employees_Insurance | BK167: 168 | DZ167: 1315 | EA167: 1315 | EB167: 163 | EC167: Freehold Borough, Monmouth County | ED167: 1315 | EE167: Freehold borough | EF167: Monmouth
BG168: 169 | BH168: Number of Part-Time Employees | BI168: Public Safety | BJ168: Number of Part-Time Employees_Public Safety | BK168: 169 | DZ168: 1316 | EA168: 1316 | EB168: 164 | EC168: Freehold Township, Monmouth County | ED168: 1316 | EE168: Freehold township | EF168: Monmouth
BG169: 170 | BH169: Number of Part-Time Employees | BI169: Public Works | BJ169: Number of Part-Time Employees_Public Works | BK169: 170 | DZ169: 2106 | EA169: 2106 | EB169: 165 | EC169: Frelinghuysen Township, Warren County | ED169: 2106 | EE169: Frelinghuysen township | EF169: Warren
BG170: 171 | BH170: Number of Part-Time Employees | BI170: Health and Human Services | BJ170: Number of Part-Time Employees_Health and Human Services | BK170: 171 | DZ170: 1011 | EA170: 1011 | EB170: 166 | EC170: Frenchtown Borough, Hunterdon County | ED170: 1011 | EE170: Frenchtown borough | EF170: Hunterdon
BG171: 172 | BH171: Number of Part-Time Employees | BI171: Parks and Recreation | BJ171: Number of Part-Time Employees_Parks and Recreation | BK171: 172 | DZ171: 0111 | EA171: 111 | EB171: 167 | EC171: Galloway Township, Atlantic County | ED171: 0111 | EE171: Galloway township | EF171: Atlantic
BG172: 173 | BH172: Number of Part-Time Employees | BI172: Education (including Library) | BJ172: Number of Part-Time Employees_Education (including Library) | BK172: 173 | DZ172: 0221 | EA172: 221 | EB172: 168 | EC172: Garfield City, Bergen County | ED172: 0221 | EE172: Garfield city | EF172: Bergen
BG173: 174 | BH173: Number of Part-Time Employees | BI173: Unclassified | BJ173: Number of Part-Time Employees_Unclassified | BK173: 174 | DZ173: 2006 | EA173: 2006 | EB173: 169 | EC173: Garwood Borough, Union County | ED173: 2006 | EE173: Garwood borough | EF173: Union
BG174: 175 | BH174: Number of Part-Time Employees | BI174: Utilities and Bulk Purchases | BJ174: Number of Part-Time Employees_Utilities and Bulk Purchases | BK174: 175 | DZ174: 0413 | EA174: 413 | EB174: 170 | EC174: Gibbsboro Borough, Camden County | ED174: 0413 | EE174: Gibbsboro borough | EF174: Camden
BG175: 176 | BH175: Number of Part-Time Employees | BI175: Landfill / Solid Waste Disposal | BJ175: Number of Part-Time Employees_Landfill / Solid Waste Disposal | BK175: 176 | DZ175: 0806 | EA175: 806 | EB175: 171 | EC175: Glassboro Borough, Gloucester County | ED175: 0806 | EE175: Glassboro borough | EF175: Gloucester
BG176: 177 | BH176: Number of Part-Time Employees | BI176: Contingency | BJ176: Number of Part-Time Employees_Contingency | BK176: 177 | DZ176: 1012 | EA176: 1012 | EB176: 172 | EC176: Glen Gardner Borough, Hunterdon County | ED176: 1012 | EE176: Glen Gardner borough | EF176: Hunterdon
BG177: 178 | BH177: Number of Part-Time Employees | BI177: Statutory Expenditures | BJ177: Number of Part-Time Employees_Statutory Expenditures | BK177: 178 | DZ177: 0708 | EA177: 708 | EB177: 173 | EC177: Glen Ridge Borough, Essex County | ED177: 0708 | EE177: Glen Ridge borough | EF177: Essex
BG178: 179 | BH178: Number of Part-Time Employees | BI178: Judgements | BJ178: Number of Part-Time Employees_Judgements | BK178: 179 | DZ178: 0222 | EA178: 222 | EB178: 174 | EC178: Glen Rock Borough, Bergen County | ED178: 0222 | EE178: Glen Rock borough | EF178: Bergen
BG179: 180 | BH179: Number of Part-Time Employees | BI179: Shared Services | BJ179: Number of Part-Time Employees_Shared Services | BK179: 180 | DZ179: 0414 | EA179: 414 | EB179: 175 | EC179: Gloucester City City, Camden County | ED179: 0414 | EE179: Gloucester City city | EF179: Camden
BG180: 181 | BH180: Number of Part-Time Employees | BI180: Court and Public Defender | BJ180: Number of Part-Time Employees_Court and Public Defender | BK180: 181 | DZ180: 0415 | EA180: 415 | EB180: 176 | EC180: Gloucester Township, Camden County | ED180: 0415 | EE180: Gloucester township | EF180: Camden
BG181: 182 | BH181: Number of Part-Time Employees | BI181: Capital | BJ181: Number of Part-Time Employees_Capital | BK181: 182 | DZ181: 1809 | EA181: 1809 | EB181: 177 | EC181: Green Brook Township, Somerset County | ED181: 1809 | EE181: Green Brook township | EF181: Somerset
BG182: 183 | BH182: Number of Part-Time Employees | BI182: Debt | BJ182: Number of Part-Time Employees_Debt | BK182: 183 | DZ182: 1908 | EA182: 1908 | EB182: 178 | EC182: Green Township, Sussex County | ED182: 1908 | EE182: Green township | EF182: Sussex
BG183: 184 | BH183: Number of Part-Time Employees | BI183: Deferred Charges | BJ183: Number of Part-Time Employees_Deferred Charges | BK183: 184 | DZ183: 0606 | EA183: 606 | EB183: 179 | EC183: Greenwich Township, Cumberland County | ED183: 0606 | EE183: Greenwich township | EF183: Cumberland
BG184: 185 | BH184: Number of Part-Time Employees | BI184: Debt - Type 1 School District | BJ184: Number of Part-Time Employees_Debt - Type 1 School District | BK184: 185 | DZ184: 0807 | EA184: 807 | EB184: 180 | EC184: Greenwich Township, Gloucester County | ED184: 0807 | EE184: Greenwich township | EF184: Gloucester
BG185: 186 | BH185: Number of Part-Time Employees | BI185: Reserve for Uncollected Taxes | BJ185: Number of Part-Time Employees_Reserve for Uncollected Taxes | BK185: 186 | DZ185: 2107 | EA185: 2107 | EB185: 181 | EC185: Greenwich Township, Warren County | ED185: 2107 | EE185: Greenwich township | EF185: Warren
BG186: 187 | BH186: Number of Part-Time Employees | BI186: Surplus General Budget | BJ186: Number of Part-Time Employees_Surplus General Budget | BK186: 187 | DZ186: 0903 | EA186: 903 | EB186: 182 | EC186: Guttenberg Town, Hudson County | ED186: 0903 | EE186: Guttenberg town | EF186: Hudson
BG187: 188 | BH187: Number of Part-Time Employees | BI187: Total Part-Time Employees | BJ187: Number of Part-Time Employees_Total Part-Time Employees | BK187: 188 | DZ187: 0223 | EA187: 223 | EB187: 183 | EC187: Hackensack City, Bergen County | ED187: 0223 | EE187: Hackensack city | EF187: Bergen
BG188: 189 | BH188: Total Personnel Costs | BI188: Total Full-Time Employees | BJ188: Total Personnel Costs_Total Full-Time Employees | BK188: 189 | DZ188: 2108 | EA188: 2108 | EB188: 184 | EC188: Hackettstown Town, Warren County | ED188: 2108 | EE188: Hackettstown town | EF188: Warren
BG189: 190 | BH189: Total Personnel Costs | BI189: Total Part-Time Employees | BJ189: Total Personnel Costs_Total Part-Time Employees | BK189: 190 | DZ189: 0418 | EA189: 418 | EB189: 185 | EC189: Haddon Heights Borough, Camden County | ED189: 0418 | EE189: Haddon Heights borough | EF189: Camden
BG190: 191 | BH190: Total Personnel Costs | BI190: Total Personnel Cost | BJ190: Total Personnel Costs_Total Personnel Cost | BK190: 191 | DZ190: 0416 | EA190: 416 | EB190: 186 | EC190: Haddon Township, Camden County | ED190: 0416 | EE190: Haddon township | EF190: Camden
BG191: 192 | BH191: Total Personnel Costs | BI191: Total Base Pay | BJ191: Total Personnel Costs_Total Base Pay | BK191: 192 | DZ191: 0417 | EA191: 417 | EB191: 187 | EC191: Haddonfield Borough, Camden County | ED191: 0417 | EE191: Haddonfield borough | EF191: Camden
BG192: 193 | BH192: Total Personnel Costs | BI192: Total Overtime and other Compensation | BJ192: Total Personnel Costs_Total Overtime and other Compensation | BK192: 193 | DZ192: 0316 | EA192: 316 | EB192: 188 | EC192: Hainesport Township, Burlington County | ED192: 0316 | EE192: Hainesport township | EF192: Burlington
BG193: 194 | BH193: Total Personnel Costs | BI193: Total Pension (Estimate) | BJ193: Total Personnel Costs_Total Pension (Estimate) | BK193: 194 | DZ193: 1603 | EA193: 1603 | EB193: 189 | EC193: Haledon Borough, Passaic County | ED193: 1603 | EE193: Haledon borough | EF193: Passaic
BG194: 195 | BH194: Total Personnel Costs | BI194: Total Health Benefits Net of Cost Share | BJ194: Total Personnel Costs_Total Health Benefits Net of Cost Share | BK194: 195 | DZ194: 1909 | EA194: 1909 | EB194: 190 | EC194: Hamburg Borough, Sussex County | ED194: 1909 | EE194: Hamburg borough | EF194: Sussex
BG195: 196 | BH195: Total Personnel Costs | BI195: Total Employment Taxes and Other Benefits | BJ195: Total Personnel Costs_Total Employment Taxes and Other Benefits | BK195: 196 | DZ195: 0112 | EA195: 112 | EB195: 191 | EC195: Hamilton Township, Atlantic County | ED195: 0112 | EE195: Hamilton township | EF195: Atlantic
BG196: 197 | BH196: Governing Body Personnel Costs | BI196: Gov. Body # of Full-Time Employees | BJ196: Governing Body Personnel Costs_Gov. Body # of Full-Time Employees | BK196: 197 | DZ196: 1103 | EA196: =VALUE(DZ196) -> 1103 | EB196: 192 | EC196: Hamilton Township, Mercer County | ED196: 1103 | EE196: Hamilton township | EF196: Mercer
BG197: 198 | BH197: Governing Body Personnel Costs | BI197: Gov. Body # of Part-Time Employees | BJ197: Governing Body Personnel Costs_Gov. Body # of Part-Time Employees | BK197: 198 | DZ197: 0113 | EA197: 113 | EB197: 193 | EC197: Hammonton Town, Atlantic County | ED197: 0113 | EE197: Hammonton town | EF197: Atlantic
BG198: 199 | BH198: Governing Body Personnel Costs | BI198: Gov. Body Total Personnel Cost | BJ198: Governing Body Personnel Costs_Gov. Body Total Personnel Cost | BK198: 199 | DZ198: 1013 | EA198: 1013 | EB198: =EB197+1 -> 194 | EC198: Hampton Borough, Hunterdon County | ED198: 1013 | EE198: Hampton borough | EF198: Hunterdon
BG199: =BG198+1 -> 200 | BH199: Governing Body Personnel Costs | BI199: Gov. Body Base Pay | BJ199: Governing Body Personnel Costs_Gov. Body Base Pay | BK199: =BK198+1 -> 200 | DZ199: 1910 | EA199: 1910 | EB199: 195 | EC199: Hampton Township, Sussex County | ED199: 1910 | EE199: Hampton township | EF199: Sussex
BG200: 201 | BH200: Governing Body Personnel Costs | BI200: Gov. Body Overtime and other Compensation | BJ200: Governing Body Personnel Costs_Gov. Body Overtime and other Compensation | BK200: 201 | DZ200: 1412 | EA200: 1412 | EB200: 196 | EC200: Hanover Township, Morris County | ED200: 1412 | EE200: Hanover township | EF200: Morris
BG201: 202 | BH201: Governing Body Personnel Costs | BI201: Gov. Body Pension (Estimate) | BJ201: Governing Body Personnel Costs_Gov. Body Pension (Estimate) | BK201: 202 | DZ201: 1413 | EA201: 1413 | EB201: 197 | EC201: Harding Township, Morris County | ED201: 1413 | EE201: Harding township | EF201: Morris
... 368 more rows

Sheet 2025 Summary
A2: Data Summary
M3: Tax Impact | S3: Revenues | BP3: Expenditures | EK3: Employees and Personnel Costs | IL3: Health Benefits by Employee Group | LC3: Debt | MW3: Long-Term Tax Exemptions/PILOTS | ND3: Prior Budget Year's Payments in Lieu of Tax (PILOT) - 5 Year Exemptions/Abatements | OG3: Accumulated Absence Liability | OL3: Structural Imbalances
F4: Status | I4: Population and Density | M4: Tax Collections and Delinquent Taxes | S4: =Year-1&" Total Realized Revenues (Actual)" -> 2024 Total Realized Revenues (Actual) | AI4: =Year&" Total Anticipated Revenues Current Year (Budgeted)" -> 2025 Total Anticipated Revenues Current Year (Budgeted) | AY4: =Year&" Total General Budget Revenues Current Year" -> 2025 Total General Budget Revenues Current Year | BP4: =Year-1&" Total Modified Appropriations by Service Type (Prior Year)" -> 2024 Total Modified Appropriations by Service Type (Prior Year) | CN4: =Year&" Total Appropriations by Service Type (Current Year)" -> 2025 Total Appropriations by Service Type (Current Year) | DL4: =Year&" General Budget Appropriations" -> 2025 General Budget Appropriations | EK4: Number of Full Time Employees | FI4: Number of Part-Time Employees | GG4: Total Personnel Costs | GO4: Governing Body Personnel Costs | GW4: Supervisory Staff Personnel Costs | HE4: Police Officer Personnel Costs | HM4: Firefighter (Non-Volunteer) Personnel Costs | HU4: Other Union Personnel Costs | IC4: Non-Union Personnel Costs | IL4: Health Plan Information | IO4: Active Employees - Number of Covered Members | IT4: Active Employees - Health Care Cost Per Employee | IX4: Active Employees - Total Health Care Cost | JE4: Elected Officials - Number of Covered Members | JJ4: Elected Officials - Health Care Cost Per Employee | JN4: Elected Officials - Total Health Care Cost | JU4: Retiree Number of Health Plan Covered Members | JZ4: Retiree Health Care Cost Per Employee | KD4: Total Retiree Health Care Cost | KK4: Number of Total Covered Members | KP4: Health Care Cost Per Covered Member | KV4: Total Health Care Cost | LC4: Gross Debt | LL4: Deductions | LM4: Net Debt | LX4: Debt Service | MP4: Credit Ratings | MW4: Tax Exemptions/PILOTS | ND4: Number of Parcels | NK4: PILOT Billing/Revenue | NR4: Assessed Value | NY4: ="Taxes if Billing in Full at "&Year-1&" Tax Rate" -> Taxes if Billing in Full at 2024 Tax Rate | OG4: Absences | OL4: Structural Imbalances
A5: Muni-code | B5: Muni-code | C5: Municipality | D5: County | E5: ID | F5: No UFB Available | G5: Sig. Data Missing | I5: Population (2024 Estimate) | J5: 2020 Land Area (sq. mi) | K5: Population Density | M5: % of Tax Collections used to Calculate RUT | N5: ="Total Tax Revenue, Collections CY "&Year-1 -> Total Tax Revenue, Collections CY 2024 | O5: ="Total Tax Levy, CY "&Year-1 -> Total Tax Levy, CY 2024 | P5: ="% of Taxes Collected, CY "&Year-1 -> % of Taxes Collected, CY 2024 | Q5: ="Delinquent Taxes - December 31, "&Year-1 -> Delinquent Taxes - December 31, 2024 | S5: Surplus | T5: Local Revenue | U5: State Aid (without offsetting appropriation) | V5: Uniform Construction Code Fees | W5: Shared Services Agreements | X5: Additional Revenue Offset by Appropriations | Y5: Public and Private Revenue | Z5: Other Special Items | AA5: Receipts from Delinquent Taxes | AB5: Local Tax for Municipal Purposes | AC5: Minimum Library Tax | AD5: Open Space Levy Tax | AE5: Arts and Cultural Levy Tax | AF5: Addition to Local District School Tax | AG5: Deficit General Budget | AH5: Total | AI5: Surplus | AJ5: Local Revenue | AK5: State Aid (without offsetting appropriation) | AL5: Uniform Construction Code Fees | AM5: Shared Services Agreements | AN5: Additional Revenue Offset by Appropriations | AO5: Public and Private Revenue | AP5: Other Special Items | AQ5: Receipts from Delinquent Taxes | AR5: Local Tax for Municipal Purposes | AS5: Minimum Library Tax | AT5: Open Space Levy Tax | AU5: Arts and Cultural Levy Tax | AV5: Addition to Local District School Tax | AW5: Deficit General Budget | AX5: Total | AY5: Surplus | AZ5: Local Revenue | BA5: State Aid (without offsetting appropriation) | BB5: Uniform Construction Code Fees | BC5: Shared Services Agreements | BD5: Additional Revenue Offset by Appropriations | BE5: Public and Private Revenue | BF5: Other Special Items | BG5: Receipts from Delinquent Taxes | BH5: Local Tax for Municipal Purposes | BI5: Minimum Library Tax | BJ5: Open Space Levy Tax | BK5: Arts and Cultural Levy Tax | BL5: Addition to Local District School Tax | BM5: Deficit General Budget | BN5: Total | BP5: General Government | BQ5: Land-Use Administration | BR5: Uniform Construction Code | BS5: Insurance | BT5: Public Safety | BU5: Public Works | BV5: Health and Human Services | BW5: Parks and Recreation | BX5: Education (including Library) | BY5: Unclassified | BZ5: Utilities and Bulk Purchases | CA5: Landfill / Solid Waste Disposal | CB5: Contingency | CC5: Statutory Expenditures | CD5: Judgements | CE5: Shared Services | CF5: Court and Public Defender | CG5: Capital | CH5: Debt | CI5: Deferred Charges | CJ5: Debt - Type 1 School District | CK5: Reserve for Uncollected Taxes | CL5: Surplus General Budget | CM5: TOTAL APPROPRIATION | CN5: General Government | CO5: Land-Use Administration | CP5: Uniform Construction Code | CQ5: Insurance | CR5: Public Safety | CS5: Public Works | CT5: Health and Human Services | CU5: Parks and Recreation | CV5: Education (including Library) | CW5: Unclassified | CX5: Utilities and Bulk Purchases | CY5: Landfill / Solid Waste Disposal | CZ5: Contingency | DA5: Statutory Expenditures | DB5: Judgements | DC5: Shared Services | DD5: Court and Public Defender | DE5: Capital | DF5: Debt | DG5: Deferred Charges | DH5: Debt - Type 1 School District | DI5: Reserve for Uncollected Taxes | DJ5: Surplus General Budget | DK5: TOTAL APPROPRIATION | DL5: General Government | DM5: Land-Use Administration | DN5: Uniform Construction Code | DO5: Insurance | DP5: Public Safety | DQ5: Public Works | DR5: Health and Human Services | DS5: Parks and Recreation | DT5: Education (including Library) | DU5: Unclassified | DV5: Utilities and Bulk Purchases | DW5: Landfill / Solid Waste Disposal | DX5: Contingency | DY5: Statutory Expenditures | DZ5: Judgements | EA5: Shared Services | EB5: Court and Public Defender | EC5: Capital | ED5: Debt | EE5: Deferred Charges | EF5: Debt - Type 1 School District | EG5: Reserve for Uncollected Taxes | EH5: Surplus General Budget | EI5: Total General Budget | EK5: General Government | EL5: Land-Use Administration | EM5: Uniform Construction Code | EN5: Insurance | EO5: Public Safety | EP5: Public Works | EQ5: Health and Human Services | ER5: Parks and Recreation | ES5: Education (including Library) | ET5: Unclassified | EU5: Utilities and Bulk Purchases | EV5: Landfill / Solid Waste Disposal | EW5: Contingency | EX5: Statutory Expenditures | EY5: Judgements | EZ5: Shared Services | FA5: Court and Public Defender | FB5: Capital | FC5: Debt | FD5: Deferred Charges | FE5: Debt - Type 1 School District | FF5: Reserve for Uncollected Taxes | FG5: Surplus General Budget | FH5: TOTAL FT Emp. | FI5: General Government | FJ5: Land-Use Administration | FK5: Uniform Construction Code | FL5: Insurance | FM5: Public Safety | FN5: Public Works | FO5: Health and Human Services | FP5: Parks and Recreation | FQ5: Education (including Library) | FR5: Unclassified | FS5: Utilities and Bulk Purchases | FT5: Landfill / Solid Waste Disposal | FU5: Contingency | FV5: Statutory Expenditures | FW5: Judgements | FX5: Shared Services | FY5: Court and Public Defender | FZ5: Capital | GA5: Debt | GB5: Deferred Charges | GC5: Debt - Type 1 School District | GD5: Reserve for Uncollected Taxes | GE5: Surplus General Budget | GF5: TOTAL PT Emp. | GG5: Total Full-Time Employees | GH5: Total Part-Time Employees | GI5: Total Personnel Cost | GJ5: Total Base Pay | GK5: Total Overtime and other Compensation | GL5: Total Pension (Estimate) | GM5: Total Health Benefits Net of Cost Share | GN5: Total Employment Taxes and Other Benefits | GO5: Gov. Body # of Full-Time Employees | GP5: Gov. Body # of Part-Time Employees | GQ5: Gov. Body Total Personnel Cost | GR5: Gov. Body Base Pay | GS5: Gov. Body Overtime and other Compensation | GT5: Gov. Body Pension (Estimate) | GU5: Gov. Body Health Benefits Net of Cost Share | GV5: Gov. Body Employment Taxes and Other Benefits | GW5: Sup. Staff # of Full-Time Employees | GX5: Sup. Staff # of Part-Time Employees | GY5: Sup. Staff Total Personnel Cost | GZ5: Sup. Staff Base Pay | HA5: Sup. Staff Overtime and other Compensation | HB5: Sup. Staff Pension (Estimate) | HC5: Sup. Staff Health Benefits Net of Cost Share | HD5: Sup. Staff Employment Taxes and Other Benefits | HE5: Pol. Off. # of Full-Time Employees | HF5: Pol. Off. # of Part-Time Employees | HG5: Pol. Off. Total Personnel Cost | HH5: Pol. Off. Base Pay | HI5: Pol. Off. Overtime and other Compensation | HJ5: Pol. Off. Pension (Estimate) | HK5: Pol. Off. Health Benefits Net of Cost Share | HL5: Pol. Off. Employment Taxes and Other Benefits | HM5: FF # of Full-Time Employees | HN5: FF # of Part-Time Employees | HO5: FF Total Personnel Cost | HP5: FF Base Pay | HQ5: FF Overtime and other Compensation | HR5: FF Pension (Estimate) | HS5: FF Health Benefits Net of Cost Share | HT5: FF Employment Taxes and Other Benefits | HU5: Oth. Union # of Full-Time Employees | HV5: Oth. Union # of Part-Time Employees | HW5: Oth. Union Total Personnel Cost | HX5: Oth. Union Base Pay | HY5: Oth. Union Overtime and other Compensation | HZ5: Oth. Union Pension (Estimate) | IA5: Oth. Union Health Benefits Net of Cost Share | IB5: Oth. Union Employment Taxes and Other Benefits | IC5: Non-Union # of Full-Time Employees | ID5: Non-Union # of Part-Time Employees | IE5: Non-Union Total Personnel Cost | IF5: Non-Union Base Pay | IG5: Non-Union Overtime and other Compensation | IH5: Non-Union Pension (Estimate) | II5: Non-Union Health Benefits Net of Cost Share | IJ5: Non-Union Employment Taxes and Other Benefits | IL5: Employees Civil Service? | IM5: Use State Health Benefits Plan? | IN5: Does State Plan Cover Rx? | IO5: Single Coverage | IP5: Parent & Child | IQ5: Employee & Spouse (or Partner) | IR5: Family | IS5: Subtotal | IT5: Single Coverage | IU5: Parent & Child | IV5: Employee & Spouse (or Partner) | IW5: Family | IX5: Single Coverage | IY5: Parent & Child | IZ5: Employee & Spouse (or Partner) | JA5: Family | JB5: Total Employee Cost Sharing Contribution (enter as negative - ) | JC5: Avg. Employee Cost Sharing Contribution % | JD5: Total Employer Cost | JE5: Single Coverage | JF5: Parent & Child | JG5: Employee & Spouse (or Partner) | JH5: Family | JI5: Subtotal | JJ5: Single Coverage | JK5: Parent & Child | JL5: Employee & Spouse (or Partner) | JM5: Family | JN5: Single Coverage | JO5: Parent & Child | JP5: Employee & Spouse (or Partner) | JQ5: Family | JR5: Total Employee Cost Sharing Contribution (enter as negative - ) | JS5: Avg. Employee Cost Sharing Contribution % | JT5: Total Employer Cost | JU5: Single Coverage | JV5: Parent & Child | JW5: Employee & Spouse (or Partner) | JX5: Family | JY5: Subtotal | JZ5: Single Coverage | KA5: Parent & Child | KB5: Employee & Spouse (or Partner) | KC5: Family | KD5: Single Coverage | KE5: Parent & Child | KF5: Employee & Spouse (or Partner) | KG5: Family | KH5: Total Employee Cost Sharing Contribution (enter as negative - ) | KI5: Avg. Employee Cost Sharing Contribution % | KJ5: Total Employer Cost | KK5: Single Coverage | KL5: Parent & Child | KM5: Employee & Spouse (or Partner) | KN5: Family | KO5: Subtotal | KP5: Single Coverage | KQ5: Parent & Child | KR5: Employee & Spouse (or Partner) | KS5: Family | KT5: Employee Cost Sharing Contribution | KU5: Subtotal | KV5: Single Coverage | KW5: Parent & Child | KX5: Employee & Spouse (or Partner) | KY5: Family | KZ5: Total Employee Cost Sharing Contribution (enter as negative - ) | LA5: Avg. Employee Cost Sharing Contribution % | LB5: Total Employer Cost | LC5: Local School Debt | LD5: Regional School Debt | LE5: Utility Fund Debt | LF5: Debt Authorized | LG5: Notes Outstanding | LH5: Bonds Outstanding | LI5: Loans and Other Debt | LJ5: Gross Debt | LK5: Per Capita Gross Debt | LL5: Deductions | LM5: Local School Debt | LN5: Regional School Debt | LO5: Utility Fund Debt | LP5: Debt Authorized | LQ5: Notes Outstanding | LR5: Bonds Outstanding | LS5: Loans and Other Debt | LT5: Net Debt | LU5: Per Capita Net Debt | LV5: 3 Yr. Average Property Valuation | LW5: Net Debt as % of 3 Year Avg Property Valuation | LX5: Utility Fund - Principal | LY5: Utility Fund - Interest | LZ5: Bond Anticipation Notes - Principal | MA5: Bond Anticipation Notes - Interest | MB5: Bonds - Principal | MC5: Bonds - Interest | MD5: Loans & Other Debt - Principal | ME5: Loans & Other Debt - Interest | MF5: Total Principal | MG5: Total Interest | MH5: CY Budget Debt Pmt | MI5: =Year+1&" Budget Debt Pmt" -> 2026 Budget Debt Pmt | MJ5: =Year+2&" Budget Debt Pmt" -> 2027 Budget Debt Pmt | MK5: Future Year Budget Debt Pmt | ML5: Total Guarantees - Governmental | MM5: Total Guarantees - Other | MN5: Total Capital/Equipment Leases | MO5: Total Other | MP5: Moody Rating | MQ5: Moody Rating Year | MR5: S&P Rating | MS5: S&P Rating Year | MT5: Fitch Rating | MU5: Fitch Rating Year | MW5: PY PILOT Billing | MX5: PY Exempt AV | MY5: PY Taxes if Billed at Full Rate | MZ5: PY PILOT Billing % of Taxes if Billed | NA5: PY Total AV | NB5: PY exempt % of AV | ND5: Commercial/Industrial Exemption | NE5: Dwelling Exemption | NF5: Dwelling Abatement | NG5: New Dwelling/Conversion Exemption | NH5: New Dwelling/Conversion Abatement | NI5: Multiple Dwelling Exemption | NJ5: Multiple Dwelling Abatement | NK5: Commercial/Industrial Exemption | NL5: Dwelling Exemption | NM5: Dwelling Abatement | NN5: New Dwelling/Conversion Exemption | NO5: New Dwelling/Conversion Abatement | NP5: Multiple Dwelling Exemption | NQ5: Multiple Dwelling Abatement | NR5: Commercial/Industrial Exemption | NS5: Dwelling Exemption | NT5: Dwelling Abatement | NU5: New Dwelling/Conversion Exemption | NV5: New Dwelling/Conversion Abatement | NW5: Multiple Dwelling Exemption | NX5: Multiple Dwelling Abatement | NY5: Commercial/Industrial Exemption | NZ5: Dwelling Exemption | OA5: Dwelling Abatement | OB5: New Dwelling/Conversion Exemption | OC5: New Dwelling/Conversion Abatement | OD5: Multiple Dwelling Exemption | OE5: Multiple Dwelling Abatement | OG5: Gross Days of Accumulated Absence | OH5: Dollar Value of Compensated Absences | OI5: ="Total Funds Reserved as of end of "&Year-1 -> Total Funds Reserved as of end of 2024 | OJ5: ="Total Funds Appropriated in "&Year -> Total Funds Appropriated in 2025 | OL5: Revenues at Risk | OM5: Non-recurring Appropriation Reductions | ON5: Future Year Appropriation Increases | OO5: Structural Imbalance Offsets | OP5: Total Imbalances
A6: 0101 | B6: =VALUE(A6) -> 101 | C6: Absecon city | D6: Atlantic | E6: =C6&D6 -> Absecon cityAtlantic | F6: =IF(AND(M6=0,SUM(CN6:DJ6)=0,SUM(AI6:AW6)=0),"X","") ->  | I6: 9249 | J6: 5.468230579 | K6: =I6/J6 -> 1691.406364 | M6: 0.9825 | N6: 24181415.2 | O6: 24392789.99 | P6: 0.9913345382 | Q6: 189298.11 | S6: 2165000 | T6: 2582061.34 | U6: 845494.09 | V6: 158025 | W6: 0 | X6: 0 | Y6: 2068308.7 | Z6: 668626.55 | AA6: 143254.65 | AB6: 8096088.61 | AC6: 0 | AD6: 0 | AE6: 0 | AF6: 0 | AG6: 0 | AH6: 16726858.94 | AI6: 1673000 | AJ6: 2506427.92 | AK6: 766798 | AL6: 155000 | AM6: 0 | AN6: 0 | AO6: 2800 | AP6: 515250 | AQ6: 160000 | AR6: 8516293.56 | AS6: 0 | AT6: 0 | AU6: 0 | AV6: 0 | AW6: 0 | AX6: 14295569.48 | AY6: 1500000 | AZ6: 506427.92 | BA6: 766798 | BB6: 155000 | BC6: 0 | BD6: 0 | BE6: 2800 | BF6: 515250 | BG6: 160000 | BH6: 8516293.56 | BI6: 0 | BJ6: 0 | BK6: 0 | BL6: 0 | BM6: 0 | BN6: 12122569.48 | BP6: 1089400 | BQ6: 29000 | BR6: 160000 | BS6: 1106000 | BT6: 3729500 | BU6: 550000 | BV6: 0 | BW6: 91500 | BX6: 0 | BY6: 2068308.7 | BZ6: 630000 | CA6: 863000 | CB6: 2000 | CC6: 1373738 | CD6: 0 | CE6: 440000 | CF6: 174200 | CG6: 50000 | CH6: 1116104.89 | CI6: 0 | CJ6: 0 | CK6: 551931.46 | CL6: 0 | CM6: 14024683.05 | CN6: 2909500 | CO6: 44800 | CP6: 204000 | CQ6: 1160550 | CR6: 3797250 | CS6: 497000 | CT6: 0 | CU6: 91600 | CV6: 0 | CW6: 2800 | CX6: 640000 | CY6: 894000 | CZ6: 0 | DA6: 1504360 | DB6: 0 | DC6: 523558 | DD6: 149700 | DE6: 100000 | DF6: 1246643.78 | DG6: 0 | DH6: 0 | DI6: 445807.7 | DJ6: 84000 | DK6: 14295569.48 | DL6: 950500 | DM6: 44800 | DN6: 204000 | DO6: 1160550 | DP6: 3797250 | DQ6: 497000 | DR6: 0 | DS6: 91600 | DT6: 0 | DU6: 0 | DV6: 640000 | DW6: 894000 | DX6: 0 | DY6: 1424360 | DZ6: 0 | EA6: 523558 | EB6: 149700 | EC6: 50000 | ED6: 1246643.78 | EE6: 0 | EF6: 0 | EG6: 445807.7 | EH6: 0 | EI6: 12119769.48 | EK6: 0 | EL6: 0 | EM6: 0 | EN6: 0 | EO6: 0 | EP6: 0 | EQ6: 0 | ER6: 0 | ES6: 0 | ET6: 0 | EU6: 0 | EV6: 0 | EW6: 0 | EX6: 0 | EY6: 0 | EZ6: 0 | FA6: 0 | FB6: 0 | FC6: 0 | FD6: 0 | FE6: 0 | FF6: 0 | FG6: 0 | FH6: 0 | FI6: 0 | FJ6: 0 | FK6: 0 | FL6: 0 | FM6: 0 | FN6: 0 | FO6: 0 | FP6: 0 | FQ6: 0 | FR6: 0 | FS6: 0 | FT6: 0 | FU6: 0 | FV6: 0 | FW6: 0 | FX6: 0 | FY6: 0 | FZ6: 0 | GA6: 0 | GB6: 0 | GC6: 0 | GD6: 0 | GE6: 0 | GF6: 0 | GG6: 48 | GH6: 29 | GI6: 6341250.01 | GJ6: 4052400 | GK6: 205000 | GL6: 1106360 | GM6: 626957.41 | GN6: 350532.6 | GO6: 0 | GP6: 8 | GQ6: 85510.3 | GR6: 77500 | GS6: 0 | GT6: 1306.55 | GU6: 0 | GV6: 6703.75 | GW6: 5 | GX6: 1 | GY6: 477035.8368 | GZ6: 342743 | HA6: 0 | HB6: 58643.3273 | HC6: 46002.24 | HD6: 29647.2695 | HE6: 32 | HF6: 2 | HG6: 4690932.079 | HH6: 2910984.5 | HI6: 203000 | HJ6: 885818 | HK6: 439329.42 | HL6: 251800.1592 | HM6: 0 | HN6: 0 | HO6: 0 | HP6: 0 | HQ6: 0 | HR6: 0 | HS6: 0 | HT6: 0 | HU6: 6 | HV6: 1 | HW6: 346004.6251 | HX6: 261142.81 | HY6: 0 | HZ6: 38787.48199 | IA6: 23485.48 | IB6: 22588.85306 | IC6: 5 | ID6: 17 | IE6: 741767.1689 | IF6: 460029.69 | IG6: 2000 | IH6: 121804.6407 | II6: 118140.27 | IJ6: 39792.56818 | IL6: No | IM6: No | IN6: No | IO6: 8 | IP6: 4 | IQ6: 6 | IR6: 15 | IS6: 33 | IT6: 13220 | IU6: 26196 | IV6: 26316 | IW6: 37176 | IX6: 105760 | IY6: 104784 | IZ6: 157896 | JA6: 557640 | JB6: -306000 | JC6: 0.3304250173 | JD6: 620080 | JE6: 0 | JF6: 0 | JG6: 0 | JH6: 0 | JI6: 0 | JJ6: 0 | JK6: 0 | JL6: 0 | JM6: 0 | JN6: 0 | JO6: 0 | JP6: 0 | JQ6: 0 | JR6: 0 | JS6: -- | JT6: 0 | JU6: 0 | JV6: 0 | JW6: 0 | JX6: 0 | JY6: 0 | JZ6: 0 | KA6: 0 | KB6: 0 | KC6: 0 | KD6: 0 | KE6: 0 | KF6: 0 | KG6: 0 | KH6: 0 | KI6: -- | KJ6: 0 | KK6: 8 | KL6: 4 | KM6: 6 | KN6: 15 | KO6: 33 | KP6: 13220 | KQ6: 26196 | KR6: 26316 | KS6: 37176 | KT6: -9272.727273 | KU6: 18790.30303 | KV6: 105760 | KW6: 104784 | KX6: 157896 | KY6: 557640 | KZ6: -306000 | LA6: 0.3304250173 | LB6: 620080 | LC6: 2390000 | LD6: 0 | LE6: 0 | LF6: 0 | LG6: 0 | LH6: 16285000 | LI6: 0 | LJ6: 18675000 | LK6: 2043.88749 | LL6: 2390000 | LM6: 0 | LN6: 0 | LO6: 0 | LP6: 0 | LQ6: 0 | LR6: 16285000 | LS6: 0 | LT6: 16285000 | LU6: 1782.31367 | LV6: =VLOOKUP(A6,[5]Data!$A$5:$CK$569,89,FALSE) -> 955272951.7 | LW6: =LT6/LV6 -> 0.01704748362 | LX6: 0 | LY6: 0 | LZ6: 0 | MA6: 0 | MB6: 785000 | MC6: 461643.78 | MD6: 0 | ME6: 0 | MF6: 785000 | MG6: 461643.78 | MH6: 1246643.78 | MI6: 1285243.78 | MJ6: 1286043.78 | MK6: 15284650.38 | ML6: 0 | MM6: 0 | MN6: 0 | MO6: 0 | MP6: Aa3 | MQ6: 2023 | MR6: A+ | MS6: 2009 | MT6: -- | MU6: -- | MW6: 0 | MX6: 0 | MY6: 135530.2 | MZ6: 0 | NA6: 795811200 | NB6: 0 | ND6: 3 | NE6: 0 | NF6: 0 | NG6: 0 | NH6: 0 | NI6: 1 | NJ6: 0 | NK6: 97408.09 | NL6: 0 | NM6: 0 | NN6: 0 | NO6: 0 | NP6: 38122.11 | NQ6: 0 | NR6: 3490500 | NS6: 0 | NT6: 0 | NU6: 0 | NV6: 0 | NW6: 6472700 | NX6: 0 | NY6: 116792.14 | NZ6: 0 | OA6: 0 | OB6: 0 | OC6: 0 | OD6: 216576.54 | OE6: 0 | OG6: 2908.04 | OH6: 0 | OI6: 0 | OJ6: 0 | OL6: 0 | OM6: 0 | ON6: 0 | OO6: 0 | OP6: 0
A7: 0102 | B7: =VALUE(A7) -> 102 | C7: Atlantic City | D7: Atlantic | E7: Atlantic CityAtlantic | F7: =IF(AND(M7=0,SUM(CN7:DJ7)=0,SUM(AI7:AW7)=0),"X","") ->  | I7: 38959 | J7: 10.76046737 | K7: =I7/J7 -> 3620.567644 | M7: 0.952 | N7: 82453247.16 | O7: 84037357 | P7: 0.9811499326 | Q7: 969221.8 | S7: 33000000 | T7: 144481672.7 | U7: 52527332.03 | V7: 2119894 | W7: 0 | X7: 0 | Y7: 54668050.67 | Z7: 2798347.33 | AA7: 432252.54 | AB7: 38106854.18 | AC7: 1149353.86 | AD7: 0 | AE7: 0 | AF7: 0 | AG7: 0 | AH7: 329283757.3 | AI7: 28000000 | AJ7: 142303955.5 | AK7: 48002974 | AL7: 1800000 | AM7: 0 | AN7: 0 | AO7: 21671848.59 | AP7: 2438250 | AQ7: 400000 | AR7: 34003844.32 | AS7: 1234278.58 | AT7: 0 | AU7: 0 | AV7: 0 | AW7: 0 | AX7: 279855151 | AY7: 28000000 | AZ7: 142303955.5 | BA7: 48002974 | BB7: 1800000 | BC7: 0 | BD7: 0 | BE7: 21671848.59 | BF7: 2438250 | BG7: 400000 | BH7: 34003844.32 | BI7: 1234278.58 | BJ7: 0 | BK7: 0 | BL7: 0 | BM7: 0 | BN7: 279855151 | BP7: 13679344 | BQ7: 1062540 | BR7: 4090707 | BS7: 50173884 | BT7: 66792443 | BU7: 13557830 | BV7: 2930728 | BW7: 4988251 | BX7: 1653119 | BY7: 100 | BZ7: 8003500 | CA7: 0 | CB7: 0 | CC7: 23266457.94 | CD7: 0 | CE7: 0 | CF7: 1587948 | CG7: 14657000 | CH7: 44275873.46 | CI7: 0 | CJ7: 0 | CK7: 4016714.62 | CL7: 0 | CM7: 254736440 | CN7: 14316574 | CO7: 2260121 | CP7: 4399799 | CQ7: 49939972 | CR7: 80169760.59 | CS7: 24588590 | CT7: 2823841 | CU7: 8489543 | CV7: 1653119 | CW7: 100 | CX7: 7975000 | CY7: 0 | CZ7: 0 | DA7: 27400841 | DB7: 0 | DC7: 0 | DD7: 1902905 | DE7: 0 | DF7: 49929955.5 | DG7: 0 | DH7: 0 | DI7: 4005029.9 | DJ7: 0 | DK7: 279855151 | DL7: 14016574 | DM7: 1385122 | DN7: 4399799 | DO7: 49939972 | DP7: 70955270 | DQ7: 15066731 | DR7: 2763341 | DS7: 6489543 | DT7: 1653119 | DU7: 100 | DV7: 7975000 | DW7: 0 | DX7: 0 | DY7: 27400841 | DZ7: 0 | EA7: 0 | EB7: 1902905 | EC7: 0 | ED7: 49929955.5 | EE7: 0 | EF7: 0 | EG7: 4005029.9 | EH7: 0 | EI7: 257883302.4 | EK7: 93 | EL7: 11 | EM7: 53 | EN7: 0 | EO7: 796 | EP7: 126 | EQ7: 31 | ER7: 102 | ES7: 0 | ET7: 0 | EU7: 0 | EV7: 0 | EW7: 0 | EX7: 0 | EY7: 0 | EZ7: 0 | FA7: 25 | FB7: 0 | FC7: 0 | FD7: 0 | FE7: 0 | FF7: 0 | FG7: 0 | FH7: 1237 | FI7: 11 | FJ7: 1 | FK7: 5 | FL7: 0 | FM7: 71 | FN7: 29 | FO7: 1 | FP7: 23 | FQ7: 0 | FR7: 0 | FS7: 0 | FT7: 0 | FU7: 0 | FV7: 0 | FW7: 0 | FX7: 0 | FY7: 1 | FZ7: 0 | GA7: 0 | GB7: 0 | GC7: 0 | GD7: 0 | GE7: 0 | GF7: 142 | GG7: 1237 | GH7: 142 | GI7: 152680783.1 | GJ7: 88209687 | GK7: 6212214 | GL7: 23700841 | GM7: 27810000 | GN7: 6748041.056 | GO7: 1 | GP7: 9 | GQ7: 828590.4877 | GR7: 491947.98 | GS7: 0 | GT7: 79166.58999 | GU7: 219841.8972 | GV7: 37634.02047 | GW7: 135 | GX7: 0 | GY7: 11807781.73 | GZ7: 7166156.2 | HA7: 56800 | HB7: 1068748.965 | HC7: 2967865.613 | HD7: 548210.9493 | HE7: 328 | HF7: 25 | HG7: 54940123.6 | HH7: 31540402 | HI7: 2645000 | HJ7: 11131066.62 | HK7: 7210814.229 | HL7: 2412840.753 | HM7: 198 | HN7: 0 | HO7: 38031890.57 | HP7: 22758238.38 | HQ7: 2460414 | HR7: 6719363.384 | HS7: 4352869.565 | HT7: 1741005.236 | HU7: 575 | HV7: 19 | HW7: 46372671.68 | HX7: 25602942.44 | HY7: 1050000 | HZ7: 4702495.445 | IA7: 13058608.7 | IB7: 1958625.097 | IC7: 0 | ID7: 89 | IE7: 699725 | IF7: 650000 | IG7: 0 | IH7: 0 | II7: 0 | IJ7: 49725 | IL7: Yes | IM7: No | IN7: No | IO7: 362 | IP7: 224 | IQ7: 92 | IR7: 250 | IS7: 928 | IT7: 13269 | IU7: 24316.68 | IV7: 25488 | IW7: 36535.69 | IX7: 4803378 | IY7: 5446936.32 | IZ7: 2344896 | JA7: 9133922.5 | JB7: -4972979.28 | JC7: 0.2288622984 | JD7: 16756153.54 | JE7: 0 | JF7: 0 | JG7: 0 | JH7: 2 | JI7: 2 | JJ7: 0 | JK7: 0 | JL7: 0 | JM7: 36535.69 | JN7: 0 | JO7: 0 | JP7: 0 | JQ7: 73071.38 | JR7: -16353.22 | JS7: 0.2237978809 | JT7: 56718.16 | JU7: 144 | JV7: 73 | JW7: 76 | JX7: 105 | JY7: 398 | JZ7: 13269 | KA7: 24316.68 | KB7: 25488 | KC7: 36535.69 | KD7: 1910736 | KE7: 1775117.64 | KF7: 1937088 | KG7: 3836247.45 | KH7: -2711789.98 | KI7: 0.2866831347 | KJ7: 6747399.11 | KK7: 506 | KL7: 297 | KM7: 168 | KN7: 357 | KO7: 1328 | KP7: 13269 | KQ7: 24316.68 | KR7: 25488 | KS7: 36535.69 | KT7: -5799.038012 | KU7: 17741.16778 | KV7: 6714114 | KW7: 7222053.96 | KX7: 4281984 | KY7: 13043241.33 | KZ7: -7701122.48 | LA7: 0.2463461052 | LB7: 23560270.81 | LC7: 43558000 | LD7: 0 | LE7: 1480000 | LF7: 0 | LG7: 0 | LH7: 240615000 | LI7: 0 | LJ7: 285653000 | LK7: 7420.136634 | LL7: 43558000 | LM7: 0 | LN7: 0 | LO7: 1480000 | LP7: 0 | LQ7: 0 | LR7: 240615000 | LS7: 0 | LT7: 242095000 | LU7: 6288.671845 | LV7: =VLOOKUP(A7,[5]Data!$A$5:$CK$569,89,FALSE) -> 3445913284 | LW7: =LT7/LV7 -> 0.07025568551 | LX7: 0 | LY7: 0 | LZ7: 7500000 | MA7: 600000 | MB7: 30300000 | MC7: 11529955.5 | MD7: 0 | ME7: 0 | MF7: 37800000 | MG7: 12129955.5 | MH7: 49929955.5 | MI7: 35923600 | MJ7: 22322525 | MK7: 400673723.8 | ML7: 0 | MM7: 0 | MN7: 0 | MO7: 0 | MP7: Ba1/Positive | MQ7: 2024 | MR7: BB+/Positive | MS7: 2024 | MT7: -- | MU7: -- | MW7: 0 | MX7: 0 | MY7: 4494000 | MZ7: 0 | NA7: 7642086100 | NB7: 0 | ND7: 0 | NE7: 13 | NF7: 8 | NG7: 32 | NH7: 0 | NI7: 1 | NJ7: 0 | NK7: 0 | NL7: 0 | NM7: 0 | NN7: 0 | NO7: 0 | NP7: 0 | NQ7: 0 | NR7: 0 | NS7: 775000 | NT7: 60000 | NU7: 2932990 | NV7: 0 | NW7: 75000 | NX7: 0 | NY7: 0 | NZ7: 27628.75 | OA7: 2139 | OB7: 104561.0935 | OC7: 0 | OD7: 0 | OE7: 0 | OG7: 51271.2631 | OH7: 0 | OI7: 0 | OJ7: 0 | OL7: 0 | OM7: 0 | ON7: 0 | OO7: 0 | OP7: 0
A8: 0103 | B8: 103 | C8: Brigantine city | D8: Atlantic | E8: Brigantine cityAtlantic | F8: =IF(AND(M8=0,SUM(CN8:DJ8)=0,SUM(AI8:AW8)=0),"X","") ->  | I8: 7697 | J8: 6.522375912 | K8: 1180.091443 | M8: 0.978 | N8: 57161349.99 | O8: 57529800.48 | P8: 0.9935954847 | Q8: 350969.32 | S8: 3425000 | T8: 3960246.46 | U8: 905213.03 | V8: 566923 | W8: 0 | X8: 2125843.16 | Y8: 308996.75 | Z8: 0 | AA8: 328884.51 | AB8: 25233666.7 | AC8: 0 | AD8: 0 | AE8: 0 | AF8: 0 | AG8: 0 | AH8: 36854773.61 | AI8: 5510000 | AJ8: 10155265 | AK8: 834139 | AL8: 450000 | AM8: 0 | AN8: 1845000 | AO8: 20883 | AP8: 0 | AQ8: 255469.03 | AR8: 26556936.45 | AS8: 0 | AT8: 0 | AU8: 0 | AV8: 0 | AW8: 0 | AX8: 45627692.48 | AY8: 4070000 | AZ8: 3146100 | BA8: 834139 | BB8: 450000 | BC8: 0 | BD8: 1845000 | BE8: 20883 | BF8: 0 | BG8: 255469.03 | BH8: 26556936.45 | BI8: 0 | BJ8: 0 | BK8: 0 | BL8: 0 | BM8: 0 | BN8: 37178527.48 | BP8: 1721950 | BQ8: 51000 | BR8: 427480 | BS8: 3286217 | BT8: 9497300 | BU8: 4801116 | BV8: 18500 | BW8: 1690550 | BX8: 0 | BY8: 175000 | BZ8: 1059000 | CA8: 0 | CB8: 500 | CC8: 4147301 | CD8: 0 | CE8: 500 | CF8: 179950 | CG8: 860000 | CH8: 362757.5 | CI8: 0 | CJ8: 535600 | CK8: 1446140.67 | CL8: 0 | CM8: 30260862.17 | CN8: 1954600 | CO8: 52060 | CP8: 472300 | CQ8: 3328543 | CR8: 11788630 | CS8: 9446040 | CT8: 19000 | CU8: 1825991.5 | CV8: 10628.85 | CW8: 175000 | CX8: 1136000 | CY8: 0 | CZ8: 500 | DA8: 4303491 | DB8: 0 | DC8: 500 | DD8: 221700 | DE8: 860000 | DF8: 7102852.73 | DG8: 271603.03 | DH8: 1150000 | DI8: 1508252.6 | DJ8: 0 | DK8: 45627692.71 | DL8: 1954600 | DM8: 52060 | DN8: 472300 | DO8: 3328543 | DP8: 10322250 | DQ8: 5330840 | DR8: 19000 | DS8: 1825991.5 | DT8: 0 | DU8: 175000 | DV8: 1136000 | DW8: 0 | DX8: 500 | DY8: 4303491 | DZ8: 0 | EA8: 500 | EB8: 221700 | EC8: 860000 | ED8: 4218887.5 | EE8: 271603.03 | EF8: 1150000 | EG8: 1508252.6 | EH8: 0 | EI8: 37151518.63 | EK8: 20 | EL8: 0 | EM8: 4 | EN8: 0 | EO8: 85 | EP8: 25 | EQ8: 0 | ER8: 3 | ES8: 0 | ET8: 0 | EU8: 0 | EV8: 0 | EW8: 0 | EX8: 0 | EY8: 0 | EZ8: 0 | FA8: 2 | FB8: 0 | FC8: 0 | FD8: 0 | FE8: 0 | FF8: 0 | FG8: 0 | FH8: 139 | FI8: 10 | FJ8: 1 | FK8: 5 | FL8: 0 | FM8: 27 | FN8: 6 | FO8: 2 | FP8: 140 | FQ8: 0 | FR8: 0 | FS8: 0 | FT8: 0 | FU8: 0 | FV8: 0 | FW8: 0 | FX8: 0 | FY8: 1 | FZ8: 0 | GA8: 0 | GB8: 0 | GC8: 0 | GD8: 0 | GE8: 0 | GF8: 192 | GG8: 139 | GH8: 192 | GI8: 21147764.74 | GJ8: 13450887.22 | GK8: 1638190.78 | GL8: 2878186.74 | GM8: 2015000 | GN8: 1165500 | GO8: 0 | GP8: 7 | GQ8: 69031 | GR8: 63000 | GS8: 0 | GT8: 1211 | GU8: 0 | GV8: 4820 | GW8: 12 | GX8: 16 | GY8: 1769917 | GZ8: 1299600 | HA8: 15000 | HB8: 178772 | HC8: 175000 | HD8: 101545 | HE8: 35 | HF8: 0 | HG8: 5418843 | HH8: 3335000 | HI8: 435000 | HJ8: 987632 | HK8: 370000 | HL8: 291211 | HM8: 36 | HN8: 0 | HO8: 6318511.63 | HP8: 3549871 | HQ8: 800464 | HR8: 1167136.63 | HS8: 465000 | HT8: 336040 | HU8: 54 | HV8: 88 | HW8: 6388301.11 | HX8: 4166723.22 | HY8: 387726.78 | HZ8: 522045.11 | IA8: 960000 | IB8: 351806 | IC8: 2 | ID8: 81 | IE8: 1183161 | IF8: 1036693 | IG8: 0 | IH8: 21390 | II8: 45000 | IJ8: 80078 | IL8: No | IM8: No | IN8: No | IO8: 33 | IP8: 9 | IQ8: 16 | IR8: 33 | IS8: 91 | IT8: 15743.3 | IU8: 23763.41 | IV8: 31432.27 | IW8: 39787.84 | IX8: 519528.9 | IY8: 213870.69 | IZ8: 502916.32 | JA8: 1312998.72 | JB8: 0 | JC8: 0 | JD8: 2549314.63 | JE8: 0 | JF8: 0 | JG8: 0 | JH8: 0 | JI8: 0 | JJ8: 0 | JK8: 0 | JL8: 0 | JM8: 0 | JN8: 0 | JO8: 0 | JP8: 0 | JQ8: 0 | JR8: 0 | JS8: -- | JT8: 0 | JU8: 0 | JV8: 0 | JW8: 0 | JX8: 0 | JY8: 0 | JZ8: 0 | KA8: 0 | KB8: 0 | KC8: 0 | KD8: 0 | KE8: 0 | KF8: 0 | KG8: 0 | KH8: 0 | KI8: -- | KJ8: 0 | KK8: 33 | KL8: 9 | KM8: 16 | KN8: 33 | KO8: 91 | KP8: 15743.3 | KQ8: 23763.41 | KR8: 31432.27 | KS8: 39787.84 | KT8: 0 | KU8: 28014.44648 | KV8: 519528.9 | KW8: 213870.69 | KX8: 502916.32 | KY8: 1312998.72 | KZ8: 0 | LA8: 0 | LB8: 2549314.63 | LC8: 1040000 | LD8: 0 | LE8: 17805604.83 | LF8: 0 | LG8: 0 | LH8: 35213945.38 | LI8: 0 | LJ8: 54059550.21 | LK8: 7006.162547 | LL8: 18845604.83 | LM8: 0 | LN8: 0 | LO8: 0 | LP8: 0 | LQ8: 0 | LR8: 35213945.38 | LS8: 0 | LT8: 35213945.38 | LU8: 4563.756529 | LV8: =VLOOKUP(A8,[5]Data!$A$5:$CK$569,89,FALSE) -> 5462953010 | LW8: 0.006445954288 | LX8: 1630855 | LY8: 447203 | LZ8: 185000 | MA8: 15000 | MB8: 2960000 | MC8: 600937.5 | MD8: 36805.72 | ME8: 3025.4 | MF8: 4812660.72 | MG8: 1066165.9 | MH8: 5878826.62 | MI8: 6227004.15 | MJ8: 6127894.15 | MK8: 28514507.59 | ML8: 0 | MM8: 0 | MN8: 0 | MO8: 0 | MP8: -- | MQ8: -- | MR8: AA/Stable | MS8: 2021 | MT8: -- | MU8: -- | MW8: 0 | MX8: 0 | MY8: 0 | MZ8: -- | NA8: 3536792500 | NB8: 0 | ND8: 0 | NE8: 0 | NF8: 0 | NG8: 0 | NH8: 0 | NI8: 0 | NJ8: 0 | NK8: 0 | NL8: 0 | NM8: 0 | NN8: 0 | NO8: 0 | NP8: 0 | NQ8: 0 | NR8: 0 | NS8: 0 | NT8: 0 | NU8: 0 | NV8: 0 | NW8: 0 | NX8: 0 | NY8: 0 | NZ8: 0 | OA8: 0 | OB8: 0 | OC8: 0 | OD8: 0 | OE8: 0 | OG8: 0 | OH8: 0 | OI8: No data | OJ8: No data | OL8: 0 | OM8: 0 | ON8: 0 | OO8: 0 | OP8: 0
A9: 0104 | B9: 104 | C9: Buena borough | D9: Atlantic | E9: Buena boroughAtlantic | F9: =IF(AND(M9=0,SUM(CN9:DJ9)=0,SUM(AI9:AW9)=0),"X","") ->  | I9: 4555 | J9: 7.57277065 | K9: 601.4971548 | M9: 0.974 | N9: 9857961.81 | O9: 10116390.09 | P9: 0.9744544963 | Q9: 154405 | S9: 187000 | T9: 521279.2 | U9: 470451.89 | V9: 93074 | W9: 0 | X9: 0 | Y9: 770101.16 | Z9: 501837.79 | AA9: 173491.57 | AB9: 3537715.11 | AC9: 0 | AD9: 0 | AE9: 0 | AF9: 0 | AG9: 0 | AH9: 6254950.72 | AI9: 310000 | AJ9: 301175 | AK9: 424271 | AL9: 85000 | AM9: 0 | AN9: 222000 | AO9: 187602.94 | AP9: 420333.32 | AQ9: 180000 | AR9: 3605906.24 | AS9: 0 | AT9: 0 | AU9: 0 | AV9: 0 | AW9: 0 | AX9: 5736288.5 | AY9: 310000 | AZ9: 301175 | BA9: 424271 | BB9: 85000 | BC9: 0 | BD9: 222000 | BE9: 187602.94 | BF9: 420333.32 | BG9: 180000 | BH9: 3605906.24 | BI9: 0 | BJ9: 0 | BK9: 0 | BL9: 0 | BM9: 0 | BN9: 5736288.5 | BP9: 573575.24 | BQ9: 17083.26 | BR9: 95869.91 | BS9: 771677.4 | BT9: 833073.79 | BU9: 1083368.17 | BV9: 19279.5 | BW9: 10248.37 | BX9: 12165 | BY9: 186651.24 | BZ9: 0 | CA9: 422339.5 | CB9: 0 | CC9: 194752.91 | CD9: 0 | CE9: 1368216.36 | CF9: 0 | CG9: 170000 | CH9: 111185.42 | CI9: 171000 | CJ9: 0 | CK9: 205113.15 | CL9: 0 | CM9: 6245599.22 | CN9: 597959 | CO9: 18700 | CP9: 107433 | CQ9: 738000 | CR9: 663224 | CS9: 618302.94 | CT9: 21800 | CU9: 5250 | CV9: 12064 | CW9: 210000 | CX9: 0 | CY9: 421000 | CZ9: 0 | DA9: 273547 | DB9: 8300 | DC9: 1397265 | DD9: 0 | DE9: 124225 | DF9: 106350 | DG9: 146020 | DH9: 0 | DI9: 266848.56 | DJ9: 0 | DK9: 5736288.5 | DL9: 594984 | DM9: 18700 | DN9: 107433 | DO9: 738000 | DP9: 663224 | DQ9: 436675 | DR9: 21800 | DS9: 0 | DT9: 12064 | DU9: 210000 | DV9: 0 | DW9: 421000 | DX9: 0 | DY9: 273547 | DZ9: 8300 | EA9: 1397265 | EB9: 0 | EC9: 124225 | ED9: 106350 | EE9: 146020 | EF9: 0 | EG9: 266848.56 | EH9: 0 | EI9: 5546435.56 | EK9: 4 | EL9: 0 | EM9: 1 | EN9: 0 | EO9: 5 | EP9: 5 | EQ9: 0 | ER9: 0 | ES9: 0 | ET9: 0 | EU9: 0 | EV9: 0 | EW9: 0 | EX9: 0 | EY9: 0 | EZ9: 0 | FA9: 0 | FB9: 0 | FC9: 0 | FD9: 0 | FE9: 0 | FF9: 0 | FG9: 0 | FH9: 15 | FI9: 12 | FJ9: 1 | FK9: 5 | FL9: 0 | FM9: 16 | FN9: 1 | FO9: 0 | FP9: 0 | FQ9: 0 | FR9: 0 | FS9: 0 | FT9: 0 | FU9: 0 | FV9: 0 | FW9: 0 | FX9: 0 | FY9: 0 | FZ9: 0 | GA9: 0 | GB9: 0 | GC9: 0 | GD9: 0 | GE9: 0 | GF9: 35 | GG9: 15 | GH9: 35 | GI9: 1662442.58 | GJ9: 1309588.05 | GK9: 70000 | GL9: 109566.96 | GM9: 25570 | GN9: 147717.57 | GO9: 0 | GP9: 7 | GQ9: 40169.19 | GR9: 36886.31 | GS9: 0 | GT9: 0 | GU9: 0 | GV9: 3282.88 | GW9: 3 | GX9: 3 | GY9: 370365.28 | GZ9: 313273.74 | HA9: 0 | HB9: 19221.18 | HC9: 9989 | HD9: 27881.36 | HE9: No data | HF9: No data | HG9: 7054 | HH9: No data | HI9: No data | HJ9: 7054 | HK9: No data | HL9: No data | HM9: 0 | HN9: 0 | HO9: 0 | HP9: 0 | HQ9: 0 | HR9: 0 | HS9: 0 | HT9: 0 | HU9: 0 | HV9: 0 | HW9: 0 | HX9: 0 | HY9: 0 | HZ9: 0 | IA9: 0 | IB9: 0 | IC9: 12 | ID9: 25 | IE9: 1244854.11 | IF9: 959428 | IG9: 70000 | IH9: 83291.78 | II9: 15581 | IJ9: 116553.33 | IL9: Yes | IM9: No | IN9: No | IO9: 3 | IP9: 2 | IQ9: 6 | IR9: 2 | IS9: 13 | IT9: 13500 | IU9: 12072 | IV9: 26976 | IW9: 45893.58 | IX9: 40500 | IY9: 24144 | IZ9: 161856 | JA9: 91787.16 | JB9: -51139.92 | JC9: 0.1606722684 | JD9: 267147.24 | JE9: 0 | JF9: 0 | JG9: 0 | JH9: 0 | JI9: 0 | JJ9: 0 | JK9: 0 | JL9: 0 | JM9: 0 | JN9: 0 | JO9: 0 | JP9: 0 | JQ9: 0 | JR9: 0 | JS9: -- | JT9: 0 | JU9: 5 | JV9: 1 | JW9: 4 | JX9: 4 | JY9: 14 | JZ9: 8174.4 | KA9: 22584 | KB9: 20514 | KC9: 42927 | KD9: 40872 | KE9: 22584 | KF9: 82056 | KG9: 171708 | KH9: 0 | KI9: 0 | KJ9: 317220 | KK9: 8 | KL9: 3 | KM9: 10 | KN9: 6 | KO9: 27 | KP9: 10171.5 | KQ9: 15576 | KR9: 24391.2 | KS9: 43915.86 | KT9: -1894.071111 | KU9: 21643.23111 | KV9: 81372 | KW9: 46728 | KX9: 243912 | KY9: 263495.16 | KZ9: -51139.92 | LA9: 0.08047103671 | LB9: 584367.24 | LC9: 0 | LD9: 10635337 | LE9: 886999 | LF9: 0 | LG9: 271420.91 | LH9: 0 | LI9: 0 | LJ9: 11793756.91 | LK9: 2620.252591 | LL9: 0 | LM9: 0 | LN9: 10635337 | LO9: 886999 | LP9: 0 | LQ9: 271420.91 | LR9: 0 | LS9: 0 | LT9: 11793756.91 | LU9: 2620.252591 | LV9: =VLOOKUP(A9,[5]Data!$A$5:$CK$569,89,FALSE) -> 342589467.7 | LW9: 0.03442533418 | LX9: 0 | LY9: 0 | LZ9: 62000 | MA9: 44350 | MB9: 0 | MC9: 0 | MD9: 0 | ME9: 0 | MF9: 62000 | MG9: 44350 | MH9: 106350 | MI9: 0 | MJ9: 0 | MK9: 0 | ML9: 0 | MM9: 0 | MN9: 0 | MO9: 0 | MP9: A2 | MQ9: 2018 | MR9: -- | MS9: -- | MT9: -- | MU9: -- | MW9: 0 | MX9: 0 | MY9: 0 | MZ9: -- | NA9: 336041200 | NB9: 0 | ND9: 0 | NE9: 0 | NF9: 0 | NG9: 0 | NH9: 0 | NI9: 0 | NJ9: 0 | NK9: 0 | NL9: 0 | NM9: 0 | NN9: 0 | NO9: 0 | NP9: 0 | NQ9: 0 | NR9: 0 | NS9: 0 | NT9: 0 | NU9: 0 | NV9: 0 | NW9: 0 | NX9: 0 | NY9: 0 | NZ9: 0 | OA9: 0 | OB9: 0 | OC9: 0 | OD9: 0 | OE9: 0 | OG9: 0 | OH9: 0 | OI9: 0 | OJ9: 0 | OL9: 310000 | OM9: 0 | ON9: 0 | OO9: 0 | OP9: 310000
A10: 0105 | B10: 105 | C10: Buena Vista township | D10: Atlantic | E10: Buena Vista townshipAtlantic | F10: =IF(AND(M10=0,SUM(CN10:DJ10)=0,SUM(AI10:AW10)=0),"X","") ->  | I10: 7197 | J10: 41.07968523 | K10: 175.1960844 | M10: 0.9773 | N10: 19567463.45 | O10: 19958653.05 | P10: 0.9804 | Q10: 391189.5998 | S10: 618486 | T10: 662946.81 | U10: 801627.77 | V10: 0 | W10: 91360.1 | X10: 0 | Y10: 524652.13 | Z10: 286262.81 | AA10: 210219.1 | AB10: 3850694.16 | AC10: 0 | AD10: 0 | AE10: 0 | AF10: 0 | AG10: 0 | AH10: 7046248.88 | AI10: 758000 | AJ10: 618602 | AK10: 728492 | AL10: 0 | AM10: 105627 | AN10: 0 | AO10: 400000 | AP10: 47431.05 | AQ10: 240738.95 | AR10: 3973383 | AS10: 0 | AT10: 0 | AU10: 0 | AV10: 0 | AW10: 0 | AX10: 6872274 | AY10: 758000 | AZ10: 618602 | BA10: 728492 | BB10: 0 | BC10: 105627 | BD10: 0 | BE10: 400000 | BF10: 47431.05 | BG10: 240738.95 | BH10: 3973383 | BI10: 0 | BJ10: 0 | BK10: 0 | BL10: 0 | BM10: 0 | BN10: 6872274 | BP10: 1055463.13 | BQ10: 6000 | BR10: 0 | BS10: 661433 | BT10: 483897 | BU10: 1373275 | BV10: 32500 | BW10: 133413.34 | BX10: 0 | BY10: 20000 | BZ10: 216000 | CA10: 294200 | CB10: 0 | CC10: 290317 | CD10: 0 | CE10: 204162.29 | CF10: 0 | CG10: 679652.13 | CH10: 955249 | CI10: 0 | CJ10: 0 | CK10: 452000 | CL10: 618486 | CM10: 7476047.89 | CN10: 1167567 | CO10: 5500 | CP10: 0 | CQ10: 653224 | CR10: 481897 | CS10: 1374250 | CT10: 32500 | CU10: 141978 | CV10: 0 | CW10: 20000 | CX10: 218000 | CY10: 294600 | CZ10: 0 | DA10: 290182 | DB10: 0 | DC10: 221027 | DD10: 0 | DE10: 555000 | DF10: 964549 | DG10: 0 | DH10: 0 | DI10: 452000 | DJ10: 758000 | DK10: 7630274 | DL10: 1167567 | DM10: 5500 | DN10: 0 | DO10: 653224 | DP10: 479000 | DQ10: 1374250 | DR10: 32500 | DS10: 141978 | DT10: 0 | DU10: 20000 | DV10: 218000 | DW10: 294600 | DX10: 0 | DY10: 290182 | DZ10: 0 | EA10: 221027 | EB10: 0 | EC10: 155000 | ED10: 964549 | EE10: 0 | EF10: 0 | EG10: 452000 | EH10: 758000 | EI10: 7227377 | EK10: 0 | EL10: 0 | EM10: 0 | EN10: 0 | EO10: 0 | EP10: 0 | EQ10: 0 | ER10: 0 | ES10: 0 | ET10: 0 | EU10: 0 | EV10: 0 | EW10: 0 | EX10: 0 | EY10: 0 | EZ10: 0 | FA10: 0 | FB10: 0 | FC10: 0 | FD10: 0 | FE10: 0 | FF10: 0 | FG10: 0 | FH10: 0 | FI10: 0 | FJ10: 0 | FK10: 0 | FL10: 0 | FM10: 0 | FN10: 0 | FO10: 0 | FP10: 0 | FQ10: 0 | FR10: 0 | FS10: 0 | FT10: 0 | FU10: 0 | FV10: 0 | FW10: 0 | FX10: 0 | FY10: 0 | FZ10: 0 | GA10: 0 | GB10: 0 | GC10: 0 | GD10: 0 | GE10: 0 | GF10: 0 | GG10: -- | GH10: 11 | GI10: 1996823.631 | GJ10: 1537959.6 | GK10: 88785.24 | GL10: 252424.8817 | GM10: No data | GN10: 117653.9094 | GO10: 0 | GP10: 5 | GQ10: 93939.35616 | GR10: 84515.84 | GS10: 0 | GT10: 2958.0544 | GU10: 0 | GV10: 6465.46176 | GW10: 0 | GX10: 6 | GY10: 698419.2476 | GZ10: 555001 | HA10: 6000 | HB10: 94960.6711 | HC10: 0 | HD10: 42457.5765 | HE10: 0 | HF10: 0 | HG10: 0 | HH10: 0 | HI10: 0 | HJ10: 0 | HK10: 0 | HL10: 0 | HM10: 0 | HN10: 0 | HO10: 0 | HP10: 0 | HQ10: 0 | HR10: 0 | HS10: 0 | HT10: 0 | HU10: 0 | HV10: 0 | HW10: 693909.3246 | HX10: 489839.76 | HY10: 82785.24 | HZ10: 83811.58294 | IA10: 0 | IB10: 37472.74164 | IC10: 0 | ID10: 0 | IE10: 510555.7028 | IF10: 408603 | IG10: 0 | IH10: 70694.5733 | II10: 0 | IJ10: 31258.1295 | IL10: No | IM10: Yes | IN10: Yes | IO10: 8 | IP10: 0 | IQ10: 3 | IR10: 4 | IS10: 15 | IT10: 17405.88 | IU10: 0 | IV10: 36272.4 | IW10: 50600.04 | IX10: 139247.04 | IY10: 0 | IZ10: 108817.2 | JA10: 202400.16 | JB10: 0 | JC10: 0 | JD10: 450464.4 | JE10: 0 | JF10: 0 | JG10: 0 | JH10: 0 | JI10: 0 | JJ10: 0 | JK10: 0 | JL10: 0 | JM10: 0 | JN10: 0 | JO10: 0 | JP10: 0 | JQ10: 0 | JR10: 0 | JS10: -- | JT10: 0 | JU10: 0 | JV10: 0 | JW10: 0 | JX10: 0 | JY10: 0 | JZ10: 0 | KA10: 0 | KB10: 0 | KC10: 0 | KD10: 0 | KE10: 0 | KF10: 0 | KG10: 0 | KH10: 0 | KI10: -- | KJ10: 0 | KK10: 8 | KL10: 0 | KM10: 3 | KN10: 4 | KO10: 15 | KP10: 17405.88 | KQ10: -- | KR10: 36272.4 | KS10: 50600.04 | KT10: 0 | KU10: 30030.96 | KV10: 139247.04 | KW10: 0 | KX10: 108817.2 | KY10: 202400.16 | KZ10: 0 | LA10: 0 | LB10: 450464.4 | LC10: No data | LD10: No data | LE10: No data | LF10: No data | LG10: No data | LH10: No data | LI10: No data | LJ10: No data | LK10: No data | LL10: No data | LM10: No data | LN10: No data | LO10: No data | LP10: No data | LQ10: No data | LR10: No data | LS10: No data | LT10: No data | LU10: No data | LV10: =VLOOKUP(A10,[5]Data!$A$5:$CK$569,89,FALSE) -> 790176664.3 | LW10: No data | LX10: 0 | LY10: 0 | LZ10: 0 | MA10: 0 | MB10: 760000 | MC10: 194288 | MD10: 10108 | ME10: 152 | MF10: 770108 | MG10: 194440 | MH10: 964548 | MI10: 967788 | MJ10: 975488 | MK10: 5383398 | ML10: 0 | MM10: 0 | MN10: 0 | MO10: 0 | MP10: N/A | MQ10: -- | MR10: A+ | MS10: 2022 | MT10: N/A | MU10: -- | MW10: 0 | MX10: 0 | MY10: 0 | MZ10: -- | NA10: 721085206 | NB10: 0 | ND10: 0 | NE10: 0 | NF10: 0 | NG10: 0 | NH10: 0 | NI10: 0 | NJ10: 0 | NK10: 0 | NL10: 0 | NM10: 0 | NN10: 0 | NO10: 0 | NP10: 0 | NQ10: 0 | NR10: 0 | NS10: 0 | NT10: 0 | NU10: 0 | NV10: 0 | NW10: 0 | NX10: 0 | NY10: 0 | NZ10: 0 | OA10: 0 | OB10: 0 | OC10: 0 | OD10: 0 | OE10: 0 | OG10: 55.425 | OH10: 10000 | OI10: 0 | OJ10: 0 | OL10: 0 | OM10: 0 | ON10: 0 | OO10: 0 | OP10: 0
A11: 0106 | B11: 106 | C11: Corbin City city | D11: Atlantic | E11: Corbin City cityAtlantic | F11: =IF(AND(M11=0,SUM(CN11:DJ11)=0,SUM(AI11:AW11)=0),"X","") ->  | I11: 486 | J11: 7.697281209 | K11: 63.13917691 | M11: 0.9922 | N11: 1122555 | O11: 1131229 | P11: 0.9923322333 | Q11: 2 | S11: 56719 | T11: 8100 | U11: 113672 | V11: 0 | W11: 0 | X11: 0 | Y11: 4832 | Z11: 75000 | AA11: 5000 | AB11: 194767.64 | AC11: 0 | AD11: 0 | AE11: 0 | AF11: 0 | AG11: 0 | AH11: 458090.64 | AI11: 91029 | AJ11: 6000 | AK11: 113672 | AL11: 0 | AM11: 0 | AN11: 0 | AO11: 4000 | AP11: 75000 | AQ11: 5000 | AR11: 200312 | AS11: 0 | AT11: 0 | AU11: 0 | AV11: 0 | AW11: 0 | AX11: 495013 | AY11: 91029 | AZ11: 6000 | BA11: 113672 | BB11: 0 | BC11: 0 | BD11: 0 | BE11: 4000 | BF11: 75000 | BG11: 5000 | BH11: 200312 | BI11: 0 | BJ11: 0 | BK11: 0 | BL11: 0 | BM11: 0 | BN11: 495013 | BP11: 195185.5 | BQ11: 17900 | BR11: 0 | BS11: 37134 | BT11: 13001 | BU11: 104433 | BV11: 7801 | BW11: 2000 | BX11: 0 | BY11: 0 | BZ11: 30000 | CA11: 0 | CB11: 0 | CC11: 13613 | CD11: 0 | CE11: 10000 | CF11: 6000 | CG11: 0 | CH11: 0 | CI11: 6318 | CJ11: 0 | CK11: 14705.14 | CL11: 0 | CM11: 458090.64 | CN11: 198094 | CO11: 43300 | CP11: 0 | CQ11: 41320 | CR11: 12801 | CS11: 82601 | CT11: 7801 | CU11: 3000 | CV11: 0 | CW11: 0 | CX11: 36400 | CY11: 0 | CZ11: 0 | DA11: 11899 | DB11: 0 | DC11: 37000 | DD11: 6000 | DE11: 0 | DF11: 0 | DG11: 6318 | DH11: 0 | DI11: 8879 | DJ11: 0 | DK11: 495413 | DL11: 198094 | DM11: 43300 | DN11: 0 | DO11: 41320 | DP11: 12801 | DQ11: 78601 | DR11: 7801 | DS11: 3000 | DT11: 0 | DU11: 0 | DV11: 36400 | DW11: 0 | DX11: 0 | DY11: 11899 | DZ11: 0 | EA11: 37000 | EB11: 6000 | EC11: 0 | ED11: 0 | EE11: 6318 | EF11: 0 | EG11: 8879 | EH11: 0 | EI11: 491413 | EK11: 0 | EL11: 0 | EM11: 0 | EN11: 0 | EO11: 0 | EP11: 0 | EQ11: 0 | ER11: 0 | ES11: 0 | ET11: 0 | EU11: 0 | EV11: 0 | EW11: 0 | EX11: 0 | EY11: 0 | EZ11: 0 | FA11: 0 | FB11: 0 | FC11: 0 | FD11: 0 | FE11: 0 | FF11: 0 | FG11: 0 | FH11: 0 | FI11: 8 | FJ11: 2 | FK11: 0 | FL11: 0 | FM11: 1 | FN11: 0 | FO11: 0 | FP11: 0 | FQ11: 0 | FR11: 0 | FS11: 0 | FT11: 0 | FU11: 0 | FV11: 0 | FW11: 0 | FX11: 0 | FY11: 0 | FZ11: 0 | GA11: 0 | GB11: 0 | GC11: 0 | GD11: 0 | GE11: 0 | GF11: 11 | GG11: -- | GH11: 10 | GI11: 129716 | GJ11: 116216 | GK11: No data | GL11: 3500 | GM11: No data | GN11: 10000 | GO11: 0 | GP11: 4 | GQ11: 12681 | GR11: 11681 | GS11: 0 | GT11: 0 | GU11: 0 | GV11: 1000 | GW11: 0 | GX11: 6 | GY11: 117035 | GZ11: 104535 | HA11: 0 | HB11: 3500 | HC11: 0 | HD11: 9000 | HE11: 0 | HF11: 0 | HG11: 0 | HH11: 0 | HI11: 0 | HJ11: 0 | HK11: 0 | HL11: 0 | HM11: 0 | HN11: 0 | HO11: 0 | HP11: 0 | HQ11: 0 | HR11: 0 | HS11: 0 | HT11: 0 | HU11: 0 | HV11: 0 | HW11: 0 | HX11: 0 | HY11: 0 | HZ11: 0 | IA11: 0 | IB11: 0 | IC11: 0 | ID11: 0 | IE11: 0 | IF11: 0 | IG11: 0 | IH11: 0 | II11: 0 | IJ11: 0 | IL11: No | IM11: Yes | IN11: Yes | IO11: No data | IP11: No data | IQ11: No data | IR11: No data | IS11: No data | IT11: No data | IU11: No data | IV11: No data | IW11: No data | IX11: No data | IY11: No data | IZ11: No data | JA11: No data | JB11: No data | JC11: No data | JD11: No data | JE11: No data | JF11: No data | JG11: No data | JH11: No data | JI11: No data | JJ11: No data | JK11: No data | JL11: No data | JM11: No data | JN11: No data | JO11: No data | JP11: No data | JQ11: No data | JR11: No data | JS11: No data | JT11: No data | JU11: No data | JV11: No data | JW11: No data | JX11: No data | JY11: No data | JZ11: No data | KA11: No data | KB11: No data | KC11: No data | KD11: No data | KE11: No data | KF11: No data | KG11: No data | KH11: No data | KI11: No data | KJ11: No data | KK11: No data | KL11: No data | KM11: No data | KN11: No data | KO11: No data | KP11: No data | KQ11: No data | KR11: No data | KS11: No data | KT11: No data | KU11: No data | KV11: No data | KW11: No data | KX11: No data | KY11: No data | KZ11: No data | LA11: No data | LB11: No data | LC11: 0 | LD11: 0 | LE11: 0 | LF11: 0 | LG11: 0 | LH11: 0 | LI11: 0 | LJ11: 0 | LK11: 0 | LL11: 0 | LM11: 0 | LN11: 0 | LO11: 0 | LP11: 0 | LQ11: 0 | LR11: 0 | LS11: 0 | LT11: 0 | LU11: 0 | LV11: =VLOOKUP(A11,[5]Data!$A$5:$CK$569,89,FALSE) -> 74161061.67 | LW11: 0 | LX11: 0 | LY11: 0 | LZ11: 0 | MA11: 0 | MB11: 0 | MC11: 0 | MD11: 0 | ME11: 0 | MF11: 0 | MG11: 0 | MH11: 0 | MI11: 0 | MJ11: 0 | MK11: 0 | ML11: 0 | MM11: 0 | MN11: 0 | MO11: 0 | MP11: -- | MQ11: -- | MR11: -- | MS11: -- | MT11: -- | MU11: -- | MW11: 0 | MX11: 0 | MY11: 0 | MZ11: -- | NA11: 59397775 | NB11: 0 | ND11: 0 | NE11: 0 | NF11: 0 | NG11: 0 | NH11: 0 | NI11: 0 | NJ11: 0 | NK11: 0 | NL11: 0 | NM11: 0 | NN11: 0 | NO11: 0 | NP11: 0 | NQ11: 0 | NR11: 0 | NS11: 0 | NT11: 0 | NU11: 0 | NV11: 0 | NW11: 0 | NX11: 0 | NY11: 0 | NZ11: 0 | OA11: 0 | OB11: 0 | OC11: 0 | OD11: 0 | OE11: 0 | OG11: 0 | OH11: 0 | OI11: No data | OJ11: No data | OL11: 0 | OM11: 0 | ON11: 0 | OO11: 0 | OP11: 0
A12: 0107 | B12: 107 | C12: Egg Harbor City city | D12: Atlantic | E12: Egg Harbor City cityAtlantic | F12: =IF(AND(M12=0,SUM(CN12:DJ12)=0,SUM(AI12:AW12)=0),"X","") ->  | I12: 4442 | J12: 10.85093609 | K12: 409.3656034 | M12: 0.9835 | N12: 11220909.73 | O12: 11295816.57 | P12: 0.9933686211 | Q12: 3213.63 | S12: 487750 | T12: 777450.2 | U12: 528491.09 | V12: 89477 | W12: 0 | X12: 0 | Y12: 2075985.47 | Z12: 395204.81 | AA12: 10261.24 | AB12: 4873221.1 | AC12: 0 | AD12: 0 | AE12: 0 | AF12: 0 | AG12: 0 | AH12: 9237840.91 | AI12: 338000 | AJ12: 708000 | AK12: 479107 | AL12: 87500 | AM12: 0 | AN12: 0 | AO12: 1341396.52 | AP12: 485500 | AQ12: 10000 | AR12: 4762814.35 | AS12: 0 | AT12: 0 | AU12: 0 | AV12: 0 | AW12: 0 | AX12: 8212317.87 | AY12: 338000 | AZ12: 708000 | BA12: 479107 | BB12: 87500 | BC12: 0 | BD12: 0 | BE12: 1341396.52 | BF12: 485500 | BG12: 10000 | BH12: 4762814.35 | BI12: 0 | BJ12: 0 | BK12: 0 | BL12: 0 | BM12: 0 | BN12: 8212317.87 | BP12: 805550 | BQ12: 89900 | BR12: 70950 | BS12: 941347 | BT12: 1876673 | BU12: 526690 | BV12: 8700 | BW12: 144525 | BX12: 0 | BY12: 2537589.22 | BZ12: 0 | CA12: 566000 | CB12: 0 | CC12: 714148 | CD12: 0 | CE12: 0 | CF12: 0 | CG12: 135000 | CH12: 0 | CI12: 10000 | CJ12: 0 | CK12: 193886.56 | CL12: 0 | CM12: 8620958.78 | CN12: 907500 | CO12: 106500 | CP12: 71350 | CQ12: 1067261 | CR12: 2016150 | CS12: 477690 | CT12: 10200 | CU12: 159500 | CV12: 0 | CW12: 1842898.27 | CX12: 0 | CY12: 557500 | CZ12: 0 | DA12: 773679 | DB12: 0 | DC12: 0 | DD12: 0 | DE12: 25000 | DF12: 0 | DG12: 10000 | DH12: 0 | DI12: 187089.6 | DJ12: 0 | DK12: 8212317.87 | DL12: 907500 | DM12: 106500 | DN12: 71350 | DO12: 1067261 | DP12: 2016150 | DQ12: 477690 | DR12: 10200 | DS12: 159500 | DT12: 0 | DU12: 1842898.27 | DV12: 0 | DW12: 557500 | DX12: 0 | DY12: 773679 | DZ12: 0 | EA12: 0 | EB12: 0 | EC12: 25000 | ED12: 0 | EE12: 10000 | EF12: 0 | EG12: 187089.6 | EH12: 0 | EI12: 8212317.87 | EK12: 5 | EL12: 1 | EM12: 0 | EN12: 0 | EO12: 16 | EP12: 4 | EQ12: 0 | ER12: 0 | ES12: 0 | ET12: 0 | EU12: 0 | EV12: 0 | EW12: 0 | EX12: 0 | EY12: 0 | EZ12: 0 | FA12: 0 | FB12: 0 | FC12: 0 | FD12: 0 | FE12: 0 | FF12: 0 | FG12: 0 | FH12: 26 | FI12: 13 | FJ12: 2 | FK12: 2 | FL12: 0 | FM12: 3 | FN12: 0 | FO12: 0 | FP12: 25 | FQ12: 0 | FR12: 0 | FS12: 0 | FT12: 0 | FU12: 0 | FV12: 0 | FW12: 0 | FX12: 0 | FY12: 0 | FZ12: 0 | GA12: 0 | GB12: 0 | GC12: 0 | GD12: 0 | GE12: 0 | GF12: 45 | GG12: 26 | GH12: 45 | GI12: 3749065 | GJ12: 2536500 | GK12: 108500 | GL12: 229900 | GM12: 670000 | GN12: 204165 | GO12: 0 | GP12: 10 | GQ12: 27500 | GR12: 27500 | GS12: 0 | GT12: 0 | GU12: 0 | GV12: 0 | GW12: 0 | GX12: 4 | GY12: 783290 | GZ12: 550000 | HA12: 5000 | HB12: 55000 | HC12: 130000 | HD12: 43290 | HE12: 16 | HF12: 1 | HG12: 2081908 | HH12: 1400000 | HI12: 86000 | HJ12: 140000 | HK12: 340000 | HL12: 115908 | HM12: 0 | HN12: 1 | HO12: 2910.6 | HP12: 2700 | HQ12: 0 | HR12: 0 | HS12: 0 | HT12: 210.6 | HU12: 4 | HV12: 0 | HW12: 526977 | HX12: 304000 | HY12: 17500 | HZ12: 30400 | IA12: 150000 | IB12: 25077 | IC12: 6 | ID12: 29 | IE12: 326479.4 | IF12: 252300 | IG12: 0 | IH12: 4500 | II12: 50000 | IJ12: 19679.4 | IL12: Yes | IM12: Yes | IN12: Yes | IO12: 9 | IP12: 2 | IQ12: 6 | IR12: 7 | IS12: 24 | IT12: 18000 | IU12: 33000 | IV12: 28000 | IW12: 51000 | IX12: 162000 | IY12: 66000 | IZ12: 168000 | JA12: 357000 | JB12: -159000 | JC12: 0.2111553785 | JD12: 594000 | JE12: 0 | JF12: 0 | JG12: 0 | JH12: 0 | JI12: 0 | JJ12: 0 | JK12: 0 | JL12: 0 | JM12: 0 | JN12: 0 | JO12: 0 | JP12: 0 | JQ12: 0 | JR12: 0 | JS12: -- | JT12: 0 | JU12: 3 | JV12: 0 | JW12: 1 | JX12: 0 | JY12: 4 | JZ12: 16000 | KA12: 0 | KB12: 28000 | KC12: 0 | KD12: 48000 | KE12: 0 | KF12: 28000 | KG12: 0 | KH12: 0 | KI12: 0 | KJ12: 76000 | KK12: 12 | KL12: 2 | KM12: 7 | KN12: 7 | KO12: 28 | KP12: 17500 | KQ12: 33000 | KR12: 28000 | KS12: 51000 | KT12: -5678.571429 | KU12: 23928.57143 | KV12: 210000 | KW12: 66000 | KX12: 196000 | KY12: 357000 | KZ12: -159000 | LA12: 0.1917973462 | LB12: 670000 | LC12: 4820000 | LD12: 1706273.47 | LE12: 975000 | LF12: 0 | LG12: 0 | LH12: 380000 | LI12: 0 | LJ12: 7881273.47 | LK12: 1792.82836 | LL12: 7881273.47 | LM12: 0 | LN12: 0 | LO12: 0 | LP12: 0 | LQ12: 0 | LR12: 0 | LS12: 0 | LT12: 0 | LU12: 0 | LV12: =VLOOKUP(A12,[5]Data!$A$5:$CK$569,89,FALSE) -> 309333297.7 | LW12: 0 | LX12: 0 | LY12: 0 | LZ12: 0 | MA12: 0 | MB12: 0 | MC12: 0 | MD12: 0 | ME12: 0 | MF12: 0 | MG12: 0 | MH12: 0 | MI12: 0 | MJ12: 0 | MK12: 0 | ML12: 0 | MM12: 0 | MN12: 37670 | MO12: 0 | MP12: -- | MQ12: -- | MR12: A | MS12: 2020 | MT12: -- | MU12: -- | MW12: 0 | MX12: 0 | MY12: 69540.35 | MZ12: 0 | NA12: 328981421 | NB12: 0 | ND12: 1 | NE12: 0 | NF12: 0 | NG12: 23 | NH12: 0 | NI12: 0 | NJ12: 0 | NK12: 15680.04 | NL12: 0 | NM12: 0 | NN12: 118098.01 | NO12: 0 | NP12: 0 | NQ12: 0 | NR12: 357600 | NS12: 0 | NT12: 0 | NU12: 3732100 | NV12: 0 | NW12: 0 | NX12: 0 | NY12: 19600.056 | NZ12: 0 | OA12: 0 | OB12: 207060.6401 | OC12: 0 | OD12: 0 | OE12: 0 | OG12: 1334.5 | OH12: 228935 | OI12: 0 | OJ12: 0 | OL12: 380000 | OM12: 0 | ON12: 0 | OO12: 0 | OP12: 380000
A13: 0108 | B13: 108 | C13: Egg Harbor township | D13: Atlantic | E13: Egg Harbor townshipAtlantic | F13: =IF(AND(M13=0,SUM(CN13:DJ13)=0,SUM(AI13:AW13)=0),"X","") ->  | I13: 48538 | J13: 67.0469235 | K13: 723.9407488 | M13: 0.994 | N13: 140603186 | O13: 140939680 | P13: 0.9976124964 | Q13: 32864 | S13: 3400000 | T13: 4904139 | U13: 6112853 | V13: 690042 | W13: 2794324 | X13: 0 | Y13: 1449709 | Z13: 6126551 | AA13: 159921 | AB13: 28597671 | AC13: 0 | AD13: 840429 | AE13: 0 | AF13: 0 | AG13: 0 | AH13: 55075639 | AI13: 5000000 | AJ13: 4615000 | AK13: 6112853 | AL13: 690000 | AM13: 2533084 | AN13: 0 | AO13: 847280 | AP13: 4833440 | AQ13: 152000 | AR13: 28042463 | AS13: 0 | AT13: 838294 | AU13: 0 | AV13: 0 | AW13: 0 | AX13: 53664414 | AY13: 5000000 | AZ13: 4615000 | BA13: 6112853 | BB13: 690000 | BC13: 2533084 | BD13: 0 | BE13: 847280 | BF13: 4833440 | BG13: 152000 | BH13: 28042463 | BI13: 0 | BJ13: 0 | BK13: 0 | BL13: 0 | BM13: 0 | BN13: 52826120 | BP13: 2651006 | BQ13: 283092 | BR13: 639183 | BS13: 6404746 | BT13: 12265459 | BU13: 5159051 | BV13: 25200 | BW13: 561824 | BX13: 0 | BY13: 667485 | BZ13: 1971255 | CA13: 1954656 | CB13: 45598 | CC13: 6228180 | CD13: 0 | CE13: 2321139 | CF13: 0 | CG13: 720905 | CH13: 5261022 | CI13: 90000 | CJ13: 0 | CK13: 850000 | CL13: 0 | CM13: 48099801 | CN13: 3241645 | CO13: 318943 | CP13: 739902 | CQ13: 7607063 | CR13: 14075348 | CS13: 5477238 | CT13: 30000 | CU13: 1564192 | CV13: 0 | CW13: 725031 | CX13: 2149300 | CY13: 2043533 | CZ13: 125000 | DA13: 6088662 | DB13: 0 | DC13: 2533104 | DD13: 0 | DE13: 683352 | DF13: 5322101 | DG13: 90000 | DH13: 0 | DI13: 850000 | DJ13: 0 | DK13: 53664414 | DL13: 3241645 | DM13: 318943 | DN13: 739902 | DO13: 7607063 | DP13: 13927996 | DQ13: 5280892 | DR13: 30000 | DS13: 651861 | DT13: 0 | DU13: 725031 | DV13: 2149300 | DW13: 2043533 | DX13: 125000 | DY13: 6088662 | DZ13: 0 | EA13: 2533104 | EB13: 0 | EC13: 683352 | ED13: 5322101 | EE13: 90000 | EF13: 0 | EG13: 850000 | EH13: 0 | EI13: 52408385 | EK13: 25 | EL13: 3 | EM13: 8 | EN13: 0 | EO13: 153 | EP13: 65 | EQ13: 0 | ER13: 7 | ES13: 0 | ET13: 0 | EU13: 0 | EV13: 0 | EW13: 0 | EX13: 0 | EY13: 0 | EZ13: 0 | FA13: 0 | FB13: 0 | FC13: 0 | FD13: 0 | FE13: 0 | FF13: 0 | FG13: 0 | FH13: 261 | FI13: 6 | FJ13: 0 | FK13: 1 | FL13: 0 | FM13: 27 | FN13: 0 | FO13: 0 | FP13: 2 | FQ13: 0 | FR13: 0 | FS13: 0 | FT13: 0 | FU13: 0 | FV13: 0 | FW13: 0 | FX13: 0 | FY13: 0 | FZ13: 0 | GA13: 0 | GB13: 0 | GC13: 0 | GD13: 0 | GE13: 0 | GF13: 36 | GG13: 238 | GH13: 23 | GI13: 31301358.42 | GJ13: 18749815.07 | GK13: 1481000 | GL13: 4942566.491 | GM13: 4582614.511 | GN13: 1545362.353 | GO13: 0 | GP13: 5 | GQ13: 103882.25 | GR13: 90500 | GS13: 6000 | GT13: 0 | GU13: 0 | GV13: 7382.25 | GW13: 31 | GX13: 0 | GY13: 4350573.561 | GZ13: 2974325.4 | HA13: 50000 | HB13: 508907.0759 | HC13: 585980.192 | HD13: 231360.8931 | HE13: 92 | HF13: 6 | HG13: 15600184.86 | HH13: 9005119.07 | HI13: 1095000 | HJ13: 3331894.056 | HK13: 1395512.624 | HL13: 772659.1089 | HM13: 0 | HN13: 0 | HO13: 0 | HP13: 0 | HQ13: 0 | HR13: 0 | HS13: 0 | HT13: 0 | HU13: 93 | HV13: 1 | HW13: 8940655.727 | HX13: 5202031.8 | HY13: 300000 | HZ13: 886891.3406 | IA13: 2130827.154 | IB13: 420905.4327 | IC13: 22 | ID13: 11 | IE13: 2306062.028 | IF13: 1477838.8 | IG13: 30000 | IH13: 214874.0187 | II13: 470294.5416 | IJ13: 113054.6682 | IL13: No | IM13: No | IN13: No | IO13: 63 | IP13: 17 | IQ13: 33 | IR13: 67 | IS13: 180 | IT13: 16464.84 | IU13: 28443.72 | IV13: 32465.64 | IW13: 44579.16 | IX13: 1037284.92 | IY13: 483543.24 | IZ13: 1071366.12 | JA13: 2986803.72 | JB13: 0 | JC13: 0 | JD13: 5578998 | JE13: 0 | JF13: 0 | JG13: 0 | JH13: 0 | JI13: 0 | JJ13: 0 | JK13: 0 | JL13: 0 | JM13: 0 | JN13: 0 | JO13: 0 | JP13: 0 | JQ13: 0 | JR13: 0 | JS13: -- | JT13: 0 | JU13: 0 | JV13: 0 | JW13: 0 | JX13: 0 | JY13: 0 | JZ13: 0 | KA13: 0 | KB13: 0 | KC13: 0 | KD13: 0 | KE13: 0 | KF13: 0 | KG13: 0 | KH13: 0 | KI13: -- | KJ13: 0 | KK13: 63 | KL13: 17 | KM13: 33 | KN13: 67 | KO13: 180 | KP13: 16464.84 | KQ13: 28443.72 | KR13: 32465.64 | KS13: 44579.16 | KT13: 0 | KU13: 30994.43333 | KV13: 1037284.92 | KW13: 483543.24 | KX13: 1071366.12 | KY13: 2986803.72 | KZ13: 0 | LA13: 0 | LB13: 5578998 | LC13: 26440000 | LD13: 0 | LE13: 4750000 | LF13: 0 | LG13: 0 | LH13: 19305000 | LI13: 156465 | LJ13: 50651465 | LK13: 1058.72382 | LL13: 26440000 | LM13: 0 | LN13: 0 | LO13: 4750000 | LP13: 0 | LQ13: 0 | LR13: 19305000 | LS13: 156465 | LT13: 24211465 | LU13: 506.071339 | LV13: =VLOOKUP(A13,[5]Data!$A$5:$CK$569,89,FALSE) -> 5674538565 | LW13: 0.00426668437 | LX13: 0 | LY13: 0 | LZ13: 4750000 | MA13: 190000 | MB13: 4405000 | MC13: 853751 | MD13: 56226 | ME13: 2851 | MF13: 9211226 | MG13: 1046602 | MH13: 10257828 | MI13: 5056024 | MJ13: 2709153 | MK13: 9060250 | ML13: 0 | MM13: 0 | MN13: 0 | MO13: 0 | MP13: -- | MQ13: -- | MR13: AA- | MS13: 2023 | MT13: -- | MU13: -- | MW13: 0 | MX13: 0 | MY13: 249613.45 | MZ13: 0 | NA13: 4728135146 | NB13: 0 | ND13: 9 | NE13: 0 | NF13: 0 | NG13: 0 | NH13: 0 | NI13: 0 | NJ13: 0 | NK13: 543709.55 | NL13: 0 | NM13: 0 | NN13: 0 | NO13: 0 | NP13: 0 | NQ13: 0 | NR13: 41830900 | NS13: 0 | NT13: 0 | NU13: 0 | NV13: 0 | NW13: 0 | NX13: 0 | NY13: 1403008.39 | NZ13: 0 | OA13: 0 | OB13: 0 | OC13: 0 | OD13: 0 | OE13: 0 | OG13: 6678.705694 | OH13: 1985679.098 | OI13: 0 | OJ13: 0 | OL13: 0 | OM13: 0 | ON13: 0 | OO13: 0 | OP13: 0
A14: 0109 | B14: 109 | C14: Estell Manor city | D14: Atlantic | E14: Estell Manor cityAtlantic | F14: =IF(AND(M14=0,SUM(CN14:DJ14)=0,SUM(AI14:AW14)=0),"X","") ->  | I14: 1699 | J14: 53.38702354 | K14: 31.82421284 | M14: 0.9644 | N14: 4503438.8 | O14: 4589352.02 | P14: 0.9812798801 | Q14: 102863.63 | S14: 170000 | T14: 104419.73 | U14: 406158.26 | V14: 0 | W14: 7775.29 | X14: 0 | Y14: 872241.24 | Z14: 19249.59 | AA14: 97424.97 | AB14: 698892.81 | AC14: 0 | AD14: 0 | AE14: 0 | AF14: 0 | AG14: 0 | AH14: 2376161.89 | AI14: 190000 | AJ14: 104004 | AK14: 347362 | AL14: 0 | AM14: 7500 | AN14: 0 | AO14: 0 | AP14: 19000 | AQ14: 80000 | AR14: 647786 | AS14: 0 | AT14: 0 | AU14: 0 | AV14: 0 | AW14: 0 | AX14: 1395652 | AY14: 190000 | AZ14: 104004 | BA14: 347362 | BB14: 0 | BC14: 7500 | BD14: 0 | BE14: 0 | BF14: 19000 | BG14: 80000 | BH14: 647786 | BI14: 0 | BJ14: 0 | BK14: 0 | BL14: 0 | BM14: 0 | BN14: 1395652 | BP14: 311239.79 | BQ14: 49646.26 | BR14: 0 | BS14: 83079.81 | BT14: 24552.17 | BU14: 91898.21 | BV14: 7775 | BW14: 7133 | BX14: 0 | BY14: 7518.57 | BZ14: 35493.94 | CA14: 194517.38 | CB14: 7200 | CC14: 28522.15 | CD14: 0 | CE14: 19588.472 | CF14: 0 | CG14: 81000 | CH14: 0 | CI14: 0 | CJ14: 0 | CK14: 161670.71 | CL14: 0 | CM14: 1110835.462 | CN14: 394285 | CO14: 60001 | CP14: 0 | CQ14: 95700 | CR14: 79000 | CS14: 129100 | CT14: 12100 | CU14: 11000 | CV14: 0 | CW14: 20000 | CX14: 56000 | CY14: 214000 | CZ14: 7200 | DA14: 55866 | DB14: 0 | DC14: 25000 | DD14: 0 | DE14: 70000 | DF14: 0 | DG14: 0 | DH14: 0 | DI14: 166400 | DJ14: 0 | DK14: 1395652 | DL14: 394285 | DM14: 60001 | DN14: 0 | DO14: 95700 | DP14: 79000 | DQ14: 129100 | DR14: 12100 | DS14: 11000 | DT14: 0 | DU14: 20000 | DV14: 56000 | DW14: 214000 | DX14: 7200 | DY14: 55866 | DZ14: 0 | EA14: 25000 | EB14: 0 | EC14: 70000 | ED14: 0 | EE14: 0 | EF14: 0 | EG14: 166400 | EH14: 0 | EI14: 1395652 | EK14: 1 | EL14: 0 | EM14: 0 | EN14: 0 | EO14: 0 | EP14: 0 | EQ14: 0 | ER14: 0 | ES14: 0 | ET14: 0 | EU14: 0 | EV14: 0 | EW14: 0 | EX14: 0 | EY14: 0 | EZ14: 0 | FA14: 0 | FB14: 0 | FC14: 0 | FD14: 0 | FE14: 0 | FF14: 0 | FG14: 0 | FH14: 1 | FI14: 10 | FJ14: 2 | FK14: 0 | FL14: 0 | FM14: 2 | FN14: 3 | FO14: 0 | FP14: 0 | FQ14: 0 | FR14: 0 | FS14: 0 | FT14: 0 | FU14: 0 | FV14: 0 | FW14: 0 | FX14: 0 | FY14: 0 | FZ14: 0 | GA14: 0 | GB14: 0 | GC14: 0 | GD14: 0 | GE14: 0 | GF14: 17 | GG14: 1 | GH14: 17 | GI14: 376166.34 | GJ14: 325285 | GK14: 4000 | GL14: 20866 | GM14: 12444.24 | GN14: 13571.1 | GO14: 0 | GP14: 5 | GQ14: 19377 | GR14: 18000 | GS14: 0 | GT14: 0 | GU14: 0 | GV14: 1377 | GW14: 1 | GX14: 3 | GY14: 204904.34 | GZ14: 159400 | HA14: 0 | HB14: 20866 | HC14: 12444.24 | HD14: 12194.1 | HE14: 0 | HF14: 0 | HG14: 0 | HH14: 0 | HI14: 0 | HJ14: 0 | HK14: 0 | HL14: 0 | HM14: 0 | HN14: 0 | HO14: 0 | HP14: 0 | HQ14: 0 | HR14: 0 | HS14: 0 | HT14: 0 | HU14: 0 | HV14: 0 | HW14: 0 | HX14: 0 | HY14: 0 | HZ14: 0 | IA14: 0 | IB14: 0 | IC14: 0 | ID14: 9 | IE14: 151885 | IF14: 147885 | IG14: 4000 | IH14: 0 | II14: 0 | IJ14: No data | IL14: No | IM14: Yes | IN14: Yes | IO14: 1 | IP14: 0 | IQ14: 0 | IR14: 0 | IS14: 1 | IT14: 17189.04 | IU14: 0 | IV14: 0 | IW14: 0 | IX14: 17189.04 | IY14: 0 | IZ14: 0 | JA14: 0 | JB14: 0 | JC14: 0 | JD14: 17189.04 | JE14: 0 | JF14: 0 | JG14: 0 | JH14: 0 | JI14: 0 | JJ14: 0 | JK14: 0 | JL14: 0 | JM14: 0 | JN14: 0 | JO14: 0 | JP14: 0 | JQ14: 0 | JR14: 0 | JS14: -- | JT14: 0 | JU14: 0 | JV14: 0 | JW14: 0 | JX14: 0 | JY14: 0 | JZ14: 0 | KA14: 0 | KB14: 0 | KC14: 0 | KD14: 0 | KE14: 0 | KF14: 0 | KG14: 0 | KH14: -4744.8 | KI14: -- | KJ14: -4744.8 | KK14: 1 | KL14: 0 | KM14: 0 | KN14: 0 | KO14: 1 | KP14: 17189.04 | KQ14: -- | KR14: -- | KS14: -- | KT14: -4744.8 | KU14: 12444.24 | KV14: 17189.04 | KW14: 0 | KX14: 0 | KY14: 0 | KZ14: -4744.8 | LA14: 0.2760363581 | LB14: 12444.24 | LC14: 0 | LD14: 0 | LE14: 0 | LF14: 0 | LG14: 0 | LH14: 0 | LI14: 0 | LJ14: 0 | LK14: 0 | LL14: 0 | LM14: 0 | LN14: 0 | LO14: 0 | LP14: 0 | LQ14: 0 | LR14: 0 | LS14: 0 | LT14: 0 | LU14: 0 | LV14: =VLOOKUP(A14,[5]Data!$A$5:$CK$569,89,FALSE) -> 225172800.3 | LW14: 0 | LX14: 0 | LY14: 0 | LZ14: 0 | MA14: 0 | MB14: 0 | MC14: 0 | MD14: 0 | ME14: 0 | MF14: 0 | MG14: 0 | MH14: 0 | MI14: 0 | MJ14: 0 | MK14: 0 | ML14: 0 | MM14: 0 | MN14: 0 | MO14: 0 | MP14: -- | MQ14: -- | MR14: -- | MS14: -- | MT14: -- | MU14: -- | MW14: 0 | MX14: 0 | MY14: 0 | MZ14: -- | NA14: 186527920 | NB14: 0 | ND14: 0 | NE14: 0 | NF14: 0 | NG14: 0 | NH14: 0 | NI14: 0 | NJ14: 0 | NK14: 0 | NL14: 0 | NM14: 0 | NN14: 0 | NO14: 0 | NP14: 0 | NQ14: 0 | NR14: 0 | NS14: 0 | NT14: 0 | NU14: 0 | NV14: 0 | NW14: 0 | NX14: 0 | NY14: 0 | NZ14: 0 | OA14: 0 | OB14: 0 | OC14: 0 | OD14: 0 | OE14: 0 | OG14: 0 | OH14: 0 | OI14: No data | OJ14: No data | OL14: 0 | OM14: 0 | ON14: 0 | OO14: 0 | OP14: 0
A15: 0110 | B15: 110 | C15: Folsom borough | D15: Atlantic | E15: Folsom boroughAtlantic | F15: =IF(AND(M15=0,SUM(CN15:DJ15)=0,SUM(AI15:AW15)=0),"X","") ->  | I15: 1840 | J15: 8.26416659 | K15: 222.6479803 | M15: 0.95 | N15: 3815450.05 | O15: 3879538.85 | P15: 0.9834803046 | Q15: 54262.72 | S15: 260000 | T15: 25899.73 | U15: 207710.9 | V15: 0 | W15: 37545 | X15: 0 | Y15: 341775.64 | Z15: 0 | AA15: 76706.33 | AB15: 932144 | AC15: 0 | AD15: 0 | AE15: 0 | AF15: 0 | AG15: 0 | AH15: 1881781.6 | AI15: 290000 | AJ15: 24000 | AK15: 188301 | AL15: 0 | AM15: 38755 | AN15: 0 | AO15: 280878.68 | AP15: 0 | AQ15: 58000 | AR15: 831960.94 | AS15: 0 | AT15: 0 | AU15: 0 | AV15: 0 | AW15: 0 | AX15: 1711895.62 | AY15: 290000 | AZ15: 24000 | BA15: 188301 | BB15: 0 | BC15: 38755 | BD15: 0 | BE15: 280878.68 | BF15: 0 | BG15: 58000 | BH15: 831960.94 | BI15: 0 | BJ15: 0 | BK15: 0 | BL15: 0 | BM15: 0 | BN15: 1711895.62 | BP15: 279748 | BQ15: 18715 | BR15: 0 | BS15: 145845 | BT15: 3700 | BU15: 217275.92 | BV15: 30913.39 | BW15: 70500 | BX15: 0 | BY15: 0 | BZ15: 99000 | CA15: 192500 | CB15: 0 | CC15: 63289 | CD15: 0 | CE15: 70295 | CF15: 0 | CG15: 255450 | CH15: 34563 | CI15: 36570 | CJ15: 0 | CK15: 199284.95 | CL15: 0 | CM15: 1717649.26 | CN15: 288283 | CO15: 43000 | CP15: 0 | CQ15: 114476 | CR15: 3700 | CS15: 214001 | CT15: 14913.35 | CU15: 7500 | CV15: 0 | CW15: 0 | CX15: 94000 | CY15: 209500 | CZ15: 0 | DA15: 70663 | DB15: 0 | DC15: 73255 | DD15: 0 | DE15: 307028 | DF15: 34563 | DG15: 36570 | DH15: 0 | DI15: 200443.27 | DJ15: 0 | DK15: 1711895.62 | DL15: 288283 | DM15: 43000 | DN15: 0 | DO15: 114476 | DP15: 3700 | DQ15: 214001 | DR15: 7600 | DS15: 7500 | DT15: 0 | DU15: 0 | DV15: 94000 | DW15: 209500 | DX15: 0 | DY15: 70663 | DZ15: 0 | EA15: 73255 | EB15: 0 | EC15: 307028 | ED15: 34563 | EE15: 36570 | EF15: 0 | EG15: 200443.27 | EH15: 0 | EI15: 1704582.27 | EK15: 1 | EL15: 0 | EM15: 0 | EN15: 0 | EO15: 0 | EP15: 2 | EQ15: 0 | ER15: 0 | ES15: 0 | ET15: 0 | EU15: 0 | EV15: 0 | EW15: 0 | EX15: 0 | EY15: 0 | EZ15: 0 | FA15: 0 | FB15: 0 | FC15: 0 | FD15: 0 | FE15: 0 | FF15: 0 | FG15: 0 | FH15: 3 | FI15: 11 | FJ15: 3 | FK15: 0 | FL15: 0 | FM15: 2 | FN15: 1 | FO15: 0 | FP15: 0 | FQ15: 0 | FR15: 0 | FS15: 0 | FT15: 0 | FU15: 0 | FV15: 0 | FW15: 0 | FX15: 0 | FY15: 0 | FZ15: 0 | GA15: 0 | GB15: 0 | GC15: 0 | GD15: 0 | GE15: 0 | GF15: 17 | GG15: 3 | GH15: 17 | GI15: 406111.8945 | GJ15: 310555.04 | GK15: 5000 | GL15: 24634.8139 | GM15: 42164.58 | GN15: 23757.46056 | GO15: 0 | GP15: 7 | GQ15: 23683 | GR15: 22000 | GS15: 0 | GT15: 0 | GU15: 0 | GV15: 1683 | GW15: 2 | GX15: 0 | GY15: 199994.8729 | GZ15: 134835.18 | HA15: 0 | HB15: 16180.2216 | HC15: 38664.58 | HD15: 10314.89127 | HE15: 0 | HF15: 0 | HG15: 0 | HH15: 0 | HI15: 0 | HJ15: 0 | HK15: 0 | HL15: 0 | HM15: 0 | HN15: 0 | HO15: 0 | HP15: 0 | HQ15: 0 | HR15: 0 | HS15: 0 | HT15: 0 | HU15: 0 | HV15: 0 | HW15: 0 | HX15: 0 | HY15: 0 | HZ15: 0 | IA15: 0 | IB15: 0 | IC15: 1 | ID15: 10 | IE15: 182434.0216 | IF15: 153719.86 | IG15: 5000 | IH15: 8454.5923 | II15: 3500 | IJ15: 11759.56929 | IL15: No | IM15: Yes | IN15: Yes | IO15: 0 | IP15: 0 | IQ15: 0 | IR15: 1 | IS15: 1 | IT15: 0 | IU15: 0 | IV15: 0 | IW15: 50134.2 | IX15: 0 | IY15: 0 | IZ15: 0 | JA15: 50134.2 | JB15: -11469.62 | JC15: 0.2287783589 | JD15: 38664.58 | JE15: 0 | JF15: 0 | JG15: 0 | JH15: 0 | JI15: 0 | JJ15: 0 | JK15: 0 | JL15: 0 | JM15: 0 | JN15: 0 | JO15: 0 | JP15: 0 | JQ15: 0 | JR15: 0 | JS15: -- | JT15: 0 | JU15: 0 | JV15: 0 | JW15: 0 | JX15: 1 | JY15: 1 | JZ15: 0 | KA15: 0 | KB15: 0 | KC15: 0 | KD15: 0 | KE15: 0 | KF15: 0 | KG15: 0 | KH15: 0 | KI15: -- | KJ15: 0 | KK15: 0 | KL15: 0 | KM15: 0 | KN15: 2 | KO15: 2 | KP15: -- | KQ15: -- | KR15: -- | KS15: 25067.1 | KT15: -5734.81 | KU15: 19332.29 | KV15: 0 | KW15: 0 | KX15: 0 | KY15: 50134.2 | KZ15: -11469.62 | LA15: 0.2287783589 | LB15: 38664.58 | LC15: 3700000 | LD15: 0 | LE15: 341442.32 | LF15: 0 | LG15: 0 | LH15: 64482.55 | LI15: 0 | LJ15: 4105924.87 | LK15: 2267.214174 | LL15: 3700000 | LM15: 0 | LN15: 0 | LO15: 341442.32 | LP15: 0 | LQ15: 0 | LR15: 64482.55 | LS15: 0 | LT15: 405924.87 | LU15: 224.1440475 | LV15: =VLOOKUP(A15,[5]Data!$A$5:$CK$569,89,FALSE) -> 225399747 | LW15: 0.001800910939 | LX15: 0 | LY15: 0 | LZ15: 0 | MA15: 0 | MB15: 31729.6 | MC15: 2832.4 | MD15: 0 | ME15: 0 | MF15: 31729.6 | MG15: 2832.4 | MH15: 34562 | MI15: 32879.04 | MJ15: 0 | MK15: 0 | ML15: 0 | MM15: 0 | MN15: 0 | MO15: 0 | MP15: -- | MQ15: -- | MR15: -- | MS15: -- | MT15: -- | MU15: -- | MW15: 0 | MX15: 0 | MY15: 0 | MZ15: -- | NA15: 186401100 | NB15: 0 | ND15: 0 | NE15: 0 | NF15: 0 | NG15: 0 | NH15: 0 | NI15: 0 | NJ15: 0 | NK15: 0 | NL15: 0 | NM15: 0 | NN15: 0 | NO15: 0 | NP15: 0 | NQ15: 0 | NR15: 0 | NS15: 0 | NT15: 0 | NU15: 0 | NV15: 0 | NW15: 0 | NX15: 0 | NY15: 0 | NZ15: 0 | OA15: 0 | OB15: 0 | OC15: 0 | OD15: 0 | OE15: 0 | OG15: 49.16 | OH15: 11996.63 | OI15: 0 | OJ15: 0 | OL15: 0 | OM15: 0 | ON15: 0 | OO15: 0 | OP15: 0
A16: 0111 | B16: 111 | C16: Galloway township | D16: Atlantic | E16: Galloway townshipAtlantic | F16: =IF(AND(M16=0,SUM(CN16:DJ16)=0,SUM(AI16:AW16)=0),"X","") ->  | I16: 38347 | J16: 88.66782353 | K16: 432.4793197 | M16: 0.979 | N16: 93355204.44 | O16: 93692570.34 | P16: 0.9963992246 | Q16: 89717.26 | S16: 8120814 | T16: 9794435.09 | U16: 2881243.87 | V16: 735134 | W16: 0 | X16: 0 | Y16: 697370.06 | Z16: 1328391.27 | AA16: 108716.8 | AB16: 20340618.7 | AC16: 0 | AD16: 0 | AE16: 0 | AF16: 0 | AG16: 0 | AH16: 44006723.79 | AI16: 9304235 | AJ16: 8505000 | AK16: 2613560 | AL16: 500000 | AM16: 0 | AN16: 0 | AO16: 848219.66 | AP16: 1315000 | AQ16: 0 | AR16: 18582793.78 | AS16: 0 | AT16: 0 | AU16: 0 | AV16: 0 | AW16: 0 | AX16: 41668808.44 | AY16: 6904663 | AZ16: 2105000 | BA16: 2613560 | BB16: 500000 | BC16: 0 | BD16: 0 | BE16: 848219.66 | BF16: 1315000 | BG16: 0 | BH16: 18582793.78 | BI16: 0 | BJ16: 0 | BK16: 0 | BL16: 0 | BM16: 0 | BN16: 32869236.44 | BP16: 8506838 | BQ16: 130950 | BR16: 549633.34 | BS16: 4416659 | BT16: 10279795 | BU16: 2643190 | BV16: 3000 | BW16: 279340 | BX16: 0 | BY16: 710662.64 | BZ16: 1489000 | CA16: 131800 | CB16: 0 | CC16: 3720723 | CD16: 0 | CE16: 0 | CF16: 0 | CG16: 1433000 | CH16: 3832096.26 | CI16: 0 | CJ16: 0 | CK16: 2023919.14 | CL16: 0 | CM16: 40150606.38 | CN16: 8654724 | CO16: 126350 | CP16: 475300 | CQ16: 4544788 | CR16: 10688770 | CS16: 2838740 | CT16: 3000 | CU16: 305190 | CV16: 0 | CW16: 861512.24 | CX16: 1573000 | CY16: 131800 | CZ16: 0 | DA16: 3958199.97 | DB16: 0 | DC16: 0 | DD16: 0 | DE16: 1400000 | DF16: 4079195.56 | DG16: 0 | DH16: 0 | DI16: 2028238.67 | DJ16: 0 | DK16: 41668808.44 | DL16: 2230724 | DM16: 126350 | DN16: 475300 | DO16: 4544788 | DP16: 10688770 | DQ16: 2838740 | DR16: 3000 | DS16: 305190 | DT16: 0 | DU16: 10000 | DV16: 1573000 | DW16: 131800 | DX16: 0 | DY16: 3705827.97 | DZ16: 0 | EA16: 0 | EB16: 0 | EC16: 500000 | ED16: 2855995.56 | EE16: 0 | EF16: 0 | EG16: 2028238.67 | EH16: 0 | EI16: 32017724.2 | EK16: 0 | EL16: 0 | EM16: 0 | EN16: 0 | EO16: 0 | EP16: 0 | EQ16: 0 | ER16: 0 | ES16: 0 | ET16: 0 | EU16: 0 | EV16: 0 | EW16: 0 | EX16: 0 | EY16: 0 | EZ16: 0 | FA16: 0 | FB16: 0 | FC16: 0 | FD16: 0 | FE16: 0 | FF16: 0 | FG16: 0 | FH16: 0 | FI16: 0 | FJ16: 0 | FK16: 0 | FL16: 0 | FM16: 0 | FN16: 0 | FO16: 0 | FP16: 0 | FQ16: 0 | FR16: 0 | FS16: 0 | FT16: 0 | FU16: 0 | FV16: 0 | FW16: 0 | FX16: 0 | FY16: 0 | FZ16: 0 | GA16: 0 | GB16: 0 | GC16: 0 | GD16: 0 | GE16: 0 | GF16: 0 | GG16: -- | GH16: 7 | GI16: 19664660.02 | GJ16: 12340560.25 | GK16: 441950 | GL16: 2906403.998 | GM16: 2953947.38 | GN16: 1021798.389 | GO16: 0 | GP16: 7 | GQ16: 70771.2472 | GR16: 63324 | GS16: 0 | GT16: 2204.02 | GU16: 0 | GV16: 5243.2272 | GW16: 0 | GX16: 0 | GY16: 3013290.176 | GZ16: 1998522 | HA16: 0 | HB16: 341947.1142 | HC16: 507343.44 | HD16: 165477.6216 | HE16: No data | HF16: No data | HG16: 10222913.6 | HH16: 6497082 | HI16: 204950 | HJ16: 2091824.52 | HK16: 891098.69 | HL16: 537958.3896 | HM16: 0 | HN16: 0 | HO16: 0 | HP16: 0 | HQ16: 0 | HR16: 0 | HS16: 0 | HT16: 0 | HU16: 0 | HV16: 0 | HW16: 5620247.783 | HX16: 3242115.25 | HY16: 237000 | HZ16: 441314.31 | IA16: 1431371.08 | IB16: 268447.1427 | IC16: 0 | ID16: 0 | IE16: 737437.2114 | IF16: 539517 | IG16: 0 | IH16: 29114.0338 | II16: 124134.17 | IJ16: 44672.0076 | IL16: No | IM16: Yes | IN16: Yes | IO16: 42 | IP16: 15 | IQ16: 18 | IR16: 50 | IS16: 125 | IT16: 15955.29 | IU16: 23975.43 | IV16: 28576.05 | IW16: 37290.35 | IX16: 670122.18 | IY16: 359631.45 | IZ16: 514368.9 | JA16: 1864517.5 | JB16: 0 | JC16: 0 | JD16: 3408640.03 | JE16: 0 | JF16: 0 | JG16: 0 | JH16: 0 | JI16: 0 | JJ16: 0 | JK16: 0 | JL16: 0 | JM16: 0 | JN16: 0 | JO16: 0 | JP16: 0 | JQ16: 0 | JR16: 0 | JS16: -- | JT16: 0 | JU16: 0 | JV16: 0 | JW16: 0 | JX16: 0 | JY16: 0 | JZ16: 0 | KA16: 0 | KB16: 0 | KC16: 0 | KD16: 0 | KE16: 0 | KF16: 0 | KG16: 0 | KH16: 0 | KI16: -- | KJ16: 0 | KK16: 42 | KL16: 15 | KM16: 18 | KN16: 50 | KO16: 125 | KP16: 15955.29 | KQ16: 23975.43 | KR16: 28576.05 | KS16: 37290.35 | KT16: 0 | KU16: 27269.12024 | KV16: 670122.18 | KW16: 359631.45 | KX16: 514368.9 | KY16: 1864517.5 | KZ16: 0 | LA16: 0 | LB16: 3408640.03 | LC16: 0 | LD16: 22399893.51 | LE16: 1198591.99 | LF16: 0 | LG16: 8264280 | LH16: 0 | LI16: 35221 | LJ16: 31897986.5 | LK16: 843.5719594 | LL16: 23598485.5 | LM16: 0 | LN16: 0 | LO16: 0 | LP16: 0 | LQ16: 8264280 | LR16: 0 | LS16: 35221 | LT16: 8299501 | LU16: 219.4880332 | LV16: =VLOOKUP(A16,[5]Data!$A$5:$CK$569,89,FALSE) -> 4060915828 | LW16: 0.002043751053 | LX16: 61591.99 | LY16: 7665 | LZ16: 3550000 | MA16: 400000 | MB16: 0 | MC16: 0 | MD16: 5705 | ME16: 290.56 | MF16: 3617296.99 | MG16: 407955.56 | MH16: 4025252.55 | MI16: 71081.32 | MJ16: 58500.7 | MK16: 39210 | ML16: 0 | MM16: 0 | MN16: 0 | MO16: 0 | MP16: AA | MQ16: 2014 | MR16: -- | MS16: -- | MT16: -- | MU16: -- | MW16: 0 | MX16: 0 | MY16: 309362 | MZ16: 0 | NA16: 3538581297 | NB16: 0 | ND16: 0 | NE16: 0 | NF16: 2 | NG16: 0 | NH16: 0 | NI16: 0 | NJ16: 0 | NK16: 0 | NL16: 0 | NM16: 0 | NN16: 0 | NO16: 0 | NP16: 0 | NQ16: 0 | NR16: 0 | NS16: 0 | NT16: 50000 | NU16: 0 | NV16: 0 | NW16: 0 | NX16: 0 | NY16: 0 | NZ16: 0 | OA16: 0 | OB16: 0 | OC16: 0 | OD16: 0 | OE16: 0 | OG16: 3916.95 | OH16: 635995.36 | OI16: 0 | OJ16: 0 | OL16: 0 | OM16: 0 | ON16: 0 | OO16: 0 | OP16: 0
A17: 0112 | B17: 112 | C17: Hamilton township | D17: Atlantic | E17: Hamilton townshipAtlantic | F17: =IF(AND(M17=0,SUM(CN17:DJ17)=0,SUM(AI17:AW17)=0),"X","") ->  | I17: 28669 | J17: 110.8950106 | K17: 258.523804 | M17: 0.98 | N17: 69921168.63 | O17: 70454601.1 | P17: 0.9924287064 | Q17: 418672.97 | S17: 4095550 | T17: 1350697.3 | U17: 3181173.13 | V17: 434309.25 | W17: 504022.82 | X17: 0 | Y17: 1457439.84 | Z17: 632314.35 | AA17: 420451.9 | AB17: 20973854.29 | AC17: 0 | AD17: 0 | AE17: 0 | AF17: 0 | AG17: 0 | AH17: 33049812.88 | AI17: 4150000 | AJ17: 882000 | AK17: 2893813 | AL17: 470000 | AM17: 637000 | AN17: 0 | AO17: 59116.94 | AP17: 583000 | AQ17: 400000 | AR17: 20652772.95 | AS17: 0 | AT17: 0 | AU17: 0 | AV17: 0 | AW17: 0 | AX17: 30727702.89 | AY17: 4150000 | AZ17: 882000 | BA17: 2893813 | BB17: 470000 | BC17: 637000 | BD17: 0 | BE17: 59116.94 | BF17: 583000 | BG17: 400000 | BH17: 20652772.95 | BI17: 0 | BJ17: 0 | BK17: 0 | BL17: 0 | BM17: 0 | BN17: 30727702.89 | BP17: 2850502 | BQ17: 297750 | BR17: 520600 | BS17: 3624799 | BT17: 8083605 | BU17: 5260500 | BV17: 43000 | BW17: 0 | BX17: 0 | BY17: 250000 | BZ17: 1254000 | CA17: 0 | CB17: 50000 | CC17: 3213250 | CD17: 0 | CE17: 258740.83 | CF17: 224000 | CG17: 558400 | CH17: 1962925 | CI17: 5715.7 | CJ17: 0 | CK17: 1484314.82 | CL17: 0 | CM17: 29942102.35 | CN17: 2921750 | CO17: 383900 | CP17: 463500 | CQ17: 4019890 | CR17: 8808505 | CS17: 5228800 | CT17: 43000 | CU17: 0 | CV17: 0 | CW17: 200000 | CX17: 1240000 | CY17: 0 | CZ17: 50000 | DA17: 3300779.58 | DB17: 0 | DC17: 209855.91 | DD17: 224000 | DE17: 100000 | DF17: 2001550 | DG17: 0 | DH17: 0 | DI17: 1473055.459 | DJ17: 0 | DK17: 30668585.95 | DL17: 2921750 | DM17: 383900 | DN17: 463500 | DO17: 4019890 | DP17: 8808505 | DQ17: 5228800 | DR17: 43000 | DS17: 0 | DT17: 0 | DU17: 200000 | DV17: 1240000 | DW17: 0 | DX17: 50000 | DY17: 3300779.58 | DZ17: 0 | EA17: 209855.91 | EB17: 224000 | EC17: 100000 | ED17: 2001550 | EE17: 0 | EF17: 0 | EG17: 1473055.459 | EH17: 0 | EI17: 30668585.95 | EK17: 0 | EL17: 0 | EM17: 0 | EN17: 0 | EO17: 0 | EP17: 0 | EQ17: 0 | ER17: 0 | ES17: 0 | ET17: 0 | EU17: 0 | EV17: 0 | EW17: 0 | EX17: 0 | EY17: 0 | EZ17: 0 | FA17: 0 | FB17: 0 | FC17: 0 | FD17: 0 | FE17: 0 | FF17: 0 | FG17: 0 | FH17: 0 | FI17: 0 | FJ17: 0 | FK17: 0 | FL17: 0 | FM17: 0 | FN17: 0 | FO17: 0 | FP17: 0 | FQ17: 0 | FR17: 0 | FS17: 0 | FT17: 0 | FU17: 0 | FV17: 0 | FW17: 0 | FX17: 0 | FY17: 0 | FZ17: 0 | GA17: 0 | GB17: 0 | GC17: 0 | GD17: 0 | GE17: 0 | GF17: 0 | GG17: 124 | GH17: 18 | GI17: 17097505.65 | GJ17: 10327412.99 | GK17: 643187.62 | GL17: 2761857.948 | GM17: 2575000 | GN17: 790047.0937 | GO17: 0 | GP17: 5 | GQ17: 69565.20623 | GR17: 64621.65 | GS17: 0 | GT17: 0 | GU17: 0 | GV17: 4943.556225 | GW17: 10 | GX17: 0 | GY17: 1611073.379 | GZ17: 1080530.34 | HA17: 51909.87 | HB17: 183690.1578 | HC17: 212282.44 | HD17: 82660.57101 | HE17: 53 | HF17: 2 | HG17: 9436635.564 | HH17: 5651019 | HI17: 419920.58 | HJ17: 1977856.65 | HK17: 955536.38 | HL17: 432302.9535 | HM17: 0 | HN17: 0 | HO17: 0 | HP17: 0 | HQ17: 0 | HR17: 0 | HS17: 0 | HT17: 0 | HU17: 35 | HV17: 6 | HW17: 3294603.888 | HX17: 1827235 | HY17: 122591 | HZ17: 310629.95 | IA17: 894364.46 | IB17: 139783.4775 | IC17: 26 | ID17: 5 | IE17: 2685627.616 | IF17: 1704007 | IG17: 48766.17 | IH17: 289681.19 | II17: 512816.72 | IJ17: 130356.5355 | IL17: No | IM17: Yes | IN17: Yes | IO17: 30 | IP17: 11 | IQ17: 11 | IR17: 34 | IS17: 86 | IT17: 16501.18 | IU17: 30541.59 | IV17: 34536.15 | IW17: 46892.04 | IX17: 495035.4 | IY17: 335957.49 | IZ17: 379897.65 | JA17: 1594329.36 | JB17: -691772.7 | JC17: 0.2466019509 | JD17: 2113447.2 | JE17: 0 | JF17: 0 | JG17: 0 | JH17: 0 | JI17: 0 | JJ17: 0 | JK17: 0 | JL17: 0 | JM17: 0 | JN17: 0 | JO17: 0 | JP17: 0 | JQ17: 0 | JR17: 0 | JS17: -- | JT17: 0 | JU17: 0 | JV17: 0 | JW17: 0 | JX17: 0 | JY17: 0 | JZ17: 0 | KA17: 0 | KB17: 0 | KC17: 0 | KD17: 0 | KE17: 0 | KF17: 0 | KG17: 0 | KH17: 0 | KI17: -- | KJ17: 0 | KK17: 30 | KL17: 11 | KM17: 11 | KN17: 34 | KO17: 86 | KP17: 16501.18 | KQ17: 30541.59 | KR17: 34536.15 | KS17: 46892.04 | KT17: -8043.868605 | KU17: 24574.96744 | KV17: 495035.4 | KW17: 335957.49 | KX17: 379897.65 | KY17: 1594329.36 | KZ17: -691772.7 | LA17: 0.2466019509 | LB17: 2113447.2 | LC17: 22710000 | LD17: 44315000 | LE17: 6836722.6 | LF17: 0 | LG17: 5350000 | LH17: 4775000 | LI17: 0 | LJ17: 83986722.6 | LK17: 3055.840584 | LL17: 67025000 | LM17: 0 | LN17: 0 | LO17: 6836722.6 | LP17: 0 | LQ17: 5350000 | LR17: 4775000 | LS17: 0 | LT17: 16961722.6 | LU17: 617.1489812 | LV17: =VLOOKUP(A17,[5]Data!$A$5:$CK$569,89,FALSE) -> 2982365597 | LW17: 0.005687338472 | LX17: 0 | LY17: 0 | LZ17: 0 | MA17: 0 | MB17: 0 | MC17: 0 | MD17: 0 | ME17: 0 | MF17: 0 | MG17: 0 | MH17: 0 | MI17: 0 | MJ17: 0 | MK17: 0 | ML17: 0 | MM17: 0 | MN17: 0 | MO17: 0 | MP17: -- | MQ17: -- | MR17: AA- | MS17: 2019 | MT17: -- | MU17: -- | MW17: 0 | MX17: 0 | MY17: 45895.89 | MZ17: 0 | NA17: 2518718768 | NB17: 0 | ND17: 3 | NE17: 0 | NF17: 0 | NG17: 0 | NH17: 0 | NI17: 0 | NJ17: 0 | NK17: 4019.08 | NL17: 0 | NM17: 0 | NN17: 0 | NO17: 0 | NP17: 0 | NQ17: 0 | NR17: 496100 | NS17: 0 | NT17: 0 | NU17: 0 | NV17: 0 | NW17: 0 | NX17: 0 | NY17: 17021.19 | NZ17: 0 | OA17: 0 | OB17: 0 | OC17: 0 | OD17: 0 | OE17: 0 | OG17: 51217.81 | OH17: 2480327.55 | OI17: 173609.32 | OJ17: 100000 | OL17: 150000 | OM17: 0 | ON17: 0 | OO17: 150000 | OP17: 300000
A18: 0113 | B18: 113 | C18: Hammonton town | D18: Atlantic | E18: Hammonton townAtlantic | F18: =IF(AND(M18=0,SUM(CN18:DJ18)=0,SUM(AI18:AW18)=0),"X","") ->  | I18: 15036 | J18: 40.74939852 | K18: 368.9870415 | M18: 0.97 | N18: 39242201.04 | O18: 39327394.1 | P18: 0.9978337476 | Q18: 983586.99 | S18: 2694493.7 | T18: 7186511.07 | U18: 1424631.94 | V18: 226928 | W18: 0 | X18: 0 | Y18: 717038.84 | Z18: 1155464.42 | AA18: 6507.36 | AB18: 12369208.6 | AC18: 0 | AD18: 0 | AE18: 0 | AF18: 0 | AG18: 0 | AH18: 25780783.93 | AI18: 2570000 | AJ18: 7153500 | AK18: 1295493 | AL18: 220000 | AM18: 0 | AN18: 0 | AO18: 22216.93 | AP18: 904482.35 | AQ18: 6000 | AR18: 11462546.37 | AS18: 0 | AT18: 0 | AU18: 0 | AV18: 0 | AW18: 0 | AX18: 23634238.65 | AY18: 2300000 | AZ18: 873500 | BA18: 1295493 | BB18: 220000 | BC18: 0 | BD18: 0 | BE18: 22216.93 | BF18: 901982.96 | BG18: 6000 | BH18: 11462546.37 | BI18: 0 | BJ18: 0 | BK18: 0 | BL18: 0 | BM18: 0 | BN18: 17081739.26 | BP18: 890865.96 | BQ18: 40420 | BR18: 249040.2 | BS18: 2669445.97 | BT18: 4468688.29 | BU18: 6657762.03 | BV18: 5090 | BW18: 566800 | BX18: 0 | BY18: 27000 | BZ18: 454000 | CA18: 0 | CB18: 0 | CC18: 1394853 | CD18: 0 | CE18: 0 | CF18: 346649.5 | CG18: 75000 | CH18: 5336450 | CI18: 8140.29 | CJ18: 0 | CK18: 1192574.42 | CL18: 0 | CM18: 24382779.66 | CN18: 876356.25 | CO18: 43799.5 | CP18: 222958.72 | CQ18: 2914190.25 | CR18: 4766541.28 | CS18: 6546204.15 | CT18: 5090 | CU18: 292002 | CV18: 0 | CW18: 152074.57 | CX18: 365000 | CY18: 0 | CZ18: 0 | DA18: 1712388 | DB18: 0 | DC18: 0 | DD18: 408702 | DE18: 200000 | DF18: 3878259 | DG18: 50236.54 | DH18: 0 | DI18: 1200436.39 | DJ18: 0 | DK18: 23634238.65 | DL18: 876356.25 | DM18: 43799.5 | DN18: 222958.72 | DO18: 2914190.25 | DP18: 4766541.28 | DQ18: 2053941.3 | DR18: 5090 | DS18: 292002 | DT18: 0 | DU18: 152074.57 | DV18: 365000 | DW18: 0 | DX18: 0 | DY18: 1418388 | DZ18: 0 | EA18: 0 | EB18: 408702 | EC18: 100000 | ED18: 2228259 | EE18: 34000 | EF18: 0 | EG18: 1200436.39 | EH18: 0 | EI18: 17081739.26 | EK18: 10 | EL18: 1 | EM18: 2 | EN18: 0 | EO18: 37 | EP18: 19 | EQ18: 0 | ER18: 3 | ES18: 0 | ET18: 0 | EU18: 0 | EV18: 0 | EW18: 0 | EX18: 0 | EY18: 0 | EZ18: 0 | FA18: 4 | FB18: 0 | FC18: 0 | FD18: 0 | FE18: 0 | FF18: 0 | FG18: 0 | FH18: 76 | FI18: 7 | FJ18: 0 | FK18: 5 | FL18: 0 | FM18: 10 | FN18: 0 | FO18: 0 | FP18: 1 | FQ18: 0 | FR18: 0 | FS18: 0 | FT18: 0 | FU18: 0 | FV18: 0 | FW18: 0 | FX18: 0 | FY18: 1 | FZ18: 0 | GA18: 0 | GB18: 0 | GC18: 0 | GD18: 0 | GE18: 0 | GF18: 24 | GG18: 76 | GH18: 24 | GI18: 9981042.23 | GJ18: 6638994.02 | GK18: 595881.78 | GL18: 1192232.26 | GM18: 1111696.91 | GN18: 442237.26 | GO18: 0 | GP18: 7 | GQ18: 39834 | GR18: 36000 | GS18: 0 | GT18: 1080 | GU18: 0 | GV18: 2754 | GW18: 3 | GX18: 1 | GY18: 529720.12 | GZ18: 388682 | HA18: 2800 | HB18: 65550.12 | HC18: 43280.62 | HD18: 29407.38 | HE18: 33 | HF18: 6 | HG18: 5657021.11 | HH18: 3715001 | HI18: 434990.9 | HJ18: 781562.03 | HK18: 518048.2 | HL18: 207418.98 | HM18: 0 | HN18: 0 | HO18: 0 | HP18: 0 | HQ18: 0 | HR18: 0 | HS18: 0 | HT18: 0 | HU18: 32 | HV18: 3 | HW18: 2862748.75 | HX18: 1877300 | HY18: 113158.88 | HZ18: 257469.61 | IA18: 462591.47 | IB18: 152228.79 | IC18: 8 | ID18: 7 | IE18: 891718.25 | IF18: 622011.02 | IG18: 44932 | IH18: 86570.5 | II18: 87776.62 | IJ18: 50428.11 | IL18: Yes | IM18: Yes | IN18: Yes | IO18: 27 | IP18: 4 | IQ18: 6 | IR18: 16 | IS18: 53 | IT18: 16337.16 | IU18: 28900.32 | IV18: 32779.68 | IW18: 45861.46 | IX18: 441103.32 | IY18: 115601.28 | IZ18: 196678.08 | JA18: 733783.36 | JB18: -362410.92 | JC18: 0.2436923049 | JD18: 1124755.12 | JE18: 0 | JF18: 0 | JG18: 0 | JH18: 0 | JI18: 0 | JJ18: 0 | JK18: 0 | JL18: 0 | JM18: 0 | JN18: 0 | JO18: 0 | JP18: 0 | JQ18: 0 | JR18: 0 | JS18: -- | JT18: 0 | JU18: 14 | JV18: 8 | JW18: 17 | JX18: 17 | JY18: 56 | JZ18: 12597.33 | KA18: 23663.95 | KB18: 12572.57 | KC18: 47302.11 | KD18: 176362.62 | KE18: 189311.6 | KF18: 213733.69 | KG18: 804135.87 | KH18: 0 | KI18: 0 | KJ18: 1383543.78 | KK18: 41 | KL18: 12 | KM18: 23 | KN18: 33 | KO18: 109 | KP18: 15060.14488 | KQ18: 25409.40667 | KR18: 17843.99 | KS18: 46603.61303 | KT18: -3324.870826 | KU18: 23011.91651 | KV18: 617465.94 | KW18: 304912.88 | KX18: 410411.77 | KY18: 1537919.23 | KZ18: -362410.92 | LA18: 0.1262443586 | LB18: 2508298.9 | LC18: 11530000 | LD18: 0 | LE18: 13938854.99 | LF18: 0 | LG18: 207259 | LH18: 14965000 | LI18: 560481.78 | LJ18: 41201595.77 | LK18: 2800.733857 | LL18: 25310354.99 | LM18: 0 | LN18: 0 | LO18: 158500 | LP18: 0 | LQ18: 207259 | LR18: 14965000 | LS18: 560481.78 | LT18: 15891240.78 | LU18: 1080.228454 | LV18: =VLOOKUP(A18,[5]Data!$A$5:$CK$569,89,FALSE) -> 1757396759 | LW18: 0.009042488955 | LX18: 1345000 | LY18: 305000 | LZ18: 207259 | MA18: 10000 | MB18: 1485000 | MC18: 455000 | MD18: 59035.75 | ME18: 10915.93 | MF18: 3096294.75 | MG18: 780915.93 | MH18: 3877210.68 | MI18: 3637480.59 | MJ18: 3647215.32 | MK18: 23285284.33 | ML18: 0 | MM18: 0 | MN18: 0 | MO18: 0 | MP18: -- | MQ18: -- | MR18: AA- | MS18: 2024 | MT18: -- | MU18: -- | MW18: 0 | MX18: 0 | MY18: 0 | MZ18: -- | NA18: 1536230700 | NB18: 0 | ND18: 0 | NE18: 0 | NF18: 0 | NG18: 0 | NH18: 0 | NI18: 0 | NJ18: 0 | NK18: 0 | NL18: 0 | NM18: 0 | NN18: 0 | NO18: 0 | NP18: 0 | NQ18: 0 | NR18: 0 | NS18: 0 | NT18: 0 | NU18: 0 | NV18: 0 | NW18: 0 | NX18: 0 | NY18: 0 | NZ18: 0 | OA18: 0 | OB18: 0 | OC18: 0 | OD18: 0 | OE18: 0 | OG18: 4756 | OH18: 72000 | OI18: 0 | OJ18: 0 | OL18: 0 | OM18: 0 | ON18: 0 | OO18: 0 | OP18: 0
A19: 0114 | B19: 114 | C19: Linwood city | D19: Atlantic | E19: Linwood cityAtlantic | F19: =IF(AND(M19=0,SUM(CN19:DJ19)=0,SUM(AI19:AW19)=0),"X","") ->  | I19: 7072 | J19: 3.811454928 | K19: 1855.459433 | M19: 0.9891 | N19: 35821189.88 | O19: 36209011.78 | P19: 0.9892893542 | Q19: 329596.35 | S19: 1040000 | T19: 1632395.44 | U19: 609720.04 | V19: 293255 | W19: 0 | X19: 0 | Y19: 1074691.13 | Z19: 91976.57 | AA19: 265694.34 | AB19: 9316276.87 | AC19: 404023 | AD19: 0 | AE19: 0 | AF19: 200850 | AG19: 0 | AH19: 14928882.39 | AI19: 521673.46 | AJ19: 1618700 | AK19: 606750.54 | AL19: 293000 | AM19: 0 | AN19: 0 | AO19: 271432.53 | AP19: 91964.69 | AQ19: 320000 | AR19: 10062533.17 | AS19: 448730 | AT19: 0 | AU19: 0 | AV19: 0 | AW19: 0 | AX19: 14234784.39 | AY19: 521673.46 | AZ19: 1618700 | BA19: 606750.54 | BB19: 293000 | BC19: 0 | BD19: 0 | BE19: 271432.53 | BF19: 91964.69 | BG19: 320000 | BH19: 10062533.17 | BI19: 448730 | BJ19: 0 | BK19: 0 | BL19: 0 | BM19: 0 | BN19: 14234784.39 | BP19: 1806445.99 | BQ19: 28295 | BR19: 179734 | BS19: 2088001 | BT19: 2936516.98 | BU19: 1161623 | BV19: 14900 | BW19: 48277 | BX19: 404023 | BY19: 5 | BZ19: 1198626 | CA19: 838965 | CB19: 500 | CC19: 1194878.52 | CD19: 0 | CE19: 771348 | CF19: 0 | CG19: 120675 | CH19: 1521479.59 | CI19: 0 | CJ19: 200850 | CK19: 400000 | CL19: 0 | CM19: 14915143.08 | CN19: 1091687.8 | CO19: 45501 | CP19: 182121 | CQ19: 2151755 | CR19: 3174702.39 | CS19: 1274270 | CT19: 12400 | CU19: 36748 | CV19: 448730 | CW19: 5 | CX19: 1183373 | CY19: 858520 | CZ19: 500 | DA19: 1235629.88 | DB19: 0 | DC19: 774542 | DD19: 0 | DE19: 46875 | DF19: 1313424.02 | DG19: 0 | DH19: 0 | DI19: 404000 | DJ19: 0 | DK19: 14234784.09 | DL19: 1091687.8 | DM19: 45501 | DN19: 182121 | DO19: 2151755 | DP19: 3174702.39 | DQ19: 1274270 | DR19: 12400 | DS19: 36748 | DT19: 448730 | DU19: 5 | DV19: 1183373 | DW19: 858520 | DX19: 500 | DY19: 1235629.88 | DZ19: 0 | EA19: 774542 | EB19: 0 | EC19: 46875 | ED19: 1313424.02 | EE19: 0 | EF19: 0 | EG19: 404000 | EH19: 0 | EI19: 14234784.09 | EK19: 4 | EL19: 0 | EM19: 1 | EN19: 0 | EO19: 22 | EP19: 9 | EQ19: 0 | ER19: 0 | ES19: 0 | ET19: 0 | EU19: 0 | EV19: 0 | EW19: 0 | EX19: 0 | EY19: 0 | EZ19: 0 | FA19: 0 | FB19: 0 | FC19: 0 | FD19: 0 | FE19: 0 | FF19: 0 | FG19: 0 | FH19: 36 | FI19: 10 | FJ19: 1 | FK19: 5 | FL19: 0 | FM19: 35 | FN19: 0 | FO19: 0 | FP19: 1 | FQ19: 0 | FR19: 0 | FS19: 0 | FT19: 0 | FU19: 0 | FV19: 0 | FW19: 0 | FX19: 0 | FY19: 0 | FZ19: 0 | GA19: 0 | GB19: 0 | GC19: 0 | GD19: 0 | GE19: 0 | GF19: 52 | GG19: 36 | GH19: 52 | GI19: 6724425.359 | GJ19: 3692027 | GK19: 308994 | GL19: 1085349.369 | GM19: 960842.14 | GN19: 677212.85 | GO19: 0 | GP19: 8 | GQ19: 77143.95 | GR19: 65935 | GS19: 0 | GT19: 0 | GU19: 0 | GV19: 11208.95 | GW19: 3 | GX19: 0 | GY19: 433515.3273 | GZ19: 282493 | HA19: 12416 | HB19: 49747.0173 | HC19: 40835.5 | HD19: 48023.81 | HE19: 17 | HF19: 3 | HG19: 3691414.244 | HH19: 1948423 | HI19: 195000 | HJ19: 711953.7642 | HK19: 471655.57 | HL19: 364381.91 | HM19: 4 | HN19: 6 | HO19: 806731.5242 | HP19: 411823 | HQ19: 53578 | HR19: 150480.1242 | HS19: 111732.23 | HT19: 79118.17 | HU19: 9 | HV19: 0 | HW19: 974432.2401 | HX19: 489841 | HY19: 43000 | HZ19: 86261.0001 | IA19: 264747.27 | IB19: 90582.97 | IC19: 3 | ID19: 35 | IE19: 741188.0732 | IF19: 493512 | IG19: 5000 | IH19: 86907.4632 | II19: 71871.57 | IJ19: 83897.04 | IL19: No | IM19: No | IN19: No | IO19: 7 | IP19: 4 | IQ19: 5 | IR19: 16 | IS19: 32 | IT19: 17257.44 | IU19: 32159.04 | IV19: 34820.76 | IW19: 49023.84 | IX19: 120802.08 | IY19: 128636.16 | IZ19: 174103.8 | JA19: 784381.44 | JB19: -270162.7 | JC19: 0.2236587867 | JD19: 937760.78 | JE19: 0 | JF19: 0 | JG19: 0 | JH19: 0 | JI19: 0 | JJ19: 0 | JK19: 0 | JL19: 0 | JM19: 0 | JN19: 0 | JO19: 0 | JP19: 0 | JQ19: 0 | JR19: 0 | JS19: -- | JT19: 0 | JU19: 10 | JV19: 0 | JW19: 11 | JX19: 6 | JY19: 27 | JZ19: 12063.74 | KA19: 0 | KB19: 20009.09 | KC19: 49866.92 | KD19: 120637.4 | KE19: 0 | KF19: 220099.99 | KG19: 299201.52 | KH19: 0 | KI19: 0 | KJ19: 639938.91 | KK19: 17 | KL19: 4 | KM19: 16 | KN19: 22 | KO19: 59 | KP19: 14202.32235 | KQ19: 32159.04 | KR19: 24637.73688 | KS19: 49253.77091 | KT19: -4579.028814 | KU19: 26740.67271 | KV19: 241439.48 | KW19: 128636.16 | KX19: 394203.79 | KY19: 1083582.96 | KZ19: -270162.7 | LA19: 0.1462028241 | LB19: 1577699.69 | LC19: 1560000 | LD19: 3991544.31 | LE19: 3094721 | LF19: 0 | LG19: 3855000 | LH19: 6305000 | LI19: 537951.05 | LJ19: 19344216.36 | LK19: 2774.955725 | LL19: 5551544.31 | LM19: 0 | LN19: 0 | LO19: 3094721 | LP19: 0 | LQ19: 3855000 | LR19: 6305000 | LS19: 537951.05 | LT19: 13792672.05 | LU19: 1978.57869 | LV19: =VLOOKUP(A19,[5]Data!$A$5:$CK$569,89,FALSE) -> 1204912283 | LW19: 0.01144703415 | LX19: 0 | LY19: 0 | LZ19: 0 | MA19: 122423.02 | MB19: 910000 | MC19: 195250 | MD19: 78776 | ME19: 6974 | MF19: 988776 | MG19: 324647.02 | MH19: 1313423.02 | MI19: 1193600 | MJ19: 1259600 | MK19: 3890538 | ML19: 0 | MM19: 0 | MN19: 0 | MO19: 0 | MP19: A1 | MQ19: 2020 | MR19: -- | MS19: -- | MT19: -- | MU19: -- | MW19: 0 | MX19: 0 | MY19: 0 | MZ19: -- | NA19: 1015600100 | NB19: 0 | ND19: 0 | NE19: 0 | NF19: 0 | NG19: 0 | NH19: 0 | NI19: 0 | NJ19: 0 | NK19: 0 | NL19: 0 | NM19: 0 | NN19: 0 | NO19: 0 | NP19: 0 | NQ19: 0 | NR19: 0 | NS19: 0 | NT19: 0 | NU19: 0 | NV19: 0 | NW19: 0 | NX19: 0 | NY19: 0 | NZ19: 0 | OA19: 0 | OB19: 0 | OC19: 0 | OD19: 0 | OE19: 0 | OG19: 1800.04 | OH19: 586575.66 | OI19: 0 | OJ19: 0 | OL19: 0 | OM19: 0 | ON19: 0 | OO19: 0 | OP19: 0
A20: 0115 | B20: 115 | C20: Longport borough | D20: Atlantic | E20: Longport boroughAtlantic | F20: =IF(AND(M20=0,SUM(CN20:DJ20)=0,SUM(AI20:AW20)=0),"X","") ->  | I20: 884 | J20: 0.3951684472 | K20: 2237.020709 | M20: 0.9828 | N20: 22202135.58 | O20: 22299446.36 | P20: 0.9956361796 | Q20: 97310.78 | S20: 1102903.27 | T20: 2058134.38 | U20: 136565.49 | V20: 143229 | W20: 0 | X20: 1285479.26 | Y20: 0 | Z20: 126110.19 | AA20: 79298.05 | AB20: 7594273.06 | AC20: 968333.12 | AD20: 0 | AE20: 0 | AF20: 0 | AG20: 0 | AH20: 13494325.82 | AI20: 974408 | AJ20: 2024150 | AK20: 123804 | AL20: 143000 | AM20: 0 | AN20: 2348926.93 | AO20: 0 | AP20: 96534.73 | AQ20: 85000 | AR20: 7894211.19 | AS20: 1042294.29 | AT20: 0 | AU20: 0 | AV20: 0 | AW20: 0 | AX20: 14732329.14 | AY20: 850000 | AZ20: 679150 | BA20: 123804 | BB20: 143000 | BC20: 0 | BD20: 2348926.93 | BE20: 0 | BF20: 96534.73 | BG20: 85000 | BH20: 7894211.19 | BI20: 1042294.29 | BJ20: 0 | BK20: 0 | BL20: 0 | BM20: 0 | BN20: 13262921.14 | BP20: 751212.38 | BQ20: 111700 | BR20: 309500 | BS20: 989300 | BT20: 3090520.71 | BU20: 1380900 | BV20: 5700 | BW20: 68000 | BX20: 0 | BY20: 17000 | BZ20: 426500 | CA20: 173500 | CB20: 0 | CC20: 1059319.8 | CD20: 0 | CE20: 348390 | CF20: 23825 | CG20: 286250 | CH20: 1653443.76 | CI20: 42540.77 | CJ20: 0 | CK20: 360000 | CL20: 125000 | CM20: 11222602.42 | CN20: 786750 | CO20: 118500 | CP20: 294200 | CQ20: 1007000 | CR20: 3208294.66 | CS20: 1345000 | CT20: 6000 | CU20: 73000 | CV20: 0 | CW20: 16000 | CX20: 445000 | CY20: 182500 | CZ20: 0 | DA20: 1144524 | DB20: 0 | DC20: 358000 | DD20: 24500 | DE20: 75000 | DF20: 1725339.26 | DG20: 500 | DH20: 0 | DI20: 390000 | DJ20: 139000 | DK20: 11339107.92 | DL20: 786750 | DM20: 118500 | DN20: 294200 | DO20: 1007000 | DP20: 3208294.66 | DQ20: 535000 | DR20: 6000 | DS20: 73000 | DT20: 0 | DU20: 16000 | DV20: 445000 | DW20: 182500 | DX20: 0 | DY20: 1113524 | DZ20: 0 | EA20: 358000 | EB20: 24500 | EC20: 75000 | ED20: 1238431.26 | EE20: 0 | EF20: 0 | EG20: 390000 | EH20: 0 | EI20: 9871699.92 | EK20: 3 | EL20: 0.92 | EM20: 2.93 | EN20: 0 | EO20: 15.15 | EP20: 8 | EQ20: 0 | ER20: 0 | ES20: 0 | ET20: 0 | EU20: 0 | EV20: 0 | EW20: 0 | EX20: 0 | EY20: 0 | EZ20: 0 | FA20: 0 | FB20: 0 | FC20: 0 | FD20: 0 | FE20: 0 | FF20: 0 | FG20: 0 | FH20: 30 | FI20: 5.5 | FJ20: 0 | FK20: 4 | FL20: 0 | FM20: 113 | FN20: 1.5 | FO20: 0 | FP20: 1 | FQ20: 0 | FR20: 0 | FS20: 0 | FT20: 0 | FU20: 0 | FV20: 0 | FW20: 0 | FX20: 0 | FY20: 2 | FZ20: 0 | GA20: 0 | GB20: 0 | GC20: 0 | GD20: 0 | GE20: 0 | GF20: 127 | GG20: 29 | GH20: 128 | GI20: 5917493.43 | GJ20: 4087630.66 | GK20: 193250 | GL20: 791524 | GM20: 517601.4 | GN20: 327487.3705 | GO20: 0 | GP20: 3 | GQ20: 48442.5 | GR20: 45000 | GS20: 0 | GT20: 0 | GU20: 0 | GV20: 3442.5 | GW20: 5 | GX20: 3 | GY20: 941922.727 | GZ20: 588658 | HA20: 0 | HB20: 207717 | HC20: 100515.39 | HD20: 45032.337 | HE20: 14 | HF20: 3 | HG20: 2659552.09 | HH20: 1677830.66 | HI20: 123250 | HJ20: 453807 | HK20: 266881.76 | HL20: 137782.6705 | HM20: 0 | HN20: 2 | HO20: 140967.675 | HP20: 130950 | HQ20: 0 | HR20: 0 | HS20: 0 | HT20: 10017.675 | HU20: 7 | HV20: 62 | HW20: 1588867.953 | HX20: 1164142 | HY20: 70000 | HZ20: 130000 | IA20: 130314.09 | IB20: 94411.863 | IC20: 3 | ID20: 55 | IE20: 537740.485 | IF20: 481050 | IG20: 0 | IH20: 0 | II20: 19890.16 | IJ20: 36800.325 | IL20: No | IM20: No | IN20: No | IO20: 9 | IP20: 3 | IQ20: 3 | IR20: 7 | IS20: 22 | IT20: 17517.84 | IU20: 31362.52 | IV20: 35035.56 | IW20: 48879.36 | IX20: 157660.56 | IY20: 94087.56 | IZ20: 105106.68 | JA20: 342155.52 | JB20: -157433.52 | JC20: 0.2252234559 | JD20: 541576.8 | JE20: 0 | JF20: 0 | JG20: 0 | JH20: 0 | JI20: 0 | JJ20: 0 | JK20: 0 | JL20: 0 | JM20: 0 | JN20: 0 | JO20: 0 | JP20: 0 | JQ20: 0 | JR20: 0 | JS20: -- | JT20: 0 | JU20: 0 | JV20: 0 | JW20: 0 | JX20: 0 | JY20: 0 | JZ20: 0 | KA20: 0 | KB20: 0 | KC20: 0 | KD20: 0 | KE20: 0 | KF20: 0 | KG20: 0 | KH20: 0 | KI20: -- | KJ20: 0 | KK20: 9 | KL20: 3 | KM20: 3 | KN20: 7 | KO20: 22 | KP20: 17517.84 | KQ20: 31362.52 | KR20: 35035.56 | KS20: 48879.36 | KT20: -7156.069091 | KU20: 24617.12727 | KV20: 157660.56 | KW20: 94087.56 | KX20: 105106.68 | KY20: 342155.52 | KZ20: -157433.52 | LA20: 0.2252234559 | LB20: 541576.8 | LC20: 0 | LD20: 0 | LE20: 6010000 | LF20: 0 | LG20: 4013750 | LH20: 6530000 | LI20: 0 | LJ20: 16553750 | LK20: 21304.69755 | LL20: 6010000 | LM20: 0 | LN20: 0 | LO20: 0 | LP20: 0 | LQ20: 4013750 | LR20: 6530000 | LS20: 0 | LT20: 10543750 | LU20: 13569.81982 | LV20: =VLOOKUP(A20,[5]Data!$A$5:$CK$569,89,FALSE) -> 2818653692 | LW20: 0.003740704305 | LX20: 180000 | LY20: 75062.5 | LZ20: 145000 | MA20: 287220 | MB20: 875000 | MC20: 185256.26 | MD20: 0 | ME20: 0 | MF20: 1200000 | MG20: 547538.76 | MH20: 1747538.76 | MI20: 1266418.76 | MJ20: 1229318.76 | MK20: 4741906.28 | ML20: 0 | MM20: 0 | MN20: 0 | MO20: 0 | MP20: -- | MQ20: -- | MR20: AA+ | MS20: 2019 | MT20: -- | MU20: -- | MW20: 0 | MX20: 0 | MY20: 0 | MZ20: -- | NA20: 1930952800 | NB20: 0 | ND20: 0 | NE20: 0 | NF20: 0 | NG20: 0 | NH20: 0 | NI20: 0 | NJ20: 0 | NK20: 0 | NL20: 0 | NM20: 0 | NN20: 0 | NO20: 0 | NP20: 0 | NQ20: 0 | NR20: 0 | NS20: 0 | NT20: 0 | NU20: 0 | NV20: 0 | NW20: 0 | NX20: 0 | NY20: 0 | NZ20: 0 | OA20: 0 | OB20: 0 | OC20: 0 | OD20: 0 | OE20: 0 | OG20: 1357.91 | OH20: 373052.49 | OI20: 0 | OJ20: 0 | OL20: 0 | OM20: 0 | ON20: 0 | OO20: 0 | OP20: 0
A21: 0116 | B21: 116 | C21: Margate City city | D21: Atlantic | E21: Margate City cityAtlantic | F21: =IF(AND(M21=0,SUM(CN21:DJ21)=0,SUM(AI21:AW21)=0),"X","") ->  | I21: 5239 | J21: 1.416103217 | K21: 3699.589083 | M21: 0.965 | N21: 68828283.87 | O21: 69464873.6 | P21: 0.9908358038 | Q21: 632273.91 | S21: 6535000 | T21: 7494286.59 | U21: 853329.68 | V21: 502804 | W21: 0 | X21: 0 | Y21: 74292 | Z21: 1783804.14 | AA21: 620493.73 | AB21: 28488415.66 | AC21: 2258172 | AD21: 0 | AE21: 0 | AF21: 1001000 | AG21: 0 | AH21: 49611597.8 | AI21: 6177500 | AJ21: 6881360.64 | AK21: 773590 | AL21: 100000 | AM21: 0 | AN21: 0 | AO21: 3677.03 | AP21: 1612000 | AQ21: 600000 | AR21: 27289805.18 | AS21: 2613200 | AT21: 0 | AU21: 0 | AV21: 1001000 | AW21: 0 | AX21: 47052132.85 | AY21: 5081000 | AZ21: 1426900 | BA21: 773590 | BB21: 100000 | BC21: 0 | BD21: 0 | BE21: 3677.03 | BF21: 1612000 | BG21: 600000 | BH21: 27289805.18 | BI21: 2613200 | BJ21: 0 | BK21: 0 | BL21: 1001000 | BM21: 0 | BN21: 40501172.21 | BP21: 2450546.26 | BQ21: 186450 | BR21: 687815.4 | BS21: 4409960 | BT21: 9020005.63 | BU21: 7718218.57 | BV21: 9200 | BW21: 1836223.95 | BX21: 2258172 | BY21: 352000 | BZ21: 906000 | CA21: 18713.34 | CB21: 50000 | CC21: 4408938.05 | CD21: 0 | CE21: 0 | CF21: 303200 | CG21: 1226500 | CH21: 5782400 | CI21: 1390000 | CJ21: 1001000 | CK21: 2403798.29 | CL21: 100000 | CM21: 46519141.49 | CN21: 2480725 | CO21: 220000 | CP21: 773000 | CQ21: 4030000 | CR21: 9231179.41 | CS21: 7796300 | CT21: 9200 | CU21: 2001200 | CV21: 2613200 | CW21: 327300 | CX21: 985000 | CY21: 11297.62 | CZ21: 50000 | DA21: 4406330 | DB21: 0 | DC21: 0 | DD21: 370650 | DE21: 975000 | DF21: 6957400 | DG21: 200210.64 | DH21: 1001000 | DI21: 2513140.18 | DJ21: 100000 | DK21: 47052132.85 | DL21: 2475725 | DM21: 220000 | DN21: 773000 | DO21: 4030000 | DP21: 9228800 | DQ21: 3496300 | DR21: 9200 | DS21: 2001200 | DT21: 2613200 | DU21: 327300 | DV21: 985000 | DW21: 10000 | DX21: 50000 | DY21: 4264330 | DZ21: 0 | EA21: 0 | EB21: 370650 | EC21: 475000 | ED21: 5512400 | EE21: 136250 | EF21: 1001000 | EG21: 2513140.18 | EH21: 0 | EI21: 40492495.18 | EK21: 14 | EL21: 1 | EM21: 3 | EN21: 0 | EO21: 76 | EP21: 32 | EQ21: 0 | ER21: 6 | ES21: 0 | ET21: 0 | EU21: 0 | EV21: 0 | EW21: 0 | EX21: 0 | EY21: 0 | EZ21: 0 | FA21: 3 | FB21: 0 | FC21: 0 | FD21: 0 | FE21: 0 | FF21: 0 | FG21: 0 | FH21: 135 | FI21: 6 | FJ21: 1 | FK21: 0 | FL21: 0 | FM21: 16 | FN21: 3 | FO21: 0 | FP21: 203 | FQ21: 0 | FR21: 0 | FS21: 0 | FT21: 0 | FU21: 0 | FV21: 0 | FW21: 0 | FX21: 0 | FY21: 1 | FZ21: 0 | GA21: 0 | GB21: 0 | GC21: 0 | GD21: 0 | GE21: 0 | GF21: 230 | GG21: 135 | GH21: 230 | GI21: 22286972.03 | GJ21: 15015819.06 | GK21: 711899.62 | GL21: 3837528.76 | GM21: 2015784.06 | GN21: 705940.53 | GO21: 0 | GP21: 3 | GQ21: 103794.71 | GR21: 88863 | GS21: 0 | GT21: 6845.18 | GU21: 0 | GV21: 8086.53 | GW21: 15 | GX21: 3 | GY21: 3223279.02 | GZ21: 2339529 | HA21: 2090 | HB21: 492684.6 | HC21: 229077.48 | HD21: 159897.94 | HE21: 29 | HF21: 0 | HG21: 4930602.57 | HH21: 3148913.55 | HI21: 300380.49 | HJ21: 1144153.8 | HK21: 291495.48 | HL21: 45659.25 | HM21: 36 | HN21: 0 | HO21: 6253439.25 | HP21: 4083460.42 | HQ21: 179448.73 | HR21: 1462879.04 | HS21: 468440.88 | HT21: 59210.18 | HU21: 44 | HV21: 74 | HW21: 5688584.03 | HX21: 3786810 | HY21: 227093.46 | HZ21: 558035.39 | IA21: 812766.42 | IB21: 303878.76 | IC21: 11 | ID21: 150 | IE21: 2087272.45 | IF21: 1568243.09 | IG21: 2886.94 | IH21: 172930.75 | II21: 214003.8 | IJ21: 129207.87 | IL21: Yes | IM21: No | IN21: No | IO21: 37 | IP21: 8 | IQ21: 15 | IR21: 39 | IS21: 99 | IT21: 14596.54 | IU21: 26412 | IV21: 29439.2 | IW21: 41128.92 | IX21: 540071.98 | IY21: 211296 | IZ21: 441588 | JA21: 1604027.88 | JB21: -794280 | JC21: 0.2839773269 | JD21: 2002703.86 | JE21: 0 | JF21: 0 | JG21: 0 | JH21: 0 | JI21: 0 | JJ21: 0 | JK21: 0 | JL21: 0 | JM21: 0 | JN21: 0 | JO21: 0 | JP21: 0 | JQ21: 0 | JR21: 0 | JS21: -- | JT21: 0 | JU21: 0 | JV21: 0 | JW21: 0 | JX21: 0 | JY21: 0 | JZ21: 0 | KA21: 0 | KB21: 0 | KC21: 0 | KD21: 0 | KE21: 0 | KF21: 0 | KG21: 0 | KH21: 0 | KI21: -- | KJ21: 0 | KK21: 37 | KL21: 8 | KM21: 15 | KN21: 39 | KO21: 99 | KP21: 14596.54 | KQ21: 26412 | KR21: 29439.2 | KS21: 41128.92 | KT21: -8023.030303 | KU21: 20229.33192 | KV21: 540071.98 | KW21: 211296 | KX21: 441588 | KY21: 1604027.88 | KZ21: -794280 | LA21: 0.2839773269 | LB21: 2002703.86 | LC21: 5770000 | LD21: 0 | LE21: 20233971.16 | LF21: 0 | LG21: 0 | LH21: 42085000 | LI21: 128905.24 | LJ21: 68217876.4 | LK21: 12830.14414 | LL21: 25865931.46 | LM21: 0 | LN21: 0 | LO21: 1941250 | LP21: 0 | LQ21: 0 | LR21: 40281789.7 | LS21: 128905.24 | LT21: 42351944.94 | LU21: 7965.383664 | LV21: =VLOOKUP(A21,[5]Data!$A$5:$CK$569,89,FALSE) -> 6754236635 | LW21: 0.006270426582 | LX21: 1035000 | LY21: 410000 | LZ21: 0 | MA21: 0 | MB21: 4135000 | MC21: 1340000 | MD21: 34900 | ME21: 2500 | MF21: 5204900 | MG21: 1752500 | MH21: 6957400 | MI21: 7352953 | MJ21: 7597952 | MK21: 43061928 | ML21: 0 | MM21: 0 | MN21: 0 | MO21: 0 | MP21: Aa2 | MQ21: 2011 | MR21: AA+ | MS21: 2024 | MT21: -- | MU21: -- | MW21: 39600 | MX21: 5993300 | MY21: 102365.56 | MZ21: 0.3868488582 | NA21: 3914958100 | NB21: 0.001530872067 | ND21: 0 | NE21: 0 | NF21: 0 | NG21: 0 | NH21: 0 | NI21: 0 | NJ21: 0 | NK21: 0 | NL21: 0 | NM21: 0 | NN21: 0 | NO21: 0 | NP21: 0 | NQ21: 0 | NR21: 0 | NS21: 0 | NT21: 0 | NU21: 0 | NV21: 0 | NW21: 0 | NX21: 0 | NY21: 0 | NZ21: 0 | OA21: 0 | OB21: 0 | OC21: 0 | OD21: 0 | OE21: 0 | OG21: 5728 | OH21: 1998798 | OI21: 0 | OJ21: 0 | OL21: 0 | OM21: 0 | ON21: 375300 | OO21: 0 | OP21: 375300
A22: 0117 | B22: 117 | C22: Mullica township | D22: Atlantic | E22: Mullica townshipAtlantic | F22: =IF(AND(M22=0,SUM(CN22:DJ22)=0,SUM(AI22:AW22)=0),"X","") ->  | I22: 5878 | J22: 56.375387 | K22: 104.2653596 | M22: 0.956 | N22: 16056993.38 | O22: 16670082.58 | P22: 0.9632221858 | Q22: 505913.24 | S22: 1124138 | T22: 295998.22 | U22: 555317.19 | V22: 89050 | W22: 114807.45 | X22: 0 | Y22: 438677.16 | Z22: 0 | AA22: 512811.55 | AB22: 4896539.47 | AC22: 0 | AD22: 0 | AE22: 0 | AF22: 0 | AG22: 0 | AH22: 8027339.04 | AI22: 1395000 | AJ22: 219050 | AK22: 508194 | AL22: 70000 | AM22: 100000 | AN22: 0 | AO22: 267234.33 | AP22: 0 | AQ22: 400000 | AR22: 4995904.72 | AS22: 0 | AT22: 0 | AU22: 0 | AV22: 0 | AW22: 0 | AX22: 7955383.05 | AY22: 1395000 | AZ22: 219050 | BA22: 508194 | BB22: 70000 | BC22: 100000 | BD22: 0 | BE22: 267234.33 | BF22: 0 | BG22: 400000 | BH22: 4995904.72 | BI22: 0 | BJ22: 0 | BK22: 0 | BL22: 0 | BM22: 0 | BN22: 7955383.05 | BP22: 609501 | BQ22: 56500 | BR22: 115500 | BS22: 1341400 | BT22: 1648886.58 | BU22: 449860.39 | BV22: 18922.3 | BW22: 80000 | BX22: 0 | BY22: 132000 | BZ22: 224000 | CA22: 210271.79 | CB22: 0 | CC22: 702391.56 | CD22: 0 | CE22: 729001 | CF22: 0 | CG22: 275450 | CH22: 336300 | CI22: 0 | CJ22: 0 | CK22: 742251.06 | CL22: 0 | CM22: 7672235.68 | CN22: 640681.97 | CO22: 75500 | CP22: 125000 | CQ22: 1580850 | CR22: 1689702.49 | CS22: 467501 | CT22: 18622.3 | CU22: 30000 | CV22: 0 | CW22: 10000 | CX22: 239000 | CY22: 210000 | CZ22: 0 | DA22: 758283 | DB22: 0 | DC22: 735001 | DD22: 0 | DE22: 234190 | DF22: 384430.56 | DG22: 0 | DH22: 0 | DI22: 756620.73 | DJ22: 0 | DK22: 7955383.05 | DL22: 640681.97 | DM22: 75500 | DN22: 125000 | DO22: 1580850 | DP22: 1606800 | DQ22: 467501 | DR22: 9700 | DS22: 30000 | DT22: 0 | DU22: 10000 | DV22: 239000 | DW22: 210000 | DX22: 0 | DY22: 758283 | DZ22: 0 | EA22: 735001 | EB22: 0 | EC22: 234190 | ED22: 384430.56 | EE22: 0 | EF22: 0 | EG22: 756620.73 | EH22: 0 | EI22: 7863558.26 | EK22: 3 | EL22: 0 | EM22: 0 | EN22: 0 | EO22: 17 | EP22: 5 | EQ22: 0 | ER22: 0 | ES22: 0 | ET22: 0 | EU22: 0 | EV22: 0 | EW22: 0 | EX22: 0 | EY22: 0 | EZ22: 0 | FA22: 0 | FB22: 0 | FC22: 0 | FD22: 0 | FE22: 0 | FF22: 0 | FG22: 0 | FH22: 25 | FI22: 8 | FJ22: 1 | FK22: 3 | FL22: 0 | FM22: 4 | FN22: 0 | FO22: 0 | FP22: 0 | FQ22: 0 | FR22: 0 | FS22: 0 | FT22: 0 | FU22: 0 | FV22: 0 | FW22: 0 | FX22: 0 | FY22: 0 | FZ22: 0 | GA22: 0 | GB22: 0 | GC22: 0 | GD22: 0 | GE22: 0 | GF22: 16 | GG22: 25 | GH22: 16 | GI22: 3284234.411 | GJ22: 2007917 | GK22: 90000 | GL22: 443496.76 | GM22: 589215 | GN22: 153605.6505 | GO22: 0 | GP22: 5 | GQ22: 16147.5 | GR22: 15000 | GS22: 0 | GT22: 0 | GU22: 0 | GV22: 1147.5 | GW22: 4 | GX22: 1 | GY22: 615012.5 | GZ22: 425000 | HA22: 0 | HB22: 59500 | HC22: 98000 | HD22: 32512.5 | HE22: 15 | HF22: 2 | HG22: 1972124.91 | HH22: 1174917 | HI22: 70000 | HJ22: 328976.76 | HK22: 308350 | HL22: 89881.1505 | HM22: 0 | HN22: 0 | HO22: 0 | HP22: 0 | HQ22: 0 | HR22: 0 | HS22: 0 | HT22: 0 | HU22: 4 | HV22: 0 | HW22: 311273 | HX22: 148000 | HY22: 20000 | HZ22: 20720 | IA22: 111231 | IB22: 11322 | IC22: 2 | ID22: 8 | IE22: 369676.5 | IF22: 245000 | IG22: 0 | IH22: 34300 | II22: 71634 | IJ22: 18742.5 | IL22: No | IM22: Yes | IN22: Yes | IO22: 6 | IP22: 1 | IQ22: 3 | IR22: 9 | IS22: 19 | IT22: 23500 | IU22: 32596 | IV22: 36048.24 | IW22: 50409 | IX22: 141000 | IY22: 32596 | IZ22: 108144.72 | JA22: 453681 | JB22: -164862.91 | JC22: 0.2241746545 | JD22: 570558.81 | JE22: 0 | JF22: 0 | JG22: 0 | JH22: 0 | JI22: 0 | JJ22: 0 | JK22: 0 | JL22: 0 | JM22: 0 | JN22: 0 | JO22: 0 | JP22: 0 | JQ22: 0 | JR22: 0 | JS22: -- | JT22: 0 | JU22: 5 | JV22: 0 | JW22: 10 | JX22: 7 | JY22: 22 | JZ22: 12145 | KA22: 0 | KB22: 29852 | KC22: 51409 | KD22: 60725 | KE22: 0 | KF22: 298520 | KG22: 359863 | KH22: -18272.64 | KI22: 0.02541014702 | KJ22: 700835.36 | KK22: 11 | KL22: 1 | KM22: 13 | KN22: 16 | KO22: 41 | KP22: 18338.63636 | KQ22: 32596 | KR22: 31281.90154 | KS22: 50846.5 | KT22: -4466.720732 | KU22: 31009.6139 | KV22: 201725 | KW22: 32596 | KX22: 406664.72 | KY22: 813544 | KZ22: -183135.55 | LA22: 0.1259070526 | LB22: 1271394.17 | LC22: 2840000 | LD22: 3758191.19 | LE22: 4.656612873e-10 | LF22: 0 | LG22: 1049000 | LH22: 0 | LI22: 0 | LJ22: 7647191.19 | LK22: 1314.854056 | LL22: 7647191.19 | LM22: 0 | LN22: 0 | LO22: 0 | LP22: 0 | LQ22: 0 | LR22: 0 | LS22: 0 | LT22: 0 | LU22: 0 | LV22: =VLOOKUP(A22,[5]Data!$A$5:$CK$569,89,FALSE) -> 681329047.3 | LW22: 0 | LX22: 0 | LY22: 0 | LZ22: 160000 | MA22: 48716.23 | MB22: 0 | MC22: 0 | MD22: 0 | ME22: 0 | MF22: 160000 | MG22: 48716.23 | MH22: 208716.23 | MI22: 0 | MJ22: 0 | MK22: 0 | ML22: 0 | MM22: 0 | MN22: 0 | MO22: 0 | MP22: A1 | MQ22: 2024 | MR22: -- | MS22: -- | MT22: -- | MU22: -- | MW22: 0 | MX22: 0 | MY22: 0 | MZ22: -- | NA22: 487727200 | NB22: 0 | ND22: 0 | NE22: 0 | NF22: 0 | NG22: 0 | NH22: 0 | NI22: 0 | NJ22: 0 | NK22: 0 | NL22: 0 | NM22: 0 | NN22: 0 | NO22: 0 | NP22: 0 | NQ22: 0 | NR22: 0 | NS22: 0 | NT22: 0 | NU22: 0 | NV22: 0 | NW22: 0 | NX22: 0 | NY22: 0 | NZ22: 0 | OA22: 0 | OB22: 0 | OC22: 0 | OD22: 0 | OE22: 0 | OG22: 3577.16 | OH22: 176297.72 | OI22: 0 | OJ22: 0 | OL22: 0 | OM22: 0 | ON22: 0 | OO22: 0 | OP22: 0
A23: 0118 | B23: 118 | C23: Northfield city | D23: Atlantic | E23: Northfield cityAtlantic | F23: =IF(AND(M23=0,SUM(CN23:DJ23)=0,SUM(AI23:AW23)=0),"X","") ->  | I23: 8527 | J23: 3.582464395 | K23: 2380.205093 | M23: 0.9675 | N23: 31441165.6 | O23: 31801166.78 | P23: 0.9886796235 | Q23: 332466.37 | S23: 2195000 | T23: 2052045.97 | U23: 705893.83 | V23: 136397.68 | W23: 0 | X23: 0 | Y23: 530381.63 | Z23: 32020 | AA23: 229853.46 | AB23: 9537605.12 | AC23: 359941 | AD23: 0 | AE23: 0 | AF23: 0 | AG23: 0 | AH23: 15779138.69 | AI23: 2000000 | AJ23: 1796500 | AK23: 639927 | AL23: 135000 | AM23: 0 | AN23: 0 | AO23: 334593.94 | AP23: 182020 | AQ23: 225000 | AR23: 9565208.96 | AS23: 420086 | AT23: 0 | AU23: 0 | AV23: 0 | AW23: 0 | AX23: 15298335.9 | AY23: 2000000 | AZ23: 1796500 | BA23: 639927 | BB23: 135000 | BC23: 0 | BD23: 0 | BE23: 334593.94 | BF23: 182020 | BG23: 225000 | BH23: 9565208.96 | BI23: 420086 | BJ23: 0 | BK23: 0 | BL23: 0 | BM23: 0 | BN23: 15298335.9 | BP23: 871920 | BQ23: 77000 | BR23: 143500 | BS23: 2316043 | BT23: 3858217.55 | BU23: 968176 | BV23: 19187.67 | BW23: 71200 | BX23: 359941 | BY23: 0 | BZ23: 455001 | CA23: 851955.94 | CB23: 0 | CC23: 1318914.81 | CD23: 0 | CE23: 1181520 | CF23: 0 | CG23: 266690 | CH23: 1035000 | CI23: 0 | CJ23: 0 | CK23: 1117258.06 | CL23: 0 | CM23: 14911525.03 | CN23: 854750 | CO23: 215800 | CP23: 167000 | CQ23: 2547958 | CR23: 3703605 | CS23: 848201 | CT23: 19187.48 | CU23: 4000 | CV23: 420086 | CW23: 0 | CX23: 460001 | CY23: 910000 | CZ23: 0 | DA23: 1250843 | DB23: 0 | DC23: 1358248 | DD23: 0 | DE23: 299190 | DF23: 1172195 | DG23: 0 | DH23: 0 | DI23: 1067271.42 | DJ23: 0 | DK23: 15298335.9 | DL23: 854750 | DM23: 215800 | DN23: 167000 | DO23: 2547958 | DP23: 3531965 | DQ23: 848201 | DR23: 9300 | DS23: 4000 | DT23: 420086 | DU23: 0 | DV23: 460001 | DW23: 910000 | DX23: 0 | DY23: 1250843 | DZ23: 0 | EA23: 1358248 | EB23: 0 | EC23: 35000 | ED23: 1172195 | EE23: 0 | EF23: 0 | EG23: 1067271.42 | EH23: 0 | EI23: 14852618.42 | EK23: 5 | EL23: 0 | EM23: 1 | EN23: 0 | EO23: 37 | EP23: 10 | EQ23: 0 | ER23: 0 | ES23: 0 | ET23: 0 | EU23: 0 | EV23: 0 | EW23: 0 | EX23: 0 | EY23: 0 | EZ23: 0 | FA23: 0 | FB23: 0 | FC23: 0 | FD23: 0 | FE23: 0 | FF23: 0 | FG23: 0 | FH23: 53 | FI23: 11 | FJ23: 3 | FK23: 4 | FL23: 0 | FM23: 32 | FN23: 0 | FO23: 0 | FP23: 0 | FQ23: 0 | FR23: 0 | FS23: 0 | FT23: 0 | FU23: 0 | FV23: 0 | FW23: 0 | FX23: 0 | FY23: 0 | FZ23: 0 | GA23: 0 | GB23: 0 | GC23: 0 | GD23: 0 | GE23: 0 | GF23: 50 | GG23: 53 | GH23: 50 | GI23: 6925169.558 | GJ23: 4650955 | GK23: 122000 | GL23: 978020 | GM23: 1027471 | GN23: 146723.5575 | GO23: 0 | GP23: 8 | GQ23: 76383.0575 | GR23: 70955 | GS23: 0 | GT23: 0 | GU23: 0 | GV23: 5428.0575 | GW23: 4 | GX23: 1 | GY23: 759883 | GZ23: 570000 | HA23: 0 | HB23: 74100 | HC23: 72178 | HD23: 43605 | HE23: 22 | HF23: 0 | HG23: 3178669 | HH23: 2123000 | HI23: 70000 | HJ23: 573210 | HK23: 412459 | HL23: 0 | HM23: 5 | HN23: 10 | HO23: 942534 | HP23: 610000 | HQ23: 35000 | HR23: 164700 | HS23: 132834 | HT23: 0 | HU23: 20 | HV23: 22 | HW23: 1328037.5 | HX23: 775000 | HY23: 15000 | HZ23: 100750 | IA23: 378000 | IB23: 59287.5 | IC23: 2 | ID23: 9 | IE23: 639663 | IF23: 502000 | IG23: 2000 | IH23: 65260 | II23: 32000 | IJ23: 38403 | IL23: No | IM23: Yes | IN23: Yes | IO23: 13 | IP23: 6 | IQ23: 5 | IR23: 15 | IS23: 39 | IT23: 17910 | IU23: 30162 | IV23: 34853 | IW23: 50183 | IX23: 232830 | IY23: 180972 | IZ23: 174265 | JA23: 752745 | JB23: -312952.18 | JC23: 0.2334049665 | JD23: 1027859.82 | JE23: 0 | JF23: 0 | JG23: 0 | JH23: 0 | JI23: 0 | JJ23: 0 | JK23: 0 | JL23: 0 | JM23: 0 | JN23: 0 | JO23: 0 | JP23: 0 | JQ23: 0 | JR23: 0 | JS23: -- | JT23: 0 | JU23: 12 | JV23: 0 | JW23: 19 | JX23: 9 | JY23: 40 | JZ23: 16325.2 | KA23: 0 | KB23: 23636.48 | KC23: 39328.16 | KD23: 195902.4 | KE23: 0 | KF23: 449093.12 | KG23: 353953.44 | KH23: -57742.2 | KI23: 0.05780295322 | KJ23: 941206.76 | KK23: 25 | KL23: 6 | KM23: 24 | KN23: 24 | KO23: 79 | KP23: 17149.296 | KQ23: 30162 | KR23: 25973.255 | KS23: 46112.435 | KT23: -4692.333924 | KU23: 24924.89342 | KV23: 428732.4 | KW23: 180972 | KX23: 623358.12 | KY23: 1106698.44 | KZ23: -370694.38 | LA23: 0.1584325862 | LB23: 1969066.58 | LC23: 9123000 | LD23: 3681973.6 | LE23: 3838000 | LF23: 0 | LG23: 0 | LH23: 7295000 | LI23: 0 | LJ23: 23937973.6 | LK23: 2838.270524 | LL23: 12804973.6 | LM23: 0 | LN23: 0 | LO23: 3838000 | LP23: 0 | LQ23: 0 | LR23: 7295000 | LS23: 0 | LT23: 11133000 | LU23: 1320.014228 | LV23: =VLOOKUP(A23,[5]Data!$A$5:$CK$569,89,FALSE) -> 1111463352 | LW23: 0.01001652459 | LX23: 0 | LY23: 0 | LZ23: 0 | MA23: 0 | MB23: 775000 | MC23: 243193.76 | MD23: 0 | ME23: 0 | MF23: 775000 | MG23: 243193.76 | MH23: 1018193.76 | MI23: 2904436.76 | MJ23: 983943.76 | MK23: 5830862.51 | ML23: 0 | MM23: 0 | MN23: 0 | MO23: 0 | MP23: -- | MQ23: -- | MR23: AAA- | MS23: 2022 | MT23: -- | MU23: -- | MW23: 0 | MX23: 0 | MY23: 0 | MZ23: -- | NA23: 989828530 | NB23: 0 | ND23: 0 | NE23: 0 | NF23: 0 | NG23: 0 | NH23: 0 | NI23: 0 | NJ23: 0 | NK23: 0 | NL23: 0 | NM23: 0 | NN23: 0 | NO23: 0 | NP23: 0 | NQ23: 0 | NR23: 0 | NS23: 0 | NT23: 0 | NU23: 0 | NV23: 0 | NW23: 0 | NX23: 0 | NY23: 0 | NZ23: 0 | OA23: 0 | OB23: 0 | OC23: 0 | OD23: 0 | OE23: 0 | OG23: 24106 | OH23: 1090826.15 | OI23: 0 | OJ23: 0 | OL23: 0 | OM23: 0 | ON23: 0 | OO23: 0 | OP23: 0
A24: 0119 | B24: 119 | C24: Pleasantville city | D24: Atlantic | E24: Pleasantville cityAtlantic | F24: =IF(AND(M24=0,SUM(CN24:DJ24)=0,SUM(AI24:AW24)=0),"X","") ->  | I24: 20924 | J24: 5.720975265 | K24: 3657.418365 | M24: 0.9874 | N24: 26050460.83 | O24: 26050460.83 | P24: 1 | Q24: 1447041.12 | S24: 1050000 | T24: 2589327.36 | U24: 2379176.73 | V24: 245935.8 | W24: 0 | X24: 0 | Y24: 3374871.11 | Z24: 112683.77 | AA24: 1447041.12 | AB24: 26372313.07 | AC24: 0 | AD24: 0 | AE24: 0 | AF24: 0 | AG24: 0 | AH24: 37571348.96 | AI24: 2100000 | AJ24: 8220070 | AK24: 2156856 | AL24: 245000 | AM24: 0 | AN24: 0 | AO24: 4420466.05 | AP24: 288000 | AQ24: 75000 | AR24: 27342895 | AS24: 0 | AT24: 0 | AU24: 0 | AV24: 0 | AW24: 0 | AX24: 44848287.05 | AY24: 2100000 | AZ24: 2579950 | BA24: 2156856 | BB24: 245000 | BC24: 0 | BD24: 0 | BE24: 4420466.05 | BF24: 288000 | BG24: 75000 | BH24: 27342895 | BI24: 0 | BJ24: 0 | BK24: 0 | BL24: 0 | BM24: 0 | BN24: 39208167.05 | BP24: 1245122 | BQ24: 5694.3 | BR24: 537684.65 | BS24: 6825500 | BT24: 10702193.44 | BU24: 3094992.89 | BV24: 0 | BW24: 0 | BX24: 469951 | BY24: 75000 | BZ24: 1336578 | CA24: 0 | CB24: 2500 | CC24: 4481890.65 | CD24: 0 | CE24: 0 | CF24: 206070.4 | CG24: 50000 | CH24: 1815577.99 | CI24: 628039 | CJ24: 0 | CK24: 550000 | CL24: 1050000 | CM24: 33076794.32 | CN24: 5411425 | CO24: 6700 | CP24: 541400 | CQ24: 7053835 | CR24: 12451575 | CS24: 3224190 | CT24: 0 | CU24: 0 | CV24: 469951 | CW24: 150000 | CX24: 1379000 | CY24: 0 | CZ24: 2500 | DA24: 4581876 | DB24: 0 | DC24: 0 | DD24: 200000 | DE24: 150000 | DF24: 2456787 | DG24: 552802 | DH24: 0 | DI24: 550000 | DJ24: 3100000 | DK24: 42282041 | DL24: 1522625 | DM24: 6700 | DN24: 541400 | DO24: 7053835 | DP24: 12451575 | DQ24: 3224190 | DR24: 0 | DS24: 0 | DT24: 469951 | DU24: 150000 | DV24: 1379000 | DW24: 0 | DX24: 2500 | DY24: 4451876 | DZ24: 0 | EA24: 0 | EB24: 200000 | EC24: 100000 | ED24: 1853252 | EE24: 552802 | EF24: 0 | EG24: 550000 | EH24: 2100000 | EI24: 36609706 | EK24: 15 | EL24: 0 | EM24: 7 | EN24: 0 | EO24: 94 | EP24: 27 | EQ24: 0 | ER24: 2 | ES24: 0 | ET24: 3 | EU24: 0 | EV24: 0 | EW24: 0 | EX24: 0 | EY24: 0 | EZ24: 0 | FA24: 0 | FB24: 0 | FC24: 0 | FD24: 0 | FE24: 0 | FF24: 0 | FG24: 0 | FH24: 148 | FI24: 0 | FJ24: 0 | FK24: 0 | FL24: 0 | FM24: 1 | FN24: 5 | FO24: 0 | FP24: 3 | FQ24: 0 | FR24: 0 | FS24: 0 | FT24: 0 | FU24: 0 | FV24: 0 | FW24: 0 | FX24: 0 | FY24: 0 | FZ24: 0 | GA24: 0 | GB24: 0 | GC24: 0 | GD24: 0 | GE24: 0 | GF24: 9 | GG24: 145 | GH24: 35 | GI24: 21070538.33 | GJ24: 13955953.95 | GK24: 800000 | GL24: 3804524 | GM24: 479685 | GN24: 356992.38 | GO24: 0 | GP24: 8 | GQ24: 171921 | GR24: 154718 | GS24: 0 | GT24: 0 | GU24: 0 | GV24: 17203 | GW24: 7 | GX24: 0 | GY24: 1690555 | GZ24: 1121506 | HA24: 0 | HB24: 149927 | HC24: 278934 | HD24: 140188 | HE24: 54 | HF24: 0 | HG24: 8101393 | HH24: 5563125 | HI24: 375000 | HJ24: 2163268 | HK24: 0 | HL24: 0 | HM24: 36 | HN24: 0 | HO24: 7333367 | HP24: 3863655 | HQ24: 375000 | HR24: 1421329 | HS24: 0 | HT24: 0 | HU24: 48 | HV24: 8 | HW24: 3588268 | HX24: 3088475 | HY24: 50000 | HZ24: 70000 | IA24: 200751 | IB24: 179042 | IC24: 0 | ID24: 19 | IE24: 185034.33 | IF24: 164474.95 | IG24: 0 | IH24: 0 | II24: 0 | IJ24: 20559.38 | IL24: Yes | IM24: Yes | IN24: Yes | IO24: 43 | IP24: 21 | IQ24: 5 | IR24: 40 | IS24: 109 | IT24: 15555 | IU24: 24392 | IV24: 31110 | IW24: 43398 | IX24: 668865 | IY24: 512232 | IZ24: 155550 | JA24: 1735920 | JB24: 0 | JC24: 0 | JD24: 3072567 | JE24: 0 | JF24: 0 | JG24: 0 | JH24: 0 | JI24: 0 | JJ24: 0 | JK24: 0 | JL24: 0 | JM24: 0 | JN24: 0 | JO24: 0 | JP24: 0 | JQ24: 0 | JR24: 0 | JS24: -- | JT24: 0 | JU24: 27 | JV24: 12 | JW24: 51 | JX24: 39 | JY24: 129 | JZ24: 13497 | KA24: 24156 | KB24: 38854 | KC24: 44367.81 | KD24: 364419 | KE24: 289872 | KF24: 1981554 | KG24: 1730344.59 | KH24: 0 | KI24: 0 | KJ24: 4366189.59 | KK24: 70 | KL24: 33 | KM24: 56 | KN24: 79 | KO24: 238 | KP24: 14761.2 | KQ24: 24306.18182 | KR24: 38162.57143 | KS24: 43876.76696 | KT24: 0 | KU24: 31255.27979 | KV24: 1033284 | KW24: 802104 | KX24: 2137104 | KY24: 3466264.59 | KZ24: 0 | LA24: 0 | LB24: 7438756.59 | LC24: 1755000 | LD24: 0 | LE24: 21065444 | LF24: 0 | LG24: 0 | LH24: 0 | LI24: 0 | LJ24: 22820444 | LK24: 1135.797531 | LL24: 10655363 | LM24: 0 | LN24: 0 | LO24: 12165081 | LP24: 0 | LQ24: 0 | LR24: 0 | LS24: 0 | LT24: 12165081 | LU24: 605.4688931 | LV24: =VLOOKUP(A24,[5]Data!$A$5:$CK$569,89,FALSE) -> 1114103495 | LW24: 0.01091916599 | LX24: 288622 | LY24: 171000 | LZ24: 4026 | MA24: 51800 | MB24: 1275000 | MC24: 437840 | MD24: 628039 | ME24: 61640 | MF24: 2195687 | MG24: 722280 | MH24: 2917967 | MI24: 0 | MJ24: 0 | MK24: 0 | ML24: 0 | MM24: 0 | MN24: 0 | MO24: 0 | MP24: -- | MQ24: -- | MR24: A | MS24: A | MT24: -- | MU24: -- | MW24: 0 | MX24: 0 | MY24: 0 | MZ24: -- | NA24: 1194437200 | NB24: 0 | ND24: 1 | NE24: 0 | NF24: 0 | NG24: 0 | NH24: 0 | NI24: 0 | NJ24: 0 | NK24: 55519.2 | NL24: 0 | NM24: 0 | NN24: 0 | NO24: 0 | NP24: 0 | NQ24: 0 | NR24: 1365200 | NS24: 0 | NT24: 0 | NU24: 0 | NV24: 0 | NW24: 0 | NX24: 0 | NY24: 69399.56 | NZ24: 0 | OA24: 0 | OB24: 0 | OC24: 0 | OD24: 0 | OE24: 0 | OG24: 53920.75 | OH24: 2374161.08 | OI24: 0 | OJ24: 0 | OL24: 0 | OM24: 0 | ON24: 0 | OO24: 0 | OP24: 0
A25: 0120 | B25: 120 | C25: Port Republic city | D25: Atlantic | E25: Port Republic cityAtlantic | F25: =IF(AND(M25=0,SUM(CN25:DJ25)=0,SUM(AI25:AW25)=0),"X","") ->  | I25: 1131 | J25: 7.462252042 | K25: 151.562825 | M25: 1.97 | N25: 7934187.48 | O25: 8045852.9 | P25: 1.972242739 | Q25: 102744.5 | S25: 325000 | T25: 107342.63 | U25: 196804 | V25: 0 | W25: 0 | X25: 0 | Y25: 217977.18 | Z25: 0 | AA25: 28508.67 | AB25: 874910.56 | AC25: 0 | AD25: 0 | AE25: 0 | AF25: 0 | AG25: 0 | AH25: 1750543.04 | AI25: 125000 | AJ25: 215612 | AK25: 178410 | AL25: 0 | AM25: 0 | AN25: 0 | AO25: 1588.86 | AP25: 0 | AQ25: 44900 | AR25: 895358.38 | AS25: 0 | AT25: 0 | AU25: 0 | AV25: 0 | AW25: 0 | AX25: 1460869.24 | AY25: 125000 | AZ25: 215612 | BA25: 178410 | BB25: 0 | BC25: 0 | BD25: 0 | BE25: 1588.86 | BF25: 0 | BG25: 44900 | BH25: 895358.38 | BI25: 0 | BJ25: 0 | BK25: 0 | BL25: 0 | BM25: 0 | BN25: 1460869.24 | BP25: 362950 | BQ25: 4200 | BR25: 28500 | BS25: 167350 | BT25: 57001 | BU25: 208799 | BV25: 1600 | BW25: 51200 | BX25: 0 | BY25: 0 | BZ25: 71200 | CA25: 96000 | CB25: 0 | CC25: 86283 | CD25: 0 | CE25: 22000 | CF25: 0 | CG25: 47000 | CH25: 0 | CI25: 19000 | CJ25: 250000 | CK25: 35231.56 | CL25: 0 | CM25: 1508314.56 | CN25: 327000 | CO25: 3200 | CP25: 29610 | CQ25: 150800 | CR25: 52001 | CS25: 203500 | CT25: 1600 | CU25: 50500 | CV25: 0 | CW25: 0 | CX25: 71200 | CY25: 99588.86 | CZ25: 0 | DA25: 83174 | DB25: 0 | DC25: 22000 | DD25: 0 | DE25: 37000 | DF25: 0 | DG25: 19000 | DH25: 250000 | DI25: 60695.38 | DJ25: 0 | DK25: 1460869.24 | DL25: 327000 | DM25: 3200 | DN25: 29610 | DO25: 150800 | DP25: 52001 | DQ25: 203500 | DR25: 1600 | DS25: 50500 | DT25: 0 | DU25: 0 | DV25: 71200 | DW25: 98000 | DX25: 0 | DY25: 83174 | DZ25: 0 | EA25: 22000 | EB25: 0 | EC25: 37000 | ED25: 0 | EE25: 19000 | EF25: 250000 | EG25: 60695.38 | EH25: 0 | EI25: 1459280.38 | EK25: 2 | EL25: 0 | EM25: 0 | EN25: 0 | EO25: 0 | EP25: 2 | EQ25: 0 | ER25: 0 | ES25: 0 | ET25: 0 | EU25: 0 | EV25: 0 | EW25: 0 | EX25: 0 | EY25: 0 | EZ25: 0 | FA25: 0 | FB25: 0 | FC25: 0 | FD25: 0 | FE25: 0 | FF25: 0 | FG25: 0 | FH25: 4 | FI25: 11 | FJ25: 1 | FK25: 2 | FL25: 0 | FM25: 1 | FN25: 2 | FO25: 0 | FP25: 9 | FQ25: 0 | FR25: 0 | FS25: 0 | FT25: 0 | FU25: 0 | FV25: 0 | FW25: 0 | FX25: 0 | FY25: 0 | FZ25: 0 | GA25: 0 | GB25: 0 | GC25: 0 | GD25: 0 | GE25: 0 | GF25: 26 | GG25: 8 | GH25: 52 | GI25: 959916.6014 | GJ25: 612422.4 | GK25: No data | GL25: 92851.88776 | GM25: 207792 | GN25: 46850.3136 | GO25: 0 | GP25: 16 | GQ25: 29231.201 | GR25: 14000 | GS25: 0 | GT25: 14160.201 | GU25: 0 | GV25: 1071 | GW25: 2 | GX25: 12 | GY25: 416264.4742 | GZ25: 268518 | HA25: 0 | HB25: 27076.8472 | HC25: 100128 | HD25: 20541.627 | HE25: 0 | HF25: 0 | HG25: 0 | HH25: 0 | HI25: 0 | HJ25: 0 | HK25: 0 | HL25: 0 | HM25: 0 | HN25: 0 | HO25: 0 | HP25: 0 | HQ25: 0 | HR25: 0 | HS25: 0 | HT25: 0 | HU25: 0 | HV25: 0 | HW25: 0 | HX25: 0 | HY25: 0 | HZ25: 0 | IA25: 0 | IB25: 0 | IC25: 6 | ID25: 24 | IE25: 514420.9262 | IF25: 329904.4 | IG25: 0 | IH25: 51614.83956 | II25: 107664 | IJ25: 25237.6866 | IL25: No | IM25: Yes | IN25: Yes | IO25: 1 | IP25: 0 | IQ25: 1 | IR25: 1 | IS25: 3 | IT25: 17944 | IU25: 0 | IV25: 35888 | IW25: 17944 | IX25: 17944 | IY25: 0 | IZ25: 35888 | JA25: 17944 | JB25: 0 | JC25: 0 | JD25: 71776 | JE25: 0 | JF25: 0 | JG25: 0 | JH25: 0 | JI25: 0 | JJ25: 0 | JK25: 0 | JL25: 0 | JM25: 0 | JN25: 0 | JO25: 0 | JP25: 0 | JQ25: 0 | JR25: 0 | JS25: -- | JT25: 0 | JU25: 0 | JV25: 0 | JW25: 0 | JX25: 0 | JY25: 0 | JZ25: 0 | KA25: 0 | KB25: 0 | KC25: 0 | KD25: 0 | KE25: 0 | KF25: 0 | KG25: 0 | KH25: -19512.48 | KI25: -- | KJ25: -19512.48 | KK25: 1 | KL25: 0 | KM25: 1 | KN25: 1 | KO25: 3 | KP25: 17944 | KQ25: -- | KR25: 35888 | KS25: 17944 | KT25: -6504.16 | KU25: 17421.17333 | KV25: 17944 | KW25: 0 | KX25: 35888 | KY25: 17944 | KZ25: -19512.48 | LA25: 0.2718524298 | LB25: 52263.52 | LC25: 0 | LD25: 0 | LE25: 0 | LF25: 0 | LG25: 0 | LH25: 0 | LI25: 0 | LJ25: 0 | LK25: 0 | LL25: 0 | LM25: 0 | LN25: 0 | LO25: 0 | LP25: 0 | LQ25: 0 | LR25: 0 | LS25: 0 | LT25: 0 | LU25: 0 | LV25: =VLOOKUP(A25,[5]Data!$A$5:$CK$569,89,FALSE) -> 188278437 | LW25: 0 | LX25: 0 | LY25: 0 | LZ25: 0 | MA25: 0 | MB25: 0 | MC25: 0 | MD25: 0 | ME25: 0 | MF25: 0 | MG25: 0 | MH25: 0 | MI25: 0 | MJ25: 0 | MK25: 0 | ML25: 0 | MM25: 0 | MN25: 0 | MO25: 0 | MP25: -- | MQ25: -- | MR25: -- | MS25: -- | MT25: -- | MU25: -- | MW25: 0 | MX25: 0 | MY25: 0 | MZ25: -- | NA25: 127204100 | NB25: 0 | ND25: 0 | NE25: 0 | NF25: 0 | NG25: 0 | NH25: 0 | NI25: 0 | NJ25: 0 | NK25: 0 | NL25: 0 | NM25: 0 | NN25: 0 | NO25: 0 | NP25: 0 | NQ25: 0 | NR25: 0 | NS25: 0 | NT25: 0 | NU25: 0 | NV25: 0 | NW25: 0 | NX25: 0 | NY25: 0 | NZ25: 0 | OA25: 0 | OB25: 0 | OC25: 0 | OD25: 0 | OE25: 0 | OG25: 0 | OH25: 0 | OI25: 0 | OJ25: 0 | OL25: 0 | OM25: 0 | ON25: 0 | OO25: 0 | OP25: 0
A26: 0121 | B26: 121 | C26: Somers Point city | D26: Atlantic | E26: Somers Point cityAtlantic | F26: =IF(AND(M26=0,SUM(CN26:DJ26)=0,SUM(AI26:AW26)=0),"X","") ->  | I26: 10611 | J26: 4.010465026 | K26: 2645.827836 | M26: 0.97 | N26: 40823143.41 | O26: 40249069.98 | P26: 1.014263023 | Q26: 560438.97 | S26: 2800000 | T26: 713000 | U26: 1079501.61 | V26: 255000 | W26: 0 | X26: 0 | Y26: 1774307.35 | Z26: 807608.04 | AA26: 400000 | AB26: 12801124.07 | AC26: 0 | AD26: 0 | AE26: 0 | AF26: 0 | AG26: 0 | AH26: 20630541.07 | AI26: 3415000 | AJ26: 798000 | AK26: 978628 | AL26: 255000 | AM26: 0 | AN26: 0 | AO26: 1051801.65 | AP26: 945933.28 | AQ26: 440000 | AR26: 13122397.2 | AS26: 0 | AT26: 0 | AU26: 0 | AV26: 0 | AW26: 0 | AX26: 21006760.13 | AY26: 3415000 | AZ26: 798000 | BA26: 978628 | BB26: 255000 | BC26: 0 | BD26: 0 | BE26: 1051801.65 | BF26: 945933.28 | BG26: 440000 | BH26: 13122397.2 | BI26: 0 | BJ26: 0 | BK26: 0 | BL26: 0 | BM26: 0 | BN26: 21006760.13 | BP26: 1449800 | BQ26: 90100 | BR26: 83200 | BS26: 2592400 | BT26: 4491200 | BU26: 2192900 | BV26: 2000 | BW26: 396000 | BX26: 0 | BY26: 0 | BZ26: 874200 | CA26: 342000 | CB26: 0 | CC26: 2059600 | CD26: 0 | CE26: 0 | CF26: 217600 | CG26: 158000 | CH26: 2325900 | CI26: 0 | CJ26: 0 | CK26: 1230033.72 | CL26: 0 | CM26: 18504933.72 | CN26: 1581260 | CO26: 90100 | CP26: 87600 | CQ26: 2959100 | CR26: 4798550 | CS26: 2271200 | CT26: 2000 | CU26: 385200 | CV26: 0 | CW26: 0 | CX26: 820800 | CY26: 342000 | CZ26: 0 | DA26: 2152000 | DB26: 0 | DC26: 0 | DD26: 205600 | DE26: 174000 | DF26: 2388090 | DG26: 13886.56 | DH26: 0 | DI26: 1293671.92 | DJ26: 0 | DK26: 19565058.48 | DL26: 1581260 | DM26: 90100 | DN26: 87600 | DO26: 2959100 | DP26: 4798550 | DQ26: 2271200 | DR26: 2000 | DS26: 385200 | DT26: 0 | DU26: 0 | DV26: 820800 | DW26: 342000 | DX26: 0 | DY26: 2152000 | DZ26: 0 | EA26: 0 | EB26: 205600 | EC26: 174000 | ED26: 2388090 | EE26: 13886.56 | EF26: 0 | EG26: 1293671.92 | EH26: 0 | EI26: 19565058.48 | EK26: 10 | EL26: 1 | EM26: 1 | EN26: 0 | EO26: 40 | EP26: 24 | EQ26: 0 | ER26: 3 | ES26: 0 | ET26: 0 | EU26: 0 | EV26: 0 | EW26: 0 | EX26: 0 | EY26: 0 | EZ26: 0 | FA26: 2 | FB26: 0 | FC26: 0 | FD26: 0 | FE26: 0 | FF26: 0 | FG26: 0 | FH26: 81 | FI26: 8 | FJ26: 0 | FK26: 7 | FL26: 0 | FM26: 34 | FN26: 9 | FO26: 0 | FP26: 3 | FQ26: 0 | FR26: 0 | FS26: 0 | FT26: 0 | FU26: 0 | FV26: 0 | FW26: 0 | FX26: 0 | FY26: 5 | FZ26: 0 | GA26: 0 | GB26: 0 | GC26: 0 | GD26: 0 | GE26: 0 | GF26: 66 | GG26: 73 | GH26: 61 | GI26: 11615789.71 | GJ26: 6697995.85 | GK26: 450800 | GL26: 1640786.86 | GM26: 1839570 | GN26: 986637 | GO26: 0 | GP26: 8 | GQ26: 80089 | GR26: 68500 | GS26: 0 | GT26: 1545 | GU26: 0 | GV26: 10044 | GW26: 7 | GX26: 3 | GY26: 1250135.32 | GZ26: 792328 | HA26: 5800 | HB26: 135567.32 | HC26: 199730 | HD26: 116710 | HE26: 28 | HF26: 1 | HG26: 5295313.34 | HH26: 2957634.85 | HI26: 252500 | HJ26: 1087398.49 | HK26: 562080 | HL26: 435700 | HM26: 0 | HN26: 11 | HO26: 41324.05 | HP26: 35200 | HQ26: 0 | HR26: 941.05 | HS26: 0 | HT26: 5183 | HU26: 32 | HV26: 0 | HW26: 3791598 | HX26: 2026333 | HY26: 188000 | HZ26: 346705 | IA26: 932060 | IB26: 298500 | IC26: 6 | ID26: 38 | IE26: 1157330 | IF26: 818000 | IG26: 4500 | IH26: 68630 | II26: 145700 | IJ26: 120500 | IL26: Yes | IM26: Yes | IN26: Yes | IO26: 17 | IP26: 11 | IQ26: 12 | IR26: 22 | IS26: 62 | IT26: 18136.2 | IU26: 32463.84 | IV26: 36272.4 | IW26: 50600.04 | IX26: 308315.4 | IY26: 357102.24 | IZ26: 435268.8 | JA26: 1113200.88 | JB26: -530465.52 | JC26: 0.2396081839 | JD26: 1683421.8 | JE26: 0 | JF26: 0 | JG26: 0 | JH26: 0 | JI26: 0 | JJ26: 0 | JK26: 0 | JL26: 0 | JM26: 0 | JN26: 0 | JO26: 0 | JP26: 0 | JQ26: 0 | JR26: 0 | JS26: -- | JT26: 0 | JU26: 2 | JV26: 1 | JW26: 3 | JX26: 2 | JY26: 8 | JZ26: 13645.74 | KA26: 14308.32 | KB26: 11304 | KC26: 45673.62 | KD26: 27291.48 | KE26: 14308.32 | KF26: 33912 | KG26: 91347.24 | KH26: 0 | KI26: 0 | KJ26: 166859.04 | KK26: 19 | KL26: 12 | KM26: 15 | KN26: 24 | KO26: 70 | KP26: 17663.52 | KQ26: 30950.88 | KR26: 31278.72 | KS26: 50189.505 | KT26: -7578.078857 | KU26: 26432.58343 | KV26: 335606.88 | KW26: 371410.56 | KX26: 469180.8 | KY26: 1204548.12 | KZ26: -530465.52 | LA26: 0.2228147983 | LB26: 1850280.84 | LC26: 7038000 | LD26: 5496482.08 | LE26: 15531136.56 | LF26: 0 | LG26: 4500000 | LH26: 12765000 | LI26: 0 | LJ26: 45330618.64 | LK26: 4199.223589 | LL26: 25424232.08 | LM26: 0 | LN26: 0 | LO26: 2641386.56 | LP26: 0 | LQ26: 4500000 | LR26: 12765000 | LS26: 0 | LT26: 19906386.56 | LU26: 1844.037662 | LV26: =VLOOKUP(A26,[5]Data!$A$5:$CK$569,89,FALSE) -> 1659202118 | LW26: 0.01199756578 | LX26: 588000 | LY26: 204450 | LZ26: 100100 | MA26: 397940 | MB26: 1600000 | MC26: 486150 | MD26: 0 | ME26: 0 | MF26: 2288100 | MG26: 1088540 | MH26: 3376640 | MI26: 2824550 | MJ26: 2772150 | MK26: 12226500 | ML26: 0 | MM26: 0 | MN26: 0 | MO26: 0 | MP26: -- | MQ26: -- | MR26: AA- | MS26: 2022 | MT26: -- | MU26: -- | MW26: 0 | MX26: 0 | MY26: 0 | MZ26: -- | NA26: 1388320500 | NB26: 0 | ND26: 0 | NE26: 0 | NF26: 0 | NG26: 0 | NH26: 0 | NI26: 0 | NJ26: 0 | NK26: 0 | NL26: 0 | NM26: 0 | NN26: 0 | NO26: 0 | NP26: 0 | NQ26: 0 | NR26: 0 | NS26: 800000 | NT26: 0 | NU26: 1696000 | NV26: 0 | NW26: 0 | NX26: 0 | NY26: 0 | NZ26: 28608 | OA26: 0 | OB26: 60648.96 | OC26: 0 | OD26: 0 | OE26: 0 | OG26: 4637.85 | OH26: 462734.27 | OI26: 0 | OJ26: 0 | OL26: 0 | OM26: 0 | ON26: 0 | OO26: 0 | OP26: 0
A27: 0122 | B27: 122 | C27: Ventnor City city | D27: Atlantic | E27: Ventnor City cityAtlantic | F27: =IF(AND(M27=0,SUM(CN27:DJ27)=0,SUM(AI27:AW27)=0),"X","") ->  | I27: 9372 | J27: 1.955271493 | K27: 4793.196255 | M27: No data | N27: No data | O27: No data | P27: No data | Q27: No data | S27: 325000 | T27: 107342.63 | U27: 196804 | V27: 0 | W27: 0 | X27: 0 | Y27: 217977.18 | Z27: 0 | AA27: 28508.67 | AB27: 874910.56 | AC27: 0 | AD27: 0 | AE27: 0 | AF27: 0 | AG27: 0 | AH27: 1750543.04 | AI27: 125000 | AJ27: 215612 | AK27: 178410 | AL27: 0 | AM27: 0 | AN27: 0 | AO27: 1588.86 | AP27: 0 | AQ27: 44900 | AR27: 895358.38 | AS27: 0 | AT27: 0 | AU27: 0 | AV27: 0 | AW27: 0 | AX27: 1460869.24 | AY27: 125000 | AZ27: 215612 | BA27: 178410 | BB27: 0 | BC27: 0 | BD27: 0 | BE27: 1588.86 | BF27: 0 | BG27: 44900 | BH27: 895358.38 | BI27: 0 | BJ27: 0 | BK27: 0 | BL27: 0 | BM27: 0 | BN27: 1460869.24 | BP27: 362950 | BQ27: 4200 | BR27: 28500 | BS27: 167350 | BT27: 57001 | BU27: 208799 | BV27: 1600 | BW27: 51200 | BX27: 0 | BY27: 0 | BZ27: 71200 | CA27: 96000 | CB27: 0 | CC27: 86283 | CD27: 0 | CE27: 22000 | CF27: 0 | CG27: 47000 | CH27: 0 | CI27: 19000 | CJ27: 250000 | CK27: 35231.56 | CL27: 0 | CM27: 1508314.56 | CN27: 327000 | CO27: 3200 | CP27: 29610 | CQ27: 150800 | CR27: 52001 | CS27: 203500 | CT27: 1600 | CU27: 50500 | CV27: 0 | CW27: 0 | CX27: 71200 | CY27: 99588.86 | CZ27: 0 | DA27: 83174 | DB27: 0 | DC27: 22000 | DD27: 0 | DE27: 37000 | DF27: 0 | DG27: 19000 | DH27: 250000 | DI27: 60695.38 | DJ27: 0 | DK27: 1460869.24 | DL27: 327000 | DM27: 3200 | DN27: 29610 | DO27: 150800 | DP27: 52001 | DQ27: 203500 | DR27: 1600 | DS27: 50500 | DT27: 0 | DU27: 0 | DV27: 71200 | DW27: 98000 | DX27: 0 | DY27: 83174 | DZ27: 0 | EA27: 22000 | EB27: 0 | EC27: 37000 | ED27: 0 | EE27: 19000 | EF27: 250000 | EG27: 60695.38 | EH27: 0 | EI27: 1459280.38 | EK27: 2 | EL27: 0 | EM27: 0 | EN27: 0 | EO27: 0 | EP27: 2 | EQ27: 0 | ER27: 0 | ES27: 0 | ET27: 0 | EU27: 0 | EV27: 0 | EW27: 0 | EX27: 0 | EY27: 0 | EZ27: 0 | FA27: 0 | FB27: 0 | FC27: 0 | FD27: 0 | FE27: 0 | FF27: 0 | FG27: 0 | FH27: 4 | FI27: 11 | FJ27: 1 | FK27: 2 | FL27: 0 | FM27: 1 | FN27: 2 | FO27: 0 | FP27: 9 | FQ27: 0 | FR27: 0 | FS27: 0 | FT27: 0 | FU27: 0 | FV27: 0 | FW27: 0 | FX27: 0 | FY27: 0 | FZ27: 0 | GA27: 0 | GB27: 0 | GC27: 0 | GD27: 0 | GE27: 0 | GF27: 26 | GG27: No data | GH27: No data | GI27: No data | GJ27: No data | GK27: No data | GL27: No data | GM27: No data | GN27: No data | GO27: No data | GP27: No data | GQ27: No data | GR27: No data | GS27: No data | GT27: No data | GU27: No data | GV27: No data | GW27: No data | GX27: No data | GY27: No data | GZ27: No data | HA27: No data | HB27: No data | HC27: No data | HD27: No data | HE27: No data | HF27: No data | HG27: No data | HH27: No data | HI27: No data | HJ27: No data | HK27: No data | HL27: No data | HM27: No data | HN27: No data | HO27: No data | HP27: No data | HQ27: No data | HR27: No data | HS27: No data | HT27: No data | HU27: No data | HV27: No data | HW27: No data | HX27: No data | HY27: No data | HZ27: No data | IA27: No data | IB27: No data | IC27: No data | ID27: No data | IE27: No data | IF27: No data | IG27: No data | IH27: No data | II27: No data | IJ27: No data | IL27: No data | IM27: No data | IN27: No data | IO27: No data | IP27: No data | IQ27: No data | IR27: No data | IS27: No data | IT27: No data | IU27: No data | IV27: No data | IW27: No data | IX27: No data | IY27: No data | IZ27: No data | JA27: No data | JB27: No data | JC27: No data | JD27: No data | JE27: No data | JF27: No data | JG27: No data | JH27: No data | JI27: No data | JJ27: No data | JK27: No data | JL27: No data | JM27: No data | JN27: No data | JO27: No data | JP27: No data | JQ27: No data | JR27: No data | JS27: No data | JT27: No data | JU27: No data | JV27: No data | JW27: No data | JX27: No data | JY27: No data | JZ27: No data | KA27: No data | KB27: No data | KC27: No data | KD27: No data | KE27: No data | KF27: No data | KG27: No data | KH27: No data | KI27: No data | KJ27: No data | KK27: No data | KL27: No data | KM27: No data | KN27: No data | KO27: No data | KP27: No data | KQ27: No data | KR27: No data | KS27: No data | KT27: No data | KU27: No data | KV27: No data | KW27: No data | KX27: No data | KY27: No data | KZ27: No data | LA27: No data | LB27: No data | LC27: No data | LD27: No data | LE27: No data | LF27: No data | LG27: No data | LH27: No data | LI27: No data | LJ27: No data | LK27: No data | LL27: No data | LM27: No data | LN27: No data | LO27: No data | LP27: No data | LQ27: No data | LR27: No data | LS27: No data | LT27: No data | LU27: No data | LV27: =VLOOKUP(A27,[5]Data!$A$5:$CK$569,89,FALSE) -> 3196294118 | LW27: No data | LX27: No data | LY27: No data | LZ27: No data | MA27: No data | MB27: No data | MC27: No data | MD27: No data | ME27: No data | MF27: No data | MG27: No data | MH27: No data | MI27: No data | MJ27: No data | MK27: No data | ML27: No data | MM27: No data | MN27: No data | MO27: No data | MP27: No data | MQ27: No data | MR27: No data | MS27: No data | MT27: No data | MU27: No data | MW27: 0 | MX27: 0 | MY27: 0 | MZ27: -- | NA27: 2150528660 | NB27: 0 | ND27: 0 | NE27: 0 | NF27: 0 | NG27: 0 | NH27: 0 | NI27: 0 | NJ27: 0 | NK27: 0 | NL27: 0 | NM27: 0 | NN27: 0 | NO27: 0 | NP27: 0 | NQ27: 0 | NR27: 0 | NS27: 0 | NT27: 0 | NU27: 0 | NV27: 0 | NW27: 0 | NX27: 0 | NY27: 0 | NZ27: 0 | OA27: 0 | OB27: 0 | OC27: 0 | OD27: 0 | OE27: 0 | OG27: 0 | OH27: 0 | OI27: 0 | OJ27: 0 | OL27: 0 | OM27: 0 | ON27: 0 | OO27: 0 | OP27: 0
A28: 0123 | B28: 123 | C28: Weymouth township | D28: Atlantic | E28: Weymouth townshipAtlantic | F28: =IF(AND(M28=0,SUM(CN28:DJ28)=0,SUM(AI28:AW28)=0),"X","") ->  | I28: 2762 | J28: 11.82202586 | K28: 233.6317 | M28: No data | N28: 4659365.13 | O28: 4690363.05 | P28: 0.993391147 | Q28: 0 | S28: 341000 | T28: 7150 | U28: 286168 | V28: 0 | W28: 0 | X28: 0 | Y28: 851980.34 | Z28: 256162.51 | AA28: 5250 | AB28: 842527.43 | AC28: 0 | AD28: 0 | AE28: 0 | AF28: 0 | AG28: 0 | AH28: 2590238.28 | AI28: 400000 | AJ28: 7550 | AK28: 286168 | AL28: 0 | AM28: 0 | AN28: 0 | AO28: 7231.22 | AP28: 238867 | AQ28: 5250 | AR28: 894447.11 | AS28: 0 | AT28: 0 | AU28: 0 | AV28: 0 | AW28: 0 | AX28: 1839513.33 | AY28: 400000 | AZ28: 7550 | BA28: 286168 | BB28: 0 | BC28: 0 | BD28: 0 | BE28: 7231.22 | BF28: 238867 | BG28: 5250 | BH28: 894447.11 | BI28: 0 | BJ28: 0 | BK28: 0 | BL28: 0 | BM28: 0 | BN28: 1839513.33 | BP28: 448813 | BQ28: 24660 | BR28: 0 | BS28: 202116 | BT28: 25500 | BU28: 314000 | BV28: 10000 | BW28: 15500 | BX28: 0 | BY28: 924325.34 | BZ28: 105000 | CA28: 177000 | CB28: 0 | CC28: 105104 | CD28: 0 | CE28: 0 | CF28: 6500 | CG28: 45000 | CH28: 108250 | CI28: 0 | CJ28: 0 | CK28: 78469.94 | CL28: 0 | CM28: 2590238.28 | CN28: 489676 | CO28: 25796 | CP28: 0 | CQ28: 248000 | CR28: 25500 | CS28: 309200 | CT28: 10000 | CU28: 15500 | CV28: 0 | CW28: 91171.22 | CX28: 105000 | CY28: 182000 | CZ28: 0 | DA28: 99376 | DB28: 0 | DC28: 0 | DD28: 6500 | DE28: 47750 | DF28: 105500 | DG28: 0 | DH28: 0 | DI28: 78544.11 | DJ28: 0 | DK28: 1839513.33 | DL28: 489676 | DM28: 25796 | DN28: 0 | DO28: 248000 | DP28: 25500 | DQ28: 309200 | DR28: 10000 | DS28: 15500 | DT28: 0 | DU28: 91171.22 | DV28: 105000 | DW28: 182000 | DX28: 0 | DY28: 99376 | DZ28: 0 | EA28: 0 | EB28: 6500 | EC28: 47750 | ED28: 105500 | EE28: 0 | EF28: 0 | EG28: 78544.11 | EH28: 0 | EI28: 1839513.33 | EK28: 3 | EL28: 0 | EM28: 0 | EN28: 0 | EO28: 0 | EP28: 3 | EQ28: 0 | ER28: 0 | ES28: 0 | ET28: 0 | EU28: 0 | EV28: 0 | EW28: 0 | EX28: 0 | EY28: 0 | EZ28: 0 | FA28: 0 | FB28: 0 | FC28: 0 | FD28: 0 | FE28: 0 | FF28: 0 | FG28: 0 | FH28: 6 | FI28: 5 | FJ28: 2 | FK28: 0 | FL28: 0 | FM28: 1 | FN28: 0 | FO28: 0 | FP28: 0 | FQ28: 0 | FR28: 0 | FS28: 0 | FT28: 0 | FU28: 0 | FV28: 0 | FW28: 0 | FX28: 0 | FY28: 0 | FZ28: 0 | GA28: 0 | GB28: 0 | GC28: 0 | GD28: 0 | GE28: 0 | GF28: 8 | GG28: 6 | GH28: 8 | GI28: 675187.944 | GJ28: 503952 | GK28: 3000 | GL28: 56626 | GM28: 69026 | GN28: 42583.944 | GO28: 0 | GP28: 3 | GQ28: 22452.4035 | GR28: 20703 | GS28: 0 | GT28: 0 | GU28: 0 | GV28: 1749.4035 | GW28: 2 | GX28: 0 | GY28: 221592.8065 | GZ28: 169477 | HA28: 1000 | HB28: 20000 | HC28: 16795 | HD28: 14320.8065 | HE28: 0 | HF28: 0 | HG28: 0 | HH28: 0 | HI28: 0 | HJ28: 0 | HK28: 0 | HL28: 0 | HM28: 0 | HN28: 0 | HO28: 0 | HP28: 0 | HQ28: 0 | HR28: 0 | HS28: 0 | HT28: 0 | HU28: 0 | HV28: 0 | HW28: 0 | HX28: 0 | HY28: 0 | HZ28: 0 | IA28: 0 | IB28: 0 | IC28: 4 | ID28: 5 | IE28: 431142.734 | IF28: 313772 | IG28: 2000 | IH28: 36626 | II28: 52231 | IJ28: 26513.734 | IL28: No | IM28: No data | IN28: No data | IO28: 3 | IP28: 0 | IQ28: 2 | IR28: 0 | IS28: 5 | IT28: 18136 | IU28: 0 | IV28: 36272 | IW28: 0 | IX28: 54408 | IY28: 0 | IZ28: 72544 | JA28: 0 | JB28: 0 | JC28: 0 | JD28: 126952 | JE28: 0 | JF28: 0 | JG28: 0 | JH28: 0 | JI28: 0 | JJ28: 0 | JK28: 0 | JL28: 0 | JM28: 0 | JN28: 0 | JO28: 0 | JP28: 0 | JQ28: 0 | JR28: 0 | JS28: -- | JT28: 0 | JU28: 1 | JV28: 0 | JW28: 0 | JX28: 0 | JY28: 1 | JZ28: 5652 | KA28: 0 | KB28: 0 | KC28: 0 | KD28: 5652 | KE28: 0 | KF28: 0 | KG28: 0 | KH28: 0 | KI28: 0 | KJ28: 5652 | KK28: 4 | KL28: 0 | KM28: 2 | KN28: 0 | KO28: 6 | KP28: 15015 | KQ28: -- | KR28: 36272 | KS28: -- | KT28: 0 | KU28: 22100.66667 | KV28: 60060 | KW28: 0 | KX28: 72544 | KY28: 0 | KZ28: 0 | LA28: 0 | LB28: 132604 | LC28: 914000 | LD28: 0 | LE28: 12200 | LF28: 0 | LG28: 338525 | LH28: 0 | LI28: 0 | LJ28: 1264725 | LK28: 483.8274675 | LL28: 914000 | LM28: 0 | LN28: 0 | LO28: 12200 | LP28: 0 | LQ28: 338525 | LR28: 0 | LS28: 0 | LT28: 350725 | LU28: 134.1717674 | LV28: =VLOOKUP(A28,[5]Data!$A$5:$CK$569,89,FALSE) -> 233120864.3 | LW28: 0.001504477092 | LX28: 0 | LY28: 0 | LZ28: 90000 | MA28: 15500 | MB28: 0 | MC28: 0 | MD28: 0 | ME28: 0 | MF28: 90000 | MG28: 15500 | MH28: 105500 | MI28: 0 | MJ28: 0 | MK28: 0 | ML28: 0 | MM28: 0 | MN28: 0 | MO28: 0 | MP28: -- | MQ28: -- | MR28: -- | MS28: -- | MT28: -- | MU28: -- | MW28: 0 | MX28: 0 | MY28: 0 | MZ28: -- | NA28: 172869084 | NB28: 0 | ND28: 0 | NE28: 0 | NF28: 0 | NG28: 0 | NH28: 0 | NI28: 0 | NJ28: 0 | NK28: 0 | NL28: 0 | NM28: 0 | NN28: 0 | NO28: 0 | NP28: 0 | NQ28: 0 | NR28: 0 | NS28: 0 | NT28: 0 | NU28: 0 | NV28: 0 | NW28: 0 | NX28: 0 | NY28: 0 | NZ28: 0 | OA28: 0 | OB28: 0 | OC28: 0 | OD28: 0 | OE28: 0 | OG28: 0 | OH28: 0 | OI28: 0 | OJ28: 0 | OL28: 0 | OM28: 0 | ON28: 0 | OO28: 0 | OP28: 0
A29: 0201 | B29: 201 | C29: Allendale borough | D29: Bergen | E29: Allendale boroughBergen | F29: =IF(AND(M29=0,SUM(CN29:DJ29)=0,SUM(AI29:AW29)=0),"X","") ->  | I29: 6928 | J29: 3.09709866 | K29: 2236.932291 | M29: 0.987 | N29: 45507355 | O29: 45777245 | P29: 0.994104276 | Q29: 197220 | S29: 1100000 | T29: 3150365 | U29: 0 | V29: 242222 | W29: 108281 | X29: 0 | Y29: 52775 | Z29: 791192 | AA29: 175000 | AB29: 11073352 | AC29: 736932 | AD29: 0 | AE29: 0 | AF29: 0 | AG29: 0 | AH29: 17430119 | AI29: 1300000 | AJ29: 2743614 | AK29: 0 | AL29: 240000 | AM29: 116228 | AN29: 0 | AO29: 19356 | AP29: 1057900 | AQ29: 175000 | AR29: 11114779 | AS29: 816227 | AT29: 0 | AU29: 0 | AV29: 0 | AW29: 0 | AX29: 17583104 | AY29: 1300000 | AZ29: 2743614 | BA29: 0 | BB29: 240000 | BC29: 0 | BD29: 0 | BE29: 19356 | BF29: 1057900 | BG29: 175000 | BH29: 11114779 | BI29: 816227 | BJ29: 0 | BK29: 0 | BL29: 0 | BM29: 0 | BN29: 17466876 | BP29: 1292100 | BQ29: 112500 | BR29: 275850 | BS29: 1962330 | BT29: 2996090 | BU29: 1481546 | BV29: 58500 | BW29: 441000 | BX29: 736932 | BY29: 165000 | BZ29: 2538882 | CA29: 922000 | CB29: 1000 | CC29: 1389505 | CD29: 0 | CE29: 53900 | CF29: 26500 | CG29: 1000000 | CH29: 0 | CI29: 605866 | CJ29: 0 | CK29: 600000 | CL29: 0 | CM29: 16659501 | CN29: 1378500 | CO29: 113500 | CP29: 286000 | CQ29: 2290317 | CR29: 3134374 | CS29: 1410782 | CT29: 62000 | CU29: 414000 | CV29: 816227 | CW29: 140000 | CX29: 2517269 | CY29: 922000 | CZ29: 30000 | DA29: 1357299 | DB29: 0 | DC29: 113500 | DD29: 27100 | DE29: 1670000 | DF29: 184008 | DG29: 0 | DH29: 0 | DI29: 600000 | DJ29: 0 | DK29: 17466876 | DL29: 1378500 | DM29: 113500 | DN29: 286000 | DO29: 2290317 | DP29: 3132800 | DQ29: 1393000 | DR29: 62000 | DS29: 414000 | DT29: 816227 | DU29: 140000 | DV29: 2517269 | DW29: 922000 | DX29: 30000 | DY29: 1357299 | DZ29: 0 | EA29: 113500 | EB29: 27100 | EC29: 1670000 | ED29: 184008 | EE29: 0 | EF29: 0 | EG29: 600000 | EH29: 0 | EI29: 17447520 | EK29: 8 | EL29: 1 | EM29: 1 | EN29: 0 | EO29: 19 | EP29: 8 | EQ29: 0 | ER29: 0 | ES29: 0 | ET29: 0 | EU29: 0 | EV29: 0 | EW29: 0 | EX29: 0 | EY29: 0 | EZ29: 0 | FA29: 0 | FB29: 0 | FC29: 0 | FD29: 0 | FE29: 0 | FF29: 0 | FG29: 0 | FH29: 37 | FI29: 0 | FJ29: 0 | FK29: 5 | FL29: 0 | FM29: 20 | FN29: 3 | FO29: 0 | FP29: 80 | FQ29: 0 | FR29: 0 | FS29: 0 | FT29: 0 | FU29: 0 | FV29: 0 | FW29: 0 | FX29: 0 | FY29: 1 | FZ29: 0 | GA29: 0 | GB29: 0 | GC29: 0 | GD29: 0 | GE29: 0 | GF29: 109 | GG29: 48 | GH29: 77 | GI29: 5834173.31 | GJ29: 3907760 | GK29: 485000 | GL29: 703396.8 | GM29: 425395.71 | GN29: 312620.8 | GO29: 0 | GP29: 0 | GQ29: 0 | GR29: 0 | GS29: 0 | GT29: 0 | GU29: 0 | GV29: 0 | GW29: 4 | GX29: 0 | GY29: 794069.35 | GZ29: 587817 | HA29: 0 | HB29: 105807.06 | HC29: 53419.93 | HD29: 47025.36 | HE29: 17 | HF29: 0 | HG29: 2337733.5 | HH29: 1519455 | HI29: 325000 | HJ29: 273501.9 | HK29: 98220.2 | HL29: 121556.4 | HM29: 0 | HN29: 0 | HO29: 0 | HP29: 0 | HQ29: 0 | HR29: 0 | HS29: 0 | HT29: 0 | HU29: 16 | HV29: 1 | HW29: 1475230.82 | HX29: 869695 | HY29: 160000 | HZ29: 156545.1 | IA29: 219415.12 | IB29: 69575.6 | IC29: 11 | ID29: 76 | IE29: 1227139.64 | IF29: 930793 | IG29: 0 | IH29: 167542.74 | II29: 54340.46 | IJ29: 74463.44 | IL29: No | IM29: Yes | IN29: Yes | IO29: 12 | IP29: 1 | IQ29: 7 | IR29: 9 | IS29: 29 | IT29: 17881.27 | IU29: 32120.16 | IV29: 20507.66 | IW29: 50064.36 | IX29: 214575.24 | IY29: 32120.16 | IZ29: 143553.62 | JA29: 450579.24 | JB29: -173755.8 | JC29: 0.2066483826 | JD29: 667072.46 | JE29: 0 | JF29: 0 | JG29: 0 | JH29: 0 | JI29: 0 | JJ29: 0 | JK29: 0 | JL29: 0 | JM29: 0 | JN29: 0 | JO29: 0 | JP29: 0 | JQ29: 0 | JR29: 0 | JS29: -- | JT29: 0 | JU29: 14 | JV29: 0 | JW29: 12 | JX29: 10 | JY29: 36 | JZ29: 7951.2 | KA29: 0 | KB29: 21795.98 | KC29: 41295.58 | KD29: 111316.8 | KE29: 0 | KF29: 261551.76 | KG29: 412955.8 | KH29: 0 | KI29: 0 | KJ29: 785824.36 | KK29: 26 | KL29: 1 | KM29: 19 | KN29: 19 | KO29: 65 | KP29: 12534.30923 | KQ29: 32120.16 | KR29: 21321.33579 | KS29: 45449.21263 | KT29: -2673.166154 | KU29: 22352.25877 | KV29: 325892.04 | KW29: 32120.16 | KX29: 405105.38 | KY29: 863535.04 | KZ29: -173755.8 | LA29: 0.1068180126 | LB29: 1452896.82 | LC29: 685000 | LD29: 2245009758 | LE29: 0 | LF29: 0 | LG29: 5856075 | LH29: 0 | LI29: 0 | LJ29: 2251550833 | LK29: 328789.5492 | LL29: 2245694758 | LM29: 0 | LN29: 0 | LO29: 0 | LP29: 0 | LQ29: 5856075 | LR29: 0 | LS29: 0 | LT29: 5856075 | LU29: 855.151139 | LV29: =VLOOKUP(A29,[5]Data!$A$5:$CK$569,89,FALSE) -> 2245009758 | LW29: 0.002608485321 | LX29: 0 | LY29: 0 | LZ29: 0 | MA29: 184008 | MB29: 0 | MC29: 0 | MD29: 0 | ME29: 0 | MF29: 0 | MG29: 184008 | MH29: 184008 | MI29: 0 | MJ29: 0 | MK29: 0 | ML29: 0 | MM29: 0 | MN29: 0 | MO29: 0 | MP29: -- | MQ29: -- | MR29: AAA | MS29: 2018 | MT29: -- | MU29: -- | MW29: 0 | MX29: 0 | MY29: 197297.6 | MZ29: 0 | NA29: 1825126300 | NB29: 0 | ND29: 0 | NE29: 0 | NF29: 0 | NG29: 0 | NH29: 0 | NI29: 0 | NJ29: 0 | NK29: 0 | NL29: 0 | NM29: 0 | NN29: 0 | NO29: 0 | NP29: 0 | NQ29: 0 | NR29: 0 | NS29: 0 | NT29: 0 | NU29: 0 | NV29: 0 | NW29: 0 | NX29: 0 | NY29: 0 | NZ29: 0 | OA29: 0 | OB29: 0 | OC29: 0 | OD29: 0 | OE29: 0 | OG29: 0 | OH29: 0 | OI29: 0 | OJ29: 0 | OL29: 0 | OM29: 0 | ON29: 0 | OO29: 0 | OP29: 0
A30: 0202 | B30: 202 | C30: Alpine borough | D30: Bergen | E30: Alpine boroughBergen | F30: =IF(AND(M30=0,SUM(CN30:DJ30)=0,SUM(AI30:AW30)=0),"X","") ->  | I30: 1774 | J30: 6.400974246 | K30: 277.1453113 | M30: No data | N30: No data | O30: No data | P30: No data | Q30: No data | S30: 1070000 | T30: 691654 | U30: 458955 | V30: 405016 | W30: 0 | X30: 57048 | Y30: 0 | Z30: 258395 | AA30: 257414 | AB30: 4373150 | AC30: 0 | AD30: 99726 | AE30: 0 | AF30: 0 | AG30: 0 | AH30: 7671358 | AI30: 1025000 | AJ30: 643000 | AK30: 416669 | AL30: 375000 | AM30: 0 | AN30: 37073 | AO30: 0 | AP30: 248026 | AQ30: 377000 | AR30: 4106626 | AS30: 0 | AT30: 0 | AU30: 0 | AV30: 0 | AW30: 0 | AX30: 7228394 | AY30: 1025000 | AZ30: 643000 | BA30: 416669 | BB30: 375000 | BC30: 0 | BD30: 37073 | BE30: 0 | BF30: 248026 | BG30: 377000 | BH30: 4106626 | BI30: 0 | BJ30: 0 | BK30: 0 | BL30: 0 | BM30: 0 | BN30: 7228394 | BP30: 617094 | BQ30: 24000 | BR30: 176550 | BS30: 683447 | BT30: 2316290 | BU30: 581400 | BV30: 35000 | BW30: 12791 | BX30: 1000 | BY30: 196471 | BZ30: 198200 | CA30: 0 | CB30: 0 | CC30: 932255 | CD30: 0 | CE30: 0 | CF30: 32000 | CG30: 12000 | CH30: 327270 | CI30: 0 | CJ30: 0 | CK30: 880000 | CL30: 0 | CM30: 7025768 | CN30: 632200 | CO30: 25750 | CP30: 197500 | CQ30: 808700 | CR30: 2475040 | CS30: 550100 | CT30: 34850 | CU30: 13000 | CV30: 1000 | CW30: 177535 | CX30: 188200 | CY30: 0 | CZ30: 0 | DA30: 901481 | DB30: 0 | DC30: 0 | DD30: 31200 | DE30: 60000 | DF30: 337300 | DG30: 0 | DH30: 0 | DI30: 895000 | DJ30: 0 | DK30: 7328856 | DL30: 632200 | DM30: 25750 | DN30: 197500 | DO30: 808700 | DP30: 2475040 | DQ30: 550100 | DR30: 34850 | DS30: 13000 | DT30: 1000 | DU30: 40000 | DV30: 188200 | DW30: 0 | DX30: 0 | DY30: 901481 | DZ30: 0 | EA30: 0 | EB30: 31200 | EC30: 60000 | ED30: 337300 | EE30: 0 | EF30: 0 | EG30: 895000 | EH30: 0 | EI30: 7191321 | EK30: 2 | EL30: 0 | EM30: 1 | EN30: 0 | EO30: 13 | EP30: 3 | EQ30: 0 | ER30: 0 | ES30: 0 | ET30: 0 | EU30: 0 | EV30: 0 | EW30: 0 | EX30: 0 | EY30: 0 | EZ30: 0 | FA30: 0 | FB30: 0 | FC30: 0 | FD30: 0 | FE30: 0 | FF30: 0 | FG30: 0 | FH30: 19 | FI30: 4 | FJ30: 0 | FK30: 3 | FL30: 0 | FM30: 2 | FN30: 0 | FO30: 0 | FP30: 0 | FQ30: 0 | FR30: 0 | FS30: 0 | FT30: 0 | FU30: 0 | FV30: 0 | FW30: 0 | FX30: 0 | FY30: 4 | FZ30: 0 | GA30: 0 | GB30: 0 | GC30: 0 | GD30: 0 | GE30: 0 | GF30: 13 | GG30: No data | GH30: No data | GI30: No data | GJ30: No data | GK30: No data | GL30: No data | GM30: No data | GN30: No data | GO30: No data | GP30: No data | GQ30: No data | GR30: No data | GS30: No data | GT30: No data | GU30: No data | GV30: No data | GW30: No data | GX30: No data | GY30: No data | GZ30: No data | HA30: No data | HB30: No data | HC30: No data | HD30: No data | HE30: No data | HF30: No data | HG30: No data | HH30: No data | HI30: No data | HJ30: No data | HK30: No data | HL30: No data | HM30: No data | HN30: No data | HO30: No data | HP30: No data | HQ30: No data | HR30: No data | HS30: No data | HT30: No data | HU30: No data | HV30: No data | HW30: No data | HX30: No data | HY30: No data | HZ30: No data | IA30: No data | IB30: No data | IC30: No data | ID30: No data | IE30: No data | IF30: No data | IG30: No data | IH30: No data | II30: No data | IJ30: No data | IL30: No data | IM30: No data | IN30: No data | IO30: No data | IP30: No data | IQ30: No data | IR30: No data | IS30: No data | IT30: No data | IU30: No data | IV30: No data | IW30: No data | IX30: No data | IY30: No data | IZ30: No data | JA30: No data | JB30: No data | JC30: No data | JD30: No data | JE30: No data | JF30: No data | JG30: No data | JH30: No data | JI30: No data | JJ30: No data | JK30: No data | JL30: No data | JM30: No data | JN30: No data | JO30: No data | JP30: No data | JQ30: No data | JR30: No data | JS30: No data | JT30: No data | JU30: No data | JV30: No data | JW30: No data | JX30: No data | JY30: No data | JZ30: No data | KA30: No data | KB30: No data | KC30: No data | KD30: No data | KE30: No data | KF30: No data | KG30: No data | KH30: No data | KI30: No data | KJ30: No data | KK30: No data | KL30: No data | KM30: No data | KN30: No data | KO30: No data | KP30: No data | KQ30: No data | KR30: No data | KS30: No data | KT30: No data | KU30: No data | KV30: No data | KW30: No data | KX30: No data | KY30: No data | KZ30: No data | LA30: No data | LB30: No data | LC30: No data | LD30: No data | LE30: No data | LF30: No data | LG30: No data | LH30: No data | LI30: No data | LJ30: No data | LK30: No data | LL30: No data | LM30: No data | LN30: No data | LO30: No data | LP30: No data | LQ30: No data | LR30: No data | LS30: No data | LT30: No data | LU30: No data | LV30: =VLOOKUP(A30,[5]Data!$A$5:$CK$569,89,FALSE) -> 2007451624 | LW30: No data | LX30: No data | LY30: No data | LZ30: No data | MA30: No data | MB30: No data | MC30: No data | MD30: No data | ME30: No data | MF30: No data | MG30: No data | MH30: No data | MI30: No data | MJ30: No data | MK30: No data | ML30: No data | MM30: No data | MN30: No data | MO30: No data | MP30: No data | MQ30: No data | MR30: No data | MS30: No data | MT30: No data | MU30: No data | MW30: 0 | MX30: 0 | MY30: 0 | MZ30: -- | NA30: 3322501600 | NB30: 0 | ND30: 0 | NE30: 0 | NF30: 0 | NG30: 0 | NH30: 0 | NI30: 0 | NJ30: 0 | NK30: 0 | NL30: 0 | NM30: 0 | NN30: 0 | NO30: 0 | NP30: 0 | NQ30: 0 | NR30: 0 | NS30: 0 | NT30: 0 | NU30: 0 | NV30: 0 | NW30: 0 | NX30: 0 | NY30: 0 | NZ30: 0 | OA30: 0 | OB30: 0 | OC30: 0 | OD30: 0 | OE30: 0 | OG30: 0 | OH30: 0 | OI30: 0 | OJ30: 0 | OL30: 0 | OM30: 0 | ON30: 0 | OO30: 0 | OP30: 0
A31: 0203 | B31: 203 | C31: Bergenfield borough | D31: Bergen | E31: Bergenfield boroughBergen | F31: =IF(AND(M31=0,SUM(CN31:DJ31)=0,SUM(AI31:AW31)=0),"X","") ->  | I31: 28921 | J31: 2.904130672 | K31: 9958.57393 | M31: 0.9784427992 | N31: 95770175 | O31: 97173592 | P31: 0.9855576297 | Q31: 915474 | S31: 6161000 | T31: 2605751 | U31: 2211985 | V31: 395836 | W31: 160328 | X31: 0 | Y31: 2060636 | Z31: 188158 | AA31: 846466 | AB31: 33361431 | AC31: 1363565 | AD31: 0 | AE31: 0 | AF31: 0 | AG31: 0 | AH31: 49355156 | AI31: 6660000 | AJ31: 1740205 | AK31: 2005287 | AL31: 375000 | AM31: 185000 | AN31: 0 | AO31: 418846 | AP31: 185000 | AQ31: 700000 | AR31: 33824334 | AS31: 1548228 | AT31: 0 | AU31: 0 | AV31: 0 | AW31: 0 | AX31: 47641900 | AY31: 6660000 | AZ31: 1740205 | BA31: 2005287 | BB31: 375000 | BC31: 185000 | BD31: 0 | BE31: 418846 | BF31: 185000 | BG31: 700000 | BH31: 33824334 | BI31: 1548228 | BJ31: 0 | BK31: 0 | BL31: 0 | BM31: 0 | BN31: 47641900 | BP31: 3325880 | BQ31: 51650 | BR31: 531000 | BS31: 7952702 | BT31: 10547300 | BU31: 5452150 | BV31: 448283 | BW31: 687850 | BX31: 1590000 | BY31: 2062075 | BZ31: 4280500 | CA31: 1215000 | CB31: 2500 | CC31: 3832575 | CD31: 0 | CE31: 178000 | CF31: 223025 | CG31: 0 | CH31: 3279950 | CI31: 0 | CJ31: 0 | CK31: 2100000 | CL31: 0 | CM31: 47760440 | CN31: 2447304 | CO31: 53250 | CP31: 540542 | CQ31: 9178311 | CR31: 10822407 | CS31: 5745234 | CT31: 442693 | CU31: 711850 | CV31: 1649000 | CW31: 420285 | CX31: 4408500 | CY31: 1221526 | CZ31: 2500 | DA31: 4097173 | DB31: 0 | DC31: 185000 | DD31: 225825 | DE31: 0 | DF31: 3176500 | DG31: 164000 | DH31: 0 | DI31: 2150000 | DJ31: 0 | DK31: 47641900 | DL31: 2447304 | DM31: 53250 | DN31: 540542 | DO31: 9178311 | DP31: 10822407 | DQ31: 5745234 | DR31: 442693 | DS31: 711850 | DT31: 1649000 | DU31: 420285 | DV31: 4408500 | DW31: 1221526 | DX31: 2500 | DY31: 4097173 | DZ31: 0 | EA31: 185000 | EB31: 225825 | EC31: 0 | ED31: 3176500 | EE31: 164000 | EF31: 0 | EG31: 2150000 | EH31: 0 | EI31: 47641900 | EK31: 10 | EL31: 0 | EM31: 7 | EN31: 0 | EO31: 69 | EP31: 43 | EQ31: 3 | ER31: 2 | ES31: 9 | ET31: 0 | EU31: 0 | EV31: 0 | EW31: 0 | EX31: 0 | EY31: 0 | EZ31: 0 | FA31: 2 | FB31: 0 | FC31: 0 | FD31: 0 | FE31: 0 | FF31: 0 | FG31: 0 | FH31: 145 | FI31: 9 | FJ31: 3 | FK31: 5 | FL31: 0 | FM31: 24 | FN31: 18 | FO31: 0 | FP31: 2 | FQ31: 19 | FR31: 0 | FS31: 0 | FT31: 0 | FU31: 0 | FV31: 0 | FW31: 0 | FX31: 3 | FY31: 0 | FZ31: 0 | GA31: 0 | GB31: 0 | GC31: 0 | GD31: 0 | GE31: 0 | GF31: 83 | GG31: 146 | GH31: 83 | GI31: 29271462 | GJ31: 15424370 | GK31: 1421100 | GL31: 3372337 | GM31: 7498311 | GN31: 1555344 | GO31: 0 | GP31: 7 | GQ31: 103507 | GR31: 96000 | GS31: 0 | GT31: 163 | GU31: 0 | GV31: 7344 | GW31: 9 | GX31: 2 | GY31: 2187479.04 | GZ31: 1253362 | HA31: 0 | HB31: 194423 | HC31: 613118 | HD31: 126576.04 | HE31: 49 | HF31: 0 | HG31: 15729425.48 | HH31: 8020000 | HI31: 825000 | HJ31: 2151279 | HK31: 3923213 | HL31: 809933.48 | HM31: 9 | HN31: 0 | HO31: 1548331.68 | HP31: 771000 | HQ31: 115500 | HR31: 206812 | HS31: 377157 | HT31: 77862.68 | HU31: 73 | HV31: 19 | HW31: 8945209.35 | HX31: 4849977 | HY31: 480600 | HZ31: 752333 | IA31: 2372504 | IB31: 489795.35 | IC31: 6 | ID31: 55 | IE31: 757509.45 | IF31: 434031 | IG31: 0 | IH31: 67327 | II31: 212319 | IJ31: 43832.45 | IL31: Yes | IM31: Yes | IN31: Yes | IO31: 34 | IP31: 12 | IQ31: 19 | IR31: 54 | IS31: 119 | IT31: 17133.36 | IU31: 31164.6 | IV31: 34438.68 | IW31: 49099.08 | IX31: 582534.24 | IY31: 373975.2 | IZ31: 654334.92 | JA31: 2651350.32 | JB31: -958700 | JC31: 0.2249310677 | JD31: 3303494.68 | JE31: 0 | JF31: 0 | JG31: 0 | JH31: 0 | JI31: 0 | JJ31: 0 | JK31: 0 | JL31: 0 | JM31: 0 | JN31: 0 | JO31: 0 | JP31: 0 | JQ31: 0 | JR31: 0 | JS31: -- | JT31: 0 | JU31: 47 | JV31: 8 | JW31: 58 | JX31: 15 | JY31: 128 | JZ31: 12597.48 | KA31: 21864.12 | KB31: 28006.92 | KC31: 88693.8 | KD31: 592081.56 | KE31: 174912.96 | KF31: 1624401.36 | KG31: 1330407 | KH31: 0 | KI31: 0 | KJ31: 3721802.88 | KK31: 81 | KL31: 20 | KM31: 77 | KN31: 69 | KO31: 247 | KP31: 14501.42963 | KQ31: 27444.408 | KR31: 29593.97766 | KS31: 57706.62783 | KT31: -3881.376518 | KU31: 28442.50024 | KV31: 1174615.8 | KW31: 548888.16 | KX31: 2278736.28 | KY31: 3981757.32 | KZ31: -958700 | LA31: 0.120077692 | LB31: 7025297.56 | LC31: 0 | LD31: 0 | LE31: 5055112 | LF31: 0 | LG31: 0 | LH31: 31415000 | LI31: 0 | LJ31: 36470112 | LK31: 1287.74097 | LL31: 1262600 | LM31: 0 | LN31: 0 | LO31: 5055112 | LP31: 0 | LQ31: 0 | LR31: 30152400 | LS31: 0 | LT31: 35207512 | LU31: 1243.15921 | LV31: =VLOOKUP(A31,[5]Data!$A$5:$CK$569,89,FALSE) -> 4170926088 | LW31: 0.008441173796 | LX31: 0 | LY31: 0 | LZ31: 0 | MA31: 0 | MB31: 2025000 | MC31: 1151500 | MD31: 0 | ME31: 0 | MF31: 2025000 | MG31: 1151500 | MH31: 3176500 | MI31: 3111250 | MJ31: 3040000 | MK31: 31247250 | ML31: 0 | MM31: 0 | MN31: 0 | MO31: 0 | MP31: AA2 | MQ31: 2022 | MR31: -- | MS31: -- | MT31: -- | MU31: -- | MW31: 105839 | MX31: 13500000 | MY31: 476145 | MZ31: 0.222283128 | NA31: 2915949630 | NB31: 0.004629709602 | ND31: 0 | NE31: 0 | NF31: 0 | NG31: 0 | NH31: 0 | NI31: 0 | NJ31: 0 | NK31: 0 | NL31: 0 | NM31: 0 | NN31: 0 | NO31: 0 | NP31: 0 | NQ31: 0 | NR31: 0 | NS31: 0 | NT31: 0 | NU31: 0 | NV31: 0 | NW31: 0 | NX31: 0 | NY31: 0 | NZ31: 0 | OA31: 0 | OB31: 0 | OC31: 0 | OD31: 0 | OE31: 0 | OG31: 0 | OH31: 0 | OI31: 0 | OJ31: 0 | OL31: 6660000 | OM31: 0 | ON31: 0 | OO31: 0 | OP31: 6660000
A32: 0204 | B32: 204 | C32: Bogota borough | D32: Bergen | E32: Bogota boroughBergen | F32: =IF(AND(M32=0,SUM(CN32:DJ32)=0,SUM(AI32:AW32)=0),"X","") ->  | I32: 9799 | J32: 0.7546309536 | K32: 12985.15513 | M32: 0.9864 | N32: 28058828 | O32: 28266418 | P32: 0.9926559495 | Q32: 211235 | S32: 1175000 | T32: 371000 | U32: 732999 | V32: 300000 | W32: 165000 | X32: 0 | Y32: 42121 | Z32: 1275000 | AA32: 240000 | AB32: 9017835 | AC32: 360045 | AD32: 0 | AE32: 0 | AF32: 0 | AG32: 0 | AH32: 13679000 | AI32: 1100000 | AJ32: 356000 | AK32: 685757 | AL32: 135000 | AM32: 208000 | AN32: 0 | AO32: 43171 | AP32: 1630000 | AQ32: 195000 | AR32: 9846555 | AS32: 419715 | AT32: 0 | AU32: 0 | AV32: 0 | AW32: 0 | AX32: 14619198 | AY32: 1100000 | AZ32: 356000 | BA32: 685757 | BB32: 135000 | BC32: 208000 | BD32: 0 | BE32: 43171 | BF32: 1630000 | BG32: 195000 | BH32: 9846555 | BI32: 419715 | BJ32: 0 | BK32: 0 | BL32: 0 | BM32: 0 | BN32: 14619198 | BP32: 1154035 | BQ32: 6125 | BR32: 189600 | BS32: 1901833 | BT32: 3221340 | BU32: 1706669 | BV32: 92362 | BW32: 139000 | BX32: 360045 | BY32: 31000 | BZ32: 1203912 | CA32: 375000 | CB32: 0 | CC32: 1019526 | CD32: 100000 | CE32: 292025 | CF32: 0 | CG32: 125000 | CH32: 1173859 | CI32: 187669 | CJ32: 0 | CK32: 400000 | CL32: 0 | CM32: 13679000 | CN32: 1193775 | CO32: 11225 | CP32: 211950 | CQ32: 1960187 | CR32: 3487836 | CS32: 1794369 | CT32: 96866 | CU32: 154500 | CV32: 419715 | CW32: 0 | CX32: 1374500 | CY32: 385000 | CZ32: 0 | DA32: 1136089 | DB32: 100000 | DC32: 339475 | DD32: 0 | DE32: 55000 | DF32: 1387711 | DG32: 111000 | DH32: 0 | DI32: 400000 | DJ32: 0 | DK32: 14619198 | DL32: 1193775 | DM32: 11225 | DN32: 211950 | DO32: 1960187 | DP32: 3480975 | DQ32: 1765100 | DR32: 89825 | DS32: 154500 | DT32: 419715 | DU32: 0 | DV32: 1374500 | DW32: 385000 | DX32: 0 | DY32: 1136089 | DZ32: 100000 | EA32: 339475 | EB32: 0 | EC32: 55000 | ED32: 1387711 | EE32: 111000 | EF32: 0 | EG32: 400000 | EH32: 0 | EI32: 14576027 | EK32: 3 | EL32: 0 | EM32: 1 | EN32: 0 | EO32: 24 | EP32: 12 | EQ32: 0 | ER32: 1 | ES32: 2 | ET32: 0 | EU32: 0 | EV32: 0 | EW32: 0 | EX32: 0 | EY32: 0 | EZ32: 0 | FA32: 0 | FB32: 0 | FC32: 0 | FD32: 0 | FE32: 0 | FF32: 0 | FG32: 0 | FH32: 43 | FI32: 11 | FJ32: 1 | FK32: 7 | FL32: 0 | FM32: 22 | FN32: 4 | FO32: 2 | FP32: 15 | FQ32: 9 | FR32: 0 | FS32: 0 | FT32: 0 | FU32: 0 | FV32: 0 | FW32: 0 | FX32: 7 | FY32: 0 | FZ32: 0 | GA32: 0 | GB32: 0 | GC32: 0 | GD32: 0 | GE32: 0 | GF32: 78 | GG32: 43 | GH32: 90 | GI32: 6876612.114 | GJ32: 4537086 | GK32: 415550 | GL32: 918785 | GM32: 776926.41 | GN32: 228264.704 | GO32: 0 | GP32: 7 | GQ32: 39830.5 | GR32: 37000 | GS32: 0 | GT32: 0 | GU32: 0 | GV32: 2830.5 | GW32: 5 | GX32: 6 | GY32: 842218.574 | GZ32: 652636 | HA32: 0 | HB32: 60046.65 | HC32: 79609.27 | HD32: 49926.654 | HE32: 21 | HF32: 0 | HG32: 3617330.013 | HH32: 2104225 | HI32: 325000 | HJ32: 696390 | HK32: 456491.25 | HL32: 35223.7625 | HM32: 0 | HN32: 0 | HO32: 0 | HP32: 0 | HQ32: 0 | HR32: 0 | HS32: 0 | HT32: 0 | HU32: 10 | HV32: 6 | HW32: 1096998.88 | HX32: 716950 | HY32: 45550 | HZ32: 91181.95 | IA32: 184985.68 | IB32: 58331.25 | IC32: 7 | ID32: 71 | IE32: 1280234.147 | IF32: 1026275 | IG32: 45000 | IH32: 71166.4 | II32: 55840.21 | IJ32: 81952.5375 | IL32: No | IM32: Yes | IN32: Yes | IO32: 17 | IP32: 2 | IQ32: 4 | IR32: 12 | IS32: 35 | IT32: 17625 | IU32: 32120 | IV32: 33056 | IW32: 49887 | IX32: 299625 | IY32: 64240 | IZ32: 132224 | JA32: 598644 | JB32: -287670 | JC32: 0.262776403 | JD32: 807063 | JE32: 0 | JF32: 0 | JG32: 0 | JH32: 0 | JI32: 0 | JJ32: 0 | JK32: 0 | JL32: 0 | JM32: 0 | JN32: 0 | JO32: 0 | JP32: 0 | JQ32: 0 | JR32: 0 | JS32: -- | JT32: 0 | JU32: 0 | JV32: 0 | JW32: 0 | JX32: 0 | JY32: 0 | JZ32: 0 | KA32: 0 | KB32: 0 | KC32: 0 | KD32: 0 | KE32: 0 | KF32: 0 | KG32: 0 | KH32: 0 | KI32: -- | KJ32: 0 | KK32: 17 | KL32: 2 | KM32: 4 | KN32: 12 | KO32: 35 | KP32: 17625 | KQ32: 32120 | KR32: 33056 | KS32: 49887 | KT32: -8219.142857 | KU32: 23058.94286 | KV32: 299625 | KW32: 64240 | KX32: 132224 | KY32: 598644 | KZ32: -287670 | LA32: 0.262776403 | LB32: 807063 | LC32: 19954000 | LD32: 0 | LE32: 8680000 | LF32: 0 | LG32: 11994792 | LH32: 4495000 | LI32: 0 | LJ32: 45123792 | LK32: 5438.567193 | LL32: 20065840 | LM32: 0 | LN32: 0 | LO32: 8680000 | LP32: 0 | LQ32: 11882952 | LR32: 4495000 | LS32: 0 | LT32: 25057952 | LU32: 3020.121972 | LV32: =VLOOKUP(A32,[5]Data!$A$5:$CK$569,89,FALSE) -> 1115335315 | LW32: 0.0224667431 | LX32: 0 | LY32: 0 | LZ32: 0 | MA32: 346236 | MB32: 620000 | MC32: 421475 | MD32: 0 | ME32: 0 | MF32: 620000 | MG32: 767711 | MH32: 1387711 | MI32: 1689750 | MJ32: 1677563 | MK32: 21203750 | ML32: 0 | MM32: 0 | MN32: 0 | MO32: 0 | MP32: A1 | MQ32: 2025 | MR32: -- | MS32: -- | MT32: -- | MU32: -- | MW32: 0 | MX32: 0 | MY32: 871954.71 | MZ32: 0 | NA32: 717942800 | NB32: 0 | ND32: 0 | NE32: 0 | NF32: 0 | NG32: 0 | NH32: 0 | NI32: 0 | NJ32: 0 | NK32: 0 | NL32: 0 | NM32: 0 | NN32: 0 | NO32: 0 | NP32: 0 | NQ32: 0 | NR32: 0 | NS32: 0 | NT32: 0 | NU32: 0 | NV32: 0 | NW32: 0 | NX32: 0 | NY32: 0 | NZ32: 0 | OA32: 0 | OB32: 0 | OC32: 0 | OD32: 0 | OE32: 0 | OG32: 0 | OH32: 0 | OI32: 0 | OJ32: 0 | OL32: 0 | OM32: 0 | ON32: 0 | OO32: 0 | OP32: 0
A33: 0205 | B33: 205 | C33: Carlstadt borough | D33: Bergen | E33: Carlstadt boroughBergen | F33: =IF(AND(M33=0,SUM(CN33:DJ33)=0,SUM(AI33:AW33)=0),"X","") ->  | I33: 6454 | J33: 3.946577114 | K33: 1635.341161 | M33: 0.9923 | N33: 53685332.61 | O33: 54068249.83 | P33: 0.9929178913 | Q33: 1186701.2 | S33: 1140000 | T33: 1809174.06 | U33: 1151143 | V33: 150398.15 | W33: 129686.9 | X33: 0 | Y33: 2750326.4 | Z33: 617525.02 | AA33: 124245.24 | AB33: 23410944.81 | AC33: 1093281.04 | AD33: 327327.35 | AE33: 0 | AF33: 0 | AG33: 0 | AH33: 32704051.97 | AI33: 1440000 | AJ33: 2994305.59 | AK33: 1038406 | AL33: 150000 | AM33: 132280.64 | AN33: 0 | AO33: 1508275.87 | AP33: 720662.31 | AQ33: 141454.78 | AR33: 25972397.06 | AS33: 1143321.64 | AT33: 325390 | AU33: 0 | AV33: 0 | AW33: 0 | AX33: 35566493.89 | AY33: 1440000 | AZ33: 2234305.59 | BA33: 1038406 | BB33: 150000 | BC33: 132280.64 | BD33: 0 | BE33: 1508275.87 | BF33: 720662.31 | BG33: 141454.78 | BH33: 25972397.06 | BI33: 1143321.64 | BJ33: 0 | BK33: 0 | BL33: 0 | BM33: 0 | BN33: 34481103.89 | BP33: 1666781.55 | BQ33: 172696.89 | BR33: 161843.81 | BS33: 6554792.72 | BT33: 7314133.39 | BU33: 3523770.96 | BV33: 137615.1 | BW33: 2306077.8 | BX33: 1093281.04 | BY33: 725784.25 | BZ33: 1759086.09 | CA33: 0 | CB33: 0 | CC33: 2503627.85 | CD33: 0 | CE33: 244526.56 | CF33: 132630.18 | CG33: 300000 | CH33: 2688865.34 | CI33: 129187.85 | CJ33: 0 | CK33: 440000 | CL33: 0 | CM33: 31854701.38 | CN33: 1923550 | CO33: 286200 | CP33: 172000 | CQ33: 7461750 | CR33: 6779384.54 | CS33: 3483335.29 | CT33: 143795.41 | CU33: 1972000 | CV33: 1143321.64 | CW33: 947533.78 | CX33: 2486384.55 | CY33: 0 | CZ33: 0 | DA33: 2622310 | DB33: 0 | DC33: 242407.68 | DD33: 144000 | DE33: 499986 | DF33: 4778535 | DG33: 40000 | DH33: 0 | DI33: 440000 | DJ33: 0 | DK33: 35566493.89 | DL33: 1923550 | DM33: 286200 | DN33: 172000 | DO33: 7461750 | DP33: 6774945 | DQ33: 3483335.29 | DR33: 139000 | DS33: 322000 | DT33: 1143321.64 | DU33: 897129.78 | DV33: 1822424.55 | DW33: 0 | DX33: 0 | DY33: 2601270 | DZ33: 0 | EA33: 242407.68 | EB33: 144000 | EC33: 300000 | ED33: 4778535 | EE33: 40000 | EF33: 0 | EG33: 440000 | EH33: 0 | EI33: 32971868.94 | EK33: 8 | EL33: 0 | EM33: 2 | EN33: 0 | EO33: 37 | EP33: 17 | EQ33: 0 | ER33: 1 | ES33: 9 | ET33: 1 | EU33: 0 | EV33: 1 | EW33: 0 | EX33: 0 | EY33: 0 | EZ33: 0 | FA33: 2 | FB33: 0 | FC33: 0 | FD33: 0 | FE33: 0 | FF33: 0 | FG33: 0 | FH33: 78 | FI33: 13 | FJ33: 0 | FK33: 4 | FL33: 0 | FM33: 43 | FN33: 7 | FO33: 1 | FP33: 2 | FQ33: 1 | FR33: 0 | FS33: 0 | FT33: 0 | FU33: 0 | FV33: 0 | FW33: 0 | FX33: 0 | FY33: 1 | FZ33: 0 | GA33: 0 | GB33: 0 | GC33: 0 | GD33: 0 | GE33: 0 | GF33: 72 | GG33: 78 | GH33: 72 | GI33: 13646636.78 | GJ33: 8641020.06 | GK33: 763464.6 | GL33: 2101270.18 | GM33: 1808430.66 | GN33: 332451.28 | GO33: 0 | GP33: 7 | GQ33: 262854.8 | GR33: 53445.12 | GS33: 12604.88 | GT33: 0 | GU33: 192796.42 | GV33: 4008.38 | GW33: 3 | GX33: 1 | GY33: 571545.07 | GZ33: 451764.22 | HA33: 600 | HB33: 46202.37 | HC33: 69590.25 | HD33: 3388.23 | HE33: 36 | HF33: 0 | HG33: 6826995.69 | HH33: 4266497.3 | HI33: 475000 | HJ33: 1454437 | HK33: 599062.66 | HL33: 31998.73 | HM33: 0 | HN33: 8 | HO33: 46543.9 | HP33: 38099.04 | HQ33: 2730 | HR33: 0 | HS33: 0 | HT33: 5714.86 | HU33: 15 | HV33: 5 | HW33: 2183804.83 | HX33: 1385592 | HY33: 225600 | HZ33: 231011.85 | IA33: 237681.58 | IB33: 103919.4 | IC33: 24 | ID33: 51 | IE33: 3754892.49 | IF33: 2445622.38 | IG33: 46929.72 | IH33: 369618.96 | II33: 709299.75 | IJ33: 183421.68 | IL33: No | IM33: No | IN33: No | IO33: 20 | IP33: 4 | IQ33: 11 | IR33: 30 | IS33: 65 | IT33: 17778.36 | IU33: 25956.6 | IV33: 39104.16 | IW33: 47113.56 | IX33: 355567.2 | IY33: 103826.4 | IZ33: 430145.76 | JA33: 1413406.8 | JB33: -494515.5 | JC33: 0.2147316809 | JD33: 1808430.66 | JE33: 1 | JF33: 0 | JG33: 1 | JH33: 5 | JI33: 7 | JJ33: 17778.36 | JK33: 25956.6 | JL33: 39104.16 | JM33: 47113.56 | JN33: 17778.36 | JO33: 0 | JP33: 39104.16 | JQ33: 235567.8 | JR33: -5964.02 | JS33: 0.02039327569 | JT33: 286486.3 | JU33: 8 | JV33: 0 | JW33: 24 | JX33: 8 | JY33: 40 | JZ33: 17778.36 | KA33: 25956.6 | KB33: 39104.16 | KC33: 47113.56 | KD33: 142226.88 | KE33: 0 | KF33: 938499.84 | KG33: 376908.48 | KH33: 0 | KI33: 0 | KJ33: 1457635.2 | KK33: 29 | KL33: 4 | KM33: 36 | KN33: 43 | KO33: 112 | KP33: 17778.36 | KQ33: 25956.6 | KR33: 39104.16 | KS33: 47113.56 | KT33: -4468.567143 | KU33: 31719.21571 | KV33: 515572.44 | KW33: 103826.4 | KX33: 1407749.76 | KY33: 2025883.08 | KZ33: -500479.52 | LA33: 0.1234827555 | LB33: 3552552.16 | LC33: 8200000 | LD33: 0 | LE33: 5888000 | LF33: 0 | LG33: 19478000 | LH33: 13100000 | LI33: 0 | LJ33: 46666000 | LK33: 7638.893436 | LL33: 8200000 | LM33: 0 | LN33: 0 | LO33: 5888000 | LP33: 0 | LQ33: 19478000 | LR33: 13100000 | LS33: 0 | LT33: 38466000 | LU33: 6296.611557 | LV33: =VLOOKUP(A33,[5]Data!$A$5:$CK$569,89,FALSE) -> 3171552238 | LW33: 0.01212844598 | LX33: 0 | LY33: 0 | LZ33: 376775 | MA33: 876510 | MB33: 1000000 | MC33: 225250 | MD33: 0 | ME33: 0 | MF33: 1376775 | MG33: 1101760 | MH33: 2478535 | MI33: 1414250 | MJ33: 1500125 | MK33: 10198000 | ML33: 0 | MM33: 0 | MN33: 0 | MO33: 0 | MP33: A2 | MQ33: 2024 | MR33: -- | MS33: -- | MT33: -- | MU33: -- | MW33: 0 | MX33: 0 | MY33: 0 | MZ33: -- | NA33: 2737738576 | NB33: 0 | ND33: 0 | NE33: 0 | NF33: 0 | NG33: 0 | NH33: 0 | NI33: 0 | NJ33: 0 | NK33: 0 | NL33: 0 | NM33: 0 | NN33: 0 | NO33: 0 | NP33: 0 | NQ33: 0 | NR33: 0 | NS33: 0 | NT33: 0 | NU33: 0 | NV33: 0 | NW33: 0 | NX33: 0 | NY33: 0 | NZ33: 0 | OA33: 0 | OB33: 0 | OC33: 0 | OD33: 0 | OE33: 0 | OG33: 0 | OH33: 0 | OI33: 0 | OJ33: 0 | OL33: 0 | OM33: 0 | ON33: 0 | OO33: 0 | OP33: 0
A34: 0206 | B34: 206 | C34: Cliffside Park borough | D34: Bergen | E34: Cliffside Park boroughBergen | F34: =IF(AND(M34=0,SUM(CN34:DJ34)=0,SUM(AI34:AW34)=0),"X","") ->  | I34: 26183 | J34: 0.955772721 | K34: 27394.58809 | M34: 0.9494 | N34: 83031019 | O34: 84555656 | P34: 0.9819688348 | Q34: 1455259 | S34: 4550000 | T34: 1754237 | U34: 1140527 | V34: 358386 | W34: 259000 | X34: 507771 | Y34: 9548341 | Z34: 2659533 | AA34: 1461971 | AB34: 37017901 | AC34: 1396776 | AD34: 0 | AE34: 0 | AF34: 0 | AG34: 0 | AH34: 60654443 | AI34: 4561000 | AJ34: 1137000 | AK34: 1202441 | AL34: 350000 | AM34: 257500 | AN34: 450000 | AO34: 5155490 | AP34: 1985343 | AQ34: 1390750 | AR34: 35058256 | AS34: 1486726 | AT34: 0 | AU34: 0 | AV34: 0 | AW34: 0 | AX34: 53034506 | AY34: 4550000 | AZ34: 1018000 | BA34: 1202441 | BB34: 350000 | BC34: 257500 | BD34: 450000 | BE34: 5155490 | BF34: 1985343 | BG34: 1390750 | BH34: 35058256 | BI34: 1486726 | BJ34: 0 | BK34: 0 | BL34: 0 | BM34: 0 | BN34: 52904506 | BP34: 3310387 | BQ34: 19823 | BR34: 547532 | BS34: 7907962 | BT34: 10769938 | BU34: 12925719 | BV34: 220022 | BW34: 1503806 | BX34: 1396776 | BY34: 95000 | BZ34: 4167739 | CA34: 1000000 | CB34: 1000 | CC34: 3633455 | CD34: 0 | CE34: 235000 | CF34: 347173 | CG34: 929350 | CH34: 2866871 | CI34: 0 | CJ34: 0 | CK34: 4400000 | CL34: 0 | CM34: 56277553 | CN34: 3520000 | CO34: 22000 | CP34: 560000 | CQ34: 9150000 | CR34: 10483522 | CS34: 8047107 | CT34: 265400 | CU34: 2089461 | CV34: 1486726 | CW34: 95000 | CX34: 3925000 | CY34: 1000000 | CZ34: 1000 | DA34: 3579000 | DB34: 0 | DC34: 257500 | DD34: 298000 | DE34: 901350 | DF34: 2823440 | DG34: 0 | DH34: 0 | DI34: 4400000 | DJ34: 0 | DK34: 52904506 | DL34: 3520000 | DM34: 22000 | DN34: 560000 | DO34: 9150000 | DP34: 10325000 | DQ34: 3577000 | DR34: 220000 | DS34: 1491000 | DT34: 1486726 | DU34: 95000 | DV34: 3925000 | DW34: 1000000 | DX34: 1000 | DY34: 3579000 | DZ34: 0 | EA34: 257500 | EB34: 298000 | EC34: 901350 | ED34: 2823440 | EE34: 0 | EF34: 0 | EG34: 4400000 | EH34: 0 | EI34: 47632016 | EK34: 19 | EL34: 0 | EM34: 4 | EN34: 0 | EO34: 75 | EP34: 35 | EQ34: 2 | ER34: 10 | ES34: 0 | ET34: 0 | EU34: 0 | EV34: 0 | EW34: 0 | EX34: 0 | EY34: 0 | EZ34: 0 | FA34: 3 | FB34: 0 | FC34: 0 | FD34: 0 | FE34: 0 | FF34: 0 | FG34: 0 | FH34: 148 | FI34: 6 | FJ34: 0 | FK34: 7 | FL34: 0 | FM34: 103 | FN34: 12 | FO34: 1 | FP34: 7 | FQ34: 0 | FR34: 0 | FS34: 0 | FT34: 0 | FU34: 0 | FV34: 0 | FW34: 0 | FX34: 0 | FY34: 5 | FZ34: 0 | GA34: 0 | GB34: 0 | GC34: 0 | GD34: 0 | GE34: 0 | GF34: 141 | GG34: 164 | GH34: 148 | GI34: 22147240 | GJ34: 14374500 | GK34: 850000 | GL34: 2694000 | GM34: 3378740 | GN34: 850000 | GO34: 7 | GP34: 0 | GQ34: 268732 | GR34: 229000 | GS34: 0 | GT34: 26467 | GU34: 0 | GV34: 13265 | GW34: 13 | GX34: 3 | GY34: 1560105 | GZ34: 1108504 | HA34: 0 | HB34: 128118 | HC34: 259274 | HD34: 64209 | HE34: 48 | HF34: 0 | HG34: 10718099 | HH34: 6550000 | HI34: 450000 | HJ34: 1675364 | HK34: 1637270 | HL34: 405465 | HM34: 0 | HN34: 23 | HO34: 681636 | HP34: 350000 | HQ34: 200000 | HR34: 131636 | HS34: 0 | HT34: 0 | HU34: 0 | HV34: 0 | HW34: 0 | HX34: 0 | HY34: 0 | HZ34: 0 | IA34: 0 | IB34: 0 | IC34: 96 | ID34: 122 | IE34: 8918668 | IF34: 6136996 | IG34: 200000 | IH34: 732415 | II34: 1482196 | IJ34: 367061 | IL34: No | IM34: Yes | IN34: Yes | IO34: 54 | IP34: 10 | IQ34: 17 | IR34: 45 | IS34: 126 | IT34: 17046.96 | IU34: 31134.12 | IV34: 34786.68 | IW34: 49010.88 | IX34: 920535.84 | IY34: 311341.2 | IZ34: 591373.56 | JA34: 2205489.6 | JB34: -650000 | JC34: 0.1613407586 | JD34: 3378740.2 | JE34: 0 | JF34: 0 | JG34: 0 | JH34: 0 | JI34: 0 | JJ34: 0 | JK34: 0 | JL34: 0 | JM34: 0 | JN34: 0 | JO34: 0 | JP34: 0 | JQ34: 0 | JR34: 0 | JS34: -- | JT34: 0 | JU34: 39 | JV34: 3 | JW34: 33 | JX34: 17 | JY34: 92 | JZ34: 9961.2 | KA34: 22302.06 | KB34: 25974.87 | KC34: 51604.32 | KD34: 388486.8 | KE34: 66906.18 | KF34: 857170.71 | KG34: 877273.44 | KH34: 0 | KI34: 0 | KJ34: 2189837.13 | KK34: 93 | KL34: 13 | KM34: 50 | KN34: 62 | KO34: 218 | KP34: 14075.51226 | KQ34: 29095.95231 | KR34: 28970.8854 | KS34: 49721.98452 | KT34: -2981.651376 | KU34: 25543.93271 | KV34: 1309022.64 | KW34: 378247.38 | KX34: 1448544.27 | KY34: 3082763.04 | KZ34: -650000 | LA34: 0.1045255153 | LB34: 5568577.33 | LC34: 0 | LD34: 0 | LE34: 3006101 | LF34: 0 | LG34: 0 | LH34: 26332000 | LI34: 226952 | LJ34: 29565053 | LK34: 1137.073689 | LL34: 740924 | LM34: 0 | LN34: 0 | LO34: 3006101 | LP34: 0 | LQ34: 0 | LR34: 25591076 | LS34: 226952 | LT34: 28824129 | LU34: 1108.577709 | LV34: =VLOOKUP(A34,[5]Data!$A$5:$CK$569,89,FALSE) -> 4177910738 | LW34: 0.00689917301 | LX34: 0 | LY34: 0 | LZ34: 0 | MA34: 0 | MB34: 1890000 | MC34: 918701 | MD34: 10249 | ME34: 4489 | MF34: 1900249 | MG34: 923190 | MH34: 2823439 | MI34: 2784264 | MJ34: 2744258 | MK34: 27046737 | ML34: 0 | MM34: 0 | MN34: 0 | MO34: 0 | MP34: -- | MQ34: -- | MR34: AA+ | MS34: 2023 | MT34: -- | MU34: -- | MW34: 0 | MX34: 0 | MY34: 1190602 | MZ34: 0 | NA34: 3174122918 | NB34: 0 | ND34: 0 | NE34: 0 | NF34: 0 | NG34: 0 | NH34: 0 | NI34: 0 | NJ34: 1 | NK34: 0 | NL34: 0 | NM34: 0 | NN34: 0 | NO34: 0 | NP34: 0 | NQ34: 1190602 | NR34: 0 | NS34: 0 | NT34: 0 | NU34: 0 | NV34: 0 | NW34: 0 | NX34: 84727300 | NY34: 0 | NZ34: 0 | OA34: 0 | OB34: 0 | OC34: 0 | OD34: 0 | OE34: 2335084.388 | OG34: 0 | OH34: 380000 | OI34: 0 | OJ34: 0 | OL34: 0 | OM34: 0 | ON34: 0 | OO34: 0 | OP34: 0
A35: 0207 | B35: 207 | C35: Closter borough | D35: Bergen | E35: Closter boroughBergen | F35: =IF(AND(M35=0,SUM(CN35:DJ35)=0,SUM(AI35:AW35)=0),"X","") ->  | I35: 8730 | J35: 3.160234445 | K35: 2762.453277 | M35: 0.9828 | N35: 58178186 | O35: 58689049 | P35: 0.9912954289 | Q35: 597678 | S35: 1950000 | T35: 598359 | U35: 1678894 | V35: 504884 | W35: 70500 | X35: 0 | Y35: 78605 | Z35: 655541 | AA35: 280794 | AB35: 14408139 | AC35: 963294 | AD35: 277357 | AE35: 0 | AF35: 0 | AG35: 0 | AH35: 21466367 | AI35: 2025000 | AJ35: 415000 | AK35: 1523271 | AL35: 400000 | AM35: 69800 | AN35: 0 | AO35: 269849 | AP35: 642000 | AQ35: 350000 | AR35: 14882736 | AS35: 1034630 | AT35: 296567 | AU35: 0 | AV35: 0 | AW35: 0 | AX35: 21908853 | AY35: 2025000 | AZ35: 415000 | BA35: 1523271 | BB35: 400000 | BC35: 69800 | BD35: 0 | BE35: 269849 | BF35: 642000 | BG35: 350000 | BH35: 14882736 | BI35: 1034630 | BJ35: 0 | BK35: 0 | BL35: 0 | BM35: 0 | BN35: 21612286 | BP35: 1514536 | BQ35: 155710 | BR35: 441390 | BS35: 2462248 | BT35: 4020453 | BU35: 2992403 | BV35: 146871 | BW35: 199211 | BX35: 963294 | BY35: 95000 | BZ35: 1771343 | CA35: 368750 | CB35: 0 | CC35: 1912045 | CD35: 0 | CE35: 90900 | CF35: 0 | CG35: 100000 | CH35: 1830125 | CI35: 19643 | CJ35: 0 | CK35: 1050000 | CL35: 0 | CM35: 20133922 | CN35: 1682936 | CO35: 124410 | CP35: 461205 | CQ35: 2832486 | CR35: 4109132 | CS35: 3104518 | CT35: 144304 | CU35: 392767 | CV35: 1034630 | CW35: 93000 | CX35: 1806850 | CY35: 322750 | CZ35: 0 | DA35: 2040000 | DB35: 0 | DC35: 69800 | DD35: 0 | DE35: 270000 | DF35: 2068281 | DG35: 5217 | DH35: 0 | DI35: 1050000 | DJ35: 0 | DK35: 21612286 | DL35: 1682936 | DM35: 124410 | DN35: 461205 | DO35: 2832486 | DP35: 4099035 | DQ35: 3046087 | DR35: 144304 | DS35: 191446 | DT35: 1034630 | DU35: 93000 | DV35: 1806850 | DW35: 322750 | DX35: 0 | DY35: 2040000 | DZ35: 0 | EA35: 69800 | EB35: 0 | EC35: 270000 | ED35: 2068281 | EE35: 5217 | EF35: 0 | EG35: 1050000 | EH35: 0 | EI35: 21342437 | EK35: 10 | EL35: 0 | EM35: 3 | EN35: 0 | EO35: 22 | EP35: 22 | EQ35: 1 | ER35: 1 | ES35: 5 | ET35: 0 | EU35: 0 | EV35: 0 | EW35: 0 | EX35: 0 | EY35: 0 | EZ35: 0 | FA35: 1 | FB35: 0 | FC35: 0 | FD35: 0 | FE35: 0 | FF35: 0 | FG35: 0 | FH35: 65 | FI35: 6 | FJ35: 1 | FK35: 5 | FL35: 0 | FM35: 13 | FN35: 0 | FO35: 1 | FP35: 3 | FQ35: 15 | FR35: 0 | FS35: 0 | FT35: 0 | FU35: 0 | FV35: 0 | FW35: 0 | FX35: 0 | FY35: 4 | FZ35: 0 | GA35: 0 | GB35: 0 | GC35: 0 | GD35: 0 | GE35: 0 | GF35: 48 | GG35: 69 | GH35: 65 | GI35: 10940939 | GJ35: 7048400 | GK35: 657539 | GL35: 1634000 | GM35: 1206000 | GN35: 395000 | GO35: 7 | GP35: 0 | GQ35: 60800 | GR35: 55500 | GS35: 0 | GT35: 0 | GU35: 0 | GV35: 5300 | GW35: 7 | GX35: 3 | GY35: 1309440 | GZ35: 990500 | HA35: 0 | HB35: 131340 | HC35: 125900 | HD35: 61700 | HE35: 24 | HF35: 0 | HG35: 4816614 | HH35: 2916000 | HI35: 405959 | HJ35: 1037000 | HK35: 392655 | HL35: 65000 | HM35: 0 | HN35: 29 | HO35: 110000 | HP35: No data | HQ35: 100000 | HR35: No data | HS35: No data | HT35: 10000 | HU35: 20 | HV35: 0 | HW35: 2823635 | HX35: 1844100 | HY35: 151580 | HZ35: 280590 | IA35: 396365 | IB35: 151000 | IC35: 11 | ID35: 33 | IE35: 1820450 | IF35: 1242300 | IG35: 0 | IH35: 185070 | II35: 291080 | IJ35: 102000 | IL35: No | IM35: Yes | IN35: Yes | IO35: 18 | IP35: 5 | IQ35: 5 | IR35: 25 | IS35: 53 | IT35: 15052.92 | IU35: 26986.56 | IV35: 28949.42 | IW35: 39416.4 | IX35: 270952.56 | IY35: 134932.8 | IZ35: 144747.1 | JA35: 985410 | JB35: -453233.86 | JC35: 0.295065971 | JD35: 1082808.6 | JE35: 0 | JF35: 0 | JG35: 0 | JH35: 0 | JI35: 0 | JJ35: 0 | JK35: 0 | JL35: 0 | JM35: 0 | JN35: 0 | JO35: 0 | JP35: 0 | JQ35: 0 | JR35: 0 | JS35: -- | JT35: 0 | JU35: 17 | JV35: 1 | JW35: 12 | JX35: 4 | JY35: 34 | JZ35: 6567.21 | KA35: 2524.64 | KB35: 24562.93 | KC35: 53667.36 | KD35: 111642.57 | KE35: 2524.64 | KF35: 294755.16 | KG35: 214669.44 | KH35: -191841.27 | KI35: 0.3076391751 | KJ35: 431750.54 | KK35: 35 | KL35: 6 | KM35: 17 | KN35: 29 | KO35: 87 | KP35: 10931.28943 | KQ35: 22909.57333 | KR35: 25853.07412 | KS35: 41382.04966 | KT35: -7414.656667 | KU35: 17408.72575 | KV35: 382595.13 | KW35: 137457.44 | KX35: 439502.26 | KY35: 1200079.44 | KZ35: -645075.13 | LA35: 0.2986964686 | LB35: 1514559.14 | LC35: 6309700 | LD35: 1547349 | LE35: 1387538 | LF35: 0 | LG35: 9708719 | LH35: 7316000 | LI35: 0 | LJ35: 26269306 | LK35: 3056.703049 | LL35: 8188858 | LM35: 0 | LN35: 0 | LO35: 1387538 | LP35: 0 | LQ35: 9419537 | LR35: 7273373 | LS35: 0 | LT35: 18080448 | LU35: 2103.845474 | LV35: =VLOOKUP(A35,[5]Data!$A$5:$CK$569,89,FALSE) -> 2857497063 | LW35: 0.006327372383 | LX35: 0 | LY35: 0 | LZ35: 430103 | MA35: 435680 | MB35: 1010000 | MC35: 192498 | MD35: 0 | ME35: 0 | MF35: 1440103 | MG35: 628178 | MH35: 2068281 | MI35: 1199823 | MJ35: 1201098 | MK35: 4707232 | ML35: 0 | MM35: 0 | MN35: 0 | MO35: 0 | MP35: -- | MQ35: -- | MR35: AA+ | MS35: 2024 | MT35: -- | MU35: -- | MW35: 0 | MX35: 0 | MY35: 100022.54 | MZ35: 0 | NA35: 2473496200 | NB35: 0 | ND35: 0 | NE35: 0 | NF35: 0 | NG35: 0 | NH35: 0 | NI35: 0 | NJ35: 0 | NK35: 0 | NL35: 0 | NM35: 0 | NN35: 0 | NO35: 0 | NP35: 0 | NQ35: 0 | NR35: 0 | NS35: 0 | NT35: 0 | NU35: 0 | NV35: 0 | NW35: 0 | NX35: 0 | NY35: 0 | NZ35: 0 | OA35: 0 | OB35: 0 | OC35: 0 | OD35: 0 | OE35: 0 | OG35: 1595.7375 | OH35: 703882.9669 | OI35: 0 | OJ35: 0 | OL35: 4059782 | OM35: 0 | ON35: 0 | OO35: 0 | OP35: 4059782
